Workbook

Sheet Control Panel
A1: GO TO
A2: Utah | B2: Wyoming | D2: FILING INFORMATION | K2: Model Checks
A3: 1.1 | K3: (Must Be 0)
A4: 1.2 | F4: UTAH | K4: ='Model Checks'!D7 -> 1.611355833
A5: 1.3 pg 1 | E5: Current Case No. | F5: 22-057-08 | K5: (If this is not 0, or very close, go to
A6: 1.3 pg 2 | E6: Filing Date | F6: 2022-06-01 | K6: the "Model Checks"
E7: Test-Year Ending | F7: 2023-07-31 | K7: Tab and find the
A8: 1.4 pg 1 | E8: Proposed Effective Date | F8: 2022-08-01 | K8: problem.)
A9: 1.4 pg 2 | E9: Prior Case No. | F9: 21-057-28
A10: 1.4 pg 3 | K10: Go To
A11: 1.5 | D11: Total Increase (Decrease) | F11: ='Utah Summary-by class'!Q27 -> 93837427.44 | H11: =F11-G11 -> 93837427.44 | K11: Model Checks'
A12: 1.6 pg 1
A13: 1.6 pg 2
A14: 1.6 pg 3 | D14: Typical Customer's Bill | K14: Old Ut Data color
A15: 1.7 pg 1
A16: 1.7 pg 2 | E16: Previous | F16: ='Ut 1.6 p1'!F30 -> 700.17 | K16: New Data color
A17: 1.8 | E17: Proposed | F17: ='Ut 1.6 p1'!H30 -> 757.24
A18: 1.9 | E18: Difference | F18: ='Ut 1.6 p1'!J30 -> 57.07 | H18: =F18-G18 -> 57.07
A19: Monthly Inputs | E19: % Difference | F19: ='Ut 1.6 p1'!J32 -> 8.15 | H19: =F19-G19 -> 8.15
A20: Other Inputs
A21: Expenses
A22: Rate Base
D29: DEU Exhibit Headings
D31: UTAH
F32: Dominion Energy Utah
F33: ="Docket No. "&F5 -> Docket No. 22-057-08
D39: Test-Year (enter as text)
E40: from | F40: 2022-08-01
E41: to | F41: 2023-07-31

Sheet Monthly Inputs
A1: MONTHLY INPUTS
G2: TEST-YEAR COLUMNS | S2: 12-Month
E3: Jun22 | F3: Jul22 | G3: Aug22 | H3: Sep22 | I3: Oct22 | J3: Nov22 | K3: Dec22 | L3: Jan23 | M3: Feb23 | N3: Mar23 | O3: Apr23 | P3: May23 | Q3: Jun23 | R3: Jul23 | S3: =R3 -> Jul23
E4: 6 | F4: 7 | G4: 8 | H4: 9 | I4: 10 | J4: 11 | K4: 12 | L4: 1 | M4: 2 | N4: 3 | O4: 4 | P4: 5 | Q4: 6 | R4: 7
A5: QGC Company Produced Gas In MDth | I5: Updated: | J5: 2022-05-03
A6: WEXPRO I
B7: Company Production In Dth | E7: 3360101.986 | F7: 3424343.286 | G7: 3384602.392 | H7: 3246630.992 | I7: 3311505.589 | J7: 3618915.987 | K7: 3604665.791 | L7: 3704506.49 | M7: 3314161.19 | N7: 3469755.391 | O7: 3299018.986 | P7: 3354488.892 | Q7: 3360101.986 | R7: 3424343.286 | S7: =SUM(G7:R7) -> 41092696.97
B8: Birch Cr Gathering | E8: 0 | F8: 0 | G8: 0 | H8: 0 | I8: 0 | J8: 0 | K8: 0 | L8: 0 | M8: 0 | N8: 0 | O8: 0 | P8: 0 | Q8: 0 | R8: =R7/$S$7*$S$8 -> 0 | S8: ='Other Inputs'!$D$176 -> 0
B9: Gathering | E9: 590058.542 | F9: 601339.7852 | G9: =G7/$S$7*$S$9 -> 614807.1035 | H9: 589744.84 | I9: 601529.1971 | J9: 657369.7581 | K9: 654781.2351 | L9: 672917.1233 | M9: 602011.5825 | N9: 630274.9968 | O9: 599261.0276 | P9: 609337.0389 | Q9: 610356.6476 | R9: 622025.9674 | S9: =+'Ex 1.1 Data'!E1 -> 7464416.518
A12: WEXPRO II
B13: Company Production In Dth | E13: 1210752 | F13: 1185490 | G13: 1160095 | H13: 1097892 | I13: 1110111 | J13: 1401078 | K13: 1420824 | L13: 1380553 | M13: 1218001 | N13: 1310142 | O13: 1234611 | P13: 1240629 | Q13: 1210752 | R13: 1185490 | S13: =SUM(G13:R13) -> 14970178
B14: Samson Gathering | E14: 619978.0185 | F14: 607042.3515 | G14: =G13/$S$13*$S$14 -> 604213.6572 | H14: 571816.3948 | I14: 578180.4311 | J14: 729725.1194 | K14: 740009.4521 | L14: 719035.0593 | M14: 634372.908 | N14: 682362.8145 | O14: 643023.914 | P14: 646158.2761 | Q14: 630597.4027 | R14: 617440.1652 | S14: =+'Ex 1.1 Data'!L1 -> 7796935.595
D21: 1000
B23: Injections in Dth
C24: Chalk Creek | E24: 0 | F24: 0 | G24: 0 | H24: 40000 | I24: 135000 | J24: 10996 | K24: 90000 | L24: 0 | M24: 0 | N24: 0 | O24: 0 | P24: 0 | Q24: 0 | R24: 0 | S24: =SUM(G24:R24) -> 275996
C25: Clay Basin | E25: 2166181 | F25: 1976476 | G25: 2051859 | H25: 1865632 | I25: 1576854 | J25: 0 | K25: 0 | L25: 0 | M25: 0 | N25: 0 | O25: 945000 | P25: 2418001 | Q25: 2166181 | R25: 1976476 | S25: 13000003
C26: Coalville | E26: 0 | F26: 0 | G26: 0 | H26: 42000 | I26: 280800 | J26: 0 | K26: 37386 | L26: 0 | M26: 0 | N26: 360186 | O26: 0 | P26: 0 | Q26: 0 | R26: 0 | S26: 720372
C27: Leroy | E27: 0 | F27: 0 | G27: 0 | H27: 47500 | I27: 45000 | J27: 0 | K27: 272055 | L27: 0 | M27: 0 | N27: 0 | O27: 0 | P27: 0 | Q27: 0 | R27: 0 | S27: 364555
C28: Spire | E28: 0 | F28: 0 | G28: 0 | H28: 0 | I28: 0 | J28: 0 | K28: 0 | L28: 0 | M28: 0 | N28: 0 | O28: 0 | P28: 0 | Q28: 0 | R28: 0 | S28: 0
C29: LNG
C30: Total Injections | E30: 2166181 | F30: 1976476 | G30: =SUM(G24:G28) -> 2051859 | H30: 1995132 | I30: 2037654 | J30: 10996 | K30: 399441 | L30: 0 | M30: =SUM(M24:M28) -> 0 | N30: =SUM(N24:N28) -> 360186 | O30: 945000 | P30: 2418001 | Q30: 2166181 | R30: 1976476 | S30: 14360926
B32: Withdrawls In Dth
C33: Chalk Creek | E33: 0 | F33: 0 | G33: 0 | H33: 0 | I33: 0 | J33: 0 | K33: 0 | L33: 262496 | M33: 13500 | N33: 0 | O33: 0 | P33: 0 | Q33: 0 | R33: 0 | S33: =SUM(G33:R33) -> 275996
C34: Clay Basin | E34: 0 | F34: 0 | G34: 0 | H34: 0 | I34: 0 | J34: 3837659 | K34: 2672247 | L34: 3410050 | M34: 3080045 | N34: 0 | O34: 0 | P34: 0 | Q34: 0 | R34: 0 | S34: 13000001
C35: Coalville | E35: 0 | F35: 0 | G35: 0 | H35: 0 | I35: 0 | J35: 0 | K35: 0 | L35: 719445 | M35: 927 | N35: 0 | O35: 0 | P35: 0 | Q35: 0 | R35: 0 | S35: 720372
C36: Leroy | E36: 0 | F36: 0 | G36: 0 | H36: 0 | I36: 0 | J36: 0 | K36: 0 | L36: 364555 | M36: 0 | N36: 0 | O36: 0 | P36: 0 | Q36: 0 | R36: 0 | S36: 364555
C37: Spire | E37: 0 | F37: 0 | G37: 0 | H37: 0 | I37: 0 | J37: 0 | K37: 0 | L37: 0 | M37: 0 | N37: 0 | O37: 0 | P37: 0 | Q37: 0 | R37: 0 | S37: 0
C38: LNG
C39: Total Withdrawls | E39: 0 | F39: 0 | G39: =SUM(G33:G37) -> 0 | H39: 0 | I39: 0 | J39: 3837659 | K39: 2672247 | L39: 4756546 | M39: =SUM(M33:M37) -> 3094472 | N39: =SUM(N33:N37) -> 0 | O39: 0 | P39: 0 | Q39: 0 | R39: 0 | S39: 14360924
A41: LNG
B42: Injections in Dth | E42: 0 | F42: 0 | G42: 0 | H42: =9000*30 -> 270000 | I42: =9000*31 -> 279000 | J42: =9000*30 -> 270000 | K42: =9000*31 -> 279000 | L42: =9000*15 -> 135000 | M42: 0 | N42: 0 | O42: 0 | P42: 0 | Q42: 0 | R42: 0 | S42: =SUM(G42:R42) -> 1233000
B43: Withdrawls In Dth | E43: 0 | F43: 0 | G43: 0 | H43: 0 | I43: 0 | J43: 0 | K43: 0 | L43: 0 | M43: 0 | N43: 0 | O43: =0.15*S42 -> 184950 | P43: 0 | Q43: 0 | R43: 0 | S43: 184950
B45: Lost & Unaccounted for on QPC
A48: Injection and Withdrawl Used, Lost and Unaccounted For
D49: Gas Use
D50: %
B51: Injections in Dth
C52: Chalk Creek | D52: ='Other Inputs'!E151 -> 0.0099 | E52: =E24*-$D52 -> 0 | F52: 0 | G52: 0 | H52: =H24*-$D52 -> -396 | I52: -1336.5 | J52: -108.8604 | K52: -891 | L52: 0 | M52: =M24*-$D52 -> 0 | N52: 0 | O52: 0 | P52: 0 | Q52: 0 | R52: 0 | S52: =SUM(G52:R52) -> -2732.3604
C53: Clay Basin | D53: ='Other Inputs'!E160 -> 0.01366 | E53: -29590.03246 | F53: -26998.66216 | G53: -28028.39394 | H53: =H25*-$D53 -> -25484.53312 | I53: -21539.82564 | J53: 0 | K53: 0 | L53: 0 | M53: 0 | N53: 0 | O53: -12908.7 | P53: -33029.89366 | Q53: -29590.03246 | R53: -26998.66216 | S53: =SUM(G53:R53) -> -177580.041
C54: Coalville | D54: ='Other Inputs'!E163 -> 0.0108 | E54: 0 | F54: 0 | G54: 0 | H54: =H26*-$D54 -> -453.6 | I54: -3032.64 | J54: 0 | K54: -403.7688 | L54: 0 | M54: 0 | N54: -3890.0088 | O54: =O26*-$D54 -> 0 | P54: 0 | Q54: 0 | R54: 0 | S54: =SUM(G54:R54) -> -7780.0176
C55: Leroy | D55: ='Other Inputs'!E157 -> 0.0295 | E55: 0 | F55: 0 | G55: 0 | H55: -1401.25 | I55: -1327.5 | J55: 0 | K55: -8025.6225 | L55: 0 | M55: 0 | N55: 0 | O55: 0 | P55: 0 | Q55: 0 | R55: 0 | S55: =SUM(G55:R55) -> -10754.3725
C56: Ryckman | D56: ='Other Inputs'!E154 -> 0 | E56: 0 | F56: 0 | G56: 0 | H56: 0 | I56: 0 | J56: 0 | K56: 0 | L56: 0 | M56: 0 | N56: 0 | O56: 0 | P56: 0 | Q56: 0 | R56: 0 | S56: =SUM(G56:R56) -> 0
C58: Total Injections | E58: =SUM(E52:E56) -> -29590.03246 | F58: -26998.66216 | G58: -28028.39394 | H58: -27735.38312 | I58: -27236.46564 | J58: -108.8604 | K58: -9320.3913 | L58: 0 | M58: 0 | N58: -3890.0088 | O58: -12908.7 | P58: -33029.89366 | Q58: -29590.03246 | R58: -26998.66216 | S58: =SUM(S52:S56) -> -198846.7915
B60: Withdrawls In Dth
C61: Chalk Creek | D61: ='Other Inputs'!E152 -> 0.0184 | E61: =E33*-$D61 -> 0 | F61: 0 | G61: 0 | H61: 0 | I61: 0 | J61: 0 | K61: 0 | L61: -4829.9264 | M61: -248.4 | N61: 0 | O61: 0 | P61: 0 | Q61: 0 | R61: 0 | S61: =SUM(G61:R61) -> -5078.3264
C62: Clay Basin | D62: ='Other Inputs'!E161 -> 0.002147 | E62: =E34*-$D62 -> 0 | F62: 0 | G62: 0 | H62: 0 | I62: 0 | J62: -8239.453873 | K62: -5737.314309 | L62: -7321.37735 | M62: -6612.856615 | N62: 0 | O62: 0 | P62: 0 | Q62: 0 | R62: 0 | S62: =SUM(G62:R62) -> -27911.00215
C63: Coalville | D63: ='Other Inputs'!E164 -> 0.0239 | E63: =E35*-$D63 -> 0 | F63: 0 | G63: 0 | H63: 0 | I63: 0 | J63: 0 | K63: 0 | L63: -17194.7355 | M63: -22.1553 | N63: 0 | O63: 0 | P63: 0 | Q63: 0 | R63: 0 | S63: =SUM(G63:R63) -> -17216.8908
C64: Leroy | D64: ='Other Inputs'!E158 -> 0.0243 | E64: =E36*-$D64 -> 0 | F64: 0 | G64: 0 | H64: 0 | I64: 0 | J64: 0 | K64: 0 | L64: -8858.6865 | M64: 0 | N64: 0 | O64: 0 | P64: 0 | Q64: 0 | R64: 0 | S64: =SUM(G64:R64) -> -8858.6865
C65: Ryckman | D65: ='Other Inputs'!E155 -> 0 | E65: =E37*-$D65 -> 0 | F65: 0 | G65: 0 | H65: 0 | I65: 0 | J65: 0 | K65: 0 | L65: 0 | M65: 0 | N65: 0 | O65: 0 | P65: 0 | Q65: 0 | R65: 0 | S65: =SUM(G65:R65) -> 0
C67: Total Withdrawls | E67: =SUM(E61:E65) -> 0 | F67: =SUM(F61:F65) -> 0 | G67: =SUM(G61:G65) -> 0 | H67: 0 | I67: 0 | J67: -8239.453873 | K67: -5737.314309 | L67: -38204.72575 | M67: -6883.411915 | N67: 0 | O67: 0 | P67: 0 | Q67: 0 | R67: 0 | S67: =SUM(S61:S65) -> -59064.90585
B69: QPC Transportation Loss
C70: Chalk Creek | D70: ='Other Inputs'!$E$275 -> 0.0115 | E70: =E33*-$D70 -> 0 | F70: 0 | G70: 0 | H70: =H33*-$D70 -> 0 | I70: 0 | J70: 0 | K70: 0 | L70: -3018.704 | M70: =M33*-$D70 -> -155.25 | N70: 0 | O70: 0 | P70: 0 | Q70: 0 | R70: 0 | S70: =SUM(G70:R70) -> -3173.954
C71: Clay Basin | D71: ='Other Inputs'!$E$275 -> 0.0115 | E71: 0 | F71: 0 | G71: 0 | H71: =H34*-$D71 -> 0 | I71: 0 | J71: -44133.0785 | K71: -30730.8405 | L71: -39215.575 | M71: -35420.5175 | N71: 0 | O71: =O34*-$D71 -> 0 | P71: 0 | Q71: 0 | R71: 0 | S71: =SUM(G71:R71) -> -149500.0115
C72: Coalville | D72: ='Other Inputs'!$E$275 -> 0.0115 | E72: 0 | F72: 0 | G72: 0 | H72: 0 | I72: 0 | J72: 0 | K72: 0 | L72: -8273.6175 | M72: -10.6605 | N72: 0 | O72: 0 | P72: 0 | Q72: 0 | R72: 0 | S72: =SUM(G72:R72) -> -8284.278
C73: Leroy | D73: ='Other Inputs'!$E$275 -> 0.0115 | E73: 0 | F73: 0 | G73: 0 | H73: 0 | I73: 0 | J73: 0 | K73: 0 | L73: -4192.3825 | M73: 0 | N73: 0 | O73: 0 | P73: 0 | Q73: 0 | R73: 0 | S73: =SUM(G73:R73) -> -4192.3825
C74: Ryckman | D74: ='Other Inputs'!$E$275 -> 0.0115 | E74: 0 | F74: 0 | G74: 0 | H74: 0 | I74: 0 | J74: 0 | K74: 0 | L74: 0 | M74: 0 | N74: 0 | O74: 0 | P74: 0 | Q74: 0 | R74: 0 | S74: =SUM(G74:R74) -> 0
C76: Total Withdrawls | E76: =SUM(E70:E74) -> 0 | F76: =SUM(F70:F74) -> 0 | G76: =SUM(G70:G74) -> 0 | H76: 0 | I76: 0 | J76: -44133.0785 | K76: -30730.8405 | L76: -54700.279 | M76: -35586.428 | N76: 0 | O76: 0 | P76: 0 | Q76: 0 | R76: 0 | S76: -165150.626
B79: Total Injections & Withdrawls | E79: =E58+E67 -> -29590.03246 | F79: =F58+F67 -> -26998.66216 | G79: =G58+G67 -> -28028.39394 | H79: =H58+H67 -> -27735.38312 | I79: -27236.46564 | J79: -8348.314273 | K79: -15057.70561 | L79: -38204.72575 | M79: -6883.411915 | N79: -3890.0088 | O79: -12908.7 | P79: -33029.89366 | Q79: -29590.03246 | R79: -26998.66216 | S79: =S58+S67 -> -257911.6973
R81: Fuel Factor | S81: =-S79/(S39+S30) -> 0.008979633879
S83: 12-Month
E84: =E3 -> Jun22 | F84: Jul22 | G84: Aug22 | H84: Sep22 | I84: Oct22 | J84: Nov22 | K84: Dec22 | L84: Jan23 | M84: Feb23 | N84: Mar23 | O84: Apr23 | P84: May23 | Q84: Jun23 | R84: Jul23 | S84: Total
I86: Updated: | J86: 2022-05-03 | K86: EXH 1.2
A87: Natural Gas Spot Price Forecast - Average of GI, Cera & Pira | G87: (Forecast --->)
B88: Kern River Opal, Wyoming | E88: 5.77 | F88: 6.05 | G88: 6.18 | H88: 6.02 | I88: 5.27 | J88: 5.89 | K88: 6.63 | L88: 7.15 | M88: 6.42 | N88: 4.91 | O88: 3.79 | P88: 3.49 | Q88: 3.51 | R88: 3.59
B91: Spot Purchases from IRP | G91: 174.593 | H91: 927.082 | I91: 4578.141 | J91: 3055.041 | K91: 4213.845 | L91: 2285.734 | M91: 3382.892 | N91: 9478.338 | O91: 5782.44 | P91: 3355.633 | Q91: 704.763 | R91: 0 | S91: =SUM(G91:R91) -> 37938.502
C92: In DTH | G92: =G91*1000 -> 174593 | H92: =H91*1000 -> 927082 | I92: 4578141 | J92: 3055041 | K92: 4213845 | L92: =L91*1000 -> 2285734 | M92: =M91*1000 -> 3382892 | N92: 9478338 | O92: =O91*1000 -> 5782440 | P92: 3355633 | Q92: 704763 | R92: 0 | S92: =SUM(G92:R92) -> 37938502
C93: In $ | G93: =G92*G88 -> 1078984.74 | H93: =H92*H88 -> 5581033.64 | I93: =I92*I88 -> 24126803.07 | J93: =J92*J88 -> 17994191.49 | K93: =K92*K88 -> 27937792.35 | L93: =L92*L88 -> 16342998.1 | M93: 21718166.64 | N93: 46538639.58 | O93: 21915447.6 | P93: 11711159.17 | Q93: =Q92*Q88 -> 2473718.13 | R93: 0 | S93: =SUM(G93:R93) -> 197418934.5
A96: CONTRACT PURCHASES | I96: Updated: | J96: 2022-05-04
B97: RESET FORMULAS TO WORKSHEET
B98: Peaking Purchases (DTH) | G98: 0 | H98: 0 | I98: 0 | J98: 1000000 | K98: 4000000 | L98: 5000000 | M98: 3000000 | N98: 0 | O98: 0 | P98: 0 | Q98: 0 | R98: 0 | S98: =SUM(G98:R98) -> 13000000
B99: Peaking Purchases ($) | G99: 0 | H99: 0 | I99: 0 | J99: 8916562.897 | K99: 41043449.65 | L99: 57065595.7 | M99: 27954320.72 | N99: 0 | O99: 0 | P99: 0 | Q99: 0 | R99: 0 | S99: =SUM(G99:R99) -> 134979929
B101: Term Purchases (DTH) | G101: 0 | H101: 0 | I101: 0 | J101: 270000 | K101: 4464000 | L101: 4464000 | M101: 4032000 | N101: 279000 | O101: 0 | P101: 0 | Q101: 0 | R101: 0 | S101: =SUM(G101:R101) -> 13509000
B102: Term Purchases ($) | G102: 0 | H102: 0 | I102: 0 | J102: 1409309.295 | K102: 26212476.41 | L102: 29244941.34 | M102: 21434784.67 | N102: 1180555.323 | O102: 0 | P102: 0 | Q102: 0 | R102: 0 | S102: =SUM(G102:R102) -> 79482067.05
B103: Stabilization Costs (Winter Months - Oct to Mar) | G103: 0 | H103: 0 | I103: 0 | J103: 0 | K103: 0 | L103: 0 | M103: 0 | N103: 0 | O103: 0 | P103: 0 | Q103: 0 | R103: 0 | S103: =SUM(G103:R103) -> 0
B105: Hedging Term Purchases (DTH) | G105: 0 | H105: 0 | I105: 0 | J105: 0 | K105: 0 | L105: 0 | M105: 0 | N105: 0 | O105: 0 | P105: 0 | Q105: 0 | R105: 0 | S105: =SUM(G105:R105) -> 0
B106: Hedging Term Purchases ($) | G106: 0 | H106: 0 | I106: 0 | J106: 0 | K106: 0 | L106: 0 | M106: 0 | N106: 0 | O106: 0 | P106: 0 | Q106: 0 | R106: 0 | S106: =SUM(G106:R106) -> 0
B109: Total Purchases (DTH) | E109: 0 | F109: 0 | G109: =G98+G101+G105 -> 0 | H109: =H98+H101+H105 -> 0 | I109: 0 | J109: 1270000 | K109: 8464000 | L109: 9464000 | M109: 7032000 | N109: 279000 | O109: 0 | P109: 0 | Q109: 0 | R109: 0 | S109: =SUM(G109:R109) -> 26509000
B110: Total Purchases ($) | E110: 0 | F110: 0 | G110: =G99+G102+G106 -> 0 | H110: =H99+H102+H106 -> 0 | I110: 0 | J110: 10325872.19 | K110: 67255926.06 | L110: 86310537.04 | M110: 49389105.4 | N110: 1180555.323 | O110: 0 | P110: 0 | Q110: 0 | R110: 0 | S110: =SUM(G110:R110) -> 214461996
A113: Typical Customer Monthly Usage in Dth
B114: Utah | G114: =VLOOKUP(MONTH(L3),$F$128:$G$139,2,FALSE) -> 14.9 | H114: 12.5 | I114: 10.1 | J114: 8.3 | K114: 4.4 | L114: 3.1 | M114: =VLOOKUP(MONTH(R3),$F$128:$G$139,2,FALSE) -> 2 | N114: =VLOOKUP(MONTH(G3),$F$128:$G$139,2,FALSE) -> 1.8 | O114: =VLOOKUP(MONTH(H3),$F$128:$G$139,2,FALSE) -> 2 | P114: =VLOOKUP(MONTH(I3),$F$128:$G$139,2,FALSE) -> 3.1 | Q114: =VLOOKUP(MONTH(J3),$F$128:$G$139,2,FALSE) -> 6.3 | R114: =VLOOKUP(MONTH(K3),$F$128:$G$139,2,FALSE) -> 11.5 | S114: =SUM(G114:R114) -> 80
A117: INPUTS FROM WEXPRO | G117: =+G3 -> Aug22 | H117: =+H3 -> Sep22 | I117: Oct22 | J117: Nov22 | K117: Dec22 | L117: Jan23 | M117: Feb23 | N117: Mar23 | O117: Apr23 | P117: May23 | Q117: Jun23 | R117: Jul23 | S117: 12-Month
S118: Total
A119: Wexpro I Operator Fee (Wexpro forecast) | E119: Updated: | F119: 2022-05-16 | G119: 13550283.02 | H119: 13721242.3 | I119: 13720199.38 | J119: 13091953.6 | K119: 12883438.38 | L119: 13999168.47 | M119: 14145265.67 | N119: 13968519.12 | O119: 13531922.24 | P119: 12924515.38 | Q119: 12426422.89 | R119: 12275045.92 | S119: =SUM(G119:R119) -> 160237976.4
A121: Wexpro II Operator Fee (Wexpro forecast) | E121: Updated: | F121: 2022-05-16 | G121: 3736434.805 | H121: 3536081.086 | I121: 3451330.253 | J121: 4570622.063 | K121: 4428917.2 | L121: 4470389.659 | M121: 3947783.708 | N121: 3881570.365 | O121: 3677727.093 | P121: 3563482.167 | Q121: 3522916.104 | R121: 3475746.421 | S121: =SUM(G121:R121) -> 46263000.92
F127: Typical UPC | G127: UT | J127: Typical UPC | K127: UT
F128: 1 | G128: 14.9 | J128: 1 | K128: 13
F129: 2 | G129: 12.5 | J129: 2 | K129: 10.9
F130: 3 | G130: 10.1 | J130: 3 | K130: 8.8
F131: 4 | G131: 8.3 | J131: 4 | K131: 7.3
F132: 5 | G132: 4.4 | J132: 5 | K132: 3.8
F133: 6 | G133: 3.1 | J133: 6 | K133: 2.7
F134: 7 | G134: 2 | J134: 7 | K134: 1.8
F135: 8 | G135: 1.8 | J135: 8 | K135: 1.6
F136: 9 | G136: 2 | J136: 9 | K136: 1.8
F137: 10 | G137: 3.1 | J137: 10 | K137: 2.7
F138: 11 | G138: 6.3 | J138: 11 | K138: 5.5
F139: 12 | G139: 11.5 | J139: 12 | K139: 10.1
F140: Total | G140: =SUM(G128:G139) -> 80 | J140: Total | K140: =SUM(K128:K139) -> 70

Sheet Other Inputs
H1: Used In
A2: INPUT SECTION | H2: Ut | I2: Wy
A3: INPUTS FROM QUESTAR PIPELINE TARIFF AND CONTRACTS
B5: Storage Commodity Rates | E5: Rate | F5: Effective
B6: Peaking Injections | E6: 0.03872 | F6: 2022-04-01 | H6: 1.3.2 | I6: 1.3p2
B7: Peaking Withdrawals | E7: 0.03872 | F7: =$F$6 -> 2022-04-01 | H7: 1.3.2 | I7: 1.3p2
B8: Spire Injections | E8: 0 | F8: =$F$6 -> 2022-04-01
B9: Spire Withdrawals | E9: 0 | F9: =$F$6 -> 2022-04-01
B10: Clay Basin Injections | E10: 0.01049 | F10: =$F$6 -> 2022-04-01 | H10: 1.3.2 | I10: 1.3p2
B11: Clay Basin Withdrawals | E11: 0.01781 | F11: =$F$6 -> 2022-04-01 | H11: 1.3.2 | I11: 1.3p2
B13: Storage Field Reservation Charges
B14: Peaking Storage Fields Demand (Leroy, Chalk Creek, Coalville) | E14: 2.87375 | F14: =$F$6 -> 2022-04-01 | H14: 1.3.2 | I14: 1.3p2
B15: Spire | E15: 0 | F15: =$F$6 -> 2022-04-01
B16: Clay Basin Demand | E16: 2.85338 | F16: =$F$6 -> 2022-04-01 | H16: 1.3.2 | I16: 1.3p2
B17: Clay Basin Capacity | E17: 0.02378 | F17: =$F$6 -> 2022-04-01 | H17: 1.3.2 | I17: 1.3p2
B19: Peak Hour Service
B20: Kern River | D20: 28752 | E20: 3 | F20: =+F21*E21/E20 -> 18.0596
B21: mid Nov - mid Feb | E21: =16+31+31+14 -> 92 | F21: =0.5833+0.0044+0.0012 -> 0.5889
B23: Dominion Energy Questar Pipeline | D23: =(170000+54000)/24*8 -> 74666.66667 | E23: 3 | F23: =(1250772+397304)/(D23*E23) -> 7.357482143
B24: mid Nov - mid Feb | E24: =16+31+31+14 -> 92 | F24: =+F23/E24*E23 -> 0.239917896
B27: FIRM TRANSPORTATION | D27: Contract Dth | E27: Months | F27: Maximum Rate | G27: Effective
B28: T-1 Transportation - Yearly (MT241) | D28: =798902 -> 798902 | E28: 12 | F28: 5.28804 | G28: 2022-04-01 | H28: 1.3p1
B29: T-1 Transportation - Yearly (Mainline 104) | D29: 30000 | E29: 12 | F29: 5.28804 | G29: =$G$28 -> 2022-04-01 | H29: Jan
B30: T-1 Transportation - Yearly (Tieline 112) | D30: 12000 | E30: 12 | F30: 5.28804 | G30: =$G$28 -> 2022-04-01 | H30: 1.3p1
B31: T-1 Transportation - Nov-Mar | D31: 75000 | E31: 5 | F31: 6.80887 | G31: =$G$28 -> 2022-04-01
B32: T-1 Transportation - Yearly (Hyrum) | D32: 100000 | E32: 12 | F32: 5.28804 | G32: =$G$28 -> 2022-04-01
B33: Total Yearly T-1 Transportation | D33: =SUM(D28:D32) -> 1015902 | E33: 12
B35: No-Notice Transportation (BASE TARIFF RATE) | D35: 203542 | E35: 12 | F35: 0.86753 | G35: =$G$28 -> 2022-04-01 | H35: 1.3p1
A37: Dominion Energy Overthrust Pipeline, LLC
B38: Jan- Dec #6546 | D38: 8542 | E38: 12 | F38: 1.62 | G38: 2022-04-01
B39: Systemwide Usage Charge | F39: 0.00167 | G39: =+G38 -> 2022-04-01
B41: TRANSPORTATION COMMODITY
B42: PIPELINE USAGE CHARGE TO VOLUMETRIC RELEASES
B43: QPC Commodity
B44: QPC Firm Transportation Usage Charge (Max & Min) (BASE TARIFF RATE) | F44: 0.00267 | G44: 2022-04-01 | H44: 1.3p1
B45: QPC (ANNUAL CHARGE ADJUSTMENT) | F45: 0.0012 | G45: 2021-10-01 | H45: 1.3p1
E47: Current | F47: Proposed
B48: INTER TRANS (T-2 PIPELINE BASE TARIFF) MAX | D48: Base Tariff | E48: 0.17652 | F48: 0.17652 | G48: 2022-04-01
D49: Annual Charge | E49: 0.0012 | F49: 0.0012 | G49: 2021-10-01
D50: Total | E50: =SUM(E48:E49) -> 0.17772 | F50: =SUM(F48:F49) -> 0.17772
B53: Utah | E53: =ROUND((E50)/(1-$E272),5) -> 0.17869 | F53: =ROUND((F50)/(1-E272),5) -> 0.17869 | H53: 1.6.3
B54: Wyoming | F54: =ROUND((F50)/(1-E273),5) -> 0.18043
A56: INPUTS FROM KERN RIVER PIPELINE TARIFF AND CONTRACTS | E56: 15.78929167
B57: Kern River 2003 Expansion | D57: Contract Dth | E57: Months | F57: Maximum Rate | G57: Effective
F58: =0.2018-0.0222 -> 0.1796 | G58: 2021-01-01
B59: Jan - Dec #20029 | D59: 33000 | E59: 12 | F59: =(F58*(365-153))/E59 -> 3.172933333 | H59: 1.3.1
B60: November - March #20029 | D60: 50000 | E60: 5 | F60: =F59 -> 3.172933333 | H60: Jan
B61: Jan - Dec #1829 | D61: 1885 | E61: 12 | F61: =F62*E62/E61 -> 5.487166667
B62: Days in Tariff Rate | E62: 365 | F62: =0.2027-0.0223 -> 0.1804 | G62: =G58 -> 2021-01-01
B64: Citadel Energy Marketing
B65: Dec - Feb #20017 | D65: 56925 | E65: 3 | F65: =+E66*F66/E65 -> 8.7 | H65: 1.3.1
B66: Days in Tariff Rate | E66: =31+31+28 -> 90 | F66: 0.29
B67: Nov & Mar #20017 | D67: 6000 | E67: 2 | F67: =+F68*E68/E67 -> 8.845 | H67: Jan
B68: Days in Tariff Rate | E68: =30+31 -> 61 | F68: 0.29
B69: Nov - Mar #20024 | D69: 27000 | E69: 5 | F69: =+F70*E70/E69 -> 8.758 | H69: Jan
B70: Days in Tariff Rate | E70: =30+31+31+28+31 -> 151 | F70: 0.29
B72: Kern River 2003 Expansion | E72: Days in TEST PERIOD
B73: Jan - Dec | C73: 0.7185227992 | D73: =D59+D61 -> 34885 | E73: 365 | F73: 0.0044 | G73: 2022-04-01 | H73: 1.3p1
B74: November - March | C74: =C73 -> 0.7185227992 | D74: =D60 -> 50000 | E74: =30+31+31+28+31 -> 151 | F74: 0.0044 | G74: 2022-04-01 | H74: 1.3p1
B76: Kern River Original System Period Two Rates #20017
B77: Dec - Feb #20017 | C77: =+C73 -> 0.7185227992 | D77: 56925 | E77: =31+31+28 -> 90 | F77: 0.0044 | G77: =+G74 -> 2022-04-01 | H77: 1.3.1
B78: Nov & Mar #20017 | C78: =+C73 -> 0.7185227992 | D78: 6000 | E78: 61 | F78: 0.0044 | G78: =+G74 -> 2022-04-01 | H78: 1.3.2
B79: Kern River 2002 Expansion Period Two Rates #20024
B80: Nov - Mar #20024 | C80: =+C73 -> 0.7185227992 | D80: 27000 | E80: =30+31+31+28+31 -> 151 | F80: 0.0044 | G80: =+G74 -> 2022-04-01 | H80: Jan
A83: INPUTS FROM QUESTAR GAS TARIFF
A86: Current SNG Rates
B87: UTAH | E87: Current SNG Base | F87: Current SNG Amort. | G87: Current SNG Total | J87: Effective
B88: GS | D88: Winter | E88: 0.89084 | F88: 0.05618 | G88: =E88+F88 -> 0.94702 | J88: 2022-06-01
D89: Summer | E89: 0.37469 | F89: 0.02356 | G89: =E89+F89 -> 0.39825 | J89: 2022-06-01
B91: FS | D91: Winter | E91: 0.80291 | F91: 0.05319 | G91: =E91+F91 -> 0.8561 | J91: 2022-06-01
D92: Summer | E92: 0.78021 | F92: 0.04298 | G92: =E92+F92 -> 0.82319 | J92: 2022-06-01
B94: NGV | E94: 0.97444 | F94: 0.0621 | G94: =E94+F94 -> 1.03654 | J94: 2022-06-01
B96: (This includes bad debt adjustment) IS | E96: 0.17905 | G96: =E96+F96 -> 0.17905 | J96: 2022-06-01
A98: Current Rates
B99: Utah GS | J99: Effective
B100: Block 1 | D100: Summer | G100: 7.95117 | J100: 2022-06-01
B101: Block 2 | D101: Summer | G101: 6.67098 | J101: =+J100 -> 2022-06-01
B102: Block 1 | D102: Winter | G102: 9.24718 | J102: =+J100 -> 2022-06-01
B103: Block 2 | D103: Winter | G103: 7.967 | J103: =+J100 -> 2022-06-01
B104: #1 BSF | G104: 6.75 | J104: =+J100 -> 2022-06-01
B106: Wyoming GS
B107: Block 1 | G107: 8.66509 | J107: 2022-01-01
B108: Block 2 | G108: 8.41732 | J108: =+J107 -> 2022-01-01
B109: BSF | G109: 12 | J109: =+J107 -> 2022-01-01
A111: INPUTS FROM PREVIOUS PASSTHROUGH CASE
B112: PRIOR PERIOD COMPANY PRODUCTION AVERAGE GAS COST
E113: PROPOSED | F113: PRIOR CASE | G113: Most Recent
B114: VOLUMES DTH | E114: =+'Monthly Inputs'!S7+'Monthly Inputs'!S13 -> 56062874.97 | F114: 57254772.97 | G114: EXH 1.2p1
B115: AMOUNT | E115: =+D199+D222 -> 254726753.9 | F115: 239203844.1 | G115: EXH 1.2p1
B116: AVG COST | E116: =+E115/E114 -> 4.54359064 | F116: =ROUND(+F115/F114,5) -> 4.17788
B118: Utah Cost of Gas by Component
B119: Unit Cost Of Gas (Line 7) | F119: 4.6196
B120: 191 Account Amortization (Line 8) | F120: 0.5702
B121: Tax Reform Surcredit 4 | F121: 0
B122: Total Unit Cost In Rates (Line 9) | F122: =SUM(F119:F121) -> 5.1898
B124: Wyoming Cost of Gas by Component
B125: Unit Cost Of Gas (Line 9) | F125: 5.30383
B126: 191 Account Amortization (Line 10) | F126: 0.7395
B127: Total Unit Cost In Rates (Line 11) | F127: =SUM(F125:F126) -> 6.04333
B129: UT NGV RIN Credit | F129: -0.37839
A132: INPUTS FROM 191 ACCOUNT MONTH END BALANCE ACTUAL OR FORECAST | E132: Utah | F132: Wyoming
E133: 2022 | F133: 2022-04-30
H134: 1.6.2
D135: current yr /mo(text)
B136: April 2022 191 account (Actual/Forecast) | D136: 2022 | E136: 51471288 | F136: 1865821 | H136: 1.6.1
B137: Supplier Non-Gas Cost Under (Over) Collected through April 2022 (act/fcst) | D137: April | E137: -8938524 | H137: 1.6.2
B138: Commodity Cost Under (Over) Collected during YEAR (Act/Fcst) | E138: =E136-E137 -> 60409812
B140: SPRING SNG Amortization Balance March 2022 | D140: -10777254 | E140: -14000000 | F140: =+D140-E140 -> 3222746
B141: Previous SPRING SNG Amortization | D141: -8627117 | E141: -14000000 | F141: =+D141-E141 -> 5372883
A143: INPUTS FROM IRP
B144: #1 Peak Day Demand Forecast | E144: 2021 | F144: Source
B145: Utah | E145: =E147-E146 -> 1203265 | F145: 2021 IRP
B146: Wyoming | E146: 38421
B147: System Total Peak Day Demand Forecast | E147: 1241686 | F147: 2022-2023 Heating Season | H147: 1.5 | I147: 1.5
A150: STORAGE FIELD INPUTS | E150: Storage
B151: Chalk Creek Injections Factor | E151: 0.0099
B152: Chalk Creek Withdrawls Factor | E152: 0.0184
B154: Spire Injections Factor | E154: 0
B155: Spire Withdrawls Factor | E155: 0
B157: Leroy Injections Factor | E157: 0.0295
B158: Leroy Withdrawls Factor | E158: 0.0243
B160: Clay Basin Injections Factor | E160: 0.01366
B161: Clay Basin Withdrawls Factor | E161: 0.002147
B163: Coalville Injections Factor | E163: 0.0108
B164: Coalville Withdrawls Factor | E164: 0.0239
B166: QPC Storage Field Reservation Charges | E166: Monthly Dth
B167: Peaking Storage Fields Maximum Daily Withdrawal Qty (Leroy, Chalk Creek, Coalville) | E167: 184625
B168: Spire Maximum Storage Qty | E168: 0
B169: Clay Basin Minimum Required Deliverability | E169: 111827
B170: Clay Basin Capacity | E170: 13419000
A172: OTHER INPUTS FROM GLEN, TOM, TINA & Al | D172: Revenue
B173: OTHER GATHERING
B177: Total Forecasted Birch Creek | D177: 275851.29 | E177: 2022-04-30
B179: Other gathering | D179: 973854.609 | E179: 2022-04-30 | H179: JanB
B180: Total Gathering | D180: =SUM(D177:D179) -> 1249705.899 | H180: 1.3.1 | I180: 1.3P1
B182: Other Transportation | D182: 2854069.029 | E182: 2022-04-30 | H182: 1.3.1
B184: Forecast Future Contracts Premium over spot price | E184: 0.02
D186: Commodity | E186: Demand
D187: Charge | E187: Charge | F187: Effective
B188: Gathering Rates -System wide Gathering agreement #163 (SWGA) | D188: 1925206.066 | E188: 2887809.099 | F188: 2022-01-01 | I188: 1.3p1
B191: Gathering Rate Wexpro II | D191: 65280.6958 | I191: 1.3p1
A194: OTHER INPUTS FROM JIM LIVSEY | D194: Volume (Dth) | E194: Revenue
A195: WEXPRO I
B196: Questar Gas Production 1/ | D196: Current
B197: Test-Year Royalties | D197: ='Royalty Detail'!I1383 -> 35327211.64 | H197: 1.4.1 | I197: 1.4P1
B198: Operator Service Fee | D198: ='Monthly Inputs'!S119 -> 160237976.4 | H198: 1.4.1 | I198: 1.4P1
B199: Total Questar Gas Production Costs | D199: =SUM(D197:D198) -> 195565188
B201: Total Questar Gas Production Dth | D201: ='Royalty Detail'!F1388 -> 41092696.97
F202: Hot | G202: Hot
B203: Other Revenue Credits | D203: 1 | E203: 2 | F203: 2 | G203: 2 | I203: 1
D204: Historical | E204: Forecast | F204: =HLOOKUP(F$203,$D$203:$E$212,$I204) -> Forecast | G204: =HLOOKUP(G$203,$D$203:$E$212,$I204) -> Forecast | I204: 2
D205: 12 Mo Ending | E205: 12 Mo Ending | F205: Utah | G205: Wyoming | I205: 3
B206: 483 Sales for Resale | E206: 2639591.095 | F206: =HLOOKUP(F$203,$D$203:$E$212,$I206) -> 2639591.095 | G206: =HLOOKUP(G$203,$D$203:$E$212,$I206) -> 2639591.095 | I206: 4
B207: 490 Incidental Plant Prod Sales | E207: 8865739.326 | F207: =HLOOKUP(F$203,$D$203:$E$212,$I207) -> 8865739.326 | G207: 8865739.326 | I207: 5
B208: 492 Incidental Gasoline_Oil Sales | E208: 1006221.035 | F208: 1006221.035 | G208: 1006221.035 | I208: 6
B209: 4951 Overriding Royalty Revenue from Celsius | E209: 13932949.29 | F209: 13932949.29 | G209: 13932949.29 | I209: 7
B210: 4952 Oil Revenue Received from Wexpro | E210: 2739902.66 | F210: 2739902.66 | G210: 2739902.66 | I210: 8
B211: 3rd Party & Liquids Credits from MLPX Acquisiiton | E211: 3680273.83 | F211: =HLOOKUP(F$203,$D$203:$E$212,$I211) -> 3680273.83 | G211: 3680273.83 | I211: 9
B212: 758001 Gas Well Royalities - Other | E212: -137770.2546 | F212: -137770.2546 | G212: -137770.2546 | I212: 10
B213: EDIT Amortization | E213: 4770564 | F213: =HLOOKUP(F$203,$D$203:$E$213,$I213) -> 4770564 | G213: =HLOOKUP(G$203,$D$203:$E$213,$I213) -> 4770564 | I213: 11
B216: Total Other Revenue Credits | D216: =SUM(D206:D212) -> 0 | E216: =SUM(E206:E213) -> 37497470.98 | F216: =SUM(F206:F213) -> 37497470.98 | G216: =SUM(G206:G213) -> 37497470.98
A218: WEXPRO II
B219: Questar Gas Production 1/ | D219: Current
B220: Test-Year Royalties | D220: ='Royalty Detail'!I1636 -> 12898565.03 | H220: 1.4.1 | I220: 1.4P1
B221: Operator Service Fee | D221: ='Monthly Inputs'!S121 -> 46263000.92 | H221: 1.4.1 | I221: 1.4P1
B222: Total Questar Gas Production Costs | D222: =SUM(D220:D221) -> 59161565.95
B224: Total Questar Gas Production Dth | D224: ='Royalty Detail'!F1641 -> 14970178
F225: Hot | G225: Hot
B226: Other Revenue Credits | D226: 1 | E226: 2 | F226: 2 | G226: 2 | I226: 1
D227: Historical | E227: Forecast | F227: =HLOOKUP(F$203,$D$203:$E$212,$I227) -> Forecast | G227: =HLOOKUP(G$203,$D$203:$E$212,$I227) -> Forecast | I227: 2
D228: 12 Mo Ending | E228: 12 Mo Ending | F228: Utah | G228: Wyoming | I228: 3
B229: 483 Sales for Resale | E229: 0 | F229: =HLOOKUP(F$226,$D$226:$E$234,$I229) -> 0 | G229: 0 | I229: 4
B230: 490 Incidental Plant Prod Sales | E230: 2497628.525 | F230: 2497628.525 | G230: 2497628.525 | I230: 5
B231: 492 Incidental Gasoline_Oil Sales | E231: 1963140.128 | F231: 1963140.128 | G231: 1963140.128 | I231: 6
B232: 4951 Overriding Royalty Revenue from Celsius | E232: 0 | F232: 0 | G232: 0 | I232: 7
B233: 4952 Oil Revenue Received from Wexpro | E233: 843335.0375 | F233: 843335.0375 | G233: 843335.0375 | I233: 8
B234: 758001 Gas Well Royalities - Other | E234: -218061.8315 | F234: -218061.8315 | G234: -218061.8315 | I234: 9
B235: EDIT Amortization | E235: 96228 | F235: =HLOOKUP(F$226,$D$226:$E$235,$I235) -> 96228 | G235: =HLOOKUP(G$226,$D$226:$E$235,$I235) -> 96228 | I235: 10
B238: Total Other Revenue Credits | D238: =SUM(D229:D234) -> 0 | E238: =SUM(E229:E236) -> 5182269.859 | F238: =SUM(F229:F236) -> 5182269.859 | G238: =SUM(G229:G236) -> 5182269.859
E240: Proceeds | F240: Dths | G240: Price
B241: Sales of Wexpro Gas | E241: 0 | F241: 0 | G241: 0
A243: SUMMARY INPUTS FROM REVRUN, RATE BASE, EXPENSES, ETC.
B245: Supplier Non-Gas Costs Recovered at Current Rates 3/ | E245: ='RevRun Fcst'!T$199 -> 91645453.22 | H245: 1.6.2
B246: MT Supplier Non-Gas | E246: ='RevRun Fcst'!T142 -> 0
B247: Net Supplier Non-Gas | E247: =E245-E246 -> 91645453.22
B248: UT Current Int Sales SNG Rate - not including Bad Debt adj. | E248: ='RevRun Fcst'!T102+'RevRun Fcst'!T93 -> 271004 | F248: 0.17869
E250: ='Rate Base'!$Q$4 -> 2022-04-30
B251: Account 164-1 - Gas Stored Underground | D251: Dth | E251: Ending Balance | F251: $ per Dth
D252: ='Rate Base'!P22 -> -1184924 | E252: ='Rate Base'!P11 -> 4611532.51 | F252: =+E252/D252 -> -3.891838219 | H252: 1.4.2
A254: UT CET and DSM AMORTIZATION FILING INPUTS
E255: Base DNG | F255: Current DNG
B256: GS Rates (Base rates are before CET, DSM, & EA Amortizations) | D256: Summer Blk 1 | E256: 1.94617 | F256: 2.36312
D257: Summer Blk 2 | E257: 0.74377 | F257: 1.08293
D258: Winter Blk 1 | E258: 2.64801 | F258: 3.11036
D259: Winter Blk 2 | E259: 1.44561 | F259: 1.83018
A263: MISCELLANEOUS INPUTS
B264: Test-Year | D264: ='Control Panel'!F40 -> 2022-08-01 | E264: ='Control Panel'!F41 -> 2023-07-31
B266: Wexpro Red. @ 6.3% | E266: -0.063 | I266: 1.3p3
B268: Pre-Tax Rate of Return % | D268: WYO | E268: 0.088 | F268: 2020-09-01 | I268: 1.3p2
B269: Pre-Tax Rate of Return % | D269: UTAH | E269: 0.089 | F269: 2020-03-01
... 37 more rows

Sheet CET & DSM WY (hidden)
A1: Rate Caclulation for the CET and DSM Amortizations WY
L3: Solver Cells
A4: CET Amortization % Calculation | L4: % Change | M4: Difference
B5: Balance | C5: Date | D5: GS Dth | F5: Amortization per Dth | L5: =J20/D20 ->  | M5: =G20-B11 ->  | O5: -> Difference should be at 0 (Use Goal Seek to Get Difference to Equal 0.
A6: DSM Balance | B6: ='Other Inputs'!#REF! ->  | C6: ='Other Inputs'!#REF! ->  | D6: =B20 ->  | F6: =B6/D6 -> 
O8: Typical Bill Rates
A9: CET Amortization Calculation
B10: Balance | C10: Date | D10: DNG Rev | F10: New DNG | I10: % Change | O10: Current | P10: Proposed
A11: CET Balance | B11: ='Other Inputs'!#REF! ->  | C11: ='Other Inputs'!#REF! ->  | D11: =D20 ->  | F11: =D11+B11 ->  | I11: =L5 ->  | O11: Effective | R11: SNG & | S11: CET, DSM
O12: ='Other Inputs'!$J$107 -> 2022-01-01 | P12: CET Only | Q12: DSM Only | R12: Commodity | S12: Commodity
O13: BSF | P13: BSF | Q13: BSF | R13: BSF | S13: BSF
B14: Revenue Calculation | F14: CET Amortization | I14: Total DNG | L14: REVRUN Calculation | O14: ='Other Inputs'!$G$109 -> 12 | P14: ='Other Inputs'!$G$109 -> 12 | Q14: ='Other Inputs'!$G$109 -> 12 | R14: ='Other Inputs'!$G$109 -> 12 | S14: =#REF! -> 
A15: WY GS | B15: Dth | C15: Base DNG | D15: DNG Revenue | F15: CET Rate | G15: Revenue | I15: DNG Rate | J15: Revenue | L15: CET Rate | M15: CET Amort
A16: Block 1 | B16: ='Other Inputs'!#REF! ->  | C16: ='Other Inputs'!#REF! ->  | D16: =B16*C16 ->  | F16: =ROUND((G16/B16),5) ->  | G16: =D16*$L$5 ->  | I16: =C16+F16 ->  | J16: =I16*B16 ->  | L16: =ROUND(F16,5) ->  | M16: =B16*L16 ->  | O16: ='Other Inputs'!$G$100 -> 7.95117 | P16: =J24 ->  | Q16: =J31 ->  | R16: =J36 ->  | S16: =J41 -> 
A17: Block 2 | B17: ='Other Inputs'!#REF! ->  | C17: ='Other Inputs'!#REF! ->  | D17: =B17*C17 ->  | F17: =ROUND((G17/B17),5) ->  | G17: =D17*$L$5 ->  | I17: =C17+F17 ->  | J17: =I17*B17 ->  | L17: =ROUND(F17,5) ->  | M17: =B17*L17 -> 
O18: ='Other Inputs'!$G$107 -> 8.66509 | P18: =J24 ->  | Q18: =J31 ->  | R18: =J36 ->  | S18: =J41 -> 
A20: GS-1 Block Rev | B20: =SUM(B16:B19) ->  | D20: =SUM(D16:D19) ->  | G20: =SUM(G16:G19) ->  | J20: =B11 ->  | M20: =SUM(M16:M19) -> 
A22: Total Rate Calculation With CET Amortization Only | J22: ='Control Panel'!#REF! ->  | L22: ='Other Inputs'!$J$107 -> 2022-01-01
A23: WY GS | B23: Total DNG | C23: CET | D23: DSM | F23: Total DNG | G23: Core Commodity Cost | J23: Total Rate | L23: Total Rate
A24: Block 1 | B24: =$C$16 ->  | C24: =$F$16 ->  | D24: 0.06792 | F24: =SUM(B24:D24) ->  | G24: 4.96884 | J24: =SUM(F24:G24) ->  | L24: ='Other Inputs'!G107 -> 8.66509 | M24: =J24-L24 -> 
A25: Block 2 | B25: =$C$17 ->  | C25: =$F$17 ->  | D25: =$D$24 -> 0.06792 | F25: =SUM(B25:D25) ->  | G25: =G24 -> 4.96884 | J25: =SUM(F25:G25) ->  | L25: ='Other Inputs'!$G$108 -> 8.41732 | M25: =J25-L25 -> 
A29: Total Rate Calculation With DSM Amortization Only | J29: =J22 ->  | L29: ='Other Inputs'!$J$107 -> 2022-01-01
A30: WY GS | B30: Base DNG | C30: CET | D30: DSM | F30: Total DNG | G30: Core Commodity Cost | J30: Total Rate | L30: Total Rate
A31: Block 1 | B31: =$C$16 ->  | C31: 0.04505 | D31: =$F$6 ->  | F31: =ROUND(SUM(B31:D31),5) ->  | G31: =G24 -> 4.96884 | J31: =SUM(F31:I31) ->  | L31: ='Other Inputs'!$G$100 -> 7.95117 | M31: =J31-L31 -> 
A32: Block 2 | B32: =$C$17 ->  | C32: 0.02848 | D32: =$F$6 ->  | F32: =ROUND(SUM(B32:D32),5) ->  | G32: =G25 -> 4.96884 | J32: =SUM(F32:I32) ->  | L32: ='Other Inputs'!$G$108 -> 8.41732 | M32: =J32-L32 -> 
A34: Total Rate Calculation With Core Commodity Cost Changes Only | J34: =J22 ->  | L34: ='Other Inputs'!$J$107 -> 2022-01-01
A35: WY GS | B35: Base DNG | C35: CET | D35: DSM | F35: Total DNG | G35: Core Commodity Cost | J35: Total Rate | L35: Total Rate
A36: Block 1 | B36: =$C$16 ->  | C36: =C31 -> 0.04505 | D36: =D24 -> 0.06792 | F36: =SUM(B36:D36) ->  | G36: =#REF! ->  | J36: =SUM(F36:I36) ->  | L36: ='Other Inputs'!$G$100 -> 7.95117 | M36: =J36-L36 -> 
A37: Block 2 | B37: =$C$17 ->  | C37: =C32 -> 0.02848 | D37: =D25 -> 0.06792 | F37: =SUM(B37:D37) ->  | G37: =#REF! ->  | J37: =SUM(F37:I37) ->  | L37: ='Other Inputs'!$G$108 -> 8.41732 | M37: =J37-L37 -> 
A39: Total Rate Calculation | J39: =J29 ->  | L39: ='Other Inputs'!$J$107 -> 2022-01-01
A40: WY GS | B40: Base DNG | C40: CET | D40: DSM | F40: Total DNG | G40: Core Commodity Cost | J40: Total Rate | L40: Total Rate
A41: Block 1 | B41: =$C$16 ->  | C41: =$F$16 ->  | D41: =$F$6 ->  | F41: =SUM(B41:D41) ->  | G41: =#REF! ->  | J41: =SUM(F41:I41) ->  | L41: ='Other Inputs'!$G$100 -> 7.95117 | M41: =J41-L41 -> 
A42: Block 2 | B42: =$C$17 ->  | C42: =$F$17 ->  | D42: =$F$6 ->  | F42: =SUM(B42:D42) ->  | G42: =#REF! ->  | J42: =SUM(F42:I42) ->  | L42: ='Other Inputs'!$G$108 -> 8.41732 | M42: =J42-L42 -> 
A44: Typical Customer Difference - CET Amortization Only
B45: Typical
A46: GS | B46: Dth | C46: =O12 -> 2022-01-01 | D46: =J39 ->  | F46: Change | G46: % Change
A47: January | B47: 14.7 | C47: =ROUND($O$14+(B47*$O$18),2) -> 139.38 | D47: =ROUND($P$14+(B47*$P$18),2) ->  | F47: =D47-C47 -> 
A48: February | B48: 14.1 | C48: =ROUND($O$14+(B48*$O$18),2) -> 134.18 | D48: =ROUND($P$14+(B48*$P$18),2) ->  | F48: =D48-C48 -> 
A49: March | B49: 11.8 | C49: =ROUND($O$14+(B49*$O$18),2) -> 114.25 | D49: =ROUND($P$14+(B49*$P$18),2) -> 
A50: April | B50: 9.4 | C50: =ROUND($O$14+(B50*$O$16),2) -> 86.74 | D50: =ROUND($P$14+(B50*$P$16),2) -> 
A51: May | B51: 5.8 | C51: 58.12 | D51: =ROUND($P$14+(B51*$P$16),2) -> 
A52: June | B52: 3.7 | C52: 41.42
A53: July | B53: 2.3 | C53: 30.29
A54: August | B54: 1.7 | C54: 25.52
A55: September | B55: 2.1 | C55: 28.7
A56: October | B56: 4.1 | C56: 44.6
A57: November | B57: 8 | C57: =ROUND($O$14+(B57*$O$18),2) -> 81.32 | D57: =ROUND($P$14+(B57*$P$18),2) -> 
A58: December | B58: 12.3 | C58: =ROUND($O$14+(B58*$O$18),2) -> 118.58 | D58: =ROUND($P$14+(B58*$P$18),2) -> 
B59: =SUM(B47:B58) -> 90 | C59: =SUM(C47:C58) -> 903.1 | D59: =SUM(D47:D58) ->  | F59: =SUM(F47:F58) ->  | G59: =F59/C59 -> 
A62: Typical Customer Difference - DSM Amortization Only
B63: Typical
A64: GS | B64: Dth | C64: =C46 -> 2022-01-01 | D64: =D46 ->  | F64: Change | G64: % Change
A65: January | B65: 14.7 | C65: =ROUND($O$14+(B65*$O$18),2) -> 139.38 | D65: =ROUND($Q$14+(B65*$Q$18),2) ->  | F65: =D65-C65 -> 
A66: February | B66: 14.1 | C66: =ROUND($O$14+(B66*$O$18),2) -> 134.18 | D66: =ROUND($Q$14+(B66*$Q$18),2) ->  | F66: =D66-C66 -> 
A67: March | B67: 11.8 | C67: =ROUND($O$14+(B67*$O$18),2) -> 114.25 | D67: =ROUND($Q$14+(B67*$Q$18),2) -> 
A68: April | B68: 9.4 | C68: =ROUND($O$14+(B68*$O$16),2) -> 86.74 | D68: =ROUND($Q$14+(B68*$Q$16),2) -> 
A69: May | B69: 5.8 | C69: 58.12
A70: June | B70: 3.7 | C70: 41.42
A71: July | B71: 2.3 | C71: 30.29
A72: August | B72: 1.7 | C72: 25.52
A73: September | B73: 2.1 | C73: 28.7
A74: October | B74: 4.1 | C74: 44.6
A75: November | B75: 8 | C75: =ROUND($O$14+(B75*$O$18),2) -> 81.32 | D75: =ROUND($Q$14+(B75*$Q$18),2) -> 
A76: December | B76: 12.3 | C76: =ROUND($O$14+(B76*$O$18),2) -> 118.58 | D76: =ROUND($Q$14+(B76*$Q$18),2) -> 
B77: =SUM(B65:B76) -> 90 | C77: =SUM(C65:C76) -> 903.1 | D77: =SUM(D65:D76) ->  | F77: =SUM(F65:F76) ->  | G77: =F77/C77 -> 
A80: Typical Customer Difference - SNG and Commodity Changes Only
B81: Typical
A82: GS | B82: Dth | C82: =C64 -> 2022-01-01 | D82: =D64 ->  | F82: Change | G82: % Change
A83: January | B83: 14.7 | C83: =ROUND($O$14+(B83*$O$18),2) -> 139.38 | D83: =ROUND($R$14+(B83*$R$18),2) ->  | F83: =D83-C83 -> 
A84: February | B84: 14.1 | C84: =ROUND($O$14+(B84*$O$18),2) -> 134.18 | D84: =ROUND($R$14+(B84*$R$18),2) ->  | F84: =D84-C84 -> 
A85: March | B85: 11.8 | C85: =ROUND($O$14+(B85*$O$18),2) -> 114.25 | D85: =ROUND($R$14+(B85*$R$18),2) -> 
A86: April | B86: 9.4 | C86: =ROUND($O$14+(B86*$O$16),2) -> 86.74 | D86: =ROUND($R$14+(B86*$R$16),2) -> 
A87: May | B87: 5.8 | C87: 58.12
A88: June | B88: 3.7 | C88: 41.42
A89: July | B89: 2.3 | C89: 30.29
A90: August | B90: 1.7 | C90: 25.52
A91: September | B91: 2.1 | C91: 28.7
A92: October | B92: 4.1 | C92: 44.6
A93: November | B93: 8 | C93: =ROUND($O$14+(B93*$O$18),2) -> 81.32 | D93: =ROUND($R$14+(B93*$R$18),2) -> 
A94: December | B94: 12.3 | C94: =ROUND($O$14+(B94*$O$18),2) -> 118.58 | D94: =ROUND($R$14+(B94*$R$18),2) -> 
B95: =SUM(B83:B94) -> 90 | C95: =SUM(C83:C94) -> 903.1 | D95: =SUM(D83:D94) ->  | F95: =SUM(F83:F94) ->  | G95: =F95/C95 -> 
A98: Typical Customer Difference - CET & DSM Amort, SNG and Commodity Changes
B99: Typical
A100: GS | B100: Dth | C100: =C46 -> 2022-01-01 | D100: =D46 ->  | F100: Change | G100: % Change
A101: January | B101: 14.7 | C101: =ROUND($O$14+(B101*$O$18),2) -> 139.38 | D101: =ROUND($S$14+(B101*$S$18),2) ->  | F101: =D101-C101 -> 
A102: February | B102: 14.1 | C102: =ROUND($O$14+(B102*$O$18),2) -> 134.18 | D102: =ROUND($S$14+(B102*$S$18),2) ->  | F102: =D102-C102 -> 
A103: March | B103: 11.8 | C103: =ROUND($O$14+(B103*$O$18),2) -> 114.25 | D103: =ROUND($S$14+(B103*$S$18),2) -> 
A104: April | B104: 9.4 | C104: =ROUND($O$14+(B104*$O$16),2) -> 86.74 | D104: =ROUND($S$14+(B104*$S$16),2) -> 
A105: May | B105: 5.8 | C105: 58.12
A106: June | B106: 3.7 | C106: 41.42
A107: July | B107: 2.3 | C107: 30.29
A108: August | B108: 1.7 | C108: 25.52
A109: September | B109: 2.1 | C109: 28.7
A110: October | B110: 4.1 | C110: 44.6
A111: November | B111: 8 | C111: =ROUND($O$14+(B111*$O$18),2) -> 81.32 | D111: =ROUND($S$14+(B111*$S$18),2) -> 
A112: December | B112: 12.3 | C112: =ROUND($O$14+(B112*$O$18),2) -> 118.58 | D112: =ROUND($S$14+(B112*$S$18),2) -> 
B113: =SUM(B101:B112) -> 90 | C113: =SUM(C101:C112) -> 903.1 | D113: =SUM(D101:D112) ->  | F113: =SUM(F101:F112) ->  | G113: =F113/C113 -> 

Sheet WY Tariff Sheets (hidden)
T2: Rates Per Dth Used Each Month
B3: 2.02 General Service Rate Schedule (GS) | K3: 2.02 General Service Rate Schedule (GS) | Q3: 2.03 Firm Sales Service Rate Schedule (FS) | T3: Dth = decatherm = 10 therms = 1,000,000 BTU | Z3: 4.02 INTERRUPTIBLE SALES RATE SERVICE SCHEDULE (IS) | BF3: 2.04 NATURAL GAS VEHICLE RATE (NGV)
L4: Rates Per Dth Used Each Month | R4: Summer Rates: Apr. 1 - Oct. 31
C5: Rates Per Dth Used Each Month | L5: Dth = decatherm = 10 therms = 1,000,000 BTU | R5: First | T5: Next | V5: All Over | Z5: IS VOLUMETRIC RATES | AA5: Rates Per Dth Used Each Month | BF5: NGV Volumetric Rate
C6: Dth = decatherm = 10 therms = 1,000,000 BTU | L6: First 45 Dth | M6: All Over 45 Dth | R6: 80 | T6: 730 | V6: 810 | AA6: Dth = decatherm = 10 therms = 1,000,000 BTU | BJ6: Rates Per Dth Used Each Month
C7: First 45 Dth | D7: All Over 45 Dth | K7: Non-Gas Cost | L7: ='CET & DSM WY'!B31 ->  | M7: ='CET & DSM WY'!B32 ->  | Q7: Non Gas Cost | R7: =#REF! ->  | T7: =#REF! ->  | V7: =#REF! ->  | AA7: First | AB7: Next | AC7: All Over | BJ7: Dth = decatherm = 10 therms = 1,000,000 BTU
B8: Non-Gas Cost | C8: ='CET & DSM WY'!B24 ->  | D8: ='CET & DSM WY'!B25 ->  | K8: Conservation Enabling Adjustment | L8: =ROUND('CET & DSM WY'!C31,5) -> 0.04505 | M8: ='CET & DSM WY'!C32 -> 0.02848 | Q8: Core Service Commodity Cost | R8: =#REF! ->  | T8: =#REF! ->  | V8: =#REF! ->  | AA8: 48600 | AB8: 72900 | AC8: 121500
B9: Conservation Enabling Adjustment | C9: ='CET & DSM WY'!C24 ->  | D9: ='CET & DSM WY'!C25 ->  | K9: Energy Efficiency Services | L9: ='CET & DSM WY'!D31 ->  | M9: ='CET & DSM WY'!D32 ->  | Z9: Distribution Non-Gas Rate | AA9: =#REF! ->  | AB9: =#REF! ->  | AC9: =#REF! ->  | BF9: Non-Gas Cost | BG9: =#REF! -> 
B10: Energy Efficiency Services | C10: ='CET & DSM WY'!D24 -> 0.06792 | D10: ='CET & DSM WY'!D25 -> 0.06792 | K10: Core Service Commodity Cost | L10: ='CET & DSM WY'!G31 -> 4.96884 | M10: =ROUND('CET & DSM WY'!G32,5) -> 4.96884 | Q10: Total Rate | R10: =SUM(R7:R8) ->  | T10: =SUM(T7:T8) ->  | V10: =SUM(V7:V8) ->  | Z10: Upstream Pipeline Cost | AA10: =#REF! ->  | AB10: =#REF! ->  | AC10: =#REF! ->  | BF10: Core Commodity Cost | BG10: =#REF! -> 
B11: Core Service Commodity Cost | C11: ='CET & DSM WY'!G24 -> 4.96884 | D11: ='CET & DSM WY'!G25 -> 4.96884 | Z11: Commodity Rate | BF11: Total Rate | BG11: =SUM(BG9:BJ10) -> 
K12: Total Rate | L12: =SUM(L7:L10) ->  | M12: =SUM(M7:M10) ->  | Q12: Minimum Monthly Distribution Non-Gas Charge | W12: =#REF! -> 
B13: Total Rate | C13: =SUM(C8:C11) ->  | D13: =SUM(D8:D11) -> 
M15: BSF Category 1 | N15: =E16 -> 12
D16: BSF Category 1 | E16: ='CET & DSM WY'!O14 -> 12 | M16: BSF Category 2 | N16: =E17 -> 44 | U16: BSF Category 1 | W16: ='Other Inputs'!G109 -> 12
D17: BSF Category 2 | E17: 44 | M17: BSF Category 3 | N17: =E18 -> 86 | U17: BSF Category 2 | W17: =#REF! -> 
D18: BSF Category 3 | E18: 86 | M18: BSF Category 4 | N18: =E19 -> 555 | U18: BSF Category 3 | W18: =#REF! ->  | Z18: Total Rate | AA18: $ | AB18: $ | AC18: $
D19: BSF Category 4 | E19: 555 | U19: BSF Category 4 | W19: =#REF! -> 
Z20: Minimum Monthly Distribution Non-Gas Charge
BF23: =B38 -> Issued by R. W. Jibson, President | BI23: Advice No | BJ23: Section Revision No.
AB24: BSF Category 1 | AC24: ='Other Inputs'!G109 -> 12
AB25: BSF Category 2 | AC25: =#REF! -> 
AB26: BSF Category 3 | AC26: =#REF! -> 
AB27: BSF Category 4 | AC27: =#REF! -> 
K37: Issued by R. W. Jibson, President | M37: Section Revision No. | N37: Effective Date
B38: Issued by R. W. Jibson, President | D38: Section Revision No. | E38: Effective Date | Q38: =B38 -> Issued by R. W. Jibson, President | T38: Advice No | U38: Section Revision No. | W38: Effective Date
B42: New CET ONLY | K42: New DSM ONLY | Q42: New Pass Through Values
Z47: =B38 -> Issued by R. W. Jibson, President | AC47: Advice No
Z50: New Pass Through Values

Sheet Calculations
A1: GAS BALANCE FOR 12 MONTHS ENDING: _________________
D3: SALES VOLUMES IN DEKATHERMS (12 Months of Forecast)
D4: Forecast | E4: Forecast | F4: Forecast | G4: Forecast | H4: Forecast | I4: Forecast | J4: Forecast | K4: Forecast | L4: Forecast | M4: Forecast | N4: Forecast | O4: Forecast | P4: 12-Month
A5: RATE CLASS | D5: =+'Monthly Inputs'!G3 -> Aug22 | E5: =+'Monthly Inputs'!H3 -> Sep22 | F5: =+'Monthly Inputs'!I3 -> Oct22 | G5: =+'Monthly Inputs'!J3 -> Nov22 | H5: =+'Monthly Inputs'!K3 -> Dec22 | I5: =+'Monthly Inputs'!L3 -> Jan23 | J5: =+'Monthly Inputs'!M3 -> Feb23 | K5: =+'Monthly Inputs'!N3 -> Mar23 | L5: =+'Monthly Inputs'!O3 -> Apr23 | M5: =+'Monthly Inputs'!P3 -> May23 | N5: =+'Monthly Inputs'!Q3 -> Jun23 | O5: =+'Monthly Inputs'!R3 -> Jul23 | P5: Total | Q5: 1
A6: UTAH | D6: =MONTH(D5) -> 8 | E6: =MONTH(E5) -> 9 | F6: 10 | G6: 11 | H6: 12 | I6: 1 | J6: 2 | K6: 3 | L6: 4 | M6: 5 | N6: 6 | O6: 7 | Q6: 2
B7: GSR | D7: ='RevRun Fcst'!H21 -> 2354697 | E7: ='RevRun Fcst'!I21 -> 2771794 | F7: ='RevRun Fcst'!J21 -> 6913088 | G7: ='RevRun Fcst'!K21 -> 12179457 | H7: ='RevRun Fcst'!L21 -> 18598770 | I7: ='RevRun Fcst'!M21 -> 20125804 | J7: ='RevRun Fcst'!N21 -> 16779900 | K7: ='RevRun Fcst'!O21 -> 13126330 | L7: ='RevRun Fcst'!P21 -> 8762875 | M7: ='RevRun Fcst'!Q21 -> 5171493 | N7: ='RevRun Fcst'!R21 -> 2856954 | O7: ='RevRun Fcst'!S21 -> 2397393 | P7: =SUM(D7:O7) -> 112038555 | Q7: 3
B8: GSC | D8: ='RevRun Fcst'!H30 -> 0 | E8: ='RevRun Fcst'!I30 -> 0 | F8: ='RevRun Fcst'!J30 -> 0 | G8: ='RevRun Fcst'!K30 -> 0 | H8: ='RevRun Fcst'!L30 -> 0 | I8: ='RevRun Fcst'!M30 -> 0 | J8: ='RevRun Fcst'!N30 -> 0 | K8: ='RevRun Fcst'!O30 -> 0 | L8: ='RevRun Fcst'!P30 -> 0 | M8: ='RevRun Fcst'!Q30 -> 0 | N8: ='RevRun Fcst'!R30 -> 0 | O8: ='RevRun Fcst'!S30 -> 0 | P8: 0 | Q8: 4
B9: GSS | D9: ='RevRun Fcst'!H39 -> 0 | E9: ='RevRun Fcst'!I39 -> 0 | F9: ='RevRun Fcst'!J39 -> 0 | G9: ='RevRun Fcst'!K39 -> 0 | H9: ='RevRun Fcst'!L39 -> 0 | I9: ='RevRun Fcst'!M39 -> 0 | J9: ='RevRun Fcst'!N39 -> 0 | K9: ='RevRun Fcst'!O39 -> 0 | L9: ='RevRun Fcst'!P39 -> 0 | M9: ='RevRun Fcst'!Q39 -> 0 | N9: ='RevRun Fcst'!R39 -> 0 | O9: ='RevRun Fcst'!S39 -> 0 | P9: 0 | Q9: 5
B10: F-1 | D10: ='RevRun Fcst'!H48 -> 156060 | E10: ='RevRun Fcst'!I48 -> 177762 | F10: ='RevRun Fcst'!J48 -> 262863 | G10: ='RevRun Fcst'!K48 -> 188318 | H10: ='RevRun Fcst'!L48 -> 271602 | I10: ='RevRun Fcst'!M48 -> 297143 | J10: ='RevRun Fcst'!N48 -> 269996 | K10: ='RevRun Fcst'!O48 -> 253627 | L10: ='RevRun Fcst'!P48 -> 204814 | M10: ='RevRun Fcst'!Q48 -> 180388 | N10: ='RevRun Fcst'!R48 -> 175850 | O10: ='RevRun Fcst'!S48 -> 150769 | P10: 2589192 | Q10: 6
B11: F-4 | D11: ='RevRun Fcst'!H75 -> 0 | E11: ='RevRun Fcst'!I75 -> 0 | F11: ='RevRun Fcst'!J75 -> 0 | G11: ='RevRun Fcst'!K75 -> 0 | H11: ='RevRun Fcst'!L75 -> 0 | I11: ='RevRun Fcst'!M75 -> 0 | J11: ='RevRun Fcst'!N75 -> 0 | K11: ='RevRun Fcst'!O75 -> 0 | L11: ='RevRun Fcst'!P75 -> 0 | M11: ='RevRun Fcst'!Q75 -> 0 | N11: ='RevRun Fcst'!R75 -> 0 | O11: ='RevRun Fcst'!S75 -> 0 | P11: 0 | Q11: 7
B12: NGV | D12: ='RevRun Fcst'!H66 -> 23396 | E12: ='RevRun Fcst'!I66 -> 24640 | F12: ='RevRun Fcst'!J66 -> 23718 | G12: ='RevRun Fcst'!K66 -> 26627 | H12: ='RevRun Fcst'!L66 -> 24642 | I12: ='RevRun Fcst'!M66 -> 24125 | J12: ='RevRun Fcst'!N66 -> 24867 | K12: ='RevRun Fcst'!O66 -> 23950 | L12: ='RevRun Fcst'!P66 -> 23507 | M12: ='RevRun Fcst'!Q66 -> 21548 | N12: ='RevRun Fcst'!R66 -> 23923 | O12: ='RevRun Fcst'!S66 -> 24829 | P12: 289772 | Q12: 8
A13: Total Firm Sales | D13: =SUM(D7:D12) -> 2534153 | E13: 2974196 | F13: =SUM(F7:F12) -> 7199669 | G13: 12394402 | H13: 18895014 | I13: 20447072 | J13: 17074763 | K13: 13403907 | L13: 8991196 | M13: 5373429 | N13: 3056727 | O13: 2572991 | P13: =SUM(P7:P12) -> 114917519 | Q13: 9
Q14: 10
B15: I-4 | D15: ='RevRun Fcst'!H102 -> 10303 | E15: ='RevRun Fcst'!I102 -> 12640 | F15: ='RevRun Fcst'!J102 -> 19369 | G15: ='RevRun Fcst'!K102 -> 25895 | H15: ='RevRun Fcst'!L102 -> 31237 | I15: ='RevRun Fcst'!M102 -> 39472 | J15: ='RevRun Fcst'!N102 -> 31914 | K15: ='RevRun Fcst'!O102 -> 29116 | L15: ='RevRun Fcst'!P102 -> 26773 | M15: ='RevRun Fcst'!Q102 -> 18238 | N15: ='RevRun Fcst'!R102 -> 14642 | O15: ='RevRun Fcst'!S102 -> 11405 | P15: =SUM(D15:O15) -> 271004 | Q15: 11
B16: IS-4 | D16: ='RevRun Fcst'!H93 -> 0 | E16: ='RevRun Fcst'!I93 -> 0 | F16: ='RevRun Fcst'!J93 -> 0 | G16: ='RevRun Fcst'!K93 -> 0 | H16: ='RevRun Fcst'!L93 -> 0 | I16: ='RevRun Fcst'!M93 -> 0 | J16: ='RevRun Fcst'!N93 -> 0 | K16: ='RevRun Fcst'!O93 -> 0 | L16: ='RevRun Fcst'!P93 -> 0 | M16: ='RevRun Fcst'!Q93 -> 0 | N16: ='RevRun Fcst'!R93 -> 0 | O16: ='RevRun Fcst'!S93 -> 0 | P16: =SUM(D16:O16) -> 0 | Q16: 12
A17: Total Interruptible Sales | D17: =SUM(D15:D16) -> 10303 | E17: 12640 | F17: 19369 | G17: 25895 | H17: 31237 | I17: 39472 | J17: 31914 | K17: 29116 | L17: 26773 | M17: 18238 | N17: 14642 | O17: 11405 | P17: 271004 | Q17: 13
Q18: 14
Q19: 15
A20: Total Utah Sales | D20: =+D13+D17 -> 2544456 | E20: =+E13+E17 -> 2986836 | F20: =+F13+F17 -> 7219038 | G20: =+G13+G17 -> 12420297 | H20: 18926251 | I20: 20486544 | J20: 17106677 | K20: 13433023 | L20: 9017969 | M20: 5391667 | N20: 3071369 | O20: 2584396 | P20: =+P13+P17 -> 115188523 | Q20: 16
Q21: 17
A22: Total Utah Transportation | D22: ='RevRun Fcst'!H204 -> 9110174 | E22: ='RevRun Fcst'!I204 -> 7890899 | F22: ='RevRun Fcst'!J204 -> 8187520 | G22: ='RevRun Fcst'!K204 -> 8532414 | H22: ='RevRun Fcst'!L204 -> 10068956 | I22: ='RevRun Fcst'!M204 -> 9384089 | J22: ='RevRun Fcst'!N204 -> 8598804 | K22: ='RevRun Fcst'!O204 -> 8511456 | L22: ='RevRun Fcst'!P204 -> 7015924 | M22: ='RevRun Fcst'!Q204 -> 7199952 | N22: ='RevRun Fcst'!R204 -> 7814784 | O22: ='RevRun Fcst'!S204 -> 8805653 | P22: =SUM(D22:O22) -> 101120625 | Q22: 18
Q23: 19
Q24: 20
A25: Total Utah Sales & Trans | D25: =+D20+D22 -> 11654630 | E25: 10877735 | F25: 15406558 | G25: 20952711 | H25: 28995207 | I25: 29870633 | J25: 25705481 | K25: 21944479 | L25: 16033893 | M25: 12591619 | N25: 10886153 | O25: 11390049 | P25: =+P20+P22 -> 216309148 | Q25: 21
Q26: 22
A27: WYOMING | Q27: 23
A28: GS-1 | D28: ='RevRun Fcst'!H244 -> 54684 | E28: ='RevRun Fcst'!I244 -> 79604 | F28: ='RevRun Fcst'!J244 -> 203811 | G28: ='RevRun Fcst'!K244 -> 388429 | H28: ='RevRun Fcst'!L244 -> 556029 | I28: ='RevRun Fcst'!M244 -> 562961 | J28: ='RevRun Fcst'!N244 -> 495771 | K28: ='RevRun Fcst'!O244 -> 410382 | L28: ='RevRun Fcst'!P244 -> 299580 | M28: ='RevRun Fcst'!Q244 -> 195670 | N28: ='RevRun Fcst'!R244 -> 88806 | O28: ='RevRun Fcst'!S244 -> 52314 | P28: =SUM(D28:O28) -> 3388041 | Q28: 24
A29: GS-W | D29: ='RevRun Fcst'!H271 -> 0 | E29: ='RevRun Fcst'!I271 -> 0 | F29: ='RevRun Fcst'!J271 -> 0 | G29: ='RevRun Fcst'!K271 -> 0 | H29: ='RevRun Fcst'!L271 -> 0 | I29: ='RevRun Fcst'!M271 -> 0 | J29: ='RevRun Fcst'!N271 -> 0 | K29: ='RevRun Fcst'!O271 -> 0 | L29: ='RevRun Fcst'!P271 -> 0 | M29: ='RevRun Fcst'!Q271 -> 0 | N29: ='RevRun Fcst'!R271 -> 0 | O29: ='RevRun Fcst'!S271 -> 0 | P29: =SUM(D29:O29) -> 0 | Q29: 25
A30: F-1 | D30: ='RevRun Fcst'!H253 -> 8356 | E30: ='RevRun Fcst'!I253 -> 13544 | F30: ='RevRun Fcst'!J253 -> 13393 | G30: ='RevRun Fcst'!K253 -> 18806 | H30: ='RevRun Fcst'!L253 -> 22218 | I30: ='RevRun Fcst'!M253 -> 20574 | J30: ='RevRun Fcst'!N253 -> 21487 | K30: ='RevRun Fcst'!O253 -> 20289 | L30: ='RevRun Fcst'!P253 -> 14865 | M30: ='RevRun Fcst'!Q253 -> 12040 | N30: ='RevRun Fcst'!R253 -> 9543 | O30: ='RevRun Fcst'!S253 -> 10858 | P30: =SUM(D30:O30) -> 185973 | Q30: 26
A31: NGV | D31: ='RevRun Fcst'!H262 -> 315 | E31: ='RevRun Fcst'!I262 -> 343 | F31: ='RevRun Fcst'!J262 -> 276 | G31: ='RevRun Fcst'!K262 -> 306 | H31: ='RevRun Fcst'!L262 -> 184 | I31: ='RevRun Fcst'!M262 -> 227 | J31: ='RevRun Fcst'!N262 -> 277 | K31: ='RevRun Fcst'!O262 -> 378 | L31: ='RevRun Fcst'!P262 -> 252 | M31: ='RevRun Fcst'!Q262 -> 279 | N31: ='RevRun Fcst'!R262 -> 348 | O31: ='RevRun Fcst'!S262 -> 339 | P31: =SUM(D31:O31) -> 3524 | Q31: 27
A32: Total Firm Sales | D32: =SUM(D28:D31) -> 63355 | E32: 93491 | F32: 217480 | G32: 407541 | H32: 578431 | I32: 583762 | J32: 517535 | K32: 431049 | L32: 314697 | M32: 207989 | N32: 98697 | O32: 63511 | P32: 3577538 | Q32: 28
Q33: 29
A34: I-2 | D34: ='RevRun Fcst'!H280 -> 6837 | E34: ='RevRun Fcst'!I280 -> 4736 | F34: ='RevRun Fcst'!J280 -> 10667 | G34: ='RevRun Fcst'!K280 -> 14280 | H34: ='RevRun Fcst'!L280 -> 15948 | I34: ='RevRun Fcst'!M280 -> 18665 | J34: ='RevRun Fcst'!N280 -> 16854 | K34: ='RevRun Fcst'!O280 -> 17545 | L34: ='RevRun Fcst'!P280 -> 14974 | M34: ='RevRun Fcst'!Q280 -> 11409 | N34: ='RevRun Fcst'!R280 -> 6977 | O34: ='RevRun Fcst'!S280 -> 5358 | P34: =SUM(D34:O34) -> 144250 | Q34: 30
A35: I-4 | D35: ='RevRun Fcst'!H289 -> 0 | E35: ='RevRun Fcst'!I289 -> 0 | F35: ='RevRun Fcst'!J289 -> 0 | G35: ='RevRun Fcst'!K289 -> 0 | H35: ='RevRun Fcst'!L289 -> 0 | I35: ='RevRun Fcst'!M289 -> 0 | J35: ='RevRun Fcst'!N289 -> 0 | K35: ='RevRun Fcst'!O289 -> 0 | L35: ='RevRun Fcst'!P289 -> 0 | M35: ='RevRun Fcst'!Q289 -> 0 | N35: ='RevRun Fcst'!R289 -> 0 | O35: ='RevRun Fcst'!S289 -> 0 | P35: =SUM(D35:O35) -> 0 | Q35: 31
A36: Total Interruptible Sales | D36: =SUM(D34:D35) -> 6837 | E36: 4736 | F36: 10667 | G36: 14280 | H36: 15948 | I36: 18665 | J36: 16854 | K36: 17545 | L36: 14974 | M36: 11409 | N36: 6977 | O36: 5358 | P36: 144250 | Q36: 32
Q37: 33
Q38: 34
A39: Total Wyoming Sales | D39: =+D32+D36 -> 70192 | E39: =+E32+E36 -> 98227 | F39: 228147 | G39: 421821 | H39: 594379 | I39: 602427 | J39: 534389 | K39: 448594 | L39: 329671 | M39: 219398 | N39: 105674 | O39: 68869 | P39: 3721788 | Q39: 35
Q40: 36
A41: Total Wyoming Transportation | D41: ='RevRun Fcst'!H328 -> 40616 | E41: ='RevRun Fcst'!I328 -> 44240 | F41: ='RevRun Fcst'!J328 -> 23757 | G41: ='RevRun Fcst'!K328 -> 30774 | H41: ='RevRun Fcst'!L328 -> 46191 | I41: ='RevRun Fcst'!M328 -> 54415 | J41: ='RevRun Fcst'!N328 -> 37419 | K41: ='RevRun Fcst'!O328 -> 40215 | L41: ='RevRun Fcst'!P328 -> 32395 | M41: ='RevRun Fcst'!Q328 -> 27360 | N41: ='RevRun Fcst'!R328 -> 32659 | O41: ='RevRun Fcst'!S328 -> 17590 | P41: =SUM(D41:O41) -> 427631 | Q41: 37
Q42: 38
Q43: 39
A44: Total Wyoming Sales & Trans | D44: =+D39+D41 -> 110808 | E44: 142467 | F44: 251904 | G44: 452595 | H44: 640570 | I44: 656842 | J44: 571808 | K44: 488809 | L44: 362066 | M44: 246758 | N44: 138333 | O44: 86459 | P44: 4149419 | Q44: 40
Q45: 41
Q46: 42
A47: Total System Sales and Trans | D47: =+D25+D44 -> 11765438 | E47: 11020202 | F47: 15658462 | G47: 21405306 | H47: 29635777 | I47: 30527475 | J47: 26277289 | K47: 22433288 | L47: 16395959 | M47: 12838377 | N47: 11024486 | O47: =+O25+O44 -> 11476508 | P47: 220458567 | Q47: 43
Q48: 44
A49: Usage by Season | Q49: 45
C50: Month | D50: =MONTH(D5) -> 8 | E50: 9 | F50: 10 | G50: 11 | H50: 12 | I50: 1 | J50: 2 | K50: 3 | L50: 4 | M50: 5 | N50: 6 | O50: 7 | Q50: 46
A51: GS | C51: Season (0=Winter, 1=Summer) | D51: =IF(D$50<4,0,IF(D$50>10,0,1)) -> 1 | E51: =IF(E$50<4,0,IF(E$50>10,0,1)) -> 1 | F51: 1 | G51: 0 | H51: 0 | I51: 0 | J51: 0 | K51: 0 | L51: 1 | M51: 1 | N51: 1 | O51: 1 | P51: Total | Q51: 47
B52: Winter | D52: =IF(D51=0,D7+D8,0) -> 0 | E52: =IF(E51=0,E7+E8,0) -> 0 | F52: 0 | G52: 12179457 | H52: 18598770 | I52: 20125804 | J52: 16779900 | K52: 13126330 | L52: 0 | M52: 0 | N52: 0 | O52: 0 | P52: =SUM(D52:O52) -> 80810261 | Q52: 48
B53: Summer | D53: =IF(D51=1,D7+D8,0) -> 2354697 | E53: 2771794 | F53: 6913088 | G53: 0 | H53: 0 | I53: 0 | J53: 0 | K53: 0 | L53: 8762875 | M53: 5171493 | N53: 2856954 | O53: 2397393 | P53: =SUM(D53:O53) -> 31228294 | Q53: 49
A54: GSS | Q54: 50
B55: Winter | D55: =IF(D51=0,D9,0) -> 0 | E55: 0 | F55: 0 | G55: 0 | H55: 0 | I55: 0 | J55: 0 | K55: 0 | L55: 0 | M55: 0 | N55: 0 | O55: 0 | P55: =SUM(D55:O55) -> 0 | Q55: 51
B56: Summer | D56: =IF(D51=1,D9,0) -> 0 | E56: 0 | F56: 0 | G56: 0 | H56: 0 | I56: 0 | J56: 0 | K56: 0 | L56: 0 | M56: 0 | N56: 0 | O56: 0 | P56: =SUM(D56:O56) -> 0 | Q56: 52
A57: F-S | Q57: 53
B58: Winter | D58: =IF(D51=0,D10,0) -> 0 | E58: 0 | F58: 0 | G58: 188318 | H58: 271602 | I58: 297143 | J58: 269996 | K58: 253627 | L58: 0 | M58: 0 | N58: 0 | O58: 0 | P58: =SUM(D58:O58) -> 1280686 | Q58: 54
B59: Summer | D59: =IF(D51=1,D10,0) -> 156060 | E59: 177762 | F59: 262863 | G59: 0 | H59: 0 | I59: 0 | J59: 0 | K59: 0 | L59: 204814 | M59: 180388 | N59: 175850 | O59: 150769 | P59: =SUM(D59:O59) -> 1308506 | Q59: 55
Q60: 56
Q61: 57
B62: Rates: R050201.R1 | C62: WYOMING NON-CORE DNG REVENUES FROM DEMAND FORECAST AND CURRENTLY EFFECTIVE I-SALES GAS COST RATES | Q62: 58
D63: Forecast | E63: Forecast | F63: Forecast | G63: Forecast | H63: Forecast | I63: Forecast | J63: Forecast | K63: Forecast | L63: Forecast | M63: Forecast | N63: Forecast | O63: Forecast | P63: 12-Month | Q63: 59
D64: =D5 -> Aug22 | E64: =E5 -> Sep22 | F64: =F5 -> Oct22 | G64: Nov22 | H64: Dec22 | I64: Jan23 | J64: Feb23 | K64: Mar23 | L64: Apr23 | M64: May23 | N64: Jun23 | O64: Jul23 | P64: Total | Q64: 60
A65: I-2 & 1-4 (Non-Gas Revenue) (Yearly) | D65: ='RevRun Fcst'!H273+'RevRun Fcst'!H282 -> 3484.72409 | E65: ='RevRun Fcst'!I273+'RevRun Fcst'!I282 -> 2914.15552 | F65: ='RevRun Fcst'!J273+'RevRun Fcst'!J282 -> 4524.83719 | G65: ='RevRun Fcst'!K273+'RevRun Fcst'!K282 -> 5506.0196 | H65: ='RevRun Fcst'!L273+'RevRun Fcst'!L282 -> 5958.99836 | I65: ='RevRun Fcst'!M273+'RevRun Fcst'!M282 -> 6696.85405 | J65: ='RevRun Fcst'!N273+'RevRun Fcst'!N282 -> 6205.04078 | K65: ='RevRun Fcst'!O273+'RevRun Fcst'!O282 -> 6392.69565 | L65: ='RevRun Fcst'!P273+'RevRun Fcst'!P282 -> 5694.48918 | M65: ='RevRun Fcst'!Q273+'RevRun Fcst'!Q282 -> 4726.34213 | N65: ='RevRun Fcst'!R273+'RevRun Fcst'!R282 -> 3522.74389 | O65: ='RevRun Fcst'!S273+'RevRun Fcst'!S282 -> 3083.07206 | P65: =SUM(D65:O65) -> 58709.9725 | Q65: 61
A66: IC (Total Revenue) (Yearly) | D66: =ROUND(D41*$P66/$P41,0) -> 9226 | E66: 10050 | F66: 5397 | G66: 6991 | H66: 10493 | I66: 12361 | J66: 8500 | K66: 9135 | L66: 7359 | M66: 6215 | N66: 7419 | O66: =P66-SUM(D66:N66) -> 3995.41486 | P66: ='RevRun Fcst'!T300+'RevRun Fcst'!T314 -> 97141.41486 | Q66: 62
Q67: 63
A68: I-2 Gas Cost (Rate Effective ) | D68: 0 | E68: =+D68 -> 0 | F68: 0 | G68: 0 | H68: 0 | I68: 0 | J68: 0 | K68: 0 | L68: 0 | M68: 0 | N68: 0 | O68: 0 | Q68: 64
A69: I-4 Gas Cost (Rate Effective ) | D69: 0 | E69: 0 | F69: 0 | G69: 0 | H69: 0 | I69: 0 | J69: 0 | K69: 0 | L69: 0 | M69: 0 | N69: 0 | O69: 0 | Q69: 65
Q70: 66
Q71: 67
D72: ALLOCATION BASES | Q72: 68
D73: DEMAND | G73: OTHER COST | Q73: 69
A74: Utah Peak Day Demand | D74: =+D76-D75 -> 1203265 | E74: =D74/D76 -> 0.9690573945 | G74: Utah Sales | H74: =+P20 -> 115188523 | I74: =H74/H76 -> 0.9687008808 | Q74: 70
A75: Wyoming Peak Day Demand | D75: ='Other Inputs'!E146 -> 38421 | E75: =1-E74 -> 0.03094260546 | G75: Wyoming Sales | H75: =+P39 -> 3721788 | I75: =1-I74 -> 0.03129911922 | Q75: 71
A76: Peak Day Demand | D76: ='Other Inputs'!E147 -> 1241686 | E76: =ROUND(D76/D$76,4) -> 1 | G76: Total Sales | H76: =+H74+H75 -> 118910311 | I76: =ROUND(H76/H$76,4) -> 1 | Q76: 72
Q77: 73
Q78: 74
D79: Financial Report Information (Latest 12 Months of Actual Expenses and 13 Months of Rate Base) | Q79: 75
D80: Actual | E80: Actual | F80: Actual | G80: Actual | H80: Actual | I80: Actual | J80: Actual | K80: Actual | L80: Actual | M80: Actual | N80: Actual | O80: Actual | Q80: 76
A81: Accounts | D81: =+Expenses!D3 -> 2021-05-31 | E81: =+Expenses!E3 -> 2021-06-30 | F81: =+Expenses!F3 -> 2021-07-31 | G81: =+Expenses!G3 -> 2021-08-31 | H81: =+Expenses!H3 -> 2021-09-30 | I81: =+Expenses!I3 -> 2021-10-31 | J81: =+Expenses!J3 -> 2021-11-30 | K81: =+Expenses!K3 -> 2021-12-31 | L81: =+Expenses!L3 -> 2022-01-31 | M81: =+Expenses!M3 -> 2022-02-28 | N81: =+Expenses!N3 -> 2022-03-31 | O81: =+Expenses!O3 -> 2022-04-30 | P81: =Expenses!P3 -> 2022-04-30 | Q81: 77
A82: EXPENSES | Q82: 78
B83: Gas Use In Dth (Acct 810 & 812) | D83: 0 | E83: 0 | F83: 0 | G83: 0 | H83: 0 | I83: 0 | J83: 0 | K83: 0 | L83: 0 | M83: 0 | N83: 0 | O83: 0 | P83: 0 | Q83: 79
Q84: 80
B85: Other Revenue (Yearly) | Q85: 81
B86: Sales for Resale (account 483) | D86: =Expenses!D13 -> 75365.96 | E86: =Expenses!E13 -> 74786.67 | F86: =Expenses!F13 -> 67778 | G86: =Expenses!G13 -> 69108.57 | H86: =Expenses!H13 -> 97129.99 | I86: =Expenses!I13 -> 97138.4 | J86: =Expenses!J13 -> 106128.66 | K86: =Expenses!K13 -> 544755.05 | L86: =Expenses!L13 -> 116873.49 | M86: =Expenses!M13 -> 98906.89 | N86: =Expenses!N13 -> 106860.96 | O86: =Expenses!O13 -> 52524.95 | P86: =Expenses!P13 -> 1507357.59 | Q86: 82
B87: Incidental Plant Prod Sales (Acct 490) | D87: =Expenses!D14 -> 682856.11 | E87: =Expenses!E14 -> 634958.11 | F87: =Expenses!F14 -> 1627073 | G87: =Expenses!G14 -> 359.4 | H87: =Expenses!H14 -> 902433.39 | I87: =Expenses!I14 -> 2189382.93 | J87: =Expenses!J14 -> 1288337.66 | K87: =Expenses!K14 -> 155.94 | L87: =Expenses!L14 -> 814587.34 | M87: =Expenses!M14 -> 1062620.16 | N87: =Expenses!N14 -> 1019900.86 | O87: =Expenses!O14 -> 972357.06 | P87: =Expenses!P14 -> 11195021.96 | Q87: 83
B88: Gas Processed by Others (account 491) | D88: =Expenses!D22 -> 0 | E88: =Expenses!E22 -> 0 | F88: =Expenses!F22 -> 0 | G88: =Expenses!G22 -> 0 | H88: =Expenses!H22 -> 0 | I88: =Expenses!I22 -> 0 | J88: =Expenses!J22 -> 0 | K88: =Expenses!K22 -> 0 | L88: =Expenses!L22 -> 0 | M88: =Expenses!M22 -> 0 | N88: =Expenses!N22 -> 0 | O88: =Expenses!O22 -> 0 | P88: =Expenses!P22 -> 0 | Q88: 84
B89: Gasoline - Oil Sales (account 492) | D89: =Expenses!D15 -> 212549.49 | E89: =Expenses!E15 -> 203206.68 | F89: =Expenses!F15 -> 176274 | G89: =Expenses!G15 -> 251590.28 | H89: =Expenses!H15 -> 158052.51 | I89: =Expenses!I15 -> 152048.32 | J89: =Expenses!J15 -> 192977.82 | K89: =Expenses!K15 -> 175220.78 | L89: =Expenses!L15 -> 187201.33 | M89: =Expenses!M15 -> 224977.55 | N89: =Expenses!N15 -> 253213.06 | O89: =Expenses!O15 -> 235424.09 | P89: =Expenses!P15 -> 2422735.91 | Q89: 85
B90: Gasoline - Oil Cost (account 758.001) | D90: =-Expenses!D18 -> 0 | E90: =-Expenses!E18 -> 0 | F90: =-Expenses!F18 -> 0 | G90: =-Expenses!G18 -> 0 | H90: =-Expenses!H18 -> 0 | I90: =-Expenses!I18 -> 0 | J90: =-Expenses!J18 -> 0 | K90: =-Expenses!K18 -> 0 | L90: =-Expenses!L18 -> 0 | M90: =-Expenses!M18 -> 0 | N90: =-Expenses!N18 -> 0 | O90: =-Expenses!O18 -> 0 | P90: =-Expenses!P18 -> 0 | Q90: 86
Q91: 87
Q92: 88
B93: Overriding Royalty (account 495-1) | D93: =Expenses!D16 -> 358482.73 | E93: =Expenses!E16 -> 551110.84 | F93: =Expenses!F16 -> 937063 | G93: =Expenses!G16 -> 150108.45 | H93: =Expenses!H16 -> 147551.81 | I93: =Expenses!I16 -> 1014606.72 | J93: =Expenses!J16 -> 791533.65 | K93: =Expenses!K16 -> 798933.79 | L93: =Expenses!L16 -> 853244.84 | M93: =Expenses!M16 -> 1377641.49 | N93: =Expenses!N16 -> 961928.39 | O93: =Expenses!O16 -> 1061501.46 | P93: =Expenses!P16 -> 9003707.17 | Q93: 89
B94: Wexpro Revenue Sharing (account 495-2) | D94: =Expenses!D17 -> 41794 | E94: =Expenses!E17 -> 37568 | F94: =Expenses!F17 -> 47511 | G94: =Expenses!G17 -> 4721 | H94: =Expenses!H17 -> 16848 | I94: =Expenses!I17 -> 115027 | J94: =Expenses!J17 -> 63363 | K94: =Expenses!K17 -> 15550 | L94: =Expenses!L17 -> 158907 | M94: =Expenses!M17 -> 210181 | N94: =Expenses!N17 -> 461376 | O94: =Expenses!O17 -> 319049 | P94: =Expenses!P17 -> 1491895 | Q94: 90
P95: Page 2 of 6 | Q95: 91
C96: Actual | D96: Actual | E96: Actual | F96: Actual | G96: Actual | H96: Actual | I96: Actual | J96: Actual | K96: Actual | L96: Actual | M96: Actual | N96: Actual | O96: Actual | P96: 13-Month | Q96: 92
A97: Accounts | C97: ='Rate Base'!D4 -> 2021-04-30 | D97: ='Rate Base'!E4 -> 2021-05-31 | E97: ='Rate Base'!F4 -> 2021-06-30 | F97: ='Rate Base'!G4 -> 2021-07-31 | G97: ='Rate Base'!H4 -> 2021-08-31 | H97: ='Rate Base'!I4 -> 2021-09-30 | I97: ='Rate Base'!J4 -> 2021-10-31 | J97: ='Rate Base'!K4 -> 2021-11-30 | K97: ='Rate Base'!L4 -> 2021-12-31 | L97: ='Rate Base'!M4 -> 2022-01-31 | M97: ='Rate Base'!N4 -> 2022-02-28 | N97: ='Rate Base'!O4 -> 2022-03-31 | O97: ='Rate Base'!P4 -> 2022-04-30 | P97: Average | Q97: 93
A98: RATE BASE - PRODUCTION | Q98: 94
B99: Acct 164 (Working Gas) - Production | C99: ='Rate Base'!D11 -> 11574315.84 | D99: ='Rate Base'!E11 -> 17495294.93 | E99: ='Rate Base'!F11 -> 23415459.21 | F99: ='Rate Base'!G11 -> 30738132.55 | G99: ='Rate Base'!H11 -> 35307557.59 | H99: ='Rate Base'!I11 -> 37462513.81 | I99: ='Rate Base'!J11 -> 49638760.36 | J99: ='Rate Base'!K11 -> 48688525.37 | K99: ='Rate Base'!L11 -> 44932895.7 | L99: ='Rate Base'!M11 -> 32520297.1 | M99: ='Rate Base'!N11 -> 24327140.39 | N99: ='Rate Base'!O11 -> 13377221.65 | O99: ='Rate Base'!P11 -> 4611532.51 | P99: =(((+C99+O99)/2)+SUM(D99:N99))/12 -> 30499726.9 | Q99: 95
B100: Acct 164 (Working Gas LNG) - Production | C100: ='Rate Base'!D12 -> 0 | D100: ='Rate Base'!E12 -> 0 | E100: ='Rate Base'!F12 -> 0 | F100: ='Rate Base'!G12 -> 0 | G100: ='Rate Base'!H12 -> 0 | H100: ='Rate Base'!I12 -> 1169335.142 | I100: ='Rate Base'!J12 -> 2475708.534 | J100: ='Rate Base'!K12 -> 3869809.969 | K100: ='Rate Base'!L12 -> 5684498.467 | L100: ='Rate Base'!M12 -> 6669592.768 | M100: ='Rate Base'!N12 -> 6669592.768 | N100: ='Rate Base'!O12 -> 6669592.768 | O100: ='Rate Base'!P12 -> 7670031.683 | P100: 3086928.855 | Q100: 96
B101: Acct 101 - Production | C101: ='Rate Base'!D5 -> 79968136 | D101: ='Rate Base'!E5 -> 79968136 | E101: ='Rate Base'!F5 -> 79968136 | F101: ='Rate Base'!G5 -> 79968136 | G101: ='Rate Base'!H5 -> 79968136 | H101: ='Rate Base'!I5 -> 79968136 | I101: ='Rate Base'!J5 -> 79968136 | J101: ='Rate Base'!K5 -> 79968136 | K101: ='Rate Base'!L5 -> 79968136 | L101: ='Rate Base'!M5 -> 79968136 | M101: ='Rate Base'!N5 -> 79968136 | N101: ='Rate Base'!O5 -> 79968136 | O101: ='Rate Base'!P5 -> 79968136 | P101: 79968136 | Q101: 97
B102: Acct 108 - Production | C102: ='Rate Base'!D7 -> -71443468 | D102: ='Rate Base'!E7 -> -71513383 | E102: ='Rate Base'!F7 -> -71572680 | F102: ='Rate Base'!G7 -> -71641946 | G102: ='Rate Base'!H7 -> -71711214 | H102: ='Rate Base'!I7 -> -71780483 | I102: ='Rate Base'!J7 -> -71849768 | J102: ='Rate Base'!K7 -> -71919083 | K102: ='Rate Base'!L7 -> -71988400 | L102: ='Rate Base'!M7 -> -71988400 | M102: ='Rate Base'!N7 -> -71988400 | N102: ='Rate Base'!O7 -> -72112568 | O102: ='Rate Base'!P7 -> -72112568 | P102: -71820361.92 | Q102: 98
B103: Acct 111 - Production | C103: ='Rate Base'!D9 -> -6150277 | D103: ='Rate Base'!E9 -> -6150277 | E103: ='Rate Base'!F9 -> -6150277 | F103: ='Rate Base'!G9 -> -6150277 | G103: ='Rate Base'!H9 -> -6150277 | H103: ='Rate Base'!I9 -> -6150277 | I103: ='Rate Base'!J9 -> -6150277 | J103: ='Rate Base'!K9 -> -6150277 | K103: ='Rate Base'!L9 -> -6150277 | L103: ='Rate Base'!M9 -> -6150277 | M103: ='Rate Base'!N9 -> -6150277 | N103: ='Rate Base'!O9 -> -6150277 | O103: ='Rate Base'!P9 -> -6150277 | P103: -6150277 | Q103: 99
B104: Acct 2550 - Production | C104: ='Rate Base'!D14 -> 0 | D104: ='Rate Base'!E14 -> 0 | E104: ='Rate Base'!F14 -> 0 | F104: ='Rate Base'!G14 -> 0 | G104: ='Rate Base'!H14 -> 0 | H104: ='Rate Base'!I14 -> 0 | I104: ='Rate Base'!J14 -> 0 | J104: ='Rate Base'!K14 -> 0 | K104: ='Rate Base'!L14 -> 0 | L104: ='Rate Base'!M14 -> 0 | M104: ='Rate Base'!N14 -> 0 | N104: ='Rate Base'!O14 -> 0 | O104: ='Rate Base'!P14 -> 0 | P104: 0 | Q104: 100
B105: Acct 2820 - Production | C105: ='Rate Base'!D16 -> -33963163 | D105: ='Rate Base'!E16 -> -31483079 | E105: ='Rate Base'!F16 -> -31080075 | F105: ='Rate Base'!G16 -> -24954142 | G105: ='Rate Base'!H16 -> -24655106 | H105: ='Rate Base'!I16 -> -25179711 | I105: ='Rate Base'!J16 -> -32181231 | J105: ='Rate Base'!K16 -> -32697505 | K105: ='Rate Base'!L16 -> -33930378 | L105: ='Rate Base'!M16 -> -33930378 | M105: ='Rate Base'!N16 -> -33930378 | N105: ='Rate Base'!O16 -> -35244000 | O105: ='Rate Base'!P16 -> -35244000 | P105: -31155797.04 | Q105: 101
B106: Acct 2821 - Production | C106: ='Rate Base'!D18 -> -700755 | D106: ='Rate Base'!E18 -> -700755 | E106: ='Rate Base'!F18 -> -700755 | F106: ='Rate Base'!G18 -> -700755 | G106: ='Rate Base'!H18 -> -700755 | H106: ='Rate Base'!I18 -> -700755 | I106: ='Rate Base'!J18 -> -700755 | J106: ='Rate Base'!K18 -> -700755 | K106: ='Rate Base'!L18 -> -700755 | L106: ='Rate Base'!M18 -> -700755 | M106: ='Rate Base'!N18 -> -700755 | N106: ='Rate Base'!O18 -> -700755 | O106: ='Rate Base'!P18 -> -700755 | P106: -700755 | Q106: 102
Q107: 103
D108: Production | H108: Acct 101 | I108: Acct 108 | J108: Acct 111 | K108: Acct 2550 | L108: Acct 2820 | M108: Acct 2821 | N108: Total | Q108: 104
B109: Depreciation - Acct 403 | D109: =Expenses!P8 -> 814564 | F109: Thirteen month average | H109: =P101 -> 79968136 | I109: =P102 -> -71820361.92 | J109: =P103 -> -6150277 | K109: =P104 -> 0 | L109: =P105 -> -31155797.04 | M109: =P106 -> -700755 | N109: =SUM(H109:M109) -> -29859054.96 | Q109: 105
B110: Amortization & Depletion - Acct 404 | D110: =Expenses!P10 -> 0 | F110: =CONCATENATE("Wexpro Red. @ ",-'Other Inputs'!E266*100," %") -> Wexpro Red. @ 6.3 % | H110: =H109*'Other Inputs'!$E$266 -> -5037992.568 | I110: =I109*'Other Inputs'!$E$266 -> 4524682.801 | J110: =J109*'Other Inputs'!$E$266 -> 387467.451 | N110: =SUM(H110:M110) -> -125842.3162 | Q110: 106
B111: Utah Pre-Tax Return on Production Assets | D111: =+N112 -> -2668655.857 | M111: =SUM(N109:N110) -> -29984897.27 | Q111: 107
B112: Utah Production Cost | D112: =SUM(D109:D111) -> -1854091.857 | M112: ="Utah Pre-Tax Rate of Return on Production Assets ("&'Other Inputs'!E269&")" -> Utah Pre-Tax Rate of Return on Production Assets (0.089) | N112: =M111*'Other Inputs'!E269 -> -2668655.857 | Q112: 108
M113: ="Wyoming Pre-Tax Rate of Return on Production Assets ("&'Other Inputs'!E268&")" -> Wyoming Pre-Tax Rate of Return on Production Assets (0.088) | N113: =M111*'Other Inputs'!E268 -> -2638670.96 | Q113: 109
Q114: 110
A115: TACTICAL PLAN INFORMATION (IRP) | P115: 12-Month | Q115: 111
D116: =D5 -> Aug22 | E116: =E5 -> Sep22 | F116: Oct22 | G116: Nov22 | H116: Dec22 | I116: Jan23 | J116: Feb23 | K116: Mar23 | L116: Apr23 | M116: May23 | N116: Jun23 | O116: Jul23 | P116: Total | Q116: 112
A117: COMPANY PRODUCTION | Q117: 113
B118: Prior Company | Q118: 114
B119: D24 Wells | Q119: 115
B120: Brady & Powel | Q120: 116
B121: Total Company Production Wexpro I & II | D121: ='Monthly Inputs'!G7+'Monthly Inputs'!G13 -> 4544697.392 | E121: ='Monthly Inputs'!H7+'Monthly Inputs'!H13 -> 4344522.992 | F121: ='Monthly Inputs'!I7+'Monthly Inputs'!I13 -> 4421616.589 | G121: ='Monthly Inputs'!J7+'Monthly Inputs'!J13 -> 5019993.987 | H121: ='Monthly Inputs'!K7+'Monthly Inputs'!K13 -> 5025489.791 | I121: ='Monthly Inputs'!L7+'Monthly Inputs'!L13 -> 5085059.49 | J121: ='Monthly Inputs'!M7+'Monthly Inputs'!M13 -> 4532162.19 | K121: ='Monthly Inputs'!N7+'Monthly Inputs'!N13 -> 4779897.391 | L121: ='Monthly Inputs'!O7+'Monthly Inputs'!O13 -> 4533629.986 | M121: ='Monthly Inputs'!P7+'Monthly Inputs'!P13 -> 4595117.892 | N121: ='Monthly Inputs'!Q7+'Monthly Inputs'!Q13 -> 4570853.986 | O121: ='Monthly Inputs'!R7+'Monthly Inputs'!R13 -> 4609833.286 | P121: =SUM(D121:O121) -> 56062874.97 | Q121: 117
Q122: 118
A123: STORAGE INJECTIONS | Q123: 119
B124: Chalk Creek | D124: ='Monthly Inputs'!G24 -> 0 | E124: ='Monthly Inputs'!H24 -> 40000 | F124: ='Monthly Inputs'!I24 -> 135000 | G124: ='Monthly Inputs'!J24 -> 10996 | H124: ='Monthly Inputs'!K24 -> 90000 | I124: ='Monthly Inputs'!L24 -> 0 | J124: ='Monthly Inputs'!M24 -> 0 | K124: ='Monthly Inputs'!N24 -> 0 | L124: ='Monthly Inputs'!O24 -> 0 | M124: ='Monthly Inputs'!P24 -> 0 | N124: ='Monthly Inputs'!Q24 -> 0 | O124: ='Monthly Inputs'!R24 -> 0 | P124: =SUM(D124:O124) -> 275996 | Q124: 120
B125: Coalville | D125: ='Monthly Inputs'!G26 -> 0 | E125: ='Monthly Inputs'!H26 -> 42000 | F125: ='Monthly Inputs'!I26 -> 280800 | G125: ='Monthly Inputs'!J26 -> 0 | H125: ='Monthly Inputs'!K26 -> 37386 | I125: ='Monthly Inputs'!L26 -> 0 | J125: ='Monthly Inputs'!M26 -> 0 | K125: ='Monthly Inputs'!N26 -> 360186 | L125: ='Monthly Inputs'!O26 -> 0 | M125: ='Monthly Inputs'!P26 -> 0 | N125: ='Monthly Inputs'!Q26 -> 0 | O125: ='Monthly Inputs'!R26 -> 0 | P125: =SUM(D125:O125) -> 720372 | Q125: 121
B126: Leroy | D126: ='Monthly Inputs'!G27 -> 0 | E126: ='Monthly Inputs'!H27 -> 47500 | F126: ='Monthly Inputs'!I27 -> 45000 | G126: ='Monthly Inputs'!J27 -> 0 | H126: ='Monthly Inputs'!K27 -> 272055 | I126: ='Monthly Inputs'!L27 -> 0 | J126: ='Monthly Inputs'!M27 -> 0 | K126: ='Monthly Inputs'!N27 -> 0 | L126: ='Monthly Inputs'!O27 -> 0 | M126: ='Monthly Inputs'!P27 -> 0 | N126: ='Monthly Inputs'!Q27 -> 0 | O126: ='Monthly Inputs'!R27 -> 0 | P126: =SUM(D126:O126) -> 364555 | Q126: 122
B127: Ryckman | D127: ='Monthly Inputs'!G28 -> 0 | E127: ='Monthly Inputs'!H28 -> 0 | F127: ='Monthly Inputs'!I28 -> 0 | G127: ='Monthly Inputs'!J28 -> 0 | H127: ='Monthly Inputs'!K28 -> 0 | I127: ='Monthly Inputs'!L28 -> 0 | J127: ='Monthly Inputs'!M28 -> 0 | K127: ='Monthly Inputs'!N28 -> 0 | L127: ='Monthly Inputs'!O28 -> 0 | M127: ='Monthly Inputs'!P28 -> 0 | N127: ='Monthly Inputs'!Q28 -> 0 | O127: ='Monthly Inputs'!R28 -> 0 | P127: =SUM(D127:O127) -> 0 | Q127: 123
B128: Total Peaking Storage | D128: =SUM(D124:D127) -> 0 | E128: =SUM(E124:E127) -> 129500 | F128: 460800 | G128: 10996 | H128: 399441 | I128: 0 | J128: 0 | K128: 360186 | L128: 0 | M128: 0 | N128: 0 | O128: 0 | P128: 1360923 | Q128: 124
B129: Clay Basin | D129: ='Monthly Inputs'!G25 -> 2051859 | E129: ='Monthly Inputs'!H25 -> 1865632 | F129: ='Monthly Inputs'!I25 -> 1576854 | G129: ='Monthly Inputs'!J25 -> 0 | H129: ='Monthly Inputs'!K25 -> 0 | I129: ='Monthly Inputs'!L25 -> 0 | J129: ='Monthly Inputs'!M25 -> 0 | K129: ='Monthly Inputs'!N25 -> 0 | L129: ='Monthly Inputs'!O25 -> 945000 | M129: ='Monthly Inputs'!P25 -> 2418001 | N129: ='Monthly Inputs'!Q25 -> 2166181 | O129: ='Monthly Inputs'!R25 -> 1976476 | P129: =SUM(D129:O129) -> 13000003 | Q129: 125
B130: Total Storage Injections | D130: =SUM(D128:D129) -> 2051859 | E130: 1995132 | F130: 2037654 | G130: 10996 | H130: 399441 | I130: 0 | J130: 0 | K130: 360186 | L130: 945000 | M130: 2418001 | N130: 2166181 | O130: 1976476 | P130: 14360926 | Q130: 126
A131: STORAGE WITHDRAWLS | Q131: 127
B132: Chalk Creek | D132: ='Monthly Inputs'!G33 -> 0 | E132: ='Monthly Inputs'!H33 -> 0 | F132: ='Monthly Inputs'!I33 -> 0 | G132: ='Monthly Inputs'!J33 -> 0 | H132: ='Monthly Inputs'!K33 -> 0 | I132: ='Monthly Inputs'!L33 -> 262496 | J132: ='Monthly Inputs'!M33 -> 13500 | K132: ='Monthly Inputs'!N33 -> 0 | L132: ='Monthly Inputs'!O33 -> 0 | M132: ='Monthly Inputs'!P33 -> 0 | N132: ='Monthly Inputs'!Q33 -> 0 | O132: ='Monthly Inputs'!R33 -> 0 | P132: =SUM(D132:O132) -> 275996 | Q132: 128
B133: Coalville | D133: ='Monthly Inputs'!G35 -> 0 | E133: ='Monthly Inputs'!H35 -> 0 | F133: ='Monthly Inputs'!I35 -> 0 | G133: ='Monthly Inputs'!J35 -> 0 | H133: ='Monthly Inputs'!K35 -> 0 | I133: ='Monthly Inputs'!L35 -> 719445 | J133: ='Monthly Inputs'!M35 -> 927 | K133: ='Monthly Inputs'!N35 -> 0 | L133: ='Monthly Inputs'!O35 -> 0 | M133: ='Monthly Inputs'!P35 -> 0 | N133: ='Monthly Inputs'!Q35 -> 0 | O133: ='Monthly Inputs'!R35 -> 0 | P133: =SUM(D133:O133) -> 720372 | Q133: 129
B134: Leroy | D134: ='Monthly Inputs'!G36 -> 0 | E134: ='Monthly Inputs'!H36 -> 0 | F134: ='Monthly Inputs'!I36 -> 0 | G134: ='Monthly Inputs'!J36 -> 0 | H134: ='Monthly Inputs'!K36 -> 0 | I134: ='Monthly Inputs'!L36 -> 364555 | J134: ='Monthly Inputs'!M36 -> 0 | K134: ='Monthly Inputs'!N36 -> 0 | L134: ='Monthly Inputs'!O36 -> 0 | M134: ='Monthly Inputs'!P36 -> 0 | N134: ='Monthly Inputs'!Q36 -> 0 | O134: ='Monthly Inputs'!R36 -> 0 | P134: =SUM(D134:O134) -> 364555 | Q134: 130
B135: Ryckman | D135: ='Monthly Inputs'!G37 -> 0 | E135: ='Monthly Inputs'!H37 -> 0 | F135: ='Monthly Inputs'!I37 -> 0 | G135: ='Monthly Inputs'!J37 -> 0 | H135: ='Monthly Inputs'!K37 -> 0 | I135: ='Monthly Inputs'!L37 -> 0 | J135: ='Monthly Inputs'!M37 -> 0 | K135: ='Monthly Inputs'!N37 -> 0 | L135: ='Monthly Inputs'!O37 -> 0 | M135: ='Monthly Inputs'!P37 -> 0 | N135: ='Monthly Inputs'!Q37 -> 0 | O135: ='Monthly Inputs'!R37 -> 0 | P135: =SUM(D135:O135) -> 0 | Q135: 131
B136: Total Peaking Storage | D136: =SUM(D132:D135) -> 0 | E136: =SUM(E132:E135) -> 0 | F136: 0 | G136: 0 | H136: 0 | I136: 1346496 | J136: 14427 | K136: 0 | L136: 0 | M136: 0 | N136: 0 | O136: 0 | P136: 1360923 | Q136: 132
B137: Clay Basin | D137: ='Monthly Inputs'!G34 -> 0 | E137: ='Monthly Inputs'!H34 -> 0 | F137: ='Monthly Inputs'!I34 -> 0 | G137: ='Monthly Inputs'!J34 -> 3837659 | H137: ='Monthly Inputs'!K34 -> 2672247 | I137: ='Monthly Inputs'!L34 -> 3410050 | J137: ='Monthly Inputs'!M34 -> 3080045 | K137: ='Monthly Inputs'!N34 -> 0 | L137: ='Monthly Inputs'!O34 -> 0 | M137: ='Monthly Inputs'!P34 -> 0 | N137: ='Monthly Inputs'!Q34 -> 0 | O137: ='Monthly Inputs'!R34 -> 0 | P137: =SUM(D137:O137) -> 13000001 | Q137: 133
Q138: 134
B139: Total Storage Withdrawls | D139: =SUM(D136:D137) -> 0 | E139: 0 | F139: 0 | G139: 3837659 | H139: 2672247 | I139: 4756546 | J139: 3094472 | K139: 0 | L139: 0 | M139: 0 | N139: 0 | O139: 0 | P139: 14360924 | Q139: 135
Q140: 136
A141: LNG | Q141: 137
B142: Injections | D142: =+'Monthly Inputs'!G42 -> 0 | E142: =+'Monthly Inputs'!H42 -> 270000 | F142: =+'Monthly Inputs'!I42 -> 279000 | G142: =+'Monthly Inputs'!J42 -> 270000 | H142: =+'Monthly Inputs'!K42 -> 279000 | I142: =+'Monthly Inputs'!L42 -> 135000 | J142: =+'Monthly Inputs'!M42 -> 0 | K142: =+'Monthly Inputs'!N42 -> 0 | L142: =+'Monthly Inputs'!O42 -> 0 | M142: =+'Monthly Inputs'!P42 -> 0 | N142: =+'Monthly Inputs'!Q42 -> 0 | O142: =+'Monthly Inputs'!R42 -> 0 | P142: =+'Monthly Inputs'!S42 -> 1233000 | Q142: 138
B143: Withdrawals | D143: =+'Monthly Inputs'!G43 -> 0 | E143: =+'Monthly Inputs'!H43 -> 0 | F143: =+'Monthly Inputs'!I43 -> 0 | G143: =+'Monthly Inputs'!J43 -> 0 | H143: =+'Monthly Inputs'!K43 -> 0 | I143: =+'Monthly Inputs'!L43 -> 0 | J143: =+'Monthly Inputs'!M43 -> 0 | K143: =+'Monthly Inputs'!N43 -> 0 | L143: =+'Monthly Inputs'!O43 -> 184950 | M143: =+'Monthly Inputs'!P43 -> 0 | N143: =+'Monthly Inputs'!Q43 -> 0 | O143: =+'Monthly Inputs'!R43 -> 0 | P143: =+'Monthly Inputs'!S43 -> 184950 | Q143: 139
Q144: 140
Q145: 141
A146: Gas Supply and Demand | D146: =D4 -> Forecast | E146: Forecast | F146: Forecast | G146: Forecast | H146: Forecast | I146: Forecast | J146: Forecast | K146: Forecast | L146: Forecast | M146: Forecast | N146: Forecast | O146: Forecast | P146: 12-Month | Q146: 142
A147: Demand | D147: =D5 -> Aug22 | E147: Sep22 | F147: Oct22 | G147: Nov22 | H147: Dec22 | I147: Jan23 | J147: Feb23 | K147: Mar23 | L147: Apr23 | M147: May23 | N147: Jun23 | O147: Jul23 | P147: Total | Q147: 143
Q148: 144
A149: Utah Sales | D149: =+D20 -> 2544456 | E149: 2986836 | F149: 7219038 | G149: 12420297 | H149: 18926251 | I149: 20486544 | J149: 17106677 | K149: 13433023 | L149: 9017969 | M149: 5391667 | N149: 3071369 | O149: 2584396 | P149: =SUM(D149:O149) -> 115188523 | Q149: 145
A150: Wyoming Sales | D150: =+D39 -> 70192 | E150: 98227 | F150: 228147 | G150: 421821 | H150: 594379 | I150: 602427 | J150: 534389 | K150: 448594 | L150: 329671 | M150: 219398 | N150: 105674 | O150: 68869 | P150: =SUM(D150:O150) -> 3721788 | Q150: 146
A151: Total Sales | D151: =+D149+D150 -> 2614648 | E151: 3085063 | F151: 7447185 | G151: 12842118 | H151: 19520630 | I151: 21088971 | J151: 17641066 | K151: 13881617 | L151: 9347640 | M151: 5611065 | N151: 3177043 | O151: 2653265 | P151: 118910311 | Q151: 147
Q152: 148
A153: Distribution Use (Offices) | D153: =ROUND(O83,0) -> 0 | E153: =ROUND(D83,0) -> 0 | F153: 0 | G153: 0 | H153: 0 | I153: 0 | J153: 0 | K153: 0 | L153: 0 | M153: 0 | N153: 0 | O153: 0 | P153: =SUM(D153:O153) -> 0 | Q153: 149
A154: Distribution Lost and Unaccounted for | D154: =+D156-D151-D153 -> 14249 | E154: =+E156-E151-E153 -> 16812 | F154: 40584 | G154: 69984 | H154: 106378 | I154: 114925 | J154: 96136 | K154: 75648 | L154: 50940 | M154: 30578 | N154: 17313 | O154: =+O156-O151-O153 -> 14459 | P154: =SUM(D154:O154) -> 648006 | Q154: 150
Q155: 151
A156: Total City Gate | D156: =ROUND((D151+D153)/(1-'Other Inputs'!$E$272),0) -> 2628897 | E156: =ROUND((E151+E153)/(1-'Other Inputs'!$E$272),0) -> 3101875 | F156: =ROUND((F151+F153)/(1-'Other Inputs'!$E$272),0) -> 7487769 | G156: =ROUND((G151+G153)/(1-'Other Inputs'!$E$272),0) -> 12912102 | H156: =ROUND((H151+H153)/(1-'Other Inputs'!$E$272),0) -> 19627008 | I156: =ROUND((I151+I153)/(1-'Other Inputs'!$E$272),0) -> 21203896 | J156: =ROUND((J151+J153)/(1-'Other Inputs'!$E$272),0) -> 17737202 | K156: =ROUND((K151+K153)/(1-'Other Inputs'!$E$272),0) -> 13957265 | L156: =ROUND((L151+L153)/(1-'Other Inputs'!$E$272),0) -> 9398580 | M156: =ROUND((M151+M153)/(1-'Other Inputs'!$E$272),0) -> 5641643 | N156: =ROUND((N151+N153)/(1-'Other Inputs'!$E$272),0) -> 3194356 | O156: =ROUND((O151+O153)/(1-'Other Inputs'!$E$272),0) -> 2667724 | P156: =SUM(D156:O156) -> 119558317 | Q156: 152
Q157: 153
A158: Peaking Injection | D158: =+D128 -> 0 | E158: 129500 | F158: 460800 | G158: 10996 | H158: 399441 | I158: 0 | J158: 0 | K158: 360186 | L158: 0 | M158: 0 | N158: 0 | O158: 0 | P158: =SUM(D158:O158) -> 1360923 | Q158: 154
A159: Clay Basin Injection | D159: =+D129 -> 2051859 | E159: 1865632 | F159: 1576854 | G159: 0 | H159: 0 | I159: 0 | J159: 0 | K159: 0 | L159: 945000 | M159: 2418001 | N159: 2166181 | O159: 1976476 | P159: =SUM(D159:O159) -> 13000003 | Q159: 155
A160: Storage Lost & Unaccounted For | D160: =-'Monthly Inputs'!G58 -> 28028.39394 | E160: =-'Monthly Inputs'!H58 -> 27735.38312 | F160: =-'Monthly Inputs'!I58 -> 27236.46564 | G160: =-'Monthly Inputs'!J58 -> 108.8604 | H160: =-'Monthly Inputs'!K58 -> 9320.3913 | I160: =-'Monthly Inputs'!L58 -> 0 | J160: =-'Monthly Inputs'!M58 -> 0 | K160: =-'Monthly Inputs'!N58 -> 3890.0088 | L160: =-'Monthly Inputs'!O58 -> 12908.7 | M160: =-'Monthly Inputs'!P58 -> 33029.89366 | N160: =-'Monthly Inputs'!Q58 -> 29590.03246 | O160: =-'Monthly Inputs'!R58 -> 26998.66216 | P160: =SUM(D160:O160) -> 198846.7915 | Q160: 156
A161: Total Demand | D161: =SUM(D156:D160) -> 4708784.394 | E161: =SUM(E156:E160) -> 5124742.383 | F161: 9552659.466 | G161: 12923206.86 | H161: =SUM(H156:H160) -> 20035769.39 | I161: 21203896 | J161: 17737202 | K161: 14321341.01 | L161: 10356488.7 | M161: 8092673.894 | N161: 5390127.032 | O161: =SUM(O156:O160) -> 4671198.662 | P161: =SUM(D161:O161) -> 134118089.8 | Q161: 157
Q162: 158
D163: Forecast | E163: Forecast | F163: Forecast | G163: Forecast | H163: Forecast | I163: Forecast | J163: Forecast | K163: Forecast | L163: Forecast | M163: Forecast | N163: Forecast | O163: Forecast | P163: 12-Month | Q163: 159
A164: Supply | D164: =D5 -> Aug22 | E164: Sep22 | F164: Oct22 | G164: Nov22 | H164: Dec22 | I164: Jan23 | J164: Feb23 | K164: Mar23 | L164: Apr23 | M164: May23 | N164: Jun23 | O164: Jul23 | P164: Total | Q164: 160
A165: Company Production | D165: =+D121 -> 4544697.392 | E165: 4344522.992 | F165: 4421616.589 | G165: 5019993.987 | H165: 5025489.791 | I165: 5085059.49 | J165: 4532162.19 | K165: 4779897.391 | L165: 4533629.986 | M165: 4595117.892 | N165: 4570853.986 | O165: 4609833.286 | P165: =SUM(D165:O165) -> 56062874.97 | Q165: 161
A166: Co Prod Lost & Unaccounted For | D166: =ROUND(D165*(-'Other Inputs'!$E$274-'Other Inputs'!$E$275),0) -> -142476 | E166: =ROUND(E165*(-'Other Inputs'!$E$274-'Other Inputs'!$E$275),0) -> -136201 | F166: =ROUND(F165*(-'Other Inputs'!$E$274-'Other Inputs'!$E$275),0) -> -138618 | G166: =ROUND(G165*(-'Other Inputs'!$E$274-'Other Inputs'!$E$275),0) -> -157377 | H166: =ROUND(H165*(-'Other Inputs'!$E$274-'Other Inputs'!$E$275),0) -> -157549 | I166: =ROUND(I165*(-'Other Inputs'!$E$274-'Other Inputs'!$E$275),0) -> -159417 | J166: =ROUND(J165*(-'Other Inputs'!$E$274-'Other Inputs'!$E$275),0) -> -142083 | K166: =ROUND(K165*(-'Other Inputs'!$E$274-'Other Inputs'!$E$275),0) -> -149850 | L166: =ROUND(L165*(-'Other Inputs'!$E$274-'Other Inputs'!$E$275),0) -> -142129 | M166: =ROUND(M165*(-'Other Inputs'!$E$274-'Other Inputs'!$E$275),0) -> -144057 | N166: =ROUND(N165*(-'Other Inputs'!$E$274-'Other Inputs'!$E$275),0) -> -143296 | O166: =ROUND(O165*(-'Other Inputs'!$E$274-'Other Inputs'!$E$275),0) -> -144518 | P166: =SUM(D166:O166) -> -1757571 | Q166: 162
A167: Company Production @ City Gate | D167: =SUM(D165:D166) -> 4402221.392 | E167: =SUM(E165:E166) -> 4208321.992 | F167: 4282998.589 | G167: 4862616.987 | H167: 4867940.791 | I167: 4925642.49 | J167: 4390079.19 | K167: 4630047.391 | L167: 4391500.986 | M167: 4451060.892 | N167: 4427557.986 | O167: 4465315.286 | P167: =SUM(D167:O167) -> 54305303.97 | Q167: 163
Q168: 164
A169: Peaking Withdrawal | D169: =+D136 -> 0 | E169: 0 | F169: 0 | G169: 0 | H169: 0 | I169: 1346496 | J169: 14427 | K169: 0 | L169: 0 | M169: 0 | N169: 0 | O169: 0 | P169: =SUM(D169:O169) -> 1360923 | Q169: 165
A170: Clay Basin Withdrawal | D170: =+D137 -> 0 | E170: 0 | F170: 0 | G170: 3837659 | H170: 2672247 | I170: 3410050 | J170: 3080045 | K170: 0 | L170: 0 | M170: 0 | N170: 0 | O170: 0 | P170: =SUM(D170:O170) -> 13000001 | Q170: 166
A171: LNG Withdrawal | D171: =+D143 -> 0 | E171: =+E143 -> 0 | F171: 0 | G171: 0 | H171: 0 | I171: 0 | J171: 0 | K171: 0 | L171: 0 | M171: 0 | N171: 0 | O171: 0 | P171: =SUM(D171:O171) -> 0 | Q171: 167
A172: QPC Transportation Loss on Storage | D172: ='Monthly Inputs'!G76+'Monthly Inputs'!G67 -> 0 | E172: ='Monthly Inputs'!H76+'Monthly Inputs'!H67 -> 0 | F172: ='Monthly Inputs'!I76+'Monthly Inputs'!I67 -> 0 | G172: ='Monthly Inputs'!J76+'Monthly Inputs'!J67 -> -52372.53237 | H172: ='Monthly Inputs'!K76+'Monthly Inputs'!K67 -> -36468.15481 | I172: ='Monthly Inputs'!L76+'Monthly Inputs'!L67 -> -92905.00475 | J172: ='Monthly Inputs'!M76+'Monthly Inputs'!M67 -> -42469.83991 | K172: ='Monthly Inputs'!N76+'Monthly Inputs'!N67 -> 0 | L172: ='Monthly Inputs'!O76+'Monthly Inputs'!O67 -> 0 | M172: ='Monthly Inputs'!P76+'Monthly Inputs'!P67 -> 0 | N172: ='Monthly Inputs'!Q76+'Monthly Inputs'!Q67 -> 0 | O172: ='Monthly Inputs'!R76+'Monthly Inputs'!R67 -> 0 | P172: =SUM(D172:O172) -> -224215.5318 | Q172: 168
A173: Storage Lost & Unaccounted For | D173: ='Monthly Inputs'!G58 -> -28028.39394 | E173: ='Monthly Inputs'!H58 -> -27735.38312 | F173: ='Monthly Inputs'!I58 -> -27236.46564 | G173: ='Monthly Inputs'!J58 -> -108.8604 | H173: ='Monthly Inputs'!K58 -> -9320.3913 | I173: ='Monthly Inputs'!L58 -> 0 | J173: ='Monthly Inputs'!M58 -> 0 | K173: ='Monthly Inputs'!N58 -> -3890.0088 | L173: ='Monthly Inputs'!O58 -> -12908.7 | M173: ='Monthly Inputs'!P58 -> -33029.89366 | N173: ='Monthly Inputs'!Q58 -> -29590.03246 | O173: ='Monthly Inputs'!R58 -> -26998.66216 | P173: =SUM(D173:O173) -> -198846.7915 | Q173: 169
A174: Storage Supply @ City Gate | D174: =SUM(D169:D173) -> -28028.39394 | E174: =SUM(E169:E173) -> -27735.38312 | F174: -27236.46564 | G174: 3785177.607 | H174: 2626458.454 | I174: 4663640.995 | J174: 3052002.16 | K174: -3890.0088 | L174: -12908.7 | M174: -33029.89366 | N174: -29590.03246 | O174: -26998.66216 | P174: 13937861.68 | Q174: 170
Q175: 171
A176: Gas Purchased @ City Gate | D176: =D161-D167-D174-D160 -> 306563.002 | E176: =E161-E167-E174-E160 -> 916420.3914 | F176: 5269660.877 | G176: 4275303.406 | H176: 12532049.75 | I176: 11614612.51 | J176: 10295120.65 | K176: 9691293.618 | L176: =L161-L167-L174-L160 -> 5964987.714 | M176: 3641613.002 | N176: 962569.0468 | O176: 205883.3762 | P176: =SUM(D176:O176) -> 65676077.35 | Q176: 172
A177: Gas Reimbursement | D177: =+D178-D176 -> 3565.998019 | E177: =+E178-E176 -> 10661.60863 | F177: 61306.12311 | G177: 49737.59386 | H177: 145795.2453 | I177: 135121.4855 | J177: 119771.3505 | K177: 112746.3821 | L177: =+L178-L176 -> 69395.28603 | M177: 42365.99834 | N177: 11197.95317 | O177: 2395.623774 | P177: =SUM(D177:O177) -> 764060.6483 | Q177: 173
A178: Gas Purchased - Dth ( /.98) | D178: =ROUND(D176/(1-'Other Inputs'!$E$275),0) -> 310129 | E178: =ROUND(E176/(1-'Other Inputs'!$E$275),0) -> 927082 | F178: =ROUND(F176/(1-'Other Inputs'!$E$275),0) -> 5330967 | G178: =ROUND(G176/(1-'Other Inputs'!$E$275),0) -> 4325041 | H178: =ROUND(H176/(1-'Other Inputs'!$E$275),0) -> 12677845 | I178: =ROUND(I176/(1-'Other Inputs'!$E$275),0) -> 11749734 | J178: =ROUND(J176/(1-'Other Inputs'!$E$275),0) -> 10414892 | K178: =ROUND(K176/(1-'Other Inputs'!$E$275),0) -> 9804040 | L178: =ROUND(L176/(1-'Other Inputs'!$E$275),0) -> 6034383 | M178: =ROUND(M176/(1-'Other Inputs'!$E$275),0) -> 3683979 | N178: =ROUND(N176/(1-'Other Inputs'!$E$275),0) -> 973767 | O178: =ROUND(O176/(1-'Other Inputs'!$E$275),0) -> 208279 | P178: =SUM(D178:O178) -> 66440138 | Q178: 174
Q179: 175
Q180: 176
Q181: 177
Q182: 178
A183: Transported Volumes - total | D183: =+D167+D176+D139+D172 -> 4708784.394 | E183: =+E167+E176+E139+E172 -> 5124742.383 | F183: =+F167+F176+F139+F172 -> 9552659.466 | G183: 12923206.86 | H183: =+H167+H176+H139+H172 -> 20035769.39 | I183: 21203896 | J183: 17737202 | K183: 14321341.01 | L183: 10356488.7 | M183: 8092673.894 | N183: 5390127.032 | O183: 4671198.662 | P183: =+P167+P176+P139+P172 -> 134118089.8 | Q183: 179
A184: Kern transported volumes | D184: =HLOOKUP(MONTH(D5),kernrivertrans,6,FALSE) -> 777035.7034 | E184: 751970.0355 | F184: 777035.7034 | G184: 2541091.806 | H184: 3760108.846 | I184: 3760108.846 | J184: 3396227.345 | K184: 2625794.866 | L184: 751970.0355 | M184: 777035.7034 | N184: 751970.0355 | O184: 777035.7034 | Q184: 180
A185: Storage Fuel % | C185: =(P160-P173)/(P169+P170+P158+P159) -> 0.01384637769 | Q185: 181
Q186: 182
A187: Company Production as % of Total Supply / Demand | D187: =D165/(D178+D165) -> 0.9361194459 | E187: 0.8241366716 | F187: =F165/(F178+F165) -> 0.4533789994 | G187: 0.5371830061 | H187: =H165/(H178+H165) -> 0.2838724936 | I187: 0.302056541 | J187: 0.3032144082 | K187: 0.3277508167 | L187: 0.4289954973 | M187: 0.5550264663 | N187: 0.8243762734 | O187: =O165/(O178+O165) -> 0.9567716592 | P187: =P165/(P178+P165) -> 0.4576448661 | Q187: 183
Q188: 184
A189: Peak Hour Service | D189: =IF(OR(D6=11,D6=12,D6=1,D6=2),'Other Inputs'!D$20*16*'Other Inputs'!$F$21,0)+IF(OR(D6=11,D6=12,D6=1,D6=2),'Other Inputs'!$D$23*16*'Other Inputs'!$F$24,0) -> 0 | E189: =IF(OR(E6=11,E6=12,E6=1,E6=2),'Other Inputs'!E$20*16*'Other Inputs'!$F$21,0)+IF(OR(E6=11,E6=12,E6=1,E6=2),'Other Inputs'!$D$23*16*'Other Inputs'!$F$24,0) -> 0 | F189: =IF(OR(F6=11,F6=12,F6=1,F6=2),'Other Inputs'!F$20*31*'Other Inputs'!$F$21,0)+IF(OR(F6=11,F6=12,F6=1,F6=2),'Other Inputs'!$D$23*31*'Other Inputs'!$F$24,0) -> 0 | G189: =IF(OR(G6=11,G6=12,G6=1,G6=2),'Other Inputs'!G$20*31*'Other Inputs'!$F$21,0)+IF(OR(G6=11,G6=12,G6=1,G6=2),'Other Inputs'!$D$23*31*'Other Inputs'!$F$24,0) -> 555329.9565 | H189: =IF(OR(H6=11,H6=12,H6=1,H6=2),'Other Inputs'!H$20*14*'Other Inputs'!$F$21,0)+IF(OR(H6=11,H6=12,H6=1,H6=2),'Other Inputs'!$D$23*14*'Other Inputs'!$F$24,0) -> 250794.1739 | I189: =IF(OR(I6=11,I6=12,I6=1,I6=2),'Other Inputs'!I$20*16*'Other Inputs'!$F$21,0)+IF(OR(I6=11,I6=12,I6=1,I6=2),'Other Inputs'!$D$23*16*'Other Inputs'!$F$24,0) -> 286621.913 | J189: =IF(OR(J6=11,J6=12,J6=1,J6=2),'Other Inputs'!J$20*16*'Other Inputs'!$F$21,0)+IF(OR(J6=11,J6=12,J6=1,J6=2),'Other Inputs'!$D$23*16*'Other Inputs'!$F$24,0) -> 286621.913 | K189: =IF(OR(K6=11,K6=12,K6=1,K6=2),'Other Inputs'!K$20*16*'Other Inputs'!$F$21,0)+IF(OR(K6=11,K6=12,K6=1,K6=2),'Other Inputs'!$D$23*16*'Other Inputs'!$F$24,0) -> 0 | L189: =IF(OR(L6=11,L6=12,L6=1,L6=2),'Other Inputs'!L$20*16*'Other Inputs'!$F$21,0)+IF(OR(L6=11,L6=12,L6=1,L6=2),'Other Inputs'!$D$23*16*'Other Inputs'!$F$24,0) -> 0 | M189: =IF(OR(M6=11,M6=12,M6=1,M6=2),'Other Inputs'!M$20*16*'Other Inputs'!$F$21,0)+IF(OR(M6=11,M6=12,M6=1,M6=2),'Other Inputs'!$D$23*16*'Other Inputs'!$F$24,0) -> 0 | N189: =IF(OR(N6=11,N6=12,N6=1,N6=2),'Other Inputs'!N$20*16*'Other Inputs'!$F$21,0)+IF(OR(N6=11,N6=12,N6=1,N6=2),'Other Inputs'!$D$23*16*'Other Inputs'!$F$24,0) -> 0 | O189: =IF(OR(O6=11,O6=12,O6=1,O6=2),'Other Inputs'!O$20*16*'Other Inputs'!$F$21,0)+IF(OR(O6=11,O6=12,O6=1,O6=2),'Other Inputs'!$D$23*16*'Other Inputs'!$F$24,0) -> 0 | P189: =SUM(D189:O189) -> 1379367.957 | Q189: 185
Q190: 186
A191: PURCHASES BREAKDOWN | Q191: 187
A192: Spot Market Purchases | D192: ='Monthly Inputs'!G92 -> 174593 | E192: ='Monthly Inputs'!H92 -> 927082 | F192: ='Monthly Inputs'!I92 -> 4578141 | G192: ='Monthly Inputs'!J92 -> 3055041 | H192: ='Monthly Inputs'!K92 -> 4213845 | I192: ='Monthly Inputs'!L92 -> 2285734 | J192: ='Monthly Inputs'!M92 -> 3382892 | K192: ='Monthly Inputs'!N92 -> 9478338 | L192: ='Monthly Inputs'!O92 -> 5782440 | M192: ='Monthly Inputs'!P92 -> 3355633 | N192: ='Monthly Inputs'!Q92 -> 704763 | O192: ='Monthly Inputs'!R92 -> 0 | P192: =SUM(D192:O192) -> 37938502 | Q192: 188
A193: Spot Market Purchases Cost | D193: ='Monthly Inputs'!G93 -> 1078984.74 | E193: ='Monthly Inputs'!H93 -> 5581033.64 | F193: ='Monthly Inputs'!I93 -> 24126803.07 | G193: ='Monthly Inputs'!J93 -> 17994191.49 | H193: ='Monthly Inputs'!K93 -> 27937792.35 | I193: ='Monthly Inputs'!L93 -> 16342998.1 | J193: ='Monthly Inputs'!M93 -> 21718166.64 | K193: ='Monthly Inputs'!N93 -> 46538639.58 | L193: ='Monthly Inputs'!O93 -> 21915447.6 | M193: ='Monthly Inputs'!P93 -> 11711159.17 | N193: ='Monthly Inputs'!Q93 -> 2473718.13 | O193: ='Monthly Inputs'!R93 -> 0 | P193: =SUM(D193:O193) -> 197418934.5 | Q193: 189
Q194: 190
A195: Contract Purchases (Dth) | D195: ='Monthly Inputs'!G101+'Monthly Inputs'!G105 -> 0 | E195: ='Monthly Inputs'!H101+'Monthly Inputs'!H105 -> 0 | F195: ='Monthly Inputs'!I101+'Monthly Inputs'!I105 -> 0 | G195: ='Monthly Inputs'!J101+'Monthly Inputs'!J105 -> 270000 | H195: ='Monthly Inputs'!K101+'Monthly Inputs'!K105 -> 4464000 | I195: ='Monthly Inputs'!L101+'Monthly Inputs'!L105 -> 4464000 | J195: ='Monthly Inputs'!M101+'Monthly Inputs'!M105 -> 4032000 | K195: ='Monthly Inputs'!N101+'Monthly Inputs'!N105 -> 279000 | L195: ='Monthly Inputs'!O101+'Monthly Inputs'!O105 -> 0 | M195: ='Monthly Inputs'!P101+'Monthly Inputs'!P105 -> 0 | N195: ='Monthly Inputs'!Q101+'Monthly Inputs'!Q105 -> 0 | O195: ='Monthly Inputs'!R101+'Monthly Inputs'!R105 -> 0 | P195: =SUM(D195:O195) -> 13509000 | Q195: 191
A196: Contract Purchases Cost Including Stabalization Costs | D196: ='Monthly Inputs'!G102+'Monthly Inputs'!G103+'Monthly Inputs'!G106 -> 0 | E196: ='Monthly Inputs'!H102+'Monthly Inputs'!H103+'Monthly Inputs'!H106 -> 0 | F196: ='Monthly Inputs'!I102+'Monthly Inputs'!I103+'Monthly Inputs'!I106 -> 0 | G196: ='Monthly Inputs'!J102+'Monthly Inputs'!J103+'Monthly Inputs'!J106 -> 1409309.295 | H196: ='Monthly Inputs'!K102+'Monthly Inputs'!K103+'Monthly Inputs'!K106 -> 26212476.41 | I196: ='Monthly Inputs'!L102+'Monthly Inputs'!L103+'Monthly Inputs'!L106 -> 29244941.34 | J196: ='Monthly Inputs'!M102+'Monthly Inputs'!M103+'Monthly Inputs'!M106 -> 21434784.67 | K196: ='Monthly Inputs'!N102+'Monthly Inputs'!N103+'Monthly Inputs'!N106 -> 1180555.323 | L196: ='Monthly Inputs'!O102+'Monthly Inputs'!O103+'Monthly Inputs'!O106 -> 0 | M196: ='Monthly Inputs'!P102+'Monthly Inputs'!P103+'Monthly Inputs'!P106 -> 0 | N196: ='Monthly Inputs'!Q102+'Monthly Inputs'!Q103+'Monthly Inputs'!Q106 -> 0 | O196: ='Monthly Inputs'!R102+'Monthly Inputs'!R103+'Monthly Inputs'!R106 -> 0 | P196: =SUM(D196:O196) -> 79482067.05 | Q196: 192
Q197: 193
A198: Peak Purchases (Dth) | D198: ='Monthly Inputs'!G98 -> 0 | E198: ='Monthly Inputs'!H98 -> 0 | F198: ='Monthly Inputs'!I98 -> 0 | G198: ='Monthly Inputs'!J98 -> 1000000 | H198: ='Monthly Inputs'!K98 -> 4000000 | I198: ='Monthly Inputs'!L98 -> 5000000 | J198: ='Monthly Inputs'!M98 -> 3000000 | K198: ='Monthly Inputs'!N98 -> 0 | L198: ='Monthly Inputs'!O98 -> 0 | M198: ='Monthly Inputs'!P98 -> 0 | N198: ='Monthly Inputs'!Q98 -> 0 | O198: ='Monthly Inputs'!R98 -> 0 | P198: =SUM(D198:O198) -> 13000000 | Q198: 194
A199: Peak Purchases Cost | D199: ='Monthly Inputs'!G99 -> 0 | E199: ='Monthly Inputs'!H99 -> 0 | F199: ='Monthly Inputs'!I99 -> 0 | G199: ='Monthly Inputs'!J99 -> 8916562.897 | H199: ='Monthly Inputs'!K99 -> 41043449.65 | I199: ='Monthly Inputs'!L99 -> 57065595.7 | J199: ='Monthly Inputs'!M99 -> 27954320.72 | K199: ='Monthly Inputs'!N99 -> 0 | L199: ='Monthly Inputs'!O99 -> 0 | M199: ='Monthly Inputs'!P99 -> 0 | N199: ='Monthly Inputs'!Q99 -> 0 | O199: ='Monthly Inputs'!R99 -> 0 | P199: =SUM(D199:O199) -> 134979929 | Q199: 195
Q200: 196
A201: Future Purchases | D201: =+D178-D192-D195-D198 -> 135536 | E201: 1.164153218e-10 | F201: 752826 | G201: 0 | H201: 0 | I201: 0 | J201: 0 | K201: 46702 | L201: 251943 | M201: 328346 | N201: 269004 | O201: 208279 | P201: =SUM(D201:O201) -> 1992636 | Q201: 197
... 65 more rows

Sheet CET & DSM (hidden)
A1: Rate Caclulation for the CET and DSM Amortizations
P3: Solver Cells
A4: CET Amortization % Calculation | P4: % Change | Q4: Difference
B5: Balance | C5: Date | D5: GS Dth | H5: Amortization per Dth | P5: =J20/D20 ->  | Q5: =J20-B11 ->  | S5: -> Difference should be at 0 (Use Goal Seek to Get Difference to Equal 0.
A6: DSM Balance | B6: ='Other Inputs'!#REF! ->  | C6: ='Other Inputs'!#REF! ->  | D6: =B20 ->  | H6: =ROUND(B6/D6,5) -> 
S8: Typical Bill Rates
A9: CET Amortization Calculation
B10: Balance | C10: Date | D10: DNG Rev | H10: New DNG | L10: % Change | S10: Current | T10: Proposed
A11: CET Balance | B11: ='Other Inputs'!#REF! ->  | C11: ='Other Inputs'!#REF! ->  | D11: =D20 ->  | H11: =D11+B11 ->  | L11: =P5 ->  | S11: Effective | V11: SNG & | W11: CET, DSM
S12: ='Other Inputs'!$J$100 -> 2022-06-01 | T12: CET Only | U12: DSM Only | V12: Commodity | W12: Commodity
S13: BSF | T13: BSF | U13: BSF | V13: BSF | W13: BSF
B14: Revenue Calculation | H14: CET Amortization | L14: Total DNG | P14: REVRUN Calculation | S14: ='Other Inputs'!$G$104 -> 6.75 | T14: ='Other Inputs'!$G$104 -> 6.75 | U14: ='Other Inputs'!$G$104 -> 6.75 | V14: ='Other Inputs'!$G$104 -> 6.75 | W14: ='Ut 1.6 Source'!$C$18 -> 6.75
A15: Utah GS | B15: Dth | C15: Base DNG | D15: DNG Revenue | H15: CET Rate | J15: Revenue | L15: DNG Rate | N15: Revenue | P15: CET Rate | Q15: CET Amort
A16: Block 1 Summer | B16: ='Other Inputs'!#REF! ->  | C16: ='Other Inputs'!E256 -> 1.94617 | D16: =B16*C16 ->  | H16: =ROUND((J16/B16),5) ->  | J16: =D16*$P$5 ->  | L16: =C16+H16 ->  | N16: =L16*B16 ->  | P16: =ROUND(H16,5) ->  | Q16: =B16*P16 ->  | S16: ='Other Inputs'!$G$100 -> 7.95117 | T16: =N24 ->  | U16: =N31 ->  | V16: =N38 ->  | W16: =N45 -> 
A17: Block 2 Summer | B17: ='Other Inputs'!#REF! ->  | C17: ='Other Inputs'!E257 -> 0.74377 | D17: =B17*C17 ->  | H17: =ROUND((J17/B17),5) ->  | J17: =D17*$P$5 ->  | L17: =C17+H17 ->  | N17: =L17*B17 ->  | P17: =ROUND(H17,5) ->  | Q17: =B17*P17 -> 
A18: Block 1 Winter | B18: ='Other Inputs'!#REF! ->  | C18: ='Other Inputs'!E258 -> 2.64801 | D18: =B18*C18 ->  | H18: =ROUND((J18/B18),5) ->  | J18: =D18*$P$5 ->  | L18: =C18+H18 ->  | N18: =L18*B18 ->  | P18: =ROUND(H18,5) ->  | Q18: =B18*P18 ->  | S18: ='Other Inputs'!$G$102 -> 9.24718 | T18: =N26 ->  | U18: =N33 ->  | V18: =N40 ->  | W18: =N47 -> 
A19: Block 2 Winter | B19: ='Other Inputs'!#REF! ->  | C19: ='Other Inputs'!E259 -> 1.44561 | D19: =B19*C19 ->  | H19: =ROUND((J19/B19),5) ->  | J19: =D19*$P$5 ->  | L19: =C19+H19 ->  | N19: =L19*B19 ->  | P19: =ROUND(H19,5) ->  | Q19: =B19*P19 -> 
A20: GS-1 Block Rev | B20: =SUM(B16:B19) ->  | D20: =SUM(D16:D19) ->  | J20: =B11 ->  | N20: =SUM(N16:N19) ->  | Q20: =SUM(Q16:Q19) -> 
A22: Total Rate Calculation With CET Amortization Only | N22: ='Control Panel'!F8 -> 2022-08-01 | P22: ='Other Inputs'!$J$100 -> 2022-06-01
A23: Utah GS | B23: Base DNG | C23: CET | D23: DSM | E23: Energy Assist | F23: Infrastructure | H23: Total DNG | I23: Base SNG | J23: SNG Amort | L23: Base Gas Cost | M23: 191 Amort | N23: Total Rate | P23: Total Rate
A24: Block 1 Summer | B24: =$C$16 -> 1.94617 | C24: =$H$16 ->  | D24: 0.44104 | E24: 0.01519 | F24: 0.02908 | H24: =SUM(B24:F24) ->  | I24: 0.55715 | J24: 0.01244 | L24: 4.21339 | M24: 0.14067 | N24: =SUM(H24:M24) ->  | P24: ='Other Inputs'!$G$100 -> 7.95117 | Q24: =N24-P24 -> 
A25: Block 2 Summer | B25: =$C$17 -> 0.74377 | C25: =$H$17 ->  | D25: =$D$24 -> 0.44104 | E25: =$E$24 -> 0.01519 | F25: 0.0108 | H25: =SUM(B25:F25) ->  | I25: =I24 -> 0.55715 | J25: =J24 -> 0.01244 | L25: =L24 -> 4.21339 | M25: =$M$24 -> 0.14067 | N25: =SUM(H25:M25) ->  | P25: ='Other Inputs'!$G$101 -> 6.67098 | Q25: =N25-P25 -> 
A26: Block 1 Winter | B26: =$C$18 -> 2.64801 | C26: =$H$18 ->  | D26: =$D$24 -> 0.44104 | E26: =$E$24 -> 0.01519 | F26: 0.03453 | H26: =SUM(B26:F26) ->  | I26: 1.18665 | J26: 0.02651 | L26: =L24 -> 4.21339 | M26: =$M$24 -> 0.14067 | N26: =SUM(H26:M26) ->  | P26: ='Other Inputs'!$G$102 -> 9.24718 | Q26: =N26-P26 -> 
A27: Block 2 Winter | B27: =$C$19 -> 1.44561 | C27: =$H$19 ->  | D27: =$D$24 -> 0.44104 | E27: =$E$24 -> 0.01519 | F27: 0.01434 | H27: =SUM(B27:F27) ->  | I27: =I26 -> 1.18665 | J27: =J26 -> 0.02651 | L27: =L24 -> 4.21339 | M27: =$M$24 -> 0.14067 | N27: =SUM(H27:M27) ->  | P27: ='Other Inputs'!$G$103 -> 7.967 | Q27: =N27-P27 -> 
A29: Total Rate Calculation With DSM Amortization Only | N29: =N22 -> 2022-08-01 | P29: ='Other Inputs'!$J$100 -> 2022-06-01
A30: Utah GS | B30: Base DNG | C30: CET | D30: DSM | E30: Energy Assist | F30: Infrastructure | H30: Total DNG | I30: Base SNG | J30: SNG Amort | L30: Commodity | M30: 191 Amort | N30: Total Rate | P30: Total Rate
A31: Block 1 Summer | B31: =$C$16 -> 1.94617 | C31: -0.0599 | D31: =$H$6 ->  | E31: =$E$24 -> 0.01519 | F31: =F24 -> 0.02908 | H31: =SUM(B31:F31) ->  | I31: =$I$24 -> 0.55715 | J31: =J24 -> 0.01244 | L31: =$L$24 -> 4.21339 | M31: =$M$24 -> 0.14067 | N31: =SUM(H31:M31) ->  | P31: ='Other Inputs'!$G$100 -> 7.95117 | Q31: =N31-P31 -> 
A32: Block 2 Summer | B32: =$C$17 -> 0.74377 | C32: -0.02224 | D32: =$H$6 ->  | E32: =$E$24 -> 0.01519 | F32: =F25 -> 0.0108 | H32: =SUM(B32:F32) ->  | I32: =$I$24 -> 0.55715 | J32: =J25 -> 0.01244 | L32: =$L$24 -> 4.21339 | M32: =$M$24 -> 0.14067 | N32: =SUM(H32:M32) ->  | P32: ='Other Inputs'!$G$101 -> 6.67098 | Q32: =N32-P32 -> 
A33: Block 1 Winter | B33: =$C$18 -> 2.64801 | C33: -0.07112 | D33: =$H$6 ->  | E33: =$E$24 -> 0.01519 | F33: =F26 -> 0.03453 | H33: =SUM(B33:F33) ->  | I33: =$I$26 -> 1.18665 | J33: =J26 -> 0.02651 | L33: =$L$24 -> 4.21339 | M33: =$M$24 -> 0.14067 | N33: =SUM(H33:M33) ->  | P33: ='Other Inputs'!$G$102 -> 9.24718 | Q33: =N33-P33 -> 
A34: Block 2 Winter | B34: =$C$19 -> 1.44561 | C34: -0.02953 | D34: =$H$6 ->  | E34: =$E$24 -> 0.01519 | F34: =F27 -> 0.01434 | H34: =SUM(B34:F34) ->  | I34: =$I$26 -> 1.18665 | J34: =J27 -> 0.02651 | L34: =$L$24 -> 4.21339 | M34: =$M$24 -> 0.14067 | N34: =SUM(H34:M34) ->  | P34: ='Other Inputs'!$G$103 -> 7.967 | Q34: =N34-P34 -> 
A36: Total Rate Calculation With SNG and Commodity Changes Only | N36: =N22 -> 2022-08-01 | P36: ='Other Inputs'!$J$100 -> 2022-06-01
A37: Utah GS | B37: Base DNG | C37: CET | D37: DSM | E37: Energy Assist | F37: Infrastructure | H37: Total DNG | I37: Base SNG | J37: SNG | L37: Commodity | M37: 191 Amort | N37: Total Rate | P37: Total Rate
A38: Block 1 Summer | B38: =$C$16 -> 1.94617 | C38: =C31 -> -0.0599 | D38: =D24 -> 0.44104 | E38: =$E$24 -> 0.01519 | F38: =F24 -> 0.02908 | H38: =SUM(B38:F38) -> 2.37158 | I38: =#REF! ->  | J38: =#REF! ->  | L38: ='Ut 1.5 p1'!$F$30 -> 5.43597 | M38: ='Ut 1.5 p1'!$F$31 -> 0.5702 | N38: =SUM(H38:M38) ->  | P38: ='Other Inputs'!$G$100 -> 7.95117 | Q38: =N38-P38 -> 
A39: Block 2 Summer | B39: =$C$17 -> 0.74377 | C39: =C32 -> -0.02224 | D39: =D25 -> 0.44104 | E39: =$E$24 -> 0.01519 | F39: =F25 -> 0.0108 | H39: =SUM(B39:F39) -> 1.18856 | I39: =#REF! ->  | J39: =#REF! ->  | L39: ='Ut 1.5 p1'!$F$30 -> 5.43597 | M39: ='Ut 1.5 p1'!$F$31 -> 0.5702 | N39: =SUM(H39:M39) ->  | P39: ='Other Inputs'!$G$101 -> 6.67098 | Q39: =N39-P39 -> 
A40: Block 1 Winter | B40: =$C$18 -> 2.64801 | C40: =C33 -> -0.07112 | D40: =D26 -> 0.44104 | E40: =$E$24 -> 0.01519 | F40: =F26 -> 0.03453 | H40: =SUM(B40:F40) -> 3.06765 | I40: =#REF! ->  | J40: =#REF! ->  | L40: ='Ut 1.5 p1'!$F$30 -> 5.43597 | M40: ='Ut 1.5 p1'!$F$31 -> 0.5702 | N40: =SUM(H40:M40) ->  | P40: ='Other Inputs'!$G$102 -> 9.24718 | Q40: =N40-P40 -> 
A41: Block 2 Winter | B41: =$C$19 -> 1.44561 | C41: =C34 -> -0.02953 | D41: =D27 -> 0.44104 | E41: =$E$24 -> 0.01519 | F41: =F27 -> 0.01434 | H41: =SUM(B41:F41) -> 1.88665 | I41: =#REF! ->  | J41: =#REF! ->  | L41: ='Ut 1.5 p1'!$F$30 -> 5.43597 | M41: ='Ut 1.5 p1'!$F$31 -> 0.5702 | N41: =SUM(H41:M41) ->  | P41: ='Other Inputs'!$G$103 -> 7.967 | Q41: =N41-P41 -> 
A43: Total Rate Calculation | N43: =N29 -> 2022-08-01 | P43: ='Other Inputs'!$J$100 -> 2022-06-01
A44: Utah GS | B44: Base DNG | C44: CET | D44: DSM | E44: Energy Assist | F44: Infrastructure | H44: Total DNG | I44: Base SNG | J44: SNG | L44: Commodity | N44: Total Rate | P44: Total Rate
A45: Block 1 Summer | B45: =$C$16 -> 1.94617 | C45: =$H$16 ->  | D45: =$H$6 ->  | E45: =$E$24 -> 0.01519 | F45: =F38 -> 0.02908 | H45: =SUM(B45:F45) ->  | I45: =I38 ->  | J45: =#REF! ->  | L45: ='Ut 1.5 p1'!$F$32 -> 6.00617 | N45: =SUM(H45:L45) ->  | P45: ='Other Inputs'!$G$100 -> 7.95117 | Q45: =N45-P45 -> 
A46: Block 2 Summer | B46: =$C$17 -> 0.74377 | C46: =$H$17 ->  | D46: =$H$6 ->  | E46: =$E$24 -> 0.01519 | F46: =F39 -> 0.0108 | H46: =SUM(B46:F46) ->  | I46: =I39 ->  | J46: =#REF! ->  | L46: =$L$45 -> 6.00617 | N46: =SUM(H46:L46) ->  | P46: ='Other Inputs'!$G$101 -> 6.67098 | Q46: =N46-P46 -> 
A47: Block 1 Winter | B47: =$C$18 -> 2.64801 | C47: =$H$18 ->  | D47: =$H$6 ->  | E47: =$E$24 -> 0.01519 | F47: =F40 -> 0.03453 | H47: =SUM(B47:F47) ->  | I47: =I40 ->  | J47: =#REF! ->  | L47: =$L$45 -> 6.00617 | N47: =SUM(H47:L47) ->  | P47: ='Other Inputs'!$G$102 -> 9.24718 | Q47: =N47-P47 -> 
A48: Block 2 Winter | B48: =$C$19 -> 1.44561 | C48: =$H$19 ->  | D48: =$H$6 ->  | E48: =$E$24 -> 0.01519 | F48: =F41 -> 0.01434 | H48: =SUM(B48:F48) ->  | I48: =I41 ->  | J48: =#REF! ->  | L48: =$L$45 -> 6.00617 | N48: =SUM(H48:L48) ->  | P48: ='Other Inputs'!$G$103 -> 7.967 | Q48: =N48-P48 -> 
A50: Typical Customer Difference - CET Amortization Only
B51: Typical
A52: GS | B52: Dth | C52: =S12 -> 2022-06-01 | D52: =N43 -> 2022-08-01 | H52: Change | J52: % Change
A53: January | B53: 14.9 | C53: =ROUND($S$14+(B53*$S$18),2) -> 144.53 | D53: =ROUND($T$14+(B53*$T$18),2) ->  | H53: =D53-C53 -> 
A54: February | B54: 12.5 | C54: =ROUND($S$14+(B54*$S$18),2) -> 122.34 | D54: =ROUND($T$14+(B54*$T$18),2) -> 
A55: March | B55: 10.1 | C55: =ROUND($S$14+(B55*$S$18),2) -> 100.15 | D55: =ROUND($T$14+(B55*$T$18),2) -> 
A56: April | B56: 8.3 | C56: =ROUND($S$14+(B56*$S$16),2) -> 72.74 | D56: =ROUND($T$14+(B56*$T$16),2) -> 
A57: May | B57: 4.4 | C57: 41.74 | D57: =ROUND($T$14+(B57*$T$16),2) -> 
A58: June | B58: 3.1 | C58: 31.4
A59: July | B59: 2 | C59: 22.65
A60: August | B60: 1.8 | C60: 21.06
A61: September | B61: 2 | C61: 22.65
A62: October | B62: 3.1 | C62: 31.4
A63: November | B63: 6.3 | C63: =ROUND($S$14+(B63*$S$18),2) -> 65.01 | D63: =ROUND($T$14+(B63*$T$18),2) -> 
A64: December | B64: 11.5 | C64: =ROUND($S$14+(B64*$S$18),2) -> 113.09 | D64: =ROUND($T$14+(B64*$T$18),2) -> 
B65: =SUM(B53:B64) -> 80 | C65: =SUM(C53:C64) -> 788.76 | D65: =SUM(D53:D64) ->  | H65: =SUM(H53:H64) ->  | J65: =H65/C65 -> 
A68: Typical Customer Difference - DSM Amortization Only
B69: Typical
A70: GS | B70: Dth | C70: =C52 -> 2022-06-01 | D70: =D52 -> 2022-08-01 | H70: Change | J70: % Change
A71: January | B71: 14.9 | C71: =ROUND($S$14+(B71*$S$18),2) -> 144.53 | D71: =ROUND($U$14+(B71*$U$18),2) ->  | H71: =D71-C71 -> 
A72: February | B72: 12.5 | C72: =ROUND($S$14+(B72*$S$18),2) -> 122.34 | D72: =ROUND($U$14+(B72*$U$18),2) -> 
A73: March | B73: 10.1 | C73: =ROUND($S$14+(B73*$S$18),2) -> 100.15 | D73: =ROUND($U$14+(B73*$U$18),2) -> 
A74: April | B74: 8.3 | C74: =ROUND($S$14+(B74*$S$16),2) -> 72.74 | D74: =ROUND($U$14+(B74*$U$16),2) -> 
A75: May | B75: 4.4 | C75: 41.74
A76: June | B76: 3.1 | C76: 31.4
A77: July | B77: 2 | C77: 22.65
A78: August | B78: 1.8 | C78: 21.06
A79: September | B79: 2 | C79: 22.65
A80: October | B80: 3.1 | C80: 31.4
A81: November | B81: 6.3 | C81: =ROUND($S$14+(B81*$S$18),2) -> 65.01 | D81: =ROUND($U$14+(B81*$U$18),2) -> 
A82: December | B82: 11.5 | C82: =ROUND($S$14+(B82*$S$18),2) -> 113.09 | D82: =ROUND($U$14+(B82*$U$18),2) -> 
B83: =SUM(B71:B82) -> 80 | C83: =SUM(C71:C82) -> 788.76 | D83: =SUM(D71:D82) ->  | H83: =SUM(H71:H82) ->  | J83: =H83/C83 -> 
A86: Typical Customer Difference - SNG and Commodity Changes Only
B87: Typical
A88: GS-1 | B88: Dth | C88: =C70 -> 2022-06-01 | D88: =D70 -> 2022-08-01 | H88: Change | J88: % Change
A89: January | B89: 14.9 | C89: =ROUND($S$14+(B89*$S$18),2) -> 144.53 | D89: =ROUND($V$14+(B89*$V$18),2) ->  | H89: =D89-C89 -> 
A90: February | B90: 12.5 | C90: =ROUND($S$14+(B90*$S$18),2) -> 122.34 | D90: =ROUND($V$14+(B90*$V$18),2) -> 
A91: March | B91: 10.1 | C91: =ROUND($S$14+(B91*$S$18),2) -> 100.15 | D91: =ROUND($V$14+(B91*$V$18),2) -> 
A92: April | B92: 8.3 | C92: =ROUND($S$14+(B92*$S$16),2) -> 72.74 | D92: =ROUND($V$14+(B92*$V$16),2) -> 
A93: May | B93: 4.4 | C93: 41.74
A94: June | B94: 3.1 | C94: 31.4
A95: July | B95: 2 | C95: 22.65
A96: August | B96: 1.8 | C96: 21.06
A97: September | B97: 2 | C97: 22.65
A98: October | B98: 3.1 | C98: 31.4
A99: November | B99: 6.3 | C99: =ROUND($S$14+(B99*$S$18),2) -> 65.01 | D99: =ROUND($V$14+(B99*$V$18),2) -> 
A100: December | B100: 11.5 | C100: =ROUND($S$14+(B100*$S$18),2) -> 113.09 | D100: =ROUND($V$14+(B100*$V$18),2) -> 
B101: =SUM(B89:B100) -> 80 | C101: =SUM(C89:C100) -> 788.76 | D101: =SUM(D89:D100) ->  | H101: =SUM(H89:H100) ->  | J101: =H101/C101 -> 
A104: Typical Customer Difference - CET & DSM Amort, SNG and Commodity Changes
B105: Typical
A106: GS-1 | B106: Dth | C106: =C52 -> 2022-06-01 | D106: =D52 -> 2022-08-01 | H106: Change | J106: % Change
A107: January | B107: 14.9 | C107: =ROUND($S$14+(B107*$S$18),2) -> 144.53 | D107: =ROUND($W$14+(B107*$W$18),2) ->  | H107: =D107-C107 -> 
A108: February | B108: 12.5 | C108: =ROUND($S$14+(B108*$S$18),2) -> 122.34 | D108: =ROUND($W$14+(B108*$W$18),2) -> 
A109: March | B109: 10.1 | C109: =ROUND($S$14+(B109*$S$18),2) -> 100.15 | D109: =ROUND($W$14+(B109*$W$18),2) -> 
A110: April | B110: 8.3 | C110: =ROUND($S$14+(B110*$S$16),2) -> 72.74 | D110: =ROUND($W$14+(B110*$W$16),2) -> 
A111: May | B111: 4.4 | C111: 41.74
A112: June | B112: 3.1 | C112: 31.4
A113: July | B113: 2 | C113: 22.65
A114: August | B114: 1.8 | C114: 21.06
A115: September | B115: 2 | C115: 22.65
A116: October | B116: 3.1 | C116: 31.4
A117: November | B117: 6.3 | C117: =ROUND($S$14+(B117*$S$18),2) -> 65.01 | D117: =ROUND($W$14+(B117*$W$18),2) -> 
A118: December | B118: 11.5 | C118: =ROUND($S$14+(B118*$S$18),2) -> 113.09 | D118: =ROUND($W$14+(B118*$W$18),2) -> 
B119: =SUM(B107:B118) -> 80 | C119: =SUM(C107:C118) -> 788.76 | D119: =SUM(D107:D118) ->  | H119: =SUM(H107:H118) ->  | J119: =H119/C119 -> 

Sheet UT Tariff Sheets PT (hidden)
B2: 2.02 GS Rate Schedule | J2: 2.03 FS Rate Schedule | AB2: 4.03 ES Rate Schedule | AI2: 2.05 NGV Rate Schedule
C3: Rates Per Dth Used Each Month | M3: Rates Per Dth Used Each Month | T3: 4.02 IS Rate Schedule | AB3: ES Volumetric Rates | AI3: NGV Volumetric Rate
C4: Summer Rates: Apr. 1 - Oct. 31 | E4: Winter Rates: Nov. 1 - Mar. 31 | M4: Dth = decatherm = 10 therms = 1,000,000 BTU | T4: IS Volumetric Rates
C5: First 45 Dth | D5: All Over 45 Dth | E5: First 45 Dth | F5: All Over 45 Dth | K5: Summer Rates: Apr. 1 - Oct. 31 | N5: Winter Rates: Nov. 1 - Mar. 31 | U5: Rates Per Dth Used Each Month | AE5: Rates Per Dth Used Each Month | AM5: Rates Per Dth Used Each Month
B6: Base DNG | C6: ='CET & DSM'!B38 -> 1.94617 | D6: ='CET & DSM'!B39 -> 0.74377 | E6: ='CET & DSM'!B40 -> 2.64801 | F6: ='CET & DSM'!B41 -> 1.44561 | K6: First | L6: Next | M6: All Over | N6: First | O6: Next | P6: All Over | U6: Dth = decatherm = 10 therms = 1,000,000 BTU | AE6: Dth = decatherm = 10 therms = 1,000,000 BTU | AM6: Dth = decatherm = 10 therms = 1,000,000 BTU
B7: CET Amortization | C7: ='CET & DSM'!C38 -> -0.0599 | D7: ='CET & DSM'!C39 -> -0.02224 | E7: ='CET & DSM'!C40 -> -0.07112 | F7: ='CET & DSM'!C41 -> -0.02953 | K7: 200 | L7: 1800 | M7: 2000 | N7: 200 | O7: 1800 | P7: 2000 | U7: First | V7: Next | W7: All Over | AB7: Distribution Non-Gas Rate | AC7: ='Ut 1.6 Source'!#REF! ->  | AI7: Base DNG | AK7: ='Ut 1.6 Source'!C62 -> 8.11914
B8: DSM Amortization | C8: =ROUND('CET & DSM'!D38,5) -> 0.44104 | D8: =ROUND('CET & DSM'!D39,5) -> 0.44104 | E8: =ROUND('CET & DSM'!D40,5) -> 0.44104 | F8: =ROUND('CET & DSM'!D41,5) -> 0.44104 | J8: Base DNG | K8: ='Ut 1.6 Source'!C25 -> 1.03811 | L8: ='Ut 1.6 Source'!D25 -> 0.54067 | M8: ='Ut 1.6 Source'!E25 -> 0.01703 | N8: ='Ut 1.6 Source'!F25 -> 1.56992 | O8: ='Ut 1.6 Source'!G25 -> 1.07247 | P8: ='Ut 1.6 Source'!H25 -> 0.54883 | U8: 2000 | V8: 18000 | W8: 20000 | AI8: Energy Assistance | AK8: ='Other Inputs'!#REF! -> 
B9: Energy Assistance | C9: ='Other Inputs'!#REF! ->  | D9: ='Other Inputs'!#REF! ->  | E9: ='Other Inputs'!#REF! ->  | F9: ='Other Inputs'!#REF! ->  | J9: Energy Assistance | K9: ='Other Inputs'!#REF! ->  | L9: ='Other Inputs'!#REF! ->  | M9: ='Other Inputs'!#REF! ->  | N9: ='Other Inputs'!#REF! ->  | O9: ='Other Inputs'!#REF! ->  | P9: ='Other Inputs'!#REF! ->  | T9: Base DNG | U9: ='Ut 1.6 Source'!C74 -> 0.91912 | V9: ='Ut 1.6 Source'!D74 -> 0.13879 | W9: ='Ut 1.6 Source'!E74 -> 0.08169 | AB9: Base SNG | AC9: =ROUND(#REF!,5) ->  | AI9: Distribution Non-Gas Rate | AK9: =SUM(AK7:AM8) -> 
B10: Distribution Non-Gas Rate | C10: =SUM(C6:C9) ->  | D10: =SUM(D6:D9) ->  | E10: =SUM(E6:E9) ->  | F10: =SUM(F6:F9) ->  | J10: Distribution Non-Gas Rate | K10: =SUM(K8:K9) ->  | T10: Energy Assistance | U10: ='Other Inputs'!#REF! ->  | V10: ='Other Inputs'!#REF! ->  | W10: ='Other Inputs'!#REF! ->  | AB10: SNG Amortization | AC10: =ROUND(#REF!,5) -> 
T11: Distribution Non-Gas Rate | U11: =SUM(U9:U10) ->  | V11: =SUM(V9:V10) ->  | W11: =SUM(W9:W10) ->  | AB11: Supplier Non-Gas Rate | AC11: =SUM(AC9:AF10) ->  | AI11: Base SNG | AK11: =ROUND(#REF!,5) -> 
B12: Base SNG | C12: ='CET & DSM'!I38 ->  | D12: ='CET & DSM'!I39 ->  | E12: ='CET & DSM'!I40 ->  | F12: ='CET & DSM'!I41 ->  | J12: Base SNG | K12: =ROUND(#REF!,5) ->  | L12: =ROUND(#REF!,5) ->  | M12: =ROUND(#REF!,5) ->  | N12: =ROUND(#REF!,5) ->  | O12: =ROUND(#REF!,5) ->  | P12: =ROUND(#REF!,5) ->  | T12: Supplier Non-Gas Rate | U12: =ROUND(#REF!/(1-'Other Inputs'!$E$283),5) ->  | V12: =ROUND(#REF!/(1-'Other Inputs'!$E$283),5) ->  | W12: =ROUND(#REF!/(1-'Other Inputs'!$E$283),5) ->  | AI12: SNG Amortization | AK12: =ROUND(#REF!,5) -> 
B13: SNG Amortization | C13: ='CET & DSM'!J38 ->  | D13: ='CET & DSM'!J39 ->  | E13: ='CET & DSM'!J40 ->  | F13: ='CET & DSM'!J41 ->  | J13: SNG Amortization | K13: =ROUND(#REF!,5) ->  | L13: =ROUND(#REF!,5) ->  | M13: =ROUND(#REF!,5) ->  | N13: =ROUND(#REF!,5) ->  | O13: =ROUND(#REF!,5) ->  | P13: =ROUND(#REF!,5) ->  | AB13: Commodity Rate | AC13: Highest Gas Cost | AI13: Supplier Non-Gas Rate | AK13: =SUM(AK11:AM12) -> 
B14: Supplier Non-Gas Rate | C14: =SUM(C12:C13) ->  | D14: =SUM(D12:D13) ->  | E14: =SUM(E12:E13) ->  | F14: =SUM(F12:F13) ->  | J14: Supplier Non-Gas Rate | K14: =SUM(K12:K13) ->  | AB14: Total Rate | AC14: $
AI15: Base Gas Cost | AK15: =ROUND('Ut 1.5 p1'!$F$30,5) -> 5.43597
B16: Base Gas Cost | C16: ='Ut 1.5 p1'!$F$30 -> 5.43597 | D16: ='Ut 1.5 p1'!$F$30 -> 5.43597 | E16: ='Ut 1.5 p1'!$F$30 -> 5.43597 | F16: ='Ut 1.5 p1'!$F$30 -> 5.43597 | J16: Base Gas Cost | K16: =ROUND('Ut 1.5 p1'!$F$30,5) -> 5.43597 | L16: =ROUND('Ut 1.5 p1'!$F$30,5) -> 5.43597 | M16: =ROUND('Ut 1.5 p1'!$F$30,5) -> 5.43597 | N16: =ROUND('Ut 1.5 p1'!$F$30,5) -> 5.43597 | O16: =ROUND('Ut 1.5 p1'!$F$30,5) -> 5.43597 | P16: =ROUND('Ut 1.5 p1'!$F$30,5) -> 5.43597 | AB16: Penalty for failure to interrupt or limit usage when requested by the Company. See See § 3.02 | AI16: Commodity Amortization | AK16: =ROUND('Ut 1.5 p1'!$F$31,5) -> 0.5702
B17: 191 Amortization | C17: ='Ut 1.5 p1'!$F$31 -> 0.5702 | D17: ='Ut 1.5 p1'!$F$31 -> 0.5702 | E17: ='Ut 1.5 p1'!$F$31 -> 0.5702 | F17: ='Ut 1.5 p1'!$F$31 -> 0.5702 | J17: 191 Amortization | K17: =ROUND('Ut 1.5 p1'!$F$31,5) -> 0.5702 | L17: =ROUND('Ut 1.5 p1'!$F$31,5) -> 0.5702 | M17: =ROUND('Ut 1.5 p1'!$F$31,5) -> 0.5702 | N17: =ROUND('Ut 1.5 p1'!$F$31,5) -> 0.5702 | O17: =ROUND('Ut 1.5 p1'!$F$31,5) -> 0.5702 | P17: =ROUND('Ut 1.5 p1'!$F$31,5) -> 0.5702 | AI17: Commodity Rate | AK17: =SUM(AK15:AM16) -> 6.00617
B18: Commodity Rate | C18: =SUM(C16:C17) -> 6.00617 | D18: =SUM(D16:D17) -> 6.00617 | E18: =SUM(E16:E17) -> 6.00617 | F18: =SUM(F16:F17) -> 6.00617 | J18: Commodity Rate | K18: =SUM(K16:K17) -> 6.00617 | L18: 6.00617 | M18: 6.00617 | N18: 6.00617 | O18: 6.00617 | P18: 6.00617 | T18: Total Rate | U18: $ | V18: $ | W18: $
AI19: Total Rate | AK19: =SUM(AK9,AK13,AK17) -> 
B20: Total Rate | C20: =SUM(C18,C14,C10) ->  | D20: =SUM(D18,D14,D10) ->  | E20: =SUM(E18,E14,E10) ->  | F20: =SUM(F18,F14,F10) ->  | J20: Total Rate | K20: =SUM(K18,K14,K10) ->  | T20: Minimum Monthly Distribution Non-Gas Charge
AI21: Penalty for failure to interrupt or limit usage when requested by the Company. See See § 3.02
E22: BSF Category 1 | F22: ='Ut 1.6 Source'!C18 -> 6.75 | J22: Minimum Monthly Distribution Non-Gas Charge | O22: Summer | P22: =ROUND(K8*175,0) -> 182
E23: BSF Category 2 | F23: ='Ut 1.6 Source'!C19 -> 18.25 | O23: Winter | P23: =ROUND(N8*175,0) -> 275
E24: BSF Category 3 | F24: ='Ut 1.6 Source'!C20 -> 63.5 | V24: BSF Category 1 | W24: 5
E25: BSF Category 4 | F25: ='Ut 1.6 Source'!C21 -> 420.25 | V25: BSF Category 2 | W25: 29
N26: BSF Category 1 | P26: 5 | V26: BSF Category 3 | W26: 67
N27: BSF Category 2 | P27: 21 | V27: BSF Category 4 | W27: 274
N28: BSF Category 3 | P28: 55
N29: BSF Category 4 | P29: 244
AI30: =B44 -> Issued by R. W. Jibson, President | AL30: Advice No | AM30: Section Revision No.
AB39: =B44 -> Issued by R. W. Jibson, President | AE39: Advice No | AF39: Section Revision No.
AB42: New Pass Through Values
B44: Issued by R. W. Jibson, President | D44: Advice No | E44: Section Revision No. | F44: Effective Date
T47: =B44 -> Issued by R. W. Jibson, President | W47: Advice No
B48: Pass Through Changes | J48: =B44 -> Issued by R. W. Jibson, President | M48: Advice No | N48: Section Revision No. | P48: Effective Date
T50: New Pass Through Values
J51: New Pass Through Values

Sheet UT Tariff Sheets (hidden)
B2: 2.02 GS Rate Schedule | I2: 2.02 GS Rate Schedule
C3: Rates Per Dth Used Each Month | J3: Rates Per Dth Used Each Month
C4: Summer Rates: Apr. 1 - Oct. 31 | E4: Winter Rates: Nov. 1 - Mar. 31 | J4: Summer Rates: Apr. 1 - Oct. 31 | L4: Winter Rates: Nov. 1 - Mar. 31
C5: First 45 Dth | D5: All Over 45 Dth | E5: First 45 Dth | F5: All Over 45 Dth | J5: First 45 Dth | K5: All Over 45 Dth | L5: First 45 Dth | M5: All Over 45 Dth
B6: Base DNG | C6: ='CET & DSM'!B24 -> 1.94617 | D6: ='CET & DSM'!B25 -> 0.74377 | E6: ='CET & DSM'!B26 -> 2.64801 | F6: ='CET & DSM'!B27 -> 1.44561 | I6: Base DNG | J6: ='CET & DSM'!B31 -> 1.94617 | K6: ='CET & DSM'!B32 -> 0.74377 | L6: ='CET & DSM'!B33 -> 2.64801 | M6: ='CET & DSM'!B34 -> 1.44561
B7: CET Amortization | C7: ='CET & DSM'!H16 ->  | D7: ='CET & DSM'!H17 ->  | E7: ='CET & DSM'!H18 ->  | F7: ='CET & DSM'!H19 ->  | I7: CET Amortization | J7: ='CET & DSM'!C31 -> -0.0599 | K7: ='CET & DSM'!C32 -> -0.02224 | L7: ='CET & DSM'!C33 -> -0.07112 | M7: ='CET & DSM'!C34 -> -0.02953
B8: DSM Amortization | C8: ='CET & DSM'!D24 -> 0.44104 | D8: ='CET & DSM'!D25 -> 0.44104 | E8: ='CET & DSM'!D26 -> 0.44104 | F8: ='CET & DSM'!D27 -> 0.44104 | I8: DSM Amortization | J8: =ROUND('CET & DSM'!D31,5) ->  | K8: =ROUND('CET & DSM'!D32,5) ->  | L8: =ROUND('CET & DSM'!D33,5) ->  | M8: =ROUND('CET & DSM'!D34,5) -> 
B9: Energy Assistance | C9: ='Other Inputs'!#REF! ->  | D9: ='Other Inputs'!#REF! ->  | E9: ='Other Inputs'!#REF! ->  | F9: ='Other Inputs'!#REF! ->  | I9: Energy Assistance | J9: ='Other Inputs'!#REF! ->  | K9: ='Other Inputs'!#REF! ->  | L9: ='Other Inputs'!#REF! ->  | M9: ='Other Inputs'!#REF! -> 
B10: Distribution Non-Gas Rate | C10: =SUM(C6:C9) ->  | D10: =SUM(D6:D9) ->  | E10: =SUM(E6:E9) ->  | F10: =SUM(F6:F9) ->  | I10: Distribution Non-Gas Rate | J10: =SUM(J6:J9) ->  | K10: =SUM(K6:K9) ->  | L10: =SUM(L6:L9) ->  | M10: =SUM(M6:M9) -> 
B12: Base SNG | C12: ='CET & DSM'!I24 -> 0.55715 | D12: ='CET & DSM'!I25 -> 0.55715 | E12: ='CET & DSM'!I26 -> 1.18665 | F12: ='CET & DSM'!I27 -> 1.18665 | I12: Base SNG | J12: ='CET & DSM'!I31 -> 0.55715 | K12: ='CET & DSM'!I32 -> 0.55715 | L12: ='CET & DSM'!I33 -> 1.18665 | M12: ='CET & DSM'!I34 -> 1.18665
B13: SNG Amortization | C13: ='CET & DSM'!J24 -> 0.01244 | D13: ='CET & DSM'!J25 -> 0.01244 | E13: ='CET & DSM'!J26 -> 0.02651 | F13: ='CET & DSM'!J27 -> 0.02651 | I13: SNG Amortization | J13: ='CET & DSM'!J31 -> 0.01244 | K13: ='CET & DSM'!J32 -> 0.01244 | L13: ='CET & DSM'!J33 -> 0.02651 | M13: ='CET & DSM'!J34 -> 0.02651
B14: Supplier Non-Gas Rate | C14: =SUM(C12:C13) -> 0.56959 | D14: =SUM(D12:D13) -> 0.56959 | E14: =SUM(E12:E13) -> 1.21316 | F14: =SUM(F12:F13) -> 1.21316 | I14: Supplier Non-Gas Rate | J14: =SUM(J12:J13) -> 0.56959 | K14: =SUM(K12:K13) -> 0.56959 | L14: =SUM(L12:L13) -> 1.21316 | M14: =SUM(M12:M13) -> 1.21316
B16: Base Gas Cost | C16: ='CET & DSM'!L24 -> 4.21339 | D16: ='CET & DSM'!L25 -> 4.21339 | E16: ='CET & DSM'!L26 -> 4.21339 | F16: ='CET & DSM'!L27 -> 4.21339 | I16: Base Gas Cost | J16: ='CET & DSM'!L31 -> 4.21339 | K16: ='CET & DSM'!L32 -> 4.21339 | L16: ='CET & DSM'!L33 -> 4.21339 | M16: ='CET & DSM'!L34 -> 4.21339
B17: 191 Amortization | C17: ='CET & DSM'!M24 -> 0.14067 | D17: ='CET & DSM'!M25 -> 0.14067 | E17: ='CET & DSM'!M26 -> 0.14067 | F17: ='CET & DSM'!M27 -> 0.14067 | I17: 191 Amortization | J17: ='CET & DSM'!M31 -> 0.14067 | K17: ='CET & DSM'!M32 -> 0.14067 | L17: ='CET & DSM'!M33 -> 0.14067 | M17: ='CET & DSM'!M34 -> 0.14067
B18: Commodity Rate | C18: =SUM(C16:C17) -> 4.35406 | D18: =SUM(D16:D17) -> 4.35406 | E18: =SUM(E16:E17) -> 4.35406 | F18: =SUM(F16:F17) -> 4.35406 | I18: Commodity Rate | J18: =SUM(J16:J17) -> 4.35406 | K18: =SUM(K16:K17) -> 4.35406 | L18: =SUM(L16:L17) -> 4.35406 | M18: =SUM(M16:M17) -> 4.35406
B20: Total Rate | C20: =SUM(C18,C14,C10) ->  | D20: =SUM(D18,D14,D10) ->  | E20: =SUM(E18,E14,E10) ->  | F20: =SUM(F18,F14,F10) ->  | I20: Total Rate | J20: =SUM(J18,J14,J10) ->  | K20: =SUM(K18,K14,K10) ->  | L20: =SUM(L18,L14,L10) ->  | M20: =SUM(M18,M14,M10) -> 
E23: BSF Category 1 | F23: ='Ut 1.6 Source'!C18 -> 6.75 | L23: BSF Category 1 | M23: ='Ut 1.6 Source'!C18 -> 6.75
E24: BSF Category 2 | F24: ='Ut 1.6 Source'!C19 -> 18.25 | L24: BSF Category 2 | M24: ='Ut 1.6 Source'!C19 -> 18.25
E25: BSF Category 3 | F25: ='Ut 1.6 Source'!C20 -> 63.5 | L25: BSF Category 3 | M25: ='Ut 1.6 Source'!C20 -> 63.5
E26: BSF Category 4 | F26: ='Ut 1.6 Source'!C21 -> 420.25 | L26: BSF Category 4 | M26: ='Ut 1.6 Source'!C21 -> 420.25
B45: Issued by R. W. Jibson, President | D45: Advice No | E45: Section Revision No. | F45: Effective Date | I45: Issued by R. W. Jibson, President | K45: Advice No | L45: Section Revision No. | M45: Effective Date
B49: New CET Only | I49: NEW DSM ONLY

Sheet Utah Summary-by class
A1: UTAH SUMMARY
B2: NOT AN EXHIBIT !!!
Q3: Sub Total
C4: COMMODITY | J4: SNG | Q4: TOTAL
C5: Current | D5: Proposed | E5: Current | F5: Proposed | G5: Revenue | H5: % | J5: Current | K5: Proposed | L5: Current | M5: Proposed | N5: Revenue | O5: % | Q5: Revenue | R5: %
A6: RATE | B6: Dth Sales | C6: Rates | D6: Rates | E6: Revenue | F6: Revenue | G6: Difference | H6: Change | J6: Rates | K6: Rates | L6: Revenue | M6: Revenue | N6: Difference | O6: Change | Q6: Difference | R6: Change
A8: GS (W) | B8: =Calculations!P52 -> 80810261 | C8: ='Ut 1.5 p1'!$H$32 -> 5.1898 | D8: =ROUND('Ut 1.5 p1'!$F$32,5) -> 6.00617 | E8: =ROUND(B8*C8,0) -> 419389093 | F8: =ROUND(B8*D8,0) -> 485360165 | G8: =(F8-E8) -> 65971072 | J8: ='Other Inputs'!G88 -> 0.94702 | K8: ='Ut 1.5 p6'!E36 -> 0.94588 | L8: =ROUND(B8*J8,0) -> 76528933 | M8: =B8*K8 -> 76436809.67 | N8: =(M8-L8) -> -92123.32532 | O8: =IF(N8=0,0,N8/L8) -> -0.001203771197 | Q8: =G8+N8 -> 65878948.67
A9: GS (S) | B9: =Calculations!P53 -> 31228294 | C9: ='Ut 1.5 p1'!$H$32 -> 5.1898 | D9: =D8 -> 6.00617 | E9: =ROUND(B9*C9,0) -> 162068600 | F9: =ROUND(B9*D9,0) -> 187562443 | G9: =(F9-E9) -> 25493843 | J9: ='Other Inputs'!G89 -> 0.39825 | K9: ='Ut 1.5 p6'!E32 -> 0.39655 | L9: =ROUND(B9*J9,0) -> 12436668 | M9: =B9*K9 -> 12383579.99 | N9: =(M9-L9) -> -53088.0143 | O9: =IF(N9=0,0,N9/L9) -> -0.00426866861 | Q9: =G9+N9 -> 25440754.99
A10: Total | B10: =SUM(B8:B9) -> 112038555 | E10: =SUM(E8:E9) -> 581457693 | F10: =SUM(F8:F9) -> 672922608 | G10: =SUM(G8:G9) -> 91464915 | H10: =IF(G10=0,0,G10/E10) -> 0.1573027859 | L10: =SUM(L8:L9) -> 88965601 | M10: =SUM(M8:M9) -> 88820389.66 | N10: =SUM(N8:N9) -> -145211.3396 | O10: =IF(N10=0,0,N10/L10) -> -0.001632218947 | Q10: =SUM(Q8:Q9) -> 91319703.66 | R10: =IF(Q10=0,0,Q10/(E10+L10)) -> 0.1362120089
A13: FS (W) | B13: =Calculations!P58 -> 1280686 | C13: ='Ut 1.5 p1'!$H$32 -> 5.1898 | D13: =D8 -> 6.00617 | E13: =ROUND(B13*C13,0) -> 6646504 | F13: =ROUND(B13*D13,0) -> 7692018 | G13: =(F13-E13) -> 1045514 | J13: ='Other Inputs'!G91 -> 0.8561 | K13: ='Ut 1.5 p6'!E44 -> 0.93493 | L13: =ROUND(B13*J13,0) -> 1096395 | M13: =B13*K13 -> 1197351.762 | N13: =(M13-L13) -> 100956.762 | O13: =IF(N13=0,0,N13/L13) -> 0.09208064792 | Q13: =G13+N13 -> 1146470.762
A14: FS (S) | B14: =Calculations!P59 -> 1308506 | C14: ='Ut 1.5 p1'!$H$32 -> 5.1898 | D14: =D9 -> 6.00617 | E14: =ROUND(B14*C14,0) -> 6790884 | F14: =ROUND(B14*D14,0) -> 7859109 | G14: =(F14-E14) -> 1068225 | J14: ='Other Inputs'!G92 -> 0.82319 | K14: ='Ut 1.5 p6'!E40 -> 0.78051 | L14: =ROUND(B14*J14,0) -> 1077149 | M14: =B14*K14 -> 1021302.018 | N14: =(M14-L14) -> -55846.98194 | O14: =IF(N14=0,0,N14/L14) -> -0.05184703503 | Q14: =G14+N14 -> 1012378.018
A15: Total | B15: =SUM(B13:B14) -> 2589192 | E15: =SUM(E13:E14) -> 13437388 | F15: =SUM(F13:F14) -> 15551127 | G15: =SUM(G13:G14) -> 2113739 | H15: =IF(G15=0,0,G15/E15) -> 0.1573028181 | L15: =SUM(L13:L14) -> 2173544 | M15: =SUM(M13:M14) -> 2218653.78 | N15: =SUM(N13:N14) -> 45109.78004 | O15: =IF(N15=0,0,N15/L15) -> 0.02075402202 | Q15: =SUM(Q13:Q14) -> 2158848.78 | R15: =IF(Q15=0,0,Q15/(E15+L15)) -> 0.1382908324
A18: NGV | B18: =Calculations!P12 -> 289772 | C18: ='Ut 1.5 p6'!D25 -> 4.81141 | D18: ='Ut 1.5 p6'!E25 -> 5.6631 | E18: =ROUND(B18*C18,0) -> 1394212 | F18: =ROUND(B18*D18,0) -> 1641008 | G18: =(F18-E18) -> 246796 | H18: =IF(G18=0,0,G18/E18) -> 0.1770146864 | J18: ='Other Inputs'!G94 -> 1.03654 | K18: ='Ut 1.5 p6'!E60 -> 0.70658 | L18: =ROUND(B18*J18,0) -> 300360 | M18: =ROUND(B18*K18,0) -> 204747 | N18: =(M18-L18) -> -95613 | O18: =IF(N18=0,0,N18/L18) -> -0.3183280064 | Q18: =G18+N18 -> 151183 | R18: =IF(Q18=0,0,Q18/(E18+L18)) -> 0.08921603803
A21: IS | B21: =Calculations!P17 -> 271004 | C21: ='Ut 1.5 p1'!$H$32 -> 5.1898 | D21: ='Ut 1.5 p6'!E19 -> 5.99505 | E21: =ROUND(B21*C21,0) -> 1406457 | F21: =ROUND(B21*D21,0) -> 1624683 | G21: =(F21-E21) -> 218226 | H21: =IF(G21=0,0,G21/E21) -> 0.1551600938 | J21: ='Other Inputs'!G96 -> 0.17905 | K21: ='Ut 1.5 p6'!E46 -> 0.17905 | L21: =ROUND(B21*J21,0) -> 48523 | M21: =ROUND(B21*K21,0) -> 48523 | N21: =(M21-L21) -> 0 | O21: =IF(N21=0,0,N21/L21) -> 0 | Q21: =G21+N21 -> 218226 | R21: =IF(Q21=0,0,Q21/(E21+L21)) -> 0.1499855668
A23: TSF | B23: ='Ut 1.5 p3'!F18 -> 222022 | J23: ='Ut 1.5 p6'!D50 -> 2.21606 | K23: ='Ut 1.5 p6'!E50 -> 2.15835 | L23: =ROUND(B23*J23,0) -> 492014 | M23: =ROUND(B23*K23,0) -> 479201 | N23: =(M23-L23) -> -12813 | O23: =IF(N23=0,0,N23/L23) -> -0.0260419419 | Q23: =G23+N23 -> -12813 | R23: =IF(Q23=0,0,Q23/(E23+L23)) -> -0.0260419419
A25: TBF | B25: ='Ut 1.5 p3'!G18 -> 45000 | J25: ='Ut 1.5 p6'!D55 -> 1.38728 | K25: ='Ut 1.5 p6'!E55 -> 1.43793 | L25: =ROUND(B25*J25,0) -> 62428 | M25: =ROUND(B25*K25,0) -> 64707 | N25: =(M25-L25) -> 2279 | O25: =IF(N25=0,0,N25/L25) -> 0.03650605498 | Q25: =G25+N25 -> 2279 | R25: =IF(Q25=0,0,Q25/(E25+L25)) -> 0.03650605498
B26: - | E26: - | F26: - | G26: - | L26: ------------------- | M26: ------------------- | N26: ------------------- | Q26: -------------------
B27: =B10+B15+B18+B21 -> 115188523 | E27: =E10+E15+E18+E21 -> 597695750 | F27: =F10+F15+F18+F21 -> 691739426 | G27: =G10+G15+G18+G21 -> 94043676 | H27: =IF(G27=0,0,G27/E27) -> 0.1573437255 | L27: =L10+L15+L18+L21+L23+L25 -> 92042470 | M27: =M10+M15+M18+M21+M23+M25 -> 91836221.44 | N27: =N10+N15+N18+N21+N23+N25 -> -206248.5596 | O27: =IF(N27=0,0,N27/L27) -> -0.002240797749 | Q27: =Q10+Q15+Q18+Q21+Q23+Q25 -> 93837427.44 | R27: =IF(Q27=0,0,Q27/(E27+L27)) -> 0.136047887
G28: =IF(G27>0,"Commodity Increase","Commodity Decrease") -> Commodity Increase | N28: =IF(N27>0,"Increase to SNG","Decrease to SNG") -> Decrease to SNG
B29: NOT AN EXHIBIT !!!
G30: =ROUND(G27,-3) -> 94044000 | N30: =ROUND(N27,-3) -> -206000 | Q30: =ROUND(Q27,-3) -> 93837000
B31: =B27 -> 115188523 | G31: Rounded | N31: Rounded | Q31: Rounded

Sheet UT Summary - by cost (hidden)

Sheet WY Summary - by cost (hidden)

Sheet Model Checks
B2: Model Checks
D6: Total of all Checks
D7: =ABS(SUM(D10:D1993)) -> 1.611355833
B9: Forecasted Demand
C10: Utah | D10: =Calculations!P25-'RevRun Fcst'!T205 -> 0
C11: Wyoming | D11: =Calculations!P44-'RevRun Fcst'!T329 -> 0
C12: Total System | D12: =Calculations!P47-'RevRun Fcst'!T370 -> 0
B13: Forecasted Utah Demand Check by Month
C14: 1 | D14: =Calculations!D25-'RevRun Fcst'!H205 -> 0
C15: 2 | D15: =Calculations!E25-'RevRun Fcst'!I205 -> 0
C16: 3 | D16: =Calculations!F25-'RevRun Fcst'!J205 -> 0
C17: 4 | D17: =Calculations!G25-'RevRun Fcst'!K205 -> 0
C18: 5 | D18: =Calculations!H25-'RevRun Fcst'!L205 -> 0
C19: 6 | D19: =Calculations!I25-'RevRun Fcst'!M205 -> 0
C20: 7 | D20: =Calculations!J25-'RevRun Fcst'!N205 -> 0
C21: 8 | D21: =Calculations!K25-'RevRun Fcst'!O205 -> 0
C22: 9 | D22: =Calculations!L25-'RevRun Fcst'!P205 -> 0
C23: 10 | D23: =Calculations!M25-'RevRun Fcst'!Q205 -> 0
C24: 11 | D24: =Calculations!N25-'RevRun Fcst'!R205 -> 0
C25: 12 | D25: =Calculations!O25-'RevRun Fcst'!S205 -> 0
C26: Wyoming I-2 and I-4 Revenues | D26: =('RevRun Fcst'!T273+'RevRun Fcst'!T282)-Calculations!P65 -> 0
C27: System Sales Volumes | D27: =Calculations!H76-'RevRun Fcst'!T368 -> 0
C28: Utah Sales Volumes | D28: =Calculations!P20-'Utah Summary-by class'!B27 -> 0
B29: Company Production | D29: =Calculations!P121-'Monthly Inputs'!S7-'Monthly Inputs'!S13 -> 0
B30: Injections | D30: ='Monthly Inputs'!S30-SUM('Monthly Inputs'!S23:S28) -> 0
B31: Withdrawls | D31: ='Monthly Inputs'!S39-SUM('Monthly Inputs'!S33:S37) -> 0
B32: Injections & Withdrawls | D32: =SUM('Ut 1.4 p2'!D23:D28)-'Monthly Inputs'!S30-'Monthly Inputs'!S39 -> 0
B33: Injections | D33: =Calculations!P130-'Monthly Inputs'!S30 -> 0
B34: Withdrawls | D34: =Calculations!P139-'Monthly Inputs'!S39 -> 0
B35: Sales for Resale | D35: =Expenses!P13-Calculations!P86 -> 0
B36: Incidental Plant Prod Sales | D36: =Expenses!P14-Calculations!P87 -> 0
B37: Incidental Gas & Oil Sales | D37: =Expenses!P15-Calculations!P89 -> 0
B38: Gasoline and Oil Costs | D38: =Expenses!P18+Calculations!P90 -> 0
B39: Wexpro Revenue Sharing | D39: =Expenses!P17-Calculations!P94 -> 0
B40: Storage Gas | D40: ='Rate Base'!Q11-Calculations!P99 -> 0
B41: 101 Production | D41: ='Rate Base'!Q5-Calculations!P101 -> 0
B42: 108 Production | D42: ='Rate Base'!Q7-Calculations!P102 -> 0
B43: 111 Production | D43: ='Rate Base'!Q9-Calculations!P103 -> 0
B44: 255 Production | D44: ='Rate Base'!Q14-Calculations!P104 -> 0
B45: 282 Production | D45: ='Rate Base'!Q16-Calculations!P105 -> 0
B46: 282.1 Production | D46: ='Rate Base'!Q18-Calculations!P106 -> 0
B47: Production Rate Base | D47: =SUM(Calculations!P99:P106)-'Rate Base'!Q20 -> -7.916241884e-09
B48: Purchased Gas Cost | D48: ='Ut 1.2 p4'!E25-Calculations!P207 -> 0.4743940234
B49: Working Gas Rate Base | D49: =Calculations!P99-'Ut 1.2 p5'!E43 -> 0
B50: Allocations | D50: ='Ut 1.1 p2'!F48-'Ut 1.1 p2'!G48-'Ut 1.1 p2'!H48+'Ut 1.1 p2'!H46 -> 0
B52: System Sales | D52: ='SDR#1'!C10-'RevRun Fcst'!T368 -> 0
B53: Lost & Unaccounted For | D53: ='SDR#1'!C15-(('SDR#1'!C10+'SDR#1'!C11)/(1-'Other Inputs'!E272)) -> -0.07856582105
B54: Supply / Demand | D54: ='SDR#1'!C36-'SDR#1'!C15 -> -1.069067538
B55: System Sales | D55: ='SDR#3'!H36-'SDR#1'!C10 -> 0
B56: SNG Revenue | D56: ='SDR#4'!G23+'SDR#4'!G33-'Utah Summary-by class'!L27 -> 1.004859999
B57: Utah Sales | D57: ='SDR#3'!D36-'SDR#4'!E23 -> 0
B58: Utah Sales | D58: ='SDR#2'!G75-'Ut 1.1 p2'!H48 -> 1.279735178
B59: Seasonal Volumes | D59: =Calculations!P52+Calculations!P53-Calculations!P7-Calculations!P8 -> 0
B60: Seasonal Volumes | D60: =Calculations!P55+Calculations!P56-Calculations!P9 -> 0
B61: Seasonal Volumes | D61: =Calculations!P58+Calculations!P59-Calculations!P10 -> 0

Sheet Royalty Detail
D4: Test-Year Cost of Dominion Energy's Production
D5: August 2022 through July 2023
B7: WEXPRO I
B8: (A) | C8: (B) | D8: (C) | E8: (D) | F8: (E) | G8: (F) | H8: (G) | I8: (H)
F9: Base Year | G9: Market | H9: Royalty | I9: Test-Year
B10: Field Name | C10: Well Name | D10: Formation | E10: Price $ | F10: Dth | G10: Value $ | H10: Rate % | I10: Royalty $
A11: 1 | B11: ACE UNIT (CO) | C11: ACE UNIT 10 FT UN | D11: MESAVERDE | E11: 5.161907708 | F11: 31511 | G11: 162656.8738 | H11: 0.1268519763 | I11: 20633.3459
A12: 2 | C12: ACE UNIT 11 FT UN | D12: FORT UNION | E12: 5.161907708 | F12: 9190 | G12: 47437.93184 | H12: 0.1268519763 | I12: 6017.595406
A13: 3 | C13: ACE UNIT 12 FT UN | D13: FORT UNION | E13: 5.161907708 | F13: 72410 | G13: 373773.7371 | H13: 0.1371675 | I13: 51269.60909
A14: 4 | C14: ACE UNIT 13 FT UN | D14: FORT UNION | E14: 5.161907708 | F14: 29144 | G14: 150438.6382 | H14: 0.1268519763 | I14: 19083.43857
A15: 5 | C15: ACE UNIT 2 FT UN | D15: FORT UNION | E15: 5.161907708 | F15: 20669 | G15: 106691.4704 | H15: 0.1268519763 | I15: 13534.02388
A16: 6 | B16: BIRCH CR (WY) | C16: BIRCH CREEK UNIT 1 BR | D16: BEAR RIVER | E16: 5.161907708 | F16: 6672 | G16: 34440.24823 | H16: 0.1329769324 | I16: 4579.758561
A17: 7 | C17: BIRCH CREEK UNIT 1 BR - D24 | D17: BEAR RIVER | E17: 5.161907708 | F17: 1992 | G17: 10282.52015 | H17: 0.1329769324 | I17: 1367.337988
A18: 8 | C18: BIRCH CREEK UNIT 1 FR | D18: FRONTIER | E18: 5.161907708 | F18: 6667 | G18: 34414.43869 | H18: 0.1329769324 | I18: 4576.326488
A19: 9 | C19: BIRCH CREEK UNIT 1 FR - D24 | D19: FRONTIER | E19: 5.161907708 | F19: 1990 | G19: 10272.19634 | H19: 0.1329769324 | I19: 1365.965158
A20: 10 | C20: BIRCH CREEK UNIT 100 FR | D20: FRONTIER | E20: 5.161907708 | F20: 5732 | G20: 29588.05498 | H20: 0.1329769324 | I20: 3934.528788
A21: 11 | C21: BIRCH CREEK UNIT 101 BR | D21: BEAR RIVER | E21: 5.161907708 | F21: 660 | G21: 3406.859087 | H21: 0.1329769324 | I21: 453.0336706
A22: 12 | C22: BIRCH CREEK UNIT 101 FR | D22: FRONTIER | E22: 5.161907708 | F22: 12505 | G22: 64549.65589 | H22: 0.1329769324 | I22: 8583.615229
A23: 13 | C23: BIRCH CREEK UNIT 103 BR | D23: BEAR RIVER | E23: 5.161907708 | F23: 739 | G23: 3814.649796 | H23: 0.1329769324 | I23: 507.2604281
A24: 14 | C24: BIRCH CREEK UNIT 103 FR | D24: FRONTIER | E24: 5.161907708 | F24: 6664 | G24: 34398.95297 | H24: 0.1329769324 | I24: 4574.267244
A25: 15 | C25: BIRCH CREEK UNIT 104 BR | D25: BEAR RIVER | E25: 5.161907708 | F25: 3219 | G25: 16616.18091 | H25: 0.1329769324 | I25: 2209.568766
A26: 16 | C26: BIRCH CREEK UNIT 104 FR | D26: FRONTIER | E26: 5.161907708 | F26: 13726 | G26: 70852.3452 | H26: 0.1329769324 | I26: 9421.727519
A27: 17 | C27: BIRCH CREEK UNIT 105 BR | D27: BEAR RIVER | E27: 5.161907708 | F27: 7240 | G27: 37372.21181 | H27: 0.1329769324 | I27: 4969.642084
A28: 18 | C28: BIRCH CREEK UNIT 105 FR | D28: FRONTIER | E28: 5.161907708 | F28: 8161 | G28: 42126.3288 | H28: 0.1329769324 | I28: 5601.829978
A29: 19 | C29: BIRCH CREEK UNIT 106 BR | D29: BEAR RIVER | E29: 5.161907708 | F29: 5059 | G29: 26114.09109 | H29: 0.1329769324 | I29: 3472.571727
A30: 20 | C30: BIRCH CREEK UNIT 106 FR | D30: FRONTIER | E30: 5.161907708 | F30: 17948 | G30: 92645.91954 | H30: 0.1329769324 | I30: 12319.77018
A31: 21 | C31: BIRCH CREEK UNIT 107 BR | D31: BEAR RIVER | E31: 5.161907708 | F31: 2578 | G31: 13307.39807 | H31: 0.1329769324 | I31: 1769.576974
A32: 22 | C32: BIRCH CREEK UNIT 107 FR | D32: FRONTIER | E32: 5.161907708 | F32: 2476 | G32: 12780.88348 | H32: 0.1329769324 | I32: 1699.562679
A33: 23 | C33: BIRCH CREEK UNIT 108 BR | D33: BEAR RIVER | E33: 5.161907708 | F33: 1758 | G33: 9074.633751 | H33: 0.1329769324 | I33: 1206.716959
A34: 24 | C34: BIRCH CREEK UNIT 108 FR | D34: FRONTIER | E34: 5.161907708 | F34: 8594 | G34: 44361.43484 | H34: 0.1329769324 | I34: 5899.047523
A35: 25 | C35: BIRCH CREEK UNIT 109 BAX | D35: BAXTER | E35: 5.161907708 | F35: 2613 | G35: 13488.06484 | H35: 0.13375 | I35: 1804.028672
A36: 26 | C36: BIRCH CREEK UNIT 109 BR | D36: BEAR RIVER | E36: 5.161907708 | F36: 6279 | G36: 32411.6185 | H36: 0.1329769324 | I36: 4309.997603
A37: 27 | C37: BIRCH CREEK UNIT 109 FR | D37: FRONTIER | E37: 5.161907708 | F37: 5716 | G37: 29505.46446 | H37: 0.1329769324 | I37: 3923.546153
A38: 28 | C38: BIRCH CREEK UNIT 110 BR | D38: BEAR RIVER | E38: 5.161907708 | F38: 10862 | G38: 56068.64152 | H38: 0.1329769324 | I38: 7455.835955
A39: 29 | C39: BIRCH CREEK UNIT 110 FR | D39: FRONTIER | E39: 5.161907708 | F39: 10028 | G39: 51763.6105 | H39: 0.1329769324 | I39: 6883.366134
A40: 30 | C40: BIRCH CREEK UNIT 111 BR | D40: BEAR RIVER | E40: 5.161907708 | F40: 9987 | G40: 51551.97228 | H40: 0.1329769324 | I40: 6855.223134
A41: 31 | C41: BIRCH CREEK UNIT 111 FR | D41: FRONTIER | E41: 5.161907708 | F41: 3692 | G41: 19057.76326 | H41: 0.1329769324 | I41: 2534.242897
A42: 32 | C42: BIRCH CREEK UNIT 112 BR | D42: BEAR RIVER | E42: 5.161907708 | F42: 5779 | G42: 29830.66464 | H42: 0.1329769324 | I42: 3966.790276
A43: 33 | C43: BIRCH CREEK UNIT 112 FR | D43: FRONTIER | E43: 5.161907708 | F43: 15631 | G43: 80685.77938 | H43: 0.1329769324 | I43: 10729.34743
A44: 34 | C44: BIRCH CREEK UNIT 113 BR | D44: BEAR RIVER | E44: 5.161907708 | F44: 14394 | G44: 74300.49955 | H44: 0.1329769324 | I44: 9880.252507
A45: 35 | C45: BIRCH CREEK UNIT 113 FR | D45: FRONTIER | E45: 5.161907708 | F45: 4302 | G45: 22206.52696 | H45: 0.1329769324 | I45: 2952.955835
A46: 36 | C46: BIRCH CREEK UNIT 114 BR | D46: BEAR RIVER | E46: 5.161907708 | F46: 9242 | G46: 47706.35104 | H46: 0.1329769324 | I46: 6343.844218
A47: 37 | C47: BIRCH CREEK UNIT 114 FR | D47: FRONTIER | E47: 5.161907708 | F47: 2164 | G47: 11170.36828 | H47: 0.1329769324 | I47: 1485.401308
A48: 38 | C48: BIRCH CREEK UNIT 115 BR | D48: BEAR RIVER | E48: 5.161907708 | F48: 3642 | G48: 18799.66787 | H48: 0.1329769324 | I48: 2499.922164
A49: 39 | C49: BIRCH CREEK UNIT 115 FR | D49: FRONTIER | E49: 5.161907708 | F49: 12194 | G49: 62944.30259 | H49: 0.1329769324 | I49: 8370.140272
A50: 40 | C50: BIRCH CREEK UNIT 116 BR | D50: BEAR RIVER | E50: 5.161907708 | F50: 11006 | G50: 56811.95623 | H50: 0.1329769324 | I50: 7554.679665
A51: 41 | C51: BIRCH CREEK UNIT 116 FR | D51: FRONTIER | E51: 5.161907708 | F51: 3870 | G51: 19976.58283 | H51: 0.1329769324 | I51: 2656.424705
A52: 42 | C52: BIRCH CREEK UNIT 117 BAX | D52: BAXTER | E52: 5.161907708 | F52: 934 | G52: 4821.221799 | H52: 0.13375 | I52: 644.8384157
A53: 43 | C53: BIRCH CREEK UNIT 117 BR | D53: BEAR RIVER | E53: 5.161907708 | F53: 618 | G53: 3190.058964 | H53: 0.1329769324 | I53: 424.2042552
A54: 44 | C54: BIRCH CREEK UNIT 117 FR | D54: FRONTIER | E54: 5.161907708 | F54: 6228 | G54: 32148.36121 | H54: 0.1329769324 | I54: 4274.990455
A55: 45 | C55: BIRCH CREEK UNIT 118 BR | D55: BEAR RIVER | E55: 5.161907708 | F55: 1172 | G55: 6049.755834 | H55: 0.1329769324 | I55: 804.4779726
A56: 46 | C56: BIRCH CREEK UNIT 118 FR | D56: FRONTIER | E56: 5.161907708 | F56: 10540 | G56: 54406.50724 | H56: 0.1329769324 | I56: 7234.810437
A57: 47 | C57: BIRCH CREEK UNIT 119 BR | D57: BEAR RIVER | E57: 5.161907708 | F57: 3882 | G57: 20038.52572 | H57: 0.1329769324 | I57: 2664.661681
A58: 48 | C58: BIRCH CREEK UNIT 119 FR | D58: FRONTIER | E58: 5.161907708 | F58: 15525 | G58: 80138.61717 | H58: 0.1329769324 | I58: 10656.58748
A59: 49 | C59: BIRCH CREEK UNIT 121 BR | D59: BEAR RIVER | E59: 5.161907708 | F59: 15778 | G59: 81444.57982 | H59: 0.1329769324 | I59: 10830.25039
A60: 50 | C60: BIRCH CREEK UNIT 121 FR | D60: FRONTIER | E60: 5.161907708 | F60: 3230 | G60: 16672.9619 | H60: 0.1329769324 | I60: 2217.119327
A61: 51 | C61: BIRCH CREEK UNIT 122 BR | D61: BEAR RIVER | E61: 5.161907708 | F61: 3137 | G61: 16192.90448 | H61: 0.1329769324 | I61: 2153.282765
A62: 52 | C62: BIRCH CREEK UNIT 122 FR | D62: FRONTIER | E62: 5.161907708 | F62: 10792 | G62: 55707.30798 | H62: 0.1329769324 | I62: 7407.786929
A63: 53 | C63: BIRCH CREEK UNIT 123 BR | D63: BEAR RIVER | E63: 5.161907708 | F63: 4360 | G63: 22505.91761 | H63: 0.1329769324 | I63: 2992.767885
A64: 54 | C64: BIRCH CREEK UNIT 123 FR | D64: FRONTIER | E64: 5.161907708 | F64: 13073 | G64: 67481.61947 | H64: 0.1329769324 | I64: 8973.498751
A65: 55 | C65: BIRCH CREEK UNIT 124 BR | D65: BEAR RIVER | E65: 5.161907708 | F65: 3876 | G65: 20007.55428 | H65: 0.1329769324 | I65: 2660.543193
A66: 56 | C66: BIRCH CREEK UNIT 124 FR | D66: FRONTIER | E66: 5.161907708 | F66: 15503 | G66: 80025.0552 | H66: 0.1329769324 | I66: 10641.48636
A67: 57 | C67: BIRCH CREEK UNIT 126 BR | D67: BEAR RIVER | E67: 5.161907708 | F67: 7047 | G67: 36375.96362 | H67: 0.1329769324 | I67: 4837.164056
A68: 58 | C68: BIRCH CREEK UNIT 126 FR | D68: FRONTIER | E68: 5.161907708 | F68: 10573 | G68: 54576.8502 | H68: 0.1329769324 | I68: 7257.46212
A69: 59 | C69: BIRCH CREEK UNIT 127 BR | D69: DAKOTA | E69: 5.161907708 | F69: 3701 | G69: 19104.22043 | H69: 0.1329769324 | I69: 2540.420629
A70: 60 | C70: BIRCH CREEK UNIT 127 FR | D70: FRONTIER | E70: 5.161907708 | F70: 925 | G70: 4774.76463 | H70: 0.1329769324 | I70: 634.9335535
A71: 61 | C71: BIRCH CREEK UNIT 128 FR | D71: FRONTIER | E71: 5.161907708 | F71: 19576 | G71: 101049.5053 | H71: 0.1329769324 | I71: 13437.25324
A72: 62 | C72: BIRCH CREEK UNIT 129 BR | D72: BEAR RIVER | E72: 5.161907708 | F72: 528 | G72: 2725.48727 | H72: 0.1329769324 | I72: 362.4269365
A73: 63 | C73: BIRCH CREEK UNIT 129 FR | D73: FRONTIER | E73: 5.161907708 | F73: 9964 | G73: 51433.2484 | H73: 0.1329769324 | I73: 6839.435597
A74: 64 | C74: BIRCH CREEK UNIT 130 BR | D74: BEAR RIVER | E74: 5.161907708 | F74: 9539 | G74: 49239.43763 | H74: 0.1329769324 | I74: 6547.709369
A75: 65 | C75: BIRCH CREEK UNIT 130 FR | D75: FRONTIER | E75: 5.161907708 | F75: 11663 | G75: 60203.3296 | H75: 0.1329769324 | I75: 8005.654091
A76: 66 | C76: BIRCH CREEK UNIT 131 FR | D76: FRONTIER | E76: 5.161907708 | F76: 12874 | G76: 66454.39983 | H76: 0.1329769324 | I76: 8836.902235
A77: 67 | C77: BIRCH CREEK UNIT 132 BR | D77: BEAR RIVER | E77: 5.161907708 | F77: 2108 | G77: 10881.30145 | H77: 0.1329769324 | I77: 1446.962087
A78: 68 | C78: BIRCH CREEK UNIT 132 FR | D78: FRONTIER | E78: 5.161907708 | F78: 11933 | G78: 61597.04468 | H78: 0.1329769324 | I78: 8190.986047
A79: 69 | C79: BIRCH CREEK UNIT 133 BR | D79: BEAR RIVER | E79: 5.161907708 | F79: 5006 | G79: 25840.50999 | H79: 0.1329769324 | I79: 3436.19175
A80: 70 | C80: BIRCH CREEK UNIT 133 FR | D80: FRONTIER | E80: 5.161907708 | F80: 20030 | G80: 103393.0114 | H80: 0.1329769324 | I80: 13748.88549
A81: 71 | C81: BIRCH CREEK UNIT 134 BR | D81: BEAR RIVER | E81: 5.161907708 | F81: 12527 | G81: 64663.21786 | H81: 0.1329769324 | I81: 8598.716351
A82: 72 | C82: BIRCH CREEK UNIT 134 FR | D82: FRONTIER | E82: 5.161907708 | F82: 17304 | G82: 89321.65098 | H82: 0.1329769324 | I82: 11877.71915
A83: 73 | C83: BIRCH CREEK UNIT 137 BR | D83: BEAR RIVER | E83: 5.161907708 | F83: 5457 | G83: 28168.53036 | H83: 0.1329769324 | I83: 3745.764758
A84: 74 | C84: BIRCH CREEK UNIT 137 FR | D84: FRONTIER | E84: 5.161907708 | F84: 8908 | G84: 45982.27386 | H84: 0.1329769324 | I84: 6114.581724
A85: 75 | C85: BIRCH CREEK UNIT 138 FR | D85: FRONTIER | E85: 5.161907708 | F85: 16116 | G85: 83189.30462 | H85: 0.1329769324 | I85: 11062.25854
A86: 76 | C86: BIRCH CREEK UNIT 139 BR | D86: BEAR RIVER | E86: 5.161907708 | F86: 7195 | G86: 37139.92596 | H86: 0.1329769324 | I86: 4938.753424
A87: 77 | C87: BIRCH CREEK UNIT 139 FR | D87: FRONTIER | E87: 5.161907708 | F87: 5163 | G87: 26650.9295 | H87: 0.1331519628 | I87: 3548.623572
A88: 78 | C88: BIRCH CREEK UNIT 13A BR | D88: BEAR RIVER | E88: 5.161907708 | F88: 7417 | G88: 38285.86947 | H88: 0.1329769324 | I88: 5091.137477
A89: 79 | C89: BIRCH CREEK UNIT 13A FR | D89: FRONTIER | E89: 5.161907708 | F89: 7415 | G89: 38275.54565 | H89: 0.1329769324 | I89: 5089.764648
A90: 80 | C90: BIRCH CREEK UNIT 140 BR | D90: BEAR RIVER | E90: 5.161907708 | F90: 2983 | G90: 15397.97069 | H90: 0.1329769324 | I90: 2047.574908
A91: 81 | C91: BIRCH CREEK UNIT 140 FR | D91: FRONTIER | E91: 5.161907708 | F91: 16914 | G91: 87308.50697 | H91: 0.1329769324 | I91: 11610.01743
A92: 82 | C92: BIRCH CREEK UNIT 141 BR | D92: BEAR RIVER | E92: 5.161907708 | F92: 13436 | G92: 69355.39196 | H92: 0.1329769324 | I92: 9222.66727
A93: 83 | C93: BIRCH CREEK UNIT 141 FR | D93: FRONTIER | E93: 5.161907708 | F93: 4473 | G93: 23089.21318 | H93: 0.1329769324 | I93: 3070.33274
A94: 84 | C94: BIRCH CREEK UNIT 142 BR | D94: BEAR RIVER | E94: 5.161907708 | F94: 3096 | G94: 15981.26626 | H94: 0.1329769324 | I94: 2125.139764
A95: 85 | C95: BIRCH CREEK UNIT 142 FR | D95: FRONTIER | E95: 5.161907708 | F95: 7217 | G95: 37253.48793 | H95: 0.1329769324 | I95: 4953.854547
A96: 86 | C96: BIRCH CREEK UNIT 144 BR | D96: BEAR RIVER | E96: 5.161907708 | F96: 792 | G96: 4088.230905 | H96: 0.1329769324 | I96: 543.6404047
A97: 87 | C97: BIRCH CREEK UNIT 144 FR | D97: FRONTIER | E97: 5.161907708 | F97: 12385 | G97: 63930.22696 | H97: 0.1329769324 | I97: 8501.24547
A98: 88 | C98: BIRCH CREEK UNIT 145 BR | D98: BEAR RIVER | E98: 5.161907708 | F98: 1344 | G98: 6937.60396 | H98: 0.1329769324 | I98: 922.5412929
A99: 89 | C99: BIRCH CREEK UNIT 145 FR | D99: FRONTIER | E99: 5.161907708 | F99: 9859 | G99: 50891.24809 | H99: 0.1329769324 | I99: 6767.362058
A100: 90 | C100: BIRCH CREEK UNIT 146 BR | D100: BEAR RIVER | E100: 5.161907708 | F100: 11816 | G100: 60993.10148 | H100: 0.1329769324 | I100: 8110.675533
A101: 91 | C101: BIRCH CREEK UNIT 146 FR | D101: FRONTIER | E101: 5.161907708 | F101: 3936 | G101: 20317.26874 | H101: 0.1329769324 | I101: 2701.728072
A102: 92 | C102: BIRCH CREEK UNIT 148 BR | D102: BEAR RIVER | E102: 5.161907708 | F102: 216 | G102: 1114.972065 | H102: 0.1329769324 | I102: 148.2655649
A103: 93 | C103: BIRCH CREEK UNIT 148 FR | D103: FRONTIER | E103: 5.161907708 | F103: 21003 | G103: 108415.5476 | H103: 0.1329769324 | I103: 14416.76694
A104: 94 | C104: BIRCH CREEK UNIT 149 BR | D104: BEAR RIVER | E104: 5.161907708 | F104: 4750 | G104: 24519.06161 | H104: 0.1329769324 | I104: 3260.469599
A105: 95 | C105: BIRCH CREEK UNIT 149 FR | D105: FRONTIER | E105: 5.161907708 | F105: 16842 | G105: 86936.84962 | H105: 0.1329769324 | I105: 11560.59558
A106: 96 | C106: BIRCH CREEK UNIT 15 BR | D106: LANCE | E106: 5.161907708 | F106: 335 | G106: 1729.239082 | H106: 0.1329769324 | I106: 229.9489086
A107: 97 | C107: BIRCH CREEK UNIT 15 FR | D107: LANCE | E107: 5.161907708 | F107: 1005 | G107: 5187.717247 | H107: 0.1329769324 | I107: 689.8467257
A108: 98 | C108: BIRCH CREEK UNIT 151 BR | D108: BEAR RIVER | E108: 5.161907708 | F108: 5232 | G108: 27007.10113 | H108: 0.1329769324 | I108: 3591.321461
A109: 99 | C109: BIRCH CREEK UNIT 151 FR | D109: FRONTIER | E109: 5.161907708 | F109: 7225 | G109: 37294.78319 | H109: 0.1329769324 | I109: 4959.345864
A110: 100 | C110: BIRCH CREEK UNIT 153 ALMY | D110: ALMY | E110: 5.161907708 | F110: 985 | G110: 5084.479092 | H110: 0.13375 | I110: 680.0490786
A111: 101 | C111: BIRCH CREEK UNIT 164 FR | D111: FRONTIER | E111: 5.161907708 | F111: 16978 | G111: 87638.86907 | H111: 0.1329769324 | I111: 11653.94797
A112: 102 | C112: BIRCH CREEK UNIT 166 BR | D112: BEAR RIVER | E112: 5.161907708 | F112: 6052 | G112: 31239.86545 | H112: 0.1329769324 | I112: 4154.181476
A113: 103 | C113: BIRCH CREEK UNIT 166 FR | D113: FRONTIER | E113: 5.161907708 | F113: 1514 | G113: 7815.12827 | H113: 0.1329769324 | I113: 1039.231784
A114: 104 | C114: BIRCH CREEK UNIT 167 BR | D114: BEAR RIVER | E114: 5.161907708 | F114: 2093 | G114: 10803.87283 | H114: 0.1329769324 | I114: 1436.665868
A115: 105 | C115: BIRCH CREEK UNIT 167 FR | D115: FRONTIER | E115: 5.161907708 | F115: 8391 | G115: 43313.56758 | H115: 0.1329769324 | I115: 5759.705348
A116: 106 | C116: BIRCH CREEK UNIT 168 BR | D116: BEAR RIVER | E116: 5.161907708 | F116: 713 | G116: 3680.440196 | H116: 0.1329769324 | I116: 489.4136472
A117: 107 | C117: BIRCH CREEK UNIT 168 RECOM BAX | D117: BAXTER | E117: 5.161907708 | F117: 1209 | G117: 6240.746419 | H117: 0.13375 | I117: 834.6998335
A118: 108 | C118: BIRCH CREEK UNIT 168 RECOM FR | D118: FRONTIER | E118: 5.161907708 | F118: 2908 | G118: 15010.82761 | H118: 0.1329769324 | I118: 1996.093809
A119: 109 | C119: BIRCH CREEK UNIT 169 BR | D119: BEAR RIVER | E119: 5.161907708 | F119: 3140 | G119: 16208.3902 | H119: 0.1329769324 | I119: 2155.342009
A120: 110 | C120: BIRCH CREEK UNIT 169 FR | D120: FRONTIER | E120: 5.161907708 | F120: 12564 | G120: 64854.20844 | H120: 0.1329769324 | I120: 8624.113693
A121: 111 | C121: BIRCH CREEK UNIT 173 BR | D121: BEAR RIVER | E121: 5.161907708 | F121: 6328 | G121: 32664.55198 | H121: 0.1329769324 | I121: 4343.631921
A122: 112 | C122: BIRCH CREEK UNIT 173 FR | D122: FRONTIER | E122: 5.161907708 | F122: 18009 | G122: 92960.79591 | H122: 0.1329769324 | I122: 12361.64148
A123: 113 | C123: BIRCH CREEK UNIT 174 BR | D123: BEAR RIVER | E123: 5.161907708 | F123: 10327 | G123: 53307.0209 | H123: 0.1329769324 | I123: 7088.604116
A124: 114 | C124: BIRCH CREEK UNIT 174 FR | D124: FRONTIER | E124: 5.161907708 | F124: 10210 | G124: 52703.0777 | H124: 0.1329769324 | I124: 7008.293601
A125: 115 | C125: BIRCH CREEK UNIT 177 BR | D125: BEAR RIVER | E125: 5.161907708 | F125: 3250 | G125: 16776.20005 | H125: 0.1329769324 | I125: 2230.84762
A126: 116 | C126: BIRCH CREEK UNIT 177 FR | D126: FRONTIER | E126: 5.161907708 | F126: 13003 | G126: 67120.28593 | H126: 0.1329769324 | I126: 8925.449725
A127: 117 | C127: BIRCH CREEK UNIT 178 BR | D127: BEAR RIVER | E127: 5.161907708 | F127: 4855 | G127: 25061.06192 | H127: 0.1329769324 | I127: 3332.543138
A128: 118 | C128: BIRCH CREEK UNIT 178 FR | D128: FRONTIER | E128: 5.161907708 | F128: 19429 | G128: 100290.7049 | H128: 0.1329769324 | I128: 13336.35028
A129: 119 | C129: BIRCH CREEK UNIT 179 BR | D129: BEAR RIVER | E129: 5.161907708 | F129: 4041 | G129: 20859.26905 | H129: 0.1329769324 | I129: 2773.80161
A130: 120 | C130: BIRCH CREEK UNIT 179 FR | D130: FRONTIER | E130: 5.161907708 | F130: 2690 | G130: 13885.53173 | H130: 0.1329769324 | I130: 1846.455415
A131: 121 | C131: BIRCH CREEK UNIT 180 FR | D131: FRONTIER | E131: 5.161907708 | F131: 9154 | G131: 47252.10316 | H131: 0.1329769324 | I131: 6283.439728
A132: 122 | C132: BIRCH CREEK UNIT 181 BR | D132: BEAR RIVER | E132: 5.161907708 | F132: 2755 | G132: 14221.05574 | H132: 0.1329769324 | I132: 1891.072367
A133: 123 | C133: BIRCH CREEK UNIT 181 FR | D133: FRONTIER | E133: 5.161907708 | F133: 11012 | G133: 56842.92768 | H133: 0.1329769324 | I133: 7558.798152
A134: 124 | C134: BIRCH CREEK UNIT 182 BR | D134: BEAR RIVER | E134: 5.161907708 | F134: 3456 | G134: 17839.55304 | H134: 0.1329769324 | I134: 2372.249039
A135: 125 | C135: BIRCH CREEK UNIT 182 FR | D135: FRONTIER | E135: 5.161907708 | F135: 5184 | G135: 26759.32956 | H135: 0.1329769324 | I135: 3558.373558
A136: 126 | C136: BIRCH CREEK UNIT 183 BR | D136: BEAR RIVER | E136: 5.161907708 | F136: 6716 | G136: 34667.37217 | H136: 0.1329769324 | I136: 4609.960806
A137: 127 | C137: BIRCH CREEK UNIT 183 FR | D137: FRONTIER | E137: 5.161907708 | F137: 10074 | G137: 52001.05825 | H137: 0.1329769324 | I137: 6914.941208
A138: 128 | C138: BIRCH CREEK UNIT 184 BR | D138: BEAR RIVER | E138: 5.161907708 | F138: 1899 | G138: 9802.462737 | H138: 0.1329769324 | I138: 1303.501425
A139: 129 | C139: BIRCH CREEK UNIT 184 FR | D139: FRONTIER | E139: 5.161907708 | F139: 17129 | G139: 88418.31713 | H139: 0.1329769324 | I139: 11757.59658
A140: 130 | C140: BIRCH CREEK UNIT 185 BR | D140: BEAR RIVER | E140: 5.161907708 | F140: 5605 | G140: 28932.4927 | H140: 0.1329769324 | I140: 3847.354127
A141: 131 | C141: BIRCH CREEK UNIT 185 FR | D141: FRONTIER | E141: 5.161907708 | F141: 13076 | G141: 67497.10519 | H141: 0.1329769324 | I141: 8975.557995
A142: 132 | C142: BIRCH CREEK UNIT 187 BR | D142: BEAR RIVER | E142: 5.161907708 | F142: 6932 | G142: 35782.34423 | H142: 0.1329769324 | I142: 4758.226371
A143: 133 | C143: BIRCH CREEK UNIT 187 FR | D143: FRONTIER | E143: 5.161907708 | F143: 12320 | G143: 63594.70296 | H143: 0.1329769324 | I143: 8456.628518
A144: 134 | C144: BIRCH CREEK UNIT 188 FR | D144: FRONTIER | E144: 5.161907708 | F144: 20895 | G144: 107858.0616 | H144: 0.1329769324 | I144: 14342.63416
A145: 135 | C145: BIRCH CREEK UNIT 189 BR | D145: BEAR RIVER | E145: 5.161907708 | F145: 6716 | G145: 34667.37217 | H145: 0.1329769324 | I145: 4609.960806
A146: 136 | C146: BIRCH CREEK UNIT 189 FR | D146: FRONTIER | E146: 5.161907708 | F146: 9669 | G146: 49910.48563 | H146: 0.1329769324 | I146: 6636.943274
A147: 137 | C147: BIRCH CREEK UNIT 190 BR | D147: BEAR RIVER | E147: 5.161907708 | F147: 2090 | G147: 10788.38711 | H147: 0.1329769324 | I147: 1434.606624
A148: 138 | C148: BIRCH CREEK UNIT 190 FR | D148: FRONTIER | E148: 5.161907708 | F148: 18804 | G148: 97064.51254 | H148: 0.1329769324 | I148: 12907.34112
A149: 139 | C149: BIRCH CREEK UNIT 191 BR | D149: BEAR RIVER | E149: 5.161907708 | F149: 2976 | G149: 15361.83734 | H149: 0.1329769324 | I149: 2042.770006
A150: 140 | C150: BIRCH CREEK UNIT 191 FR | D150: FRONTIER | E150: 5.161907708 | F150: 12701 | G150: 65561.3898 | H150: 0.1329769324 | I150: 8718.1525
A151: 141 | C151: BIRCH CREEK UNIT 192 BR | D151: BEAR RIVER | E151: 5.161907708 | F151: 1532 | G151: 7908.042609 | H151: 0.1329769324 | I151: 1051.587248
A152: 142 | C152: BIRCH CREEK UNIT 192 FR | D152: FRONTIER | E152: 5.161907708 | F152: 24015 | G152: 123963.2136 | H152: 0.1329769324 | I152: 16484.24788
A153: 143 | C153: BIRCH CREEK UNIT 193 BR | D153: BEAR RIVER | E153: 5.161907708 | F153: 732 | G153: 3778.516442 | H153: 0.1329769324 | I153: 502.4555256
A154: 144 | C154: BIRCH CREEK UNIT 193 FR | D154: FRONTIER | E154: 5.161907708 | F154: 13932 | G154: 71915.69819 | H154: 0.1329769324 | I154: 9563.128938
A155: 145 | C155: BIRCH CREEK UNIT 194 BR | D155: BEAR RIVER | E155: 5.161907708 | F155: 1403 | G155: 7242.156514 | H155: 0.1329769324 | I155: 963.0397573
A156: 146 | C156: BIRCH CREEK UNIT 194 FR | D156: FRONTIER | E156: 5.161907708 | F156: 22017 | G156: 113649.722 | H156: 0.1329769324 | I156: 15112.7914
A157: 147 | C157: BIRCH CREEK UNIT 195 BR | D157: BEAR RIVER | E157: 5.161907708 | F157: 3458 | G157: 17849.87685 | H157: 0.1329769324 | I157: 2373.621868
A158: 148 | C158: BIRCH CREEK UNIT 195 FR | D158: FRONTIER | E158: 5.161907708 | F158: 25347 | G158: 130838.8747 | H158: 0.1329769324 | I158: 17398.55219
A159: 149 | C159: BIRCH CREEK UNIT 196 BR | D159: BEAR RIVER | E159: 5.161907708 | F159: 359 | G159: 1853.124867 | H159: 0.1329769324 | I159: 246.4228602
A160: 150 | C160: BIRCH CREEK UNIT 196 FR | D160: FRONTIER | E160: 5.161907708 | F160: 17656 | G160: 91138.64249 | H160: 0.1329769324 | I160: 12119.3371
A161: 151 | C161: BIRCH CREEK UNIT 198 BR | D161: BEAR RIVER | E161: 5.161907708 | F161: 3185 | G161: 16440.67605 | H161: 0.1329769324 | I161: 2186.230668
A162: 152 | C162: BIRCH CREEK UNIT 198 FR | D162: FRONTIER | E162: 5.161907708 | F162: 1874 | G162: 9673.415045 | H162: 0.1329769324 | I162: 1286.341059
A163: 153 | C163: BIRCH CREEK UNIT 199 BR | D163: BEAR RIVER | E163: 5.161907708 | F163: 1333 | G163: 6880.822975 | H163: 0.1329769324 | I163: 914.9907317
A164: 154 | C164: BIRCH CREEK UNIT 199 FR | D164: FRONTIER | E164: 5.161907708 | F164: 13492 | G164: 69644.4588 | H164: 0.1329769324 | I164: 9261.10649
A165: 155 | C165: BIRCH CREEK UNIT 2 BR | D165: BEAR RIVER | E165: 5.161907708 | F165: 3230 | G165: 16672.9619 | H165: 0.1329769324 | I165: 2217.119327
A166: 156 | C166: BIRCH CREEK UNIT 2 FR | D166: FRONTIER | E166: 5.161907708 | F166: 5269 | G166: 27198.09171 | H166: 0.1329769324 | I166: 3616.718804
A167: 157 | C167: BIRCH CREEK UNIT 200 BR | D167: BEAR RIVER | E167: 5.161907708 | F167: 2537 | G167: 13095.75986 | H167: 0.1329769324 | I167: 1741.433973
A168: 158 | C168: BIRCH CREEK UNIT 200 FR | D168: FRONTIER | E168: 5.161907708 | F168: 7615 | G168: 39307.9272 | H168: 0.1329769324 | I168: 5227.047578
A169: 159 | C169: BIRCH CREEK UNIT 201-25 BR | D169: BEAR RIVER | E169: 5.161907708 | F169: 2954 | G169: 15248.27537 | H169: 0.1329769324 | I169: 2027.668883
A170: 160 | C170: BIRCH CREEK UNIT 201-25 FR | D170: FRONTIER | E170: 5.161907708 | F170: 6904 | G170: 35637.81082 | H170: 0.1329769324 | I170: 4739.00676
A171: 161 | C171: BIRCH CREEK UNIT 202-25 BR | D171: BEAR RIVER | E171: 5.161907708 | F171: 4928 | G171: 25437.88118 | H171: 0.1329769324 | I171: 3382.651407
A172: 162 | C172: BIRCH CREEK UNIT 202-25 FR | D172: FRONTIER | E172: 5.161907708 | F172: 11504 | G172: 59382.58627 | H172: 0.1329769324 | I172: 7896.514161
A173: 163 | C173: BIRCH CREEK UNIT 203-25 BR | D173: BEAR RIVER | E173: 5.161907708 | F173: 6397 | G173: 33020.72361 | H173: 0.1329769324 | I173: 4390.994532
A174: 164 | C174: BIRCH CREEK UNIT 203-25 FR | D174: FRONTIER | E174: 5.161907708 | F174: 14927 | G174: 77051.79636 | H174: 0.1329769324 | I174: 10246.11152
A175: 165 | C175: BIRCH CREEK UNIT 26 FR | D175: FRONTIER | E175: 5.161907708 | F175: 7902 | G175: 40789.39471 | H175: 0.1329769324 | I175: 5424.048583
A176: 166 | C176: BIRCH CREEK UNIT 3 FFR | D176: 1ST FRONTIER | E176: 5.161907708 | F176: 16160 | G176: 83416.42856 | H176: 0.1329769324 | I176: 11092.46078
A177: 167 | C177: BIRCH CREEK UNIT 43A BR | D177: BEAR RIVER | E177: 5.161907708 | F177: 1037 | G177: 5352.898293 | H177: 0.1329769324 | I177: 711.8119946
A178: 168 | C178: BIRCH CREEK UNIT 43A FR | D178: FRONTIER | E178: 5.161907708 | F178: 9313 | G178: 48072.84648 | H178: 0.1329769324 | I178: 6392.579658
A179: 169 | C179: BIRCH CREEK UNIT 5 2ND FR | D179: FRONTIER | E179: 5.161907708 | F179: 2089 | G179: 10783.2252 | H179: 0.1329769324 | I179: 1433.920209
A180: 170 | C180: BIRCH CREEK UNIT 5 FR | D180: FORT UNION | E180: 5.161907708 | F180: 2265 | G180: 11691.72096 | H180: 0.1329769324 | I180: 1554.729188
A181: 171 | C181: BIRCH CREEK UNIT 56 2ND FR | D181: FRONTIER | E181: 5.161907708 | F181: 4945 | G181: 25525.63362 | H181: 0.1329769324 | I181: 3394.320456
A182: 172 | C182: BIRCH CREEK UNIT 6 FR | D182: FRONTIER | E182: 5.161907708 | F182: 9160 | G182: 47283.07461 | H182: 0.1329769324 | I182: 6287.558216
A183: 173 | C183: BIRCH CREEK UNIT 61 BR | D183: BEAR RIVER | E183: 5.161907708 | F183: 1604 | G183: 8279.699964 | H183: 0.1329769324 | I183: 1101.009102
A184: 174 | C184: BIRCH CREEK UNIT 61 FR | D184: FRONTIER | E184: 5.161907708 | F184: 6390 | G184: 32984.59025 | H184: 0.1329769324 | I184: 4386.189629
A185: 175 | C185: BIRCH CREEK UNIT 7 FR | D185: FRONTIER | E185: 5.161907708 | F185: 4908 | G185: 25334.64303 | H185: 0.1329769324 | I185: 3368.923114
A186: 176 | C186: BIRCH CREEK UNIT 8 FR | D186: FRONTIER | E186: 5.161907708 | F186: 15771 | G186: 81408.44646 | H186: 0.1329769324 | I186: 10825.44548
A187: 177 | C187: BIRCH CREEK UNIT 87 2ND FR | D187: FRONTIER | E187: 5.161907708 | F187: 6325 | G187: 32649.06625 | H187: 0.1329769324 | I187: 4341.572677
A188: 178 | C188: BIRCH CREEK UNIT 87 BR | D188: BEAR RIVER | E188: 5.161907708 | F188: 695 | G188: 3587.525857 | H188: 0.1329769324 | I188: 477.0581834
A189: 179 | C189: BIRCH CREEK UNIT 87 BR RECOMP | D189: BEAR RIVER | E189: 5.161907708 | F189: 1618 | G189: 8351.966672 | H189: 0.1329769324 | I189: 1110.618908
A190: 180 | C190: BIRCH CREEK UNIT 87 FR | D190: FRONTIER | E190: 5.161907708 | F190: 2710 | G190: 13988.76989 | H190: 0.1329769324 | I190: 1860.183708
A191: 181 | C191: BIRCH CREEK UNIT 91 BR | D191: BEAR RIVER | E191: 5.161907708 | F191: 1431 | G191: 7386.68993 | H191: 0.1329769324 | I191: 982.2593676
A192: 182 | C192: BIRCH CREEK UNIT 91 FR | D192: FRONTIER | E192: 5.161907708 | F192: 12900 | G192: 66588.60943 | H192: 0.1329769324 | I192: 8854.749016
A193: 183 | C193: BIRCH CREEK UNIT 92 BR | D193: BEAR RIVER | E193: 5.161907708 | F193: 1953 | G193: 10081.20575 | H193: 0.1329769324 | I193: 1340.567816
A194: 184 | C194: BIRCH CREEK UNIT 92 FR | D194: FRONTIER | E194: 5.161907708 | F194: 5985 | G194: 30894.01763 | H194: 0.1329769324 | I194: 4108.191695
A195: 185 | C195: BIRCH CREEK UNIT 931 BR | D195: BEAR RIVER | E195: 5.161907708 | F195: 1933 | G195: 9977.9676 | H195: 0.1329769324 | I195: 1326.839523
A196: 186 | C196: BIRCH CREEK UNIT 931 FR | D196: FRONTIER | E196: 5.161907708 | F196: 14883 | G196: 76824.67242 | H196: 0.1329769324 | I196: 10215.90927
A197: 187 | C197: BIRCH CREEK UNIT 94 BR | D197: BEAR RIVER | E197: 5.161907708 | F197: 110 | G197: 567.8098479 | H197: 0.1329769324 | I197: 75.50561177
A198: 188 | C198: BIRCH CREEK UNIT 94 FR | D198: FRONTIER | E198: 5.161907708 | F198: 16213 | G198: 83690.00967 | H198: 0.1329769324 | I198: 11128.84076
A199: 189 | C199: BIRCH CREEK UNIT 95 BR | D199: BEAR RIVER | E199: 5.161907708 | F199: 878 | G199: 4532.154968 | H199: 0.1329769324 | I199: 602.6720648
A200: 190 | C200: BIRCH CREEK UNIT 95 FR | D200: FRONTIER | E200: 5.161907708 | F200: 11999 | G200: 61937.73059 | H200: 0.1329769324 | I200: 8236.289414
A201: 191 | C201: BIRCH CREEK UNIT 96 BR | D201: BEAR RIVER | E201: 5.161907708 | F201: 2885 | G201: 14892.10374 | H201: 0.1329769324 | I201: 1980.306272
A202: 192 | C202: BIRCH CREEK UNIT 96 FR | D202: FRONTIER | E202: 5.161907708 | F202: 19273 | G202: 99485.44726 | H202: 0.1329769324 | I202: 13229.2696
A203: 193 | C203: BIRCH CREEK UNIT 97 BR | D203: BEAR RIVER | E203: 5.161907708 | F203: 8829 | G203: 45574.48315 | H203: 0.1329769324 | I203: 6060.354966
A204: 194 | C204: BIRCH CREEK UNIT 97 FR | D204: FRONTIER | E204: 5.161907708 | F204: 13526 | G204: 69819.96366 | H204: 0.1329769324 | I204: 9284.444589
... 1427 more rows

Sheet SDR#1
E1: ='Control Panel'!F32 -> Dominion Energy Utah
E2: ='Control Panel'!F33 -> Docket No. 22-057-08
B4: Standard Data Request #1
B5: Summary of Sources of Supply and Demand
A8: 1 | B8: DEMAND | C8: Total | D8: Utah | E8: Wyoming
A10: =A8+1 -> 2 | B10: SALES IN DTHS | C10: =D10+E10 -> 118910311 | D10: =Calculations!P20 -> 115188523 | E10: =Calculations!P39 -> 3721788
A11: =A10+1 -> 3 | B11: DIST. CO. USE & | C11: 0
A12: =A11+1 -> 4 | B12: DIST. LOST & UNACCT. (0.49%) | C12: =Calculations!P154 -> 648006
A15: =A12+1 -> 5 | B15: TOTAL | C15: =SUM(C10:C12) -> 119558317
A19: =A15+1 -> 6 | B19: SUPPLY | C19: Total | D19: Utah | E19: Wyoming
A21: =A19+1 -> 7 | B21: COMPANY PRODUCTION | C21: ='Royalty Detail'!F1388+'Royalty Detail'!F1641 -> 56062874.97 | D21: =$D$10/$C$10*C21 -> 54308156.36 | E21: =$E$10/$C$10*C21 -> 1754718.607
A22: =A21+1 -> 8 | B22: GAS REIMBURSEMENT | C22: =C21*-'Other Inputs'!$E$276 -> -1757571.13 | D22: =D21*-'Other Inputs'!$E$276 -> -1702560.702 | E22: =E21*-'Other Inputs'!$E$276 -> -55010.42834
A25: =A22+1 -> 9 | B25: CONTRACT GAS | C25: ='Ut 1.2 p4'!F25 -> 66440138 | D25: =$D$10/$C$10*C25 -> 64360620.2 | E25: =$E$10/$C$10*C25 -> 2079517.8
A26: =A25+1 -> 10 | B26: GAS REIMBURSEMENT | C26: =C25*-'Other Inputs'!$E$275 -> -764061.587 | D26: =D25*-'Other Inputs'!$E$275 -> -740147.1323 | E26: =E25*-'Other Inputs'!$E$275 -> -23914.4547
A28: =A26+1 -> 11 | B28: STORAGE
A29: =A28+1 -> 12 | B29: INJECTIONS | C29: ='Ut 1.2 p5'!G18 -> -14360926 | D29: =$D$10/$C$10*C29 -> -13911441.67 | E29: =$E$10/$C$10*C29 -> -449484.3349
A30: =A29+1 -> 13 | B30: WITHDRAWALS | C30: ='Ut 1.2 p5'!G17 -> 14360924 | D30: =$D$10/$C$10*C30 -> 13911439.73 | E30: =$E$10/$C$10*C30 -> 449484.2723
A31: =A30+1 -> 14 | B31: NET (INJECTIONS) WITHDRAWALS | C31: =C29+C30 -> -2 | D31: =D29+D30 -> -1.937401762 | E31: =E29+E30 -> -0.06259823841
A33: =A31+1 -> 15 | B33: Storage Fuel | C33: =Calculations!P172+Calculations!P173 -> -423062.3233 | D33: =D10/C10*C33 -> -409820.8452 | E33: =E10/C10*C33 -> -13241.47809
A36: =A33+1 -> 16 | B36: TOTAL SUPPLY | C36: =C21+C22+C25+C26+C29+C30+C33 -> 119558315.9 | D36: =SUM(D21:D30)+D33 -> 115816245.9 | E36: =SUM(E21:E30)+E33 -> 3742069.984
A38: =A36+1 -> 17 | B38: Company Use & Loss % | C38: =(+C36-C10)/C36 -> 0.005419990453 | D38: =(+D36-D10)/D36 -> 0.005419990453 | E38: =(+E36-E10)/E36 -> 0.005419990453
B41: Difference | C41: =C15-C36 -> 1.069067538

Sheet SDR#2
H1: ='Control Panel'!F32 -> Dominion Energy Utah
H2: ='Control Panel'!F33 -> Docket No. 22-057-08
A5: Standard Data Request #2
A6: Supplier Non-Gas Costs
B8: (A) | C8: (B) | D8: (C) | E8: (D) | F8: (E) | G8: (F) | T8: withdraw
A9: I. Transportation (QPC T-1) | C9: Volume (Dth) | G9: Utah Total | J9: Utah gas | K9: Utah Co. | L9: Utah gas | M9: Wyo gas | N9: Wyo Co. | O9: Wyo gas | Q9: @city gate | R9: @city gate | T9: loss | U9: Kern River | X9: Overthrust
B10: Month | C10: Utah | D10: Wyoming | E10: $/dth | F10: Demand | G10: b*d+e*(Ut %) | J10: purchased | K10: production | L10: withdrawn | M10: purchased | N10: production | O10: withdrawn | P10: Total | Q10: purchased | R10: co production | S10: withdrawls | T10: =-Calculations!P172/Calculations!P139 -> 0.01561289036 | U10: Transportation | X10: Transportation
B12: =#REF! ->  | C12: =J12+K12+L12-((T12+$B$51*U12)+(X12))*$J$39 -> 3552174.489 | D12: =M12+N12+O12-((T12+$B$51*U12)+(X12))*$K$39 -> 114772.2016 | E12: ='Other Inputs'!$F$44 -> 0.00267 | F12: =('Other Inputs'!$D$28)*('Other Inputs'!$F$28)-('Other Inputs'!$E$280/12)+('Other Inputs'!$D$35*'Other Inputs'!$F$35) -> 4297137.598 | G12: =(+C12)*E12+F12*$J$33/$L$33 -> 4173657.271 | J12: =Q12*$J$39 -> 296967.85 | K12: =R12*$J$39 -> 4264435.74 | L12: =S12*$J$39 -> 0 | M12: =Q12-J12 -> 9595.151946 | N12: =R12-K12 -> 137785.6522 | O12: =S12-L12 -> 0 | P12: =SUM(J12:O12)-U12 -> 3627349.394 | Q12: =Calculations!D176 -> 306563.002 | R12: =Calculations!D167 -> 4402221.392 | S12: =Calculations!D169+Calculations!D170 -> 0 | T12: =S12*$T$10 -> 0 | U12: =V12*W12 -> 1081435 | V12: =Calculations!D255 -> 34885 | W12: =Calculations!D254 -> 31 | X12: =+W12*$D$39 -> 264802 | Y12: =B12 -> 
B13: =#REF! ->  | C13: =J13+K13+L13-((T13+$B$51*U13)+(X13))*$J$39 -> 3987669.137 | D13: =M13+N13+O13-((T13+$B$51*U13)+(X13))*$K$39 -> 128843.2107 | E13: ='Other Inputs'!$F$44 -> 0.00267 | F13: =('Other Inputs'!$D$28)*('Other Inputs'!$F$28)-('Other Inputs'!$E$280/12)+('Other Inputs'!$D$35*'Other Inputs'!$F$35) -> 4297137.598 | G13: =(+C13)*E13+F13*$J$33/$L$33 -> 4174820.042 | J13: =Q13*$J$39 -> 887737.2403 | K13: =R13*$J$39 -> 4076605.22 | L13: 0 | M13: 28683.15108 | N13: 131716.7717 | O13: 0 | P13: =SUM(J13:O13)-U13 -> 4078192.383 | Q13: =Calculations!E176 -> 916420.3914 | R13: =Calculations!E167 -> 4208321.992 | S13: =Calculations!E169+Calculations!E170 -> 0 | T13: =S13*$T$10 -> 0 | U13: =V13*W13 -> 1046550 | V13: =Calculations!E255 -> 34885 | W13: =Calculations!E254 -> 30 | X13: =+W13*$D$39 -> 256260 | Y13: =B13 -> 
B14: =#REF! ->  | C14: 8244440.537 | D14: 266381.225 | E14: ='Other Inputs'!$F$44 -> 0.00267 | F14: =('Other Inputs'!$D$28)*('Other Inputs'!$F$28)-('Other Inputs'!$E$280/12)+('Other Inputs'!$D$35*'Other Inputs'!$F$35) -> 4297137.598 | G14: =(+C14)*E14+F14*$J$33/$L$33 -> 4186185.621 | J14: =Q14*$J$39 -> 5104725.133 | K14: 4148944.505 | L14: 0 | M14: 164935.744 | N14: 134054.0834 | O14: 0 | P14: 8471224.466 | Q14: =Calculations!F176 -> 5269660.877 | R14: =Calculations!F167 -> 4282998.589 | S14: =Calculations!F169+Calculations!F170 -> 0 | T14: =S14*$T$10 -> 0 | U14: =V14*W14 -> 1081435 | V14: =Calculations!F255 -> 34885 | W14: =Calculations!F254 -> 31 | X14: 264802 | Y14: =B14 -> 
B15: =#REF! ->  | C15: 9801616.427 | D15: 316694.2109 | E15: ='Other Inputs'!$F$44 -> 0.00267 | F15: =('Other Inputs'!$D$28)*('Other Inputs'!$F$28)-('Other Inputs'!$E$280/12)+('Other Inputs'!$D$35*'Other Inputs'!$F$35) -> 4297137.598 | G15: 4190343.281 | J15: =Q15*$J$39 -> 4141490.175 | K15: 4710421.358 | L15: 3717543.653 | M15: 133813.231 | N15: 152195.6288 | O15: 120115.3466 | P15: 9439029.393 | Q15: =Calculations!G176 -> 4275303.406 | R15: =Calculations!G167 -> 4862616.987 | S15: =Calculations!G169+Calculations!G170 -> 3837659 | T15: 59916.9492 | U15: 3536550 | V15: =Calculations!G255 -> 117885 | W15: =Calculations!G254 -> 30 | X15: 256260
B16: =#REF! ->  | C16: 15504643.86 | D16: 500961.3453 | E16: ='Other Inputs'!$F$44 -> 0.00267 | F16: =('Other Inputs'!$D$28)*('Other Inputs'!$F$28)-('Other Inputs'!$E$280/12)+('Other Inputs'!$D$35*'Other Inputs'!$F$35) -> 4297137.598 | G16: 4205570.364 | J16: 12139807.64 | K16: 4715578.532 | L16: 2588608.023 | M16: 392242.1193 | N16: 152362.2592 | O16: 83638.97743 | P16: 14839127.55 | Q16: =Calculations!H176 -> 12532049.75 | R16: =Calculations!H167 -> 4867940.791 | S16: =Calculations!H169+Calculations!H170 -> 2672247 | T16: 41721.49942 | U16: 5233110 | V16: =Calculations!H255 -> 168810 | W16: =Calculations!H254 -> 31 | X16: 264802
B17: =#REF! ->  | C17: 16659356.16 | D17: 538270.5692 | E17: ='Other Inputs'!$F$44 -> 0.00267 | F17: =('Other Inputs'!$D$28)*('Other Inputs'!$F$28)-('Other Inputs'!$E$280/12)+('Other Inputs'!$D$35*'Other Inputs'!$F$35) -> 4297137.598 | G17: 4208653.446 | J17: 11251085.37 | K17: 4771474.219 | L17: 4607670.3 | M17: 363527.1417 | N17: 154168.2715 | O17: 148875.7003 | P17: 16063691 | Q17: =Calculations!I176 -> 11614612.51 | R17: =Calculations!I167 -> 4925642.49 | S17: =Calculations!I169+Calculations!I170 -> 4756546 | T17: =S17*$T$10 -> 74263.43118 | U17: 5233110 | V17: =Calculations!I255 -> 168810 | W17: =Calculations!I254 -> 31 | X17: 264802
B18: =#REF! ->  | C18: 13654763.87 | D18: 441190.9711 | E18: ='Other Inputs'!$F$44 -> 0.00267 | F18: =('Other Inputs'!$D$28)*('Other Inputs'!$F$28)-('Other Inputs'!$E$280/12)+('Other Inputs'!$D$35*'Other Inputs'!$F$35) -> 4297137.598 | G18: =(+C18)*E18+F18*$J$33/$L$33 -> 4200631.185 | J18: 9972892.441 | K18: 4252673.578 | L18: 2997617.752 | M18: 322228.2086 | N18: 137405.6119 | O18: 96854.24804 | P18: 13052991.84 | Q18: =Calculations!J176 -> 10295120.65 | R18: =Calculations!J167 -> 4390079.19 | S18: =Calculations!J169+Calculations!J170 -> 3094472 | T18: 48313.65205 | U18: 4726680 | V18: =Calculations!J255 -> 168810 | W18: =Calculations!J254 -> 28 | X18: 239176
B19: =#REF! ->  | C19: 11072971.92 | D19: 357772.2237 | E19: ='Other Inputs'!$F$44 -> 0.00267 | F19: =('Other Inputs'!$D$28)*('Other Inputs'!$F$28)-('Other Inputs'!$E$280/12)+('Other Inputs'!$D$35*'Other Inputs'!$F$35) -> 4297137.598 | G19: 4193737.8 | J19: 9387964.664 | K19: 4485130.986 | L19: 0 | M19: 303328.9543 | N19: 144916.4053 | O19: 0 | P19: 10666906.01 | Q19: =Calculations!K176 -> 9691293.618 | R19: =Calculations!K167 -> 4630047.391 | S19: =Calculations!K169+Calculations!K170 -> 0 | T19: 0 | U19: 3654435 | V19: =Calculations!K255 -> 117885 | W19: =Calculations!K254 -> 31 | X19: 264802
B20: =#REF! ->  | C20: 9055666.402 | D20: 292592.2624 | E20: ='Other Inputs'!$F$44 -> 0.00267 | F20: =('Other Inputs'!$D$28)*('Other Inputs'!$F$28)-('Other Inputs'!$E$280/12)+('Other Inputs'!$D$35*'Other Inputs'!$F$35) -> 4297137.598 | G20: =(+C20)*E20+F20*$J$33/$L$33 -> 4188351.594 | J20: 5778288.852 | K20: 4254050.873 | L20: 0 | M20: 186698.8616 | N20: 137450.1129 | O20: 0 | P20: 9309938.7 | Q20: =Calculations!L176 -> 5964987.714 | R20: =Calculations!L167 -> 4391500.986 | S20: =Calculations!L169+Calculations!L170 -> 0 | T20: 0 | U20: 1046550 | V20: =Calculations!L255 -> 34885 | W20: =Calculations!L254 -> 30 | X20: 256260
B21: =#REF! ->  | C21: 6830151.228 | D21: 220684.9625 | E21: ='Other Inputs'!$F$44 -> 0.00267 | F21: =('Other Inputs'!$D$28)*('Other Inputs'!$F$28)-('Other Inputs'!$E$280/12)+('Other Inputs'!$D$35*'Other Inputs'!$F$35) -> 4297137.598 | G21: =(+C21)*E21+F21*$J$33/$L$33 -> 4182409.469 | J21: 3527633.722 | K21: 4311746.607 | L21: 0 | M21: 113979.2795 | N21: 139314.2855 | O21: 0 | P21: 7011238.894 | Q21: =Calculations!M176 -> 3641613.002 | R21: =Calculations!M167 -> 4451060.892 | S21: =Calculations!M169+Calculations!M170 -> 0 | T21: 0 | U21: 1081435 | V21: =Calculations!M255 -> 34885 | W21: =Calculations!M254 -> 31 | X21: 264802
B22: =#REF! ->  | C22: 4244747.48 | D22: 137149.5165 | E22: ='Other Inputs'!$F$44 -> 0.00267 | F22: =('Other Inputs'!$D$28)*('Other Inputs'!$F$28)-('Other Inputs'!$E$280/12)+('Other Inputs'!$D$35*'Other Inputs'!$F$35) -> 4297137.598 | G22: =(+C22)*E22+F22*$J$33/$L$33 -> 4175506.441 | J22: 932441.4835 | K22: 4288979.32 | L22: 0 | M22: 30127.56335 | N22: 138578.6652 | O22: 0 | P22: 4343577.032 | Q22: =Calculations!N176 -> 962569.0468 | R22: =Calculations!N167 -> 4427557.986 | S22: =Calculations!N169+Calculations!N170 -> 0 | T22: 0 | U22: 1046550 | V22: =Calculations!N255 -> 34885 | W22: =Calculations!N254 -> 30 | X22: 256260
B23: =#REF! ->  | C23: 3515765.157 | D23: 113595.8013 | E23: ='Other Inputs'!$F$44 -> 0.00267 | F23: =('Other Inputs'!$D$28)*('Other Inputs'!$F$28)-('Other Inputs'!$E$280/12)+('Other Inputs'!$D$35*'Other Inputs'!$F$35) -> 4297137.598 | G23: =(+C23)*E23+F23*$J$33/$L$33 -> 4173560.058 | J23: 199439.4079 | K23: 4325554.85 | L23: 0 | M23: 6443.968337 | N23: 139760.4355 | O23: 0 | P23: 3589763.662 | Q23: =Calculations!O176 -> 205883.3762 | R23: =Calculations!O167 -> 4465315.286 | S23: =Calculations!O169+Calculations!O170 -> 0 | T23: 0 | U23: 1081435 | V23: =Calculations!O255 -> 34885 | W23: =Calculations!O254 -> 31 | X23: 264802
C26: =SUM(C12:C23) -> 106123966.7 | D26: =SUM(D12:D23) -> 3428908.5 | G26: =SUM(G12:G23) -> 50253426.57 | J26: =SUM(J12:J25) -> 63620473.98 | K26: 52605595.79 | L26: 13911439.73 | M26: 2055603.375 | N26: 1699708.183 | O26: 449484.2723 | P26: =SUM(P12:P23) -> 104493030.3 | Q26: 65676077.35 | R26: 54305303.97 | S26: 14360924 | T26: 224215.5318 | U26: 29849275
C29: Months | F29: System | G29: Utah | J29: Allocation Factors
C30: or Days | D30: Dth | E30: Rate | F30: Total | G30: Total
J31: Peak Demand Allocation Base
A32: II. Transportation (ML 104 demand) | C32: ='Other Inputs'!E29 -> 12 | D32: ='Other Inputs'!D29 -> 30000 | E32: ='Other Inputs'!F29 -> 5.28804 | F32: =C32*D32*E32 -> 1903694.4 | G32: =F32*J34 -> 1844789.135 | J32: Utah | K32: Wyo | L32: Total
J33: ='Other Inputs'!E145 -> 1203265 | K33: ='Other Inputs'!E146 -> 38421 | L33: =J33+K33 -> 1241686
A34: III. Transportation (TL 112 demand) | C34: ='Other Inputs'!E30 -> 12 | D34: ='Other Inputs'!D30 -> 12000 | E34: ='Other Inputs'!F30 -> 5.28804 | F34: =C34*D34*E34 -> 761477.76 | G34: =F34*J34 -> 737915.6541 | J34: =J33/L33 -> 0.9690573945 | K34: =K33/L33 -> 0.03094260546
C35: ='Other Inputs'!E31 -> 5 | D35: ='Other Inputs'!D31 -> 75000 | E35: ='Other Inputs'!F31 -> 6.80887 | F35: =C35*D35*E35 -> 2553326.25 | G35: =F35*J34 -> 2474319.683
J36: Dth Sales Allocation Base
A37: III. Transportation (Hyrum) | C37: =+'Other Inputs'!E32 -> 12 | D37: ='Other Inputs'!D32 -> 100000 | E37: ='Other Inputs'!F32 -> 5.28804 | F37: =C37*D37*E37 -> 6345648 | G37: =F37*J34 -> 6149297.118 | J37: Utah | K37: Wyo | L37: Total
J38: =Calculations!P20 -> 115188523 | K38: =Calculations!P39 -> 3721788 | L38: =J38+K38 -> 118910311
A39: IV. Transportation (Overthrust Pipeline) | C39: ='Other Inputs'!E38 -> 12 | D39: ='Other Inputs'!D38 -> 8542 | E39: ='Other Inputs'!F38 -> 1.62 | F39: =C39*D39*E39 -> 166056.48 | G39: =F39*J34 -> 160918.2599 | J39: =J38/L38 -> 0.9687008808 | K39: =K38/L38 -> 0.03129911922
C40: 365 | D40: ='Other Inputs'!D38 -> 8542 | E40: ='Other Inputs'!F39 -> 0.00167 | F40: =C40*D40*E40 -> 5206.7761 | G40: =F40*J39 -> 5043.808594
A42: IV. Transportation (KR 2003 Expansion) | C42: ='Other Inputs'!E59 -> 12 | D42: ='Other Inputs'!D59 -> 33000 | E42: ='Other Inputs'!F59 -> 3.172933333 | F42: =C42*D42*E42 -> 1256481.6
C43: ='Other Inputs'!E60 -> 5 | D43: ='Other Inputs'!D60 -> 50000 | E43: ='Other Inputs'!F60 -> 3.172933333 | F43: =C43*D43*E43 -> 793233.3333 | G43: =(F42+F43+F44)*J34 -> 2106570.536
C44: ='Other Inputs'!E61 -> 12 | D44: ='Other Inputs'!D61 -> 1885 | E44: ='Other Inputs'!F61 -> 5.487166667 | F44: =C44*D44*E44 -> 124119.71
A46: V. Transportation (KR #20024) | C46: =+'Other Inputs'!E69 -> 5 | D46: =+'Other Inputs'!D69 -> 27000 | E46: =+'Other Inputs'!F69 -> 8.758 | F46: =C46*D46*E46 -> 1182330 | G46: =F46*J34 -> 1145745.629
A48: VI. Transportation (KR #20017) | C48: =+'Other Inputs'!E65 -> 3 | D48: =+'Other Inputs'!D65 -> 56925 | E48: =+'Other Inputs'!F65 -> 8.7 | F48: =C48*D48*E48 -> 1485742.5 | G48: =F48*J34 -> 1439769.756
C49: =+'Other Inputs'!E67 -> 2 | D49: =+'Other Inputs'!D67 -> 6000 | E49: =+'Other Inputs'!F67 -> 8.845 | F49: =C49*D49*E49 -> 106140 | G49: =F49*J34 -> 102855.7519
A51: VIII. Trans (KR 2003 Expansion) | B51: ='Other Inputs'!C74 -> 0.7185227992 | C51: ='Other Inputs'!E73 -> 365 | D51: ='Other Inputs'!D73 -> 34885 | E51: ='Other Inputs'!F73 -> 0.0044 | F51: =B51*C51*D51*E51 -> 40255.46257
B52: ='Other Inputs'!C73 -> 0.7185227992 | C52: ='Other Inputs'!E74 -> 151 | D52: ='Other Inputs'!D74 -> 50000 | E52: ='Other Inputs'!F74 -> 0.0044 | F52: =B52*C52*D52*E52 -> 23869.32739 | G52: =(F51+F52)*J39 -> 62117.74051
A54: IX. Transportation (KR #20024) | B54: =+'Other Inputs'!C80 -> 0.7185227992 | C54: =+'Other Inputs'!E80 -> 151 | D54: =+'Other Inputs'!D80 -> 27000 | E54: =+'Other Inputs'!F80 -> 0.0044 | F54: =B54*C54*D54*E54 -> 12889.43679 | G54: =+F54*J39 -> 12486.00877
A56: X. Trans (KR #20017) | B56: =+'Other Inputs'!C77 -> 0.7185227992 | C56: =+'Other Inputs'!E77 -> 90 | D56: =+'Other Inputs'!D77 -> 56925 | E56: =+'Other Inputs'!F77 -> 0.0044 | F56: =B56*C56*D56*E56 -> 16197.1565
B57: =+'Other Inputs'!C78 -> 0.7185227992 | C57: =+'Other Inputs'!E78 -> 61 | D57: =+'Other Inputs'!D78 -> 6000 | E57: =+'Other Inputs'!F78 -> 0.0044 | F57: =B57*C57*D57*E57 -> 1157.109116 | G57: =(F56+F57)*J39 -> 16811.09238
A59: XII. Other Trans | F59: ='Other Inputs'!$D$182 -> 2854069.029 | G59: =F59*$J$39 -> 2764739.182
A61: Storage Commodity | F61: =+'Ut 1.4 p2'!J29 -> 473290 | G61: =+F61*J39 -> 458476.4399
A62: Total ACA | D62: =+'Ut 1.4 p1'!F41 -> 134118089.8 | E62: =+'Ut 1.4 p1'!J41 -> 0.0012 | F62: =+D62*E62 -> 160941.7077 | G62: =+F62*J39 -> 155904.3741
A64: XIV. Storage Demand | C64: 12 | D64: ='Other Inputs'!E167 -> 184625 | E64: ='Other Inputs'!E14 -> 2.87375 | F64: =C64*D64*E64 -> 6366793.125
C65: 5 | D65: =+'Other Inputs'!E168 -> 0 | E65: =+'Other Inputs'!E15 -> 0 | F65: =C65*D65*E65 -> 0
C66: 12 | D66: ='Other Inputs'!E169 -> 111827 | E66: ='Other Inputs'!E16 -> 2.85338 | F66: =C66*D66*E66 -> 3829019.103
C67: 12 | D67: ='Other Inputs'!E170 -> 13419000 | E67: ='Other Inputs'!E17 -> 0.02378 | F67: =C67*D67*E67 -> 3829245.84 | G67: =SUM(F64:F67)*J34 -> 13591086.23
A69: XV. Peak Hour Service | C69: =+'Other Inputs'!E20 -> 3 | D69: =+'Other Inputs'!D20 -> 28752 | E69: =+'Other Inputs'!F20 -> 18.0596 | F69: =C69*D69*E69 -> 1557748.858 | G69: =F69*J34 -> 1509548.049
C70: =+'Other Inputs'!E23 -> 3 | D70: =+'Other Inputs'!D23 -> 74666.66667 | E70: =+'Other Inputs'!F23 -> 7.357482143 | F70: =C70*D70*E70 -> 1648076 | G70: =F70*J34 -> 1597080.235
A72: LNG Electric Costs | C72: 12 | F72: =+'Ut 1.4 p2'!K34 -> 2025096 | G72: =+F72 -> 2025096
A75: Total Supplier Non-Gas Costs | G75: =G26+G32+G34+G35+G43+G52+G59+G67++G46+G48+G49+G54+G57+G69+G70+G61+G62+G37+G39+G40+G72 -> 88613997.25

Sheet Wy SDR#1 (hidden)
A1: Wyoming Standard Data Request #1
A2: Global Insights Forecast

Sheet SDR#3
I1: ='Control Panel'!F32 -> Dominion Energy Utah
I2: ='Control Panel'!F33 -> Docket No. 22-057-08
C5: Standard Data Request #3
C6: Monthly Forecasted Sales
D8: Utah Sales | F8: Wyoming Sales | H8: System Total
C9: Month | D9: Dth | F9: Dth | H9: Dth
B11: 1 | C11: =Calculations!D147 -> Aug22 | D11: =Calculations!D20 -> 2544456 | F11: =Calculations!D39 -> 70192 | H11: =SUM(D11:F11) -> 2614648
B13: =B11+1 -> 2 | C13: =Calculations!E147 -> Sep22 | D13: =Calculations!E20 -> 2986836 | F13: =Calculations!E39 -> 98227 | H13: =SUM(D13:F13) -> 3085063
B15: =B13+1 -> 3 | C15: =Calculations!F147 -> Oct22 | D15: =Calculations!F20 -> 7219038 | F15: =Calculations!F39 -> 228147 | H15: 7447185
B17: =B15+1 -> 4 | C17: =Calculations!G147 -> Nov22 | D17: =Calculations!G20 -> 12420297 | F17: =Calculations!G39 -> 421821 | H17: 12842118
B19: =B17+1 -> 5 | C19: =Calculations!H147 -> Dec22 | D19: =Calculations!H20 -> 18926251 | F19: =Calculations!H39 -> 594379 | H19: 19520630
B21: =B19+1 -> 6 | C21: =Calculations!I147 -> Jan23 | D21: =Calculations!I20 -> 20486544 | F21: =Calculations!I39 -> 602427 | H21: 21088971
B23: =B21+1 -> 7 | C23: =Calculations!J147 -> Feb23 | D23: =Calculations!J20 -> 17106677 | F23: =Calculations!J39 -> 534389 | H23: 17641066
B25: =B23+1 -> 8 | C25: =Calculations!K147 -> Mar23 | D25: =Calculations!K20 -> 13433023 | F25: =Calculations!K39 -> 448594 | H25: 13881617
B27: =B25+1 -> 9 | C27: =Calculations!L147 -> Apr23 | D27: =Calculations!L20 -> 9017969 | F27: =Calculations!L39 -> 329671 | H27: 9347640
B29: =B27+1 -> 10 | C29: =Calculations!M147 -> May23 | D29: =Calculations!M20 -> 5391667 | F29: =Calculations!M39 -> 219398 | H29: 5611065
B31: =B29+1 -> 11 | C31: =Calculations!N147 -> Jun23 | D31: =Calculations!N20 -> 3071369 | F31: =Calculations!N39 -> 105674 | H31: 3177043
B33: =B31+1 -> 12 | C33: =Calculations!O147 -> Jul23 | D33: =Calculations!O20 -> 2584396 | F33: =Calculations!O39 -> 68869 | H33: 2653265
B36: =B33+1 -> 13 | C36: Total Sales (Dth) | D36: =SUM(D11:D33) -> 115188523 | F36: =SUM(F11:F33) -> 3721788 | H36: =SUM(H11:H33) -> 118910311

Sheet SDR#4
H1: ='Control Panel'!F32 -> Dominion Energy Utah
H2: ='Control Panel'!F33 -> Docket No. 22-057-08
C5: Standard Data Request #4
C6: Supplier Non-Gas Costs Recovered at Current Rates
C9: (A) | D9: (B) | E9: (C) | F9: (D) | G9: (E)
B10: 1 | C10: Rate Schedule | D10: Season | E10: Sales Dth | F10: SNG Rate | G10: SNG Revenue
B12: =B10+1 -> 2 | C12: GS | D12: winter | E12: ='Utah Summary-by class'!B8 -> 80810261 | F12: ='Utah Summary-by class'!J8 -> 0.94702 | G12: =E12*F12 -> 76528933.37
B13: =B12+1 -> 3 | D13: summer | E13: ='Utah Summary-by class'!B9 -> 31228294 | F13: ='Utah Summary-by class'!J9 -> 0.39825 | G13: =E13*F13 -> 12436668.09
B15: =B13+1 -> 4 | C15: FS | D15: winter | E15: ='Utah Summary-by class'!B13 -> 1280686 | F15: ='Utah Summary-by class'!J13 -> 0.8561 | G15: =E15*F15 -> 1096395.285
B16: =B15+1 -> 5 | D16: summer | E16: ='Utah Summary-by class'!B14 -> 1308506 | F16: ='Utah Summary-by class'!J14 -> 0.82319 | G16: =E16*F16 -> 1077149.054
B18: =B16+1 -> 6 | C18: NGV | D18: annual | E18: ='Utah Summary-by class'!B18 -> 289772 | F18: ='Utah Summary-by class'!J18 -> 1.03654 | G18: =E18*F18 -> 300360.2689
B20: =B18+1 -> 7 | C20: IS | D20: annual | E20: ='Utah Summary-by class'!B21 -> 271004 | F20: ='Utah Summary-by class'!J21 -> 0.17905 | G20: =E20*F20 -> 48523.2662
B23: =B20+1 -> 8 | C23: Total Supplier Non-Gas Costs | E23: =SUM(E12:E20) -> 115188523 | G23: =SUM(G12:G21) -> 91488029.33
C27: Rate Schedule | D27: Season | E27: Trans Dth | F27: SNG Rate | G27: SNG Revenue
B28: 9 | C28: TSF | D28: annual | E28: ='Utah Summary-by class'!B23 -> 222022 | F28: ='Utah Summary-by class'!J23 -> 2.21606 | G28: =E28*F28 -> 492014.0733
B30: 10 | C30: TBF | D30: annual | E30: ='Utah Summary-by class'!B25 -> 45000 | F30: ='Utah Summary-by class'!J25 -> 1.38728 | G30: =E30*F30 -> 62427.6
B33: 11 | C33: Total Supplier Non-Gas Costs | E33: =SUM(E28:E30) -> 267022 | G33: =SUM(G28:G30) -> 554441.6733

Sheet Current Exh Updated Exh (hidden)
B8: Current Exhibits to Proposed Exhibits
B12: Current Exhibit | C12: Description of Exhibit | D12: Proposed Exhibit | E12: Comments
B13: 1.1 | C13: Company Production with detailed well information | D13: 1.2 p1 | E13: Detail of well info in electronic model
B14: 1.2 | C14: Purchased Gas Costs | D14: 1.2 p4
B15: 1.3 p1 | C15: Transportation | D15: 1.4 p1
C16: Gathering | D16: 1.2 p3
B17: 1.3 p2 | C17: Storage | D17: 1.4 p3
C18: Working Gas Charges | D18: 1.2 p5
B19: 1.4 p1 | C19: Gas Related Costs and Revenue Credits | D19: 1.2 p3
B20: 1.4 p2 | C20: Cost of Storage Gas | D20: 1.2 p5
B21: 1.4 p3 | C21: Other Revenues | D21: 1.2 p2
B22: 1.5 | C22: Gas Cost Allocation | D22: 1.1 p2
B23: 1.6 p1 | C23: Commodity Change and New Rates | D23: 1.5 p1
B24: 1.6 p2 | C24: Supplier Non-Gas Change | D24: 1.5 p2
B25: 1.6 p3 | C25: Supplier Non-Gas New Rates | D25: 1.5 p3 | E25: Detail of calculation updated
B26: 1.7 | C26: Effect on GS Typical Customer | D26: 1.6
B27: 1.8 | C27: Legislative/Proposed Rate Schedules | D27: 1.7
B28: 1.9 | C28: Dominion Energy Questar Pipeline, LLC Tariff Rates | D28: - | E28: Removed as an exhibit
B29: 1.10 | C29: Confidential Comparison of Natural Gas Price Forecast | D29: 1.3
B30: 1.11 | C30: Legislative/Proposed Combined Rate Schedules | D30: 1.8

Sheet SDR#5
I1: Dominion Energy Utah
I2: Docket No. 22-057-08
C5: Standard Data Request #5
C6: RIN Proceeds
C8: (A) | D8: (B) | E8: (C) | F8: (D) | G8: (E) | H8: (F) | I8: (G)
G9: Total | H9: Volumes | I9: Rate
A10: 1 | B10: Total RIN Proceeds, Docket No. 21-057-28 | G10: -76569.08944 | H10: 202355 | I10: -0.37839
C12: Month | D12: NGV Dths | E12: Rate | F12: Refund
A13: =+A10+1 -> 2 | C13: 2021-11-01 | D13: 16247 | E13: -0.36648 | F13: =+D13*E13 -> -5954.20056
A14: =+A13+1 -> 3 | C14: 2021-12-01 | D14: 19505 | E14: -0.36648 | F14: =+D14*E14 -> -7148.1924
A15: =+A14+1 -> 4 | D15: Estimated Dths | F15: =SUM(F13:F14) -> -13102.39296
A17: =+A15+1 -> 5 | C17: 2021-11-01 | D17: 21450.855 | E17: -0.36648 | F17: =+D17*E17 -> -7861.30934
A18: =+A17+1 -> 6 | C18: 2021-12-01 | D18: 18342.873 | E18: -0.36648 | F18: =+D18*E18 -> -6722.296097
A19: =+A18+1 -> 7 | D19: Actual Dths | F19: =SUM(F17:F18) -> -14583.60544
A20: 8 | B20: True up of Estimated Volumes | G20: =F19-F15 -> -1481.212477
C22: Month | D22: NGV Dths | E22: Rate | F22: Refund
A23: =+A20+1 -> 9 | C23: 2022-01-01 | D23: 17398.201 | E23: =+$I$10 -> -0.37839 | F23: =+D23*E23 -> -6583.305276
A24: =+A23+1 -> 10 | C24: 2022-02-01 | D24: 19743.87 | E24: =+$I$10 -> -0.37839 | F24: -7470.882969
A25: =+A24+1 -> 11 | C25: 2022-03-01 | D25: 22569.107 | E25: -0.37839 | F25: -8539.924398
A26: 12 | C26: 2022-04-01 | D26: 22091.371 | E26: -0.37839 | F26: -8359.153873
A27: 13 | B27: estimate | C27: 2022-05-01 | D27: 16662.82 | E27: -0.37839 | F27: -6305.04446
A28: 14 | B28: estimate | C28: 2022-06-01 | D28: 17358.689 | E28: -0.37839 | F28: -6568.354331
A29: 15 | B29: estimate | C29: 2022-07-01 | D29: 17864.705 | E29: -0.37839 | F29: -6759.825725
A30: 16 | B30: Expected Amortized Total | G30: =SUM(F23:F29) -> -50586.49103
A32: =+A30+1 -> 17 | B32: Remaining to be Amortized | G32: =G10+G20-G30 -> -27463.81088
C34: Document No. | D34: Date | E34: RIN Proceed
A35: =+A32+1 -> 18 | C35: 1800000291 | D35: 2021-11-22 | E35: 4783.63
A36: =+A35+1 -> 19 | C36: 1800000309 | D36: 2021-12-09 | E36: 23435.75
A37: =+A36+1 -> 20 | C37: 1800000005 | D37: 2022-01-18 | E37: 8411.05
A38: 21 | C38: 1800000006 | D38: 2022-01-18 | E38: 9501.16
A39: 22 | C39: 1800000007 | D39: 2022-01-18 | E39: 2913.32
A40: 23 | C40: 1800000008 | D40: 2022-01-18 | E40: 2410.07
A41: 24 | C41: 1800000009 | D41: 2022-01-18 | E41: 458.18
A42: 25 | C42: 1800000081 | D42: 2022-02-28 | E42: 6097.5
A43: 26 | C43: 1800000082 | D43: 2022-02-28 | E43: 2338.4
A44: 27 | C44: 1800000083 | D44: 2022-02-28 | E44: 2344.96
A45: 28 | C45: 1800000084 | D45: 2022-02-28 | E45: 5805
A46: 29 | C46: 1800000154 | D46: 2022-04-27 | E46: 227.54
A47: 30 | B47: New RIN Proceeds | G47: =SUM(E35:E46) -> 68726.56
A49: =+A47+1 -> 31 | B49: Total RIN Proceeds | G49: =+G32+-G47 -> -96190.37088 | H49: =SUM('RevRun Fcst'!H66:S66) -> 289772 | I49: =+G49/H49 -> -0.331951917

Sheet Ut 1.1 p1
F1: ='Control Panel'!$F$32 -> Dominion Energy Utah
F2: ='Control Panel'!$F$33 -> Docket No. 22-057-08
F3: DEU Exhibit 1.1
F4: Page 1 of 2
B9: TABLE OF CONTENTS
B14: DEU Exhibit | D14: Description | E14: Type
B16: 1.1 | C16: Page 2 | D16: Test-Year Gas Cost Allocation | E16: Summary
B18: 1.2 | C18: Page 1 | D18: Test-Year Royalties & Company Production | E18: Commodity
C19: Page 2 | D19: Test-Year Other Revenues | E19: Commodity
C20: Page 3 | D20: Summary of Wexpro Test-Year Gas Costs and Revenue Credits | E20: Commodity
C21: Page 4 | D21: Test-Year Purchased Gas Costs | E21: Commodity
C22: Page 5 | D22: Test-Year Storage Gas & Working Gas Charges | E22: Commodity
C23: Page 6 | D23: Test-Year LNG Purchased Gas, Storage Gas & Working Gas Charges | E23: Commodity
B25: 1.3 | D25: Confidential Comparison of Natural Gas Price Forecasts | E25: Commodity
B27: 1.4 | C27: Page 1 | D27: Test-Year Transportation Charges | E27: SNG
C28: Page 2 | D28: Test-Year Storage Charges and LNG Electricity Costs | E28: SNG
C29: Page 3 | D29: Supplier Non-Gas Cost Class Allocation | E29: SNG
C30: Page 4 | D30: Supplier Non-Gas Cost Summary | E30: SNG
B32: 1.5 | C32: Page 1 | D32: Test-Year Gas Cost Change | E32: Commodity
C33: Page 2 | D33: Test-Year Supplier Non-Gas Cost Change | E33: SNG
C34: Page 3 | D34: Supplier Non-Gas Rate Calculation | E34: SNG
C35: Page 4 | D35: General Service Summer / Winter Differential | E35: SNG
C36: Page 5 | D36: Firm Service Summer / Winter Differential | E36: SNG
C37: Page 6 | D37: Summary of Rates | E37: Summary
B39: 1.6 | C39: Page 1 | D39: Effect on GS Typical Customer 80 Dth | E39: Summary
C40: Page 2 | D40: Effect on GS Typical Customer 70 Dth | E40: Summary
B42: 1.7 | C42: Page1-8 | D42: Legislative Rate Schedules | E42: Summary
C43: Page 9-17 | D43: Proposed Rate Schedules | E43: Summary
B45: 1.8 | C45: Page1-8 | D45: Legislative Combined Rate Schedules | E45: Summary
C46: Page 9-17 | D46: Proposed Combined Rate Schedules | E46: Summary

Sheet Ut 1.1 p2
I1: ='Control Panel'!$F$32 -> Dominion Energy Utah
I2: ='Control Panel'!$F$33 -> Docket No. 22-057-08
I3: DEU Exhibit 1.1
I4: Page 2 of 2
C8: TEST-YEAR GAS COST ALLOCATION
C11: (A) | E11: (B) | F11: (C) | G11: (D) | H11: (E)
E12: Allocation
E13: Factor 1/ | F13: System | G13: Wyoming | H13: Utah
B15: COMMODITY
A16: 1 | C16: Dominion Energy Production (DEU Exhibit 1.2, p 1) | E16: 2 | F16: ='Ut 1.2 p3'!E15+'Ut 1.2 p3'!E28 -> 254726753.9 | G16: =CHOOSE($E16,G$58,G$61)*$F16 -> 7972723.039 | H16: 246754030.9
A17: =A16+1 -> 2 | C17: Other Revenue's Credit (DEU Exhibit 1.2, p 2) | E17: 2 | F17: ='Ut 1.2 p3'!E16+'Ut 1.2 p3'!E29+'Ut 1.2 p3'!E47 -> -42679740.84 | G17: -1335838.297 | H17: -41343902.54
A18: =A17+1 -> 3 | C18: Gathering (DEU Exhibit 1.2, p 3, ln 4) | D18: - Demand | E18: 1 | F18: ='Ut 1.2 p3'!E19 -> 2887809.099 | G18: 89356.33757 | H18: 2798452.761
A19: =A18+1 -> 4 | C19: Gathering (DEU Exhibit 1.2, p 3, lns 5, 6, 12) | D19: - Commodity | E19: 2 | F19: ='Ut 1.2 p3'!E21+'Ut 1.2 p3'!E20+'Ut 1.2 p3'!E32 -> 3240192.762 | G19: 101415.1795 | H19: 3138777.582
A20: =A19+1 -> 5 | C20: Net Cost of Dominion Energy Production | F20: =SUM(F16:F19) -> 218175015 | G20: =SUM(G16:G19) -> 6827656.26 | H20: =SUM(H16:H19) -> 211347358.7
A22: =A20+1 -> 6 | C22: Dominion Energy Contract Gas (DEU Exhibit 1.2, p 4) | E22: 2 | F22: ='Ut 1.2 p4'!E25 -> 420747813 | G22: =CHOOSE($E22,G$58,G$61)*$F22 -> 13169035.96 | H22: =CHOOSE($E22,H$58,H$61)*$F22 -> 407578777
A23: =A22+1 -> 7 | C23: LNG Purchased Gas (DEU Exhibit 1.2, p 6, ln 1) | F23: ='Ut 1.2 p6'!E17 -> 6669592.768 | G23: 0 | H23: =F23 -> 6669592.768
A25: 8 | C25: Injection / Withdrawal Adjustment (DEU Exhibit 1.2, p 5, ln 3) | E25: 2 | F25: ='Ut 1.2 p5'!E21 -> 3432490.078 | G25: =CHOOSE($E25,G$58,G$61)*$F25 -> 107433.9162 | H25: =CHOOSE($E25,H$58,H$61)*$F25 -> 3325056.162
A26: =A25+1 -> 9 | C26: LNG Injection / Withdrawal Adjustment (DEU Exhibit 1.2, p 6, ln 4) | E26: UT | F26: ='Ut 1.2 p6'!E26 -> -5669153.853 | G26: 0 | H26: =F26 -> -5669153.853
A28: 10 | C28: Working Gas Costs (DEU Exhibit 1.2, p 5, ln 17) | E28: 2 | F28: ='Ut 1.2 p5'!I43 -> 2714475.694 | G28: =CHOOSE($E28,G$58,G$61)*$F28 -> 84960.69837 | H28: =CHOOSE($E28,H$58,H$61)*$F28 -> 2629514.996
A29: =A28+1 -> 11 | C29: LNG Working Gas Costs (DEU Exhibit 1.2, p 6, ln 18) | E29: UT | F29: ='Ut 1.2 p6'!I48 -> 274736.6681 | G29: 0 | H29: =F29 -> 274736.6681
A32: =A29+1 -> 12 | C32: TOTAL COMMODITY | F32: =SUM(F20:F30) -> 646344969.3 | G32: =SUM(G20:G30) -> 20189086.83 | H32: =SUM(H20:H30) -> 626155882.5
B34: SNG
A35: =A32+1 -> 13 | C35: Transportation (DEU Exhibit 1.4, p 1, ln 15) | D35: - Demand | E35: 1 | F35: ='Ut 1.4 p1'!M36 -> 68243901 | G35: =CHOOSE($E35,G$58,G$61)*$F35 -> 2111644.104 | H35: =CHOOSE($E35,H$58,H$61)*$F35 -> 66132256.9
A36: =A35+1 -> 14 | C36: Transportation (DEU Exhibit 1.4, p 1, ln 25) | D36: - Commodity | E36: 2 | F36: ='Ut 1.4 p1'!M55 -> 553022 | G36: =CHOOSE($E36,G$58,G$61)*$F36 -> 17309.10151 | H36: =CHOOSE($E36,H$58,H$61)*$F36 -> 535712.8985
A38: =A36+1 -> 15 | C38: Other Transportation (DEU Exhibit 1.4, p 1, ln 26) | E38: 2 | F38: ='Ut 1.4 p1'!M59 -> 2854069 | G38: =CHOOSE($E38,G$58,G$61)*$F38 -> 89329.84588 | H38: =CHOOSE($E38,H$58,H$61)*$F38 -> 2764739.154
A40: =A38+1 -> 16 | C40: Peak Hour Service (DEU Exhibit 1.4, p 1, ln 29) | E40: 1 | F40: ='Ut 1.4 p1'!L65+'Ut 1.4 p1'!L66 -> 3205825 | G40: =CHOOSE($E40,G$58,G$61)*$F40 -> 99196.57814 | H40: =CHOOSE($E40,H$58,H$61)*$F40 -> 3106628.422
A42: =A40+1 -> 17 | C42: Storage (DEU Exhibit 1.4, p 2, ln 5) | D42: - Demand | E42: 1 | F42: ='Ut 1.4 p2'!J20 -> 14025058 | G42: =CHOOSE($E42,G$58,G$61)*$F42 -> 433971.8362 | H42: =CHOOSE($E42,H$58,H$61)*$F42 -> 13591086.16
A43: =A42+1 -> 18 | C43: Storage (DEU Exhibit 1.4, p 2, ln 12) | D43: - Commodity | E43: 2 | F43: ='Ut 1.4 p2'!J29 -> 473290 | G43: =CHOOSE($E43,G$58,G$61)*$F43 -> 14813.56013 | H43: =CHOOSE($E43,H$58,H$61)*$F43 -> 458476.4399
A45: =A43+1 -> 19 | C45: LNG Electricity Costs (DEU Exhibit 1.4, p 2, ln 14) | E45: UT | F45: ='Ut 1.4 p2'!K34 -> 2025096 | G45: 0 | H45: =F45 -> 2025096
A48: =A45+1 -> 20 | C48: TOTAL SNG | F48: =SUM(F35:F45) -> 91380261 | G48: =SUM(G35:G45) -> 2766265.025 | H48: =SUM(H35:H45) -> 88613995.97
A51: =A48+1 -> 21 | C51: TOTAL GAS COST | F51: =F32+F48 -> 737725230.3 | G51: =G32+G48 -> 22955351.86 | H51: =H32+H48 -> 714769878.5
A55: 1/ | C55: Allocation Factors | F55: Total | G55: Wyoming | H55: Utah
C57: #1 Peak Day Demand | E57: Dth- | F57: =SUM(G57:H57) -> 1241686 | G57: ='Other Inputs'!$E$146 -> 38421 | H57: ='Other Inputs'!$E$145 -> 1203265
E58: Percent- | F58: =G58+H58 -> 1 | G58: =G57/F57 -> 0.03094260546 | H58: =H57/F57 -> 0.9690573945
C60: #2 Commodity Sales - All | E60: Dth- | F60: =G60+H60 -> 118910311 | G60: ='Ut 1.5 p1'!H22 -> 3721788 | H60: ='Ut 1.5 p1'!H21 -> 115188523
E61: Percent- | F61: =G61+H61 -> 1 | G61: =G60/F60 -> 0.03129911922 | H61: =H60/F60 -> 0.9687008808
C63: #UT Utah Only | F63: =G63+H63 -> 1 | G63: 0 | H63: 1

Sheet Ut 1.2 p1
H1: Dominion Energy Utah
H2: ='Control Panel'!$F$33 -> Docket No. 22-057-08
H3: DEU Exhibit 1.2
H4: Page 1 of 6
C8: TEST-YEAR ROYALTIES & COMPANY PRODUCTION
B10: COMMODITY
C11: (A) | E11: (B) | G11: (C)
E12: Base Year | G12: Test-Year
E13: Dth | G13: Royalty $
B15: WEXPRO I
A16: =A15+1 -> 1 | C16: Royalties Based on Historical Production | E16: =+'Royalty Detail'!F1378 -> 40252653 | G16: =+'Royalty Detail'!I1378 -> 34605029.52
A18: =A16+1 -> 2 | C18: Test-Year Adjustment for IRP Production Forecast | E18: =+'Royalty Detail'!F1380 -> 840043.9716 | G18: =G16/E16*E18 -> 722182.1238
A21: =A18+1 -> 3 | C21: Total Wexpro I Test-Year Royalties | G21: =G16+G18 -> 35327211.64
A23: =A21+1 -> 4 | C23: Wexpro I Operator Service Fee | G23: ='Monthly Inputs'!S119 -> 160237976.4
A26: =A23+1 -> 5 | C26: Total Wexpro I Company Production (IRP Forecast) | E26: =+'Monthly Inputs'!S7 -> 41092696.97 | G26: =G21+G23 -> 195565188
B30: WEXPRO II
A31: =A26+1 -> 6 | C31: Royalties Based on Historical Production | E31: =+'Royalty Detail'!F1631 -> 10711991 | G31: =+'Royalty Detail'!I1631 -> 9229637.247
A33: =A31+1 -> 7 | C33: Test-Year Adjustment for IRP Production Forecast | E33: =+'Royalty Detail'!F1633 -> 4258187 | G33: =G31/E31*E33 -> 3668927.778
A36: =A33+1 -> 8 | C36: Total Wexpro II Test-Year Royalties | G36: =G31+G33 -> 12898565.03
A38: =A36+1 -> 9 | C38: Wexpro II Operator Service Fee | G38: ='Monthly Inputs'!S121 -> 46263000.92
A41: =A38+1 -> 10 | C41: Total Wexpro II Company Production (IRP Forecast) | E41: ='Monthly Inputs'!S13 -> 14970178 | G41: =G36+G38 -> 59161565.95
B45: TOTAL WEXPRO
A46: =A41+1 -> 11 | C46: Total Wexpro Test-Year Royalties | G46: =G36+G21 -> 48225776.67
A48: =A46+1 -> 12 | C48: Total Wexpro Operator Service Fee | G48: =G38+G23 -> 206500977.3
A51: =A48+1 -> 13 | C51: Total Wexpro Company Production | E51: =E41+E26 -> 56062874.97 | G51: =G46+G48 -> 254726753.9

Sheet Ut 1.2 p2
K1: ='Control Panel'!$F$32 -> Dominion Energy Utah
K2: ='Control Panel'!$F$33 -> Docket No. 22-057-08
K3: DEU Exhibit 1.2
K4: Page 2 of 6
D8: TEST-YEAR OTHER REVENUES 1/
B10: COMMODITY
C11: (A) | E11: (B) | F11: (C) | G11: (D)
C12: Account | G12: =Expenses!P2 -> 12 Months Ending
C13: Number | E13: Account Name | G13: ='Control Panel'!F7 -> 2023-07-31
C14: WEXPRO I
B15: 1 | D15: 483 | E15: Sales for Resale | H15: ='Other Inputs'!F206 -> 2639591.095
B17: =B15+1 -> 2 | D17: 490 | E17: Plant By-Product | H17: ='Other Inputs'!F207 -> 8865739.326
B19: =B17+1 -> 3 | D19: 492 | E19: Gasoline and Oil Sales | F19: ='Other Inputs'!F208 -> 1006221.035
B20: =B19+1 -> 4 | D20: 758-1 | E20: Gasoline and Oil Cost | F20: ='Other Inputs'!F212 -> -137770.2546
B21: =B20+1 -> 5 | E21: Net Gasoline and Oil Sales | H21: =F19+F20 -> 868450.7803
B23: =B21+1 -> 6 | D23: 495-1 | E23: Overriding Royalty Revenue | H23: ='Other Inputs'!F209 -> 13932949.29
B25: =B23+1 -> 7 | D25: 495-2 | E25: Oil Revenue Received from Wexpro | H25: ='Other Inputs'!F210 -> 2739902.66
B27: =B25+1 -> 8 | E27: 3rd Party & Liquids Credits from MLPX Acquisition | H27: ='Other Inputs'!F211 -> 3680273.83
B29: 9 | E29: EDIT Amortization | H29: ='Other Inputs'!F213 -> 4770564
B32: 10 | E32: Total Wexpro I | H32: =SUM(H15:H30) -> 37497470.98
C34: WEXPRO II
B35: =B32+1 -> 11 | D35: 483 | E35: Sales for Resale | H35: ='Other Inputs'!E229 -> 0
B37: =B35+1 -> 12 | D37: 490 | E37: Plant By-Product | H37: ='Other Inputs'!E230 -> 2497628.525
B39: =B37+1 -> 13 | D39: 492 | E39: Gasoline and Oil Sales | F39: ='Other Inputs'!E231 -> 1963140.128
B40: =B39+1 -> 14 | D40: 758-1 | E40: Gasoline and Oil Cost | F40: ='Other Inputs'!E234 -> -218061.8315
B41: =B40+1 -> 15 | E41: Net Gasoline and Oil Sales | H41: =F39+F40 -> 1745078.296
B43: =B41+1 -> 16 | D43: 495-1 | E43: Overriding Royalty Revenue | H43: ='Other Inputs'!E232 -> 0
B45: =B43+1 -> 17 | D45: 495-2 | E45: Oil Revenue Received from Wexpro | H45: ='Other Inputs'!E233 -> 843335.0375
B47: 18 | E47: EDIT Amortization | H47: ='Other Inputs'!F235 -> 96228
B50: 19 | E50: Total Wexpro II | H50: =SUM(H35:H48) -> 5182269.859
B52: =1+B50 -> 20 | E52: Sales of Cost-of-Service Gas | H52: ='Other Inputs'!E241 -> 0
B55: =B52+1 -> 21 | E55: Grand Total (Line 10 + Line 19 + Line 20) | H55: =H32+H50+H52 -> 42679740.84
B59: 1/ | D59: Forecasted 12-month test year.

Sheet Ut 1.2 p3
G1: ='Control Panel'!$F$32 -> Dominion Energy Utah
G2: ='Control Panel'!$F$33 -> Docket No. 22-057-08
G3: DEU Exhibit 1.2
G4: Page 3 of 6
B8: SUMMARY OF WEXPRO TEST-YEAR GAS COSTS AND REVENUES CREDITS
B10: COMMODITY
B11: (A) | E11: (B) | F11: (C) | G11: (D)
B12: Component | E12: Costs | F12: Dth 1/ | G12: $ per Dth
B14: WEXPRO I
A15: 1 | C15: Dominion Energy Production 2/ | E15: ='Other Inputs'!D199 -> 195565188
A16: =A15+1 -> 2 | C16: Wexpro I Revenue Sharing Credits 3/ | E16: =-'Ut 1.2 p2'!H32 -> -37497470.98
A17: =A16+1 -> 3 | D17: Net Dominion Energy Production Costs | E17: =E15+E16 -> 158067717 | F17: =F25 -> 40277006.94 | G17: =E17/F25 -> 3.924514979
A19: =A17+1 -> 4 | C19: Gathering Demand | E19: ='Other Inputs'!E188 -> 2887809.099
A20: =A19+1 -> 5 | C20: Gathering Commodity | E20: ='Other Inputs'!D188 -> 1925206.066
A21: =A20+1 -> 6 | C21: Gathering Other Charges | E21: =ROUND('Other Inputs'!D180,0) -> 1249706
A22: =A21+1 -> 7 | D22: Gathering | E22: =SUM(E19:E21) -> 6062721.164
A25: =A22+1 -> 8 | B25: Total Wexpro I Cost of Production | E25: =E17+E22 -> 164130438.2 | F25: ='Monthly Inputs'!S7*(1-'Other Inputs'!E274) -> 40277006.94 | G25: =E25/F25 -> 4.075040592
B27: WEXPRO II
A28: =A25+1 -> 9 | C28: Wexpro II Production 4/ | E28: ='Other Inputs'!D222 -> 59161565.95
A29: =A28+1 -> 10 | C29: Wexpro II Revenue Sharing Credits 5/ | E29: =-'Ut 1.2 p2'!H50 -> -5182269.859
A30: =A29+1 -> 11 | D30: Net Cost of Wexpro II Production | E30: =E28+E29 -> 53979296.09 | F30: =F35 -> 14673019.97 | G30: =E30/F35 -> 3.678812965
A32: =A30+1 -> 12 | D32: Gathering | E32: ='Other Inputs'!D191 -> 65280.6958
A35: =A32+1 -> 13 | B35: Total Wexpro II Cost of Production | E35: =SUM(E30:E32) -> 54044576.79 | F35: ='Monthly Inputs'!S13*(1-'Other Inputs'!E274) -> 14673019.97 | G35: =E35/F35 -> 3.683261994
B37: TOTAL WEXPRO
A38: =A35+1 -> 14 | C38: Total Wexpro Production | E38: =E15+E28 -> 254726753.9
A39: =A38+1 -> 15 | C39: Total Wexpro Revenue Sharing Credits | E39: =E16+E29 -> -42679740.84
A40: =A39+1 -> 16 | D40: Net Cost of Total Wexpro Production | E40: =E38+E39 -> 212047013.1 | F40: =F25+F35 -> 54950026.9 | G40: =E40/F45 -> 3.858906448
A42: =A40+1 -> 17 | D42: Total Wexpro Gathering | E42: =E22+E32 -> 6128001.86
A45: =A42+1 -> 18 | B45: Total Wexpro Cost of Production | E45: =SUM(E40:E42) -> 218175015 | F45: =F25+F35 -> 54950026.9 | G45: =E45/F45 -> 3.97042599
A47: =A45+1 -> 19 | B47: Sales of Cost-of-Service Gas 6/ | E47: =-'Other Inputs'!E241 -> 0 | F47: ='Other Inputs'!F241 -> 0 | G47: ='Other Inputs'!G241 -> 0
A50: =A47+1 -> 20 | B50: Total Cost-of-Service Production | E50: =E25+E35+E47 -> 218175015 | F50: =F25+F35 -> 54950026.9 | G50: =E50/F50 -> 3.97042599
A54: 1/ | B54: Estimated into-pipe volumes used for Wexpro dths.
A55: 2/ | B55: DEU Exhibit 1.2, Page 1, Line 5.
A56: 3/ | B56: DEU Exhibit 1.2, Page 2, Line 10.
A57: 4/ | B57: DEU Exhibit 1.2, Page 1, Line 10.
A58: 5/ | B58: DEU Exhibit 1.2, Page 2, Line 19.
A59: 6/ | B59: DEU Exhibit 1.2, Page 2, Line 20.

Sheet Ut 1.2 p4
H1: ='Control Panel'!$F$32 -> Dominion Energy Utah
H2: ='Control Panel'!$F$33 -> Docket No. 22-057-08
H3: DEU Exhibit 1.2
H4: Page 4 of 6
A8: TEST-YEAR PURCHASED GAS COSTS
B10: COMMODITY
D11: (A) | E11: (B) | F11: (C) | G11: (D)
G12: Cost
C13: Component | E13: Total Cost | F13: Dth | G13: per Dth
B15: 1 | C15: Current Contracts | E15: =ROUND(Calculations!$P$196+Calculations!$P$199-E17-E16,0) -> 214461996
B16: 2 | C16: Hedging Contracts | E16: ='Monthly Inputs'!S106 -> 0
B17: 3 | C17: Stabilization Costs | E17: ='Monthly Inputs'!S103 -> 0
B18: =B16+1 -> 3 | D18: Total Current Contracts | E18: =E15+E16+E17 -> 214461996 | F18: =Calculations!$P$195+Calculations!$P$198 -> 26509000 | G18: =E18/F18 -> 8.090157909
B20: =B18+1 -> 4 | C20: Forecast Spot | E20: =ROUND(Calculations!P193,0) -> 197418935 | F20: =Calculations!$P$192 -> 37938502 | G20: =E20/F20 -> 5.203656565
B22: =B20+1 -> 5 | C22: Future Contracts | E22: =ROUND(Calculations!P202,0) -> 8866882 | F22: =Calculations!P201 -> 1992636 | G22: =E22/F22 -> 4.449825257
B25: =B22+1 -> 6 | C25: Total Gas Purchased | E25: =E18+E20+E22 -> 420747813 | F25: =F18+F20+F22 -> 66440138 | G25: =E25/F25 -> 6.332735387

Sheet Ut 1.2 p5
K1: ='Control Panel'!$F$32 -> Dominion Energy Utah
K2: ='Control Panel'!$F$33 -> Docket No. 22-057-08
K3: DEU Exhibit 1.2
K4: Page 5 of 6
B8: TEST-YEAR STORAGE GAS & WORKING GAS CHARGES
B10: COMMODITY
C11: (A) | E11: (B) | G11: (C) | I11: (D)
I12: Average
E13: Total Costs | G13: Dth | I13: Rate
B15: STORAGE GAS 1/
B17: 1 | C17: Withdrawals | E17: =G17*I17 -> 63344346.73 | G17: ='Monthly Inputs'!S39 -> 14360924 | I17: ='Ut Storage'!L27 -> 4.410882387
B18: 2 | C18: Injections | E18: =G18*I18 -> -59911856.66 | G18: =-'Monthly Inputs'!S30 -> -14360926 | I18: ='Ut Storage'!K27 -> 4.171865843
B21: =B18+1 -> 3 | C21: Storage Adjustment | E21: =E17+E18 -> 3432490.078
B24: WORKING GAS CHARGES
D26: Month | E26: Amount | G26: Pre-Tax Return % | I26: Total
B28: =B21+1 -> 4 | D28: =+'Rate Base'!D4 -> 2021-04-30 | E28: =+'Rate Base'!D11 -> 11574315.84
B29: =B28+1 -> 5 | D29: =+'Rate Base'!E4 -> 2021-05-31 | E29: =+'Rate Base'!E11 -> 17495294.93
B30: 6 | D30: =+'Rate Base'!F4 -> 2021-06-30 | E30: =+'Rate Base'!F11 -> 23415459.21
B31: 7 | D31: =+'Rate Base'!G4 -> 2021-07-31 | E31: =+'Rate Base'!G11 -> 30738132.55
B32: 8 | D32: =+'Rate Base'!H4 -> 2021-08-31 | E32: =+'Rate Base'!H11 -> 35307557.59
B33: 9 | D33: =+'Rate Base'!I4 -> 2021-09-30 | E33: =+'Rate Base'!I11 -> 37462513.81
B34: 10 | D34: =+'Rate Base'!J4 -> 2021-10-31 | E34: =+'Rate Base'!J11 -> 49638760.36
B35: 11 | D35: =+'Rate Base'!K4 -> 2021-11-30 | E35: =+'Rate Base'!K11 -> 48688525.37
B36: 12 | D36: =+'Rate Base'!L4 -> 2021-12-31 | E36: =+'Rate Base'!L11 -> 44932895.7
B37: 13 | D37: =+'Rate Base'!M4 -> 2022-01-31 | E37: =+'Rate Base'!M11 -> 32520297.1
B38: 14 | D38: =+'Rate Base'!N4 -> 2022-02-28 | E38: =+'Rate Base'!N11 -> 24327140.39
B39: 15 | D39: =+'Rate Base'!O4 -> 2022-03-31 | E39: =+'Rate Base'!O11 -> 13377221.65
B40: =B39+1 -> 16 | D40: =+'Rate Base'!P4 -> 2022-04-30 | E40: =+'Rate Base'!P11 -> 4611532.51
B43: =B40+1 -> 17 | C43: 12-Month Average 2/ | E43: =(SUM(E29:E39)+E28/2+E40/2)/12 -> 30499726.9 | F43: x | G43: ='Other Inputs'!E269 -> 0.089 | H43: = | I43: =E43*G43 -> 2714475.694
B48: 1/ | C48: Dominion Energy planned volumes.
B49: 2/ | C49: (1/2 of Line 4 + sum of Lines 5-15 + 1/2 of Line 16) / 12

Sheet Ut 1.2 p6
K1: ='Control Panel'!$F$32 -> Dominion Energy Utah
K2: ='Control Panel'!$F$33 -> Docket No. 22-057-08
K3: DEU Exhibit 1.2
K4: Page 6 of 6
B8: TEST-YEAR LNG PURCHASED GAS, STORAGE GAS & WORKING GAS CHARGES
B10: COMMODITY
C11: (A) | E11: (B) | G11: (C) | I11: (D)
I12: Average
E13: Total Costs | G13: Dth | I13: Rate
B15: LNG PURCHASED GAS
B17: =B13+1 -> 1 | C17: Total Gas Purchased | E17: ='LNG Storage'!M16 -> 6669592.768 | G17: ='Monthly Inputs'!S42 -> 1233000 | I17: =E17/G17 -> 5.409239877
B20: LNG STORAGE 1/
B22: =B17+1 -> 2 | C22: Withdrawals | E22: =G22*I22 -> 1000438.915 | G22: ='Monthly Inputs'!S43 -> 184950 | I22: ='LNG Storage'!L27 -> 5.409239877
B23: =B22+1 -> 3 | C23: Injections | E23: =G23*I23 -> -6669592.768 | G23: =-'Monthly Inputs'!S42 -> -1233000 | I23: ='LNG Storage'!K27 -> 5.409239877
B26: =B23+1 -> 4 | C26: Storage Adjustment | E26: =E22+E23 -> -5669153.853
B29: WORKING LNG CHARGES
D31: Month | E31: Amount 2/ | G31: Pre-Tax Return % | I31: Total
B33: =B26+1 -> 5 | D33: Apr-22 | E33: =+'Rate Base'!D12 -> 0
B34: =B33+1 -> 6 | D34: May-22 | E34: =+'Rate Base'!E12 -> 0
B35: 7 | D35: Jun-22 | E35: =+'Rate Base'!F12 -> 0
B36: 8 | D36: Jul-22 | E36: =+'Rate Base'!G12 -> 0
B37: 9 | D37: Aug-22 | E37: =+'Rate Base'!H12 -> 0
B38: 10 | D38: Sep-22 | E38: =+'Rate Base'!I12 -> 1169335.142
B39: 11 | D39: Oct-22 | E39: =+'Rate Base'!J12 -> 2475708.534
B40: =B39+1 -> 12 | D40: Nov-22 | E40: =+'Rate Base'!K12 -> 3869809.969
B41: 13 | D41: Dec-22 | E41: =+'Rate Base'!L12 -> 5684498.467
B42: 14 | D42: Jan-23 | E42: =+'Rate Base'!M12 -> 6669592.768
B43: 15 | D43: Feb-23 | E43: =+'Rate Base'!N12 -> 6669592.768
B44: 16 | D44: Mar-23 | E44: =+'Rate Base'!O12 -> 6669592.768
B45: 17 | D45: Apr-23 | E45: =+'Rate Base'!P12 -> 7670031.683
B48: =B45+1 -> 18 | C48: 12-Month Average 3/ | E48: =(SUM(E34:E44)+E33/2+E45/2)/12 -> 3086928.855 | F48: x | G48: ='Other Inputs'!E269 -> 0.089 | H48: = | I48: =E48*G48 -> 274736.6681
B53: 1/ | C53: Dominion Energy planned volumes.
B54: 2/ | C54: Estimated monthly balance. When history established, balance updated for historical actuals.
B55: 3/ | C55: (1/2 of Line 5 + sum of Lines 6-16 + 1/2 of Line 17) / 12

Sheet Ut 1.3 Redacted
I1: REDACTED
P29: DEU Exhibit 1.3 | Q29: =CONCATENATE("Docket No. ",'Control Panel'!F5) -> Docket No. 22-057-08 | R29: Dominion Energy Utah

Sheet Ut 1.4 p1
N1: ='Control Panel'!$F$32 -> Dominion Energy Utah
N2: ='Control Panel'!$F$33 -> Docket No. 22-057-08
N3: DEU Exhibit 1.4
N4: Page 1 of 4
B8: TEST-YEAR TRANSPORTATION CHARGES
B10: SNG
B11: (A) | D11: (B) | F11: (C) | H11: (D) | J11: (E) | L11: (F) | M11: (G)
D12: Fctr | F12: Dth | H12: Months/Days | J12: Rate | M12: Total Costs
B14: TRANSPORTATION DEMAND
B16: MountainWest Pipeline (MWP) Demand
A17: 1 | B17: T-1 Transportation - Yearly | F17: ='Other Inputs'!D28+'Other Inputs'!D29+'Other Inputs'!D30 -> 840902 | G17: x | H17: ='Other Inputs'!E28 -> 12 | I17: x | J17: ='Other Inputs'!F28 -> 5.28804 | K17: = | L17: =ROUND(F17*H17*J17,0) -> 53360681
A18: =A17+1 -> 2 | B18: T-1 Transportation - Yearly | F18: ='Other Inputs'!D32 -> 100000 | G18: x | H18: ='Other Inputs'!E32 -> 12 | I18: x | J18: ='Other Inputs'!F32 -> 5.28804 | K18: = | L18: =ROUND(F18*H18*J18,0) -> 6345648
A19: =A18+1 -> 3 | B19: T-1 Transportation Nov-Mar | F19: ='Other Inputs'!D31 -> 75000 | G19: x | H19: ='Other Inputs'!E31 -> 5 | I19: x | J19: ='Other Inputs'!F31 -> 6.80887 | K19: = | L19: =ROUND(F19*H19*J19,0) -> 2553326
A20: =A19+1 -> 4 | B20: No-Notice Transportation | F20: ='Other Inputs'!D35 -> 203542 | G20: x | H20: ='Other Inputs'!E35 -> 12 | I20: x | J20: ='Other Inputs'!F35 -> 0.86753 | K20: = | L20: =ROUND(F20*H20*J20,0) -> 2118945
A21: =A20+1 -> 5 | B21: Capacity Release Credits | L21: =-ROUND('Other Inputs'!E280,0) -> -1248803
A22: =A21+1 -> 6 | C22: Total | L22: =SUM(L17:L21) -> 63129797
B24: MountainWest Overthrust Pipeline (MWOP) Demand
A25: =A22+1 -> 7 | B25: January - December | F25: ='Other Inputs'!D38 -> 8542 | G25: x | H25: ='Other Inputs'!E38 -> 12 | I25: x | J25: ='Other Inputs'!F38 -> 1.62 | K25: = | L25: =ROUND(F25*H25*J25,0) -> 166056
B27: Kern River Demand
A28: =A25+1 -> 8 | B28: January - December | F28: ='Other Inputs'!D61 -> 1885 | G28: x | H28: ='Other Inputs'!E61 -> 12 | I28: x | J28: ='Other Inputs'!F61 -> 5.487166667 | K28: = | L28: =ROUND(F28*H28*J28,0) -> 124120
A29: =A28+1 -> 9 | B29: January - December | F29: ='Other Inputs'!D59 -> 33000 | G29: x | H29: ='Other Inputs'!E59 -> 12 | I29: x | J29: ='Other Inputs'!F59 -> 3.172933333 | K29: = | L29: 1256482
A30: =A29+1 -> 10 | B30: November - March | F30: ='Other Inputs'!D60 -> 50000 | G30: x | H30: ='Other Inputs'!E60 -> 5 | I30: x | J30: =J29 -> 3.172933333 | K30: = | L30: 793233
A31: 11 | B31: December - February | F31: ='Other Inputs'!D65 -> 56925 | G31: x | H31: ='Other Inputs'!E65 -> 3 | I31: x | J31: ='Other Inputs'!F65 -> 8.7 | K31: = | L31: 1485743
A32: 12 | B32: November & March | F32: ='Other Inputs'!D67 -> 6000 | G32: x | H32: ='Other Inputs'!E67 -> 2 | I32: x | J32: ='Other Inputs'!F67 -> 8.845 | K32: = | L32: 106140
A33: 13 | B33: November - March | F33: ='Other Inputs'!D69 -> 27000 | G33: x | H33: ='Other Inputs'!E69 -> 5 | I33: x | J33: ='Other Inputs'!F69 -> 8.758 | K33: = | L33: 1182330
A34: 14 | C34: Total | L34: =SUM(L28:L33) -> 4948048
A36: =A34+1 -> 15 | B36: Total Transportation Demand (SNG) | M36: =L22+L25+L34 -> 68243901
B39: TRANSPORTATION COMMODITY
A41: =A36+1 -> 16 | B41: Total ACA | F41: =Calculations!$P$183 -> 134118089.8 | I41: x | J41: ='Other Inputs'!F45 -> 0.0012 | K41: = | L41: =ROUND(F41*J41,0) -> 160942
A43: =A41+1 -> 17 | B43: MountainWest Pipeline Commodity | F43: ='Ut 1.4 p1'!F41-(D48*F48*H48)-(D49*F49*H49)-(D50*F50*H50)-(D51*F51*H51)-(D52*F52*H52)-F45 -> 109552875.2 | I43: x | J43: ='Other Inputs'!F44 -> 0.00267 | K43: = | L43: =ROUND(F43*J43,0) -> 292506
A45: =A43+1 -> 18 | B45: MountainWest Overthrust Pipeline Commodity | F45: ='Other Inputs'!D38*365 -> 3117830 | I45: x | J45: ='Other Inputs'!F39 -> 0.00167 | K45: = | L45: =ROUND(F45*J45,0) -> 5207
B47: Kern River Commodity
A48: =A45+1 -> 19 | B48: January - December | D48: ='Other Inputs'!C73 -> 0.7185227992 | E48: x | F48: ='Other Inputs'!D73 -> 34885 | G48: x | H48: ='Other Inputs'!E73 -> 365 | I48: x | J48: ='Other Inputs'!F73 -> 0.0044 | K48: = | L48: =ROUND(D48*F48*H48*J48,0) -> 40255
A49: =A48+1 -> 20 | B49: November - March | D49: ='Other Inputs'!C74 -> 0.7185227992 | E49: x | F49: ='Other Inputs'!D74 -> 50000 | G49: x | H49: ='Other Inputs'!E74 -> 151 | I49: x | J49: ='Other Inputs'!F74 -> 0.0044 | K49: = | L49: =ROUND(D49*F49*H49*J49,0) -> 23869
A50: =A49+1 -> 21 | B50: November & March | D50: ='Other Inputs'!C78 -> 0.7185227992 | E50: x | F50: ='Other Inputs'!D78 -> 6000 | G50: x | H50: ='Other Inputs'!E78 -> 61 | I50: x | J50: ='Other Inputs'!F78 -> 0.0044 | K50: = | L50: =ROUND(D50*F50*H50*J50,0) -> 1157
A51: =A50+1 -> 22 | B51: December - February | D51: ='Other Inputs'!C77 -> 0.7185227992 | E51: x | F51: ='Other Inputs'!D77 -> 56925 | G51: x | H51: ='Other Inputs'!E77 -> 90 | I51: x | J51: ='Other Inputs'!F77 -> 0.0044 | K51: = | L51: =ROUND(D51*F51*H51*J51,0) -> 16197
A52: =A51+1 -> 23 | B52: November - March | D52: ='Other Inputs'!C78 -> 0.7185227992 | E52: x | F52: ='Other Inputs'!D80 -> 27000 | G52: x | H52: ='Other Inputs'!E80 -> 151 | I52: x | J52: ='Other Inputs'!F80 -> 0.0044 | K52: = | L52: =ROUND(D52*F52*H52*J52,0) -> 12889
A53: =A52+1 -> 24 | C53: Total | L53: =SUM(L48:L52) -> 94367
A55: =A53+1 -> 25 | B55: Total Transportation Commodity | M55: =L53+L43+L41+L45 -> 553022
B58: OTHER CHARGES
A59: =A55+1 -> 26 | B59: Other Transportation Charges | M59: =ROUND('Other Inputs'!$D$182,0) -> 2854069
B64: PEAK HOUR SERVICE
A65: =A59+1 -> 27 | B65: Kern River: Mid Nov - Mid Feb | F65: ='Other Inputs'!D20 -> 28752 | G65: x | H65: ='Other Inputs'!E20 -> 3 | I65: x | J65: ='Other Inputs'!F20 -> 18.0596 | K65: = | L65: =ROUND(F65*H65*J65,0) -> 1557749
A66: =A65+1 -> 28 | B66: MountainWest Pipeline: Mid Nov - Mid Feb | F66: ='Other Inputs'!D23 -> 74666.66667 | G66: x | H66: ='Other Inputs'!E23 -> 3 | I66: x | J66: ='Other Inputs'!F23 -> 7.357482143 | K66: = | L66: =ROUND(F66*H66*J66,0) -> 1648076
A67: =A66+1 -> 29 | C67: Total Peak Hour Service | M67: =SUM(L65:L66) -> 3205825
A70: =A67+1 -> 30 | B70: TOTAL TRANSPORTATION AND OTHER CHARGES | M70: =SUM(M13:M68) -> 74856817

Sheet Ut 1.4 p2
L1: ='Control Panel'!$F$32 -> Dominion Energy Utah
L2: ='Control Panel'!$F$33 -> Docket No. 22-057-08
L3: DEU Exhibit 1.4
L4: Page 2 of 4
B7: TEST-YEAR STORAGE CHARGES
B9: SNG
B10: (A) | D10: (B) | F10: (C) | H10: (D) | J10: (E) | K10: (F)
B12: STORAGE CHARGES
B14: Component | D14: Dth | F14: Months | H14: Rate | K14: Total Costs
B15: Storage Demand
A16: 1 | B16: Aquifer Peaking Demand | D16: ='Other Inputs'!E167 -> 184625 | E16: x | F16: 12 | G16: x | H16: ='Other Inputs'!E14 -> 2.87375 | I16: = | J16: =ROUND(D16*F16*H16,0) -> 6366793
A17: =A16+1 -> 2 | B17: Spire Demand | D17: ='Other Inputs'!E168 -> 0 | E17: x | F17: 0 | G17: x | H17: ='Other Inputs'!E15 -> 0 | I17: = | J17: =ROUND(D17*F17*H17,0) -> 0
A18: =A17+1 -> 3 | B18: Clay Basin Demand | D18: ='Other Inputs'!E169 -> 111827 | E18: x | F18: 12 | G18: x | H18: ='Other Inputs'!E16 -> 2.85338 | I18: = | J18: =ROUND(D18*F18*H18,0) -> 3829019
A19: =A18+1 -> 4 | B19: Clay Basin Capacity | D19: ='Other Inputs'!E170 -> 13419000 | E19: x | F19: 12 | G19: x | H19: ='Other Inputs'!E17 -> 0.02378 | I19: = | J19: =ROUND(D19*F19*H19,0) -> 3829246
A20: =A19+1 -> 5 | C20: Total Demand Charges | J20: =SUM(J16:J19) -> 14025058
B22: Storage Commodity 1/
A23: =A20+1 -> 6 | B23: Aquifer Peaking Injections | D23: =(+'Monthly Inputs'!S24+'Monthly Inputs'!S26+'Monthly Inputs'!S27) -> 1360923 | F23: x | H23: ='Other Inputs'!E6 -> 0.03872 | I23: = | J23: =ROUND(D23*H23,0) -> 52695
A24: =A23+1 -> 7 | B24: Aquifer Peaking Withdrawals | D24: =(+'Monthly Inputs'!S33+'Monthly Inputs'!S35+'Monthly Inputs'!S36) -> 1360923 | F24: x | H24: ='Other Inputs'!E7 -> 0.03872 | I24: = | J24: 52695
A25: 8 | B25: Spire Injections | D25: ='Monthly Inputs'!S28 -> 0 | F25: x | H25: ='Other Inputs'!E8 -> 0 | I25: = | J25: 0
A26: 9 | B26: Spire Withdrawals | D26: ='Monthly Inputs'!S37 -> 0 | F26: x | H26: ='Other Inputs'!E9 -> 0 | I26: = | J26: 0
A27: 10 | B27: Clay Basin Injections | D27: ='Monthly Inputs'!S25 -> 13000003 | F27: x | H27: ='Other Inputs'!E10 -> 0.01049 | I27: = | J27: 136370
A28: 11 | B28: Clay Basin Withdrawals | D28: ='Monthly Inputs'!S34 -> 13000001 | F28: x | H28: ='Other Inputs'!E11 -> 0.01781 | I28: = | J28: 231530
A29: 12 | C29: Total Commodity Charges | J29: =SUM(J23:J28) -> 473290
A31: =A29+1 -> 13 | B31: Total Storage Charges | K31: =J20+J29 -> 14498348
B33: LNG Storage Related Charges
A34: 14 | B34: Electricity Costs | K34: =Expenses!P24 -> 2025096
A39: 1/ | B39: Dominion Energy planned volumes.

Sheet Ut 1.4 p3
N1: ='Control Panel'!$F$32 -> Dominion Energy Utah
N2: ='Control Panel'!$F$33 -> Docket No. 22-057-08
N3: DEU Exhibit 1.4
N4: Page 3 of 4
B9: SUPPLIER NON-GAS COST CLASS ALLOCATION
A12: SNG | C12: (A) | D12: (B) | E12: (C) | F12: (D) | G12: (E) | H12: (F) | I12: (G) | J12: (H) | K12: (I) | L12: (J) | M12: (K) | N12: (L)
C13: Description | D13: Total UT & WY SNG | E13: Allocation Factor 1/ | F13: UT SNG | G13: COS Factor 2/ | H13: GS | I13: FS | J13: IS | K13: TSF | L13: TBF | M13: NGV | N13: UT SNG Total | O13: Check
B14: Transportation | O14: =N14-F14 -> 0
A15: 1 | C15: DEQPC T-1 Transportation: Yearly | D15: =+'Ut 1.4 p1'!$L$17+'Ut 1.4 p1'!$L$18 -> 59706329 | E15: 1 | F15: ='Ut 1.1 p2'!$H$58*$D15 -> 57858859.62 | G15: Firm Sales | H15: =$D$62*$F15 -> 56298255.01 | I15: =$E$62*$F15 -> 1424720.038 | J15: =$F$62*$F15 -> 0 | K15: =$G$62*$F15 -> 0 | L15: =$H$62*$F15 -> 0 | M15: =$I$62*$F15 -> 135884.5729 | N15: =SUM(H15:M15) -> 57858859.62 | O15: =N15-F15 -> 0
A16: 2 | C16: DEQPC T-1 Transportation: November - March | D16: =+'Ut 1.4 p1'!$L$19 -> 2553326 | E16: 1 | F16: ='Ut 1.1 p2'!$H$58*$D16 -> 2474319.441 | G16: Firm Sales | H16: 2407580.581 | I16: 60927.79066 | J16: 0 | K16: 0 | L16: 0 | M16: 5811.069257 | N16: 2474319.441 | O16: 0
A17: 3 | C17: DEQPC No-Notice Transportation | D17: =+'Ut 1.4 p1'!$L$20 -> 2118945 | E17: 1 | F17: ='Ut 1.1 p2'!$H$58*$D17 -> 2053379.321 | G17: Firm Sales | H17: 1997994.316 | I17: 50562.53584 | J17: 0 | K17: 0 | L17: 0 | M17: 4822.469261 | N17: 2053379.321 | O17: 0
A18: 4 | C18: Capacity Release Credits | D18: =+'Ut 1.4 p1'!$L$21 -> -1248803 | E18: 1 | F18: ='Ut 1.1 p2'!$H$58*$D18 -> -1210161.781 | G18: Firm Sales | H18: -1177520.556 | I18: -29799.09646 | J18: 0 | K18: 0 | L18: 0 | M18: -2842.12855 | N18: -1210161.781 | O18: 0
A19: 5 | C19: DEOTP Transportation: Yearly | D19: =+'Ut 1.4 p1'!L25 -> 166056 | E19: 1 | F19: ='Ut 1.1 p2'!$H$58*$D19 -> 160917.7947 | G19: Firm Sales | H19: 156577.4214 | I19: 3962.449451 | J19: 0 | K19: 0 | L19: 0 | M19: 377.9238987 | N19: =SUM(H19:M19) -> 160917.7947 | O19: =N19-F19 -> 0
A20: 6 | C20: Kern River Transportation: Yearly | D20: =+'Ut 1.4 p1'!$L$28+'Ut 1.4 p1'!L29 -> 1380602 | E20: 1 | F20: ='Ut 1.1 p2'!$H$58*$D20 -> 1337882.577 | G20: Firm Sales | H20: 1301796.388 | I20: 32944.10101 | J20: 0 | K20: 0 | L20: 0 | M20: 3142.087551 | N20: 1337882.577 | O20: 0
A21: 7 | C21: Kern River Transportation: November - March | D21: =+'Ut 1.4 p1'!$L$30+'Ut 1.4 p1'!$L$33 -> 1975563 | E21: 1 | F21: ='Ut 1.1 p2'!$H$58*$D21 -> 1914433.934 | G21: Firm Sales | H21: 1862796.649 | I21: 47141.13627 | J21: 0 | K21: 0 | L21: 0 | M21: 4496.148716 | N21: 1914433.934 | O21: 0
A22: 8 | C22: Kern River Transportation: December - February | D22: =+'Ut 1.4 p1'!$L$31 -> 1485743 | E22: 1 | F22: ='Ut 1.1 p2'!$H$58*$D22 -> 1439770.241 | G22: Firm Sales | H22: 1400935.875 | I22: 35452.98896 | J22: 0 | K22: 0 | L22: 0 | M22: 3381.376084 | N22: 1439770.241 | O22: 0
A23: 9 | C23: Kern River Transportation: November & March | D23: =+'Ut 1.4 p1'!$L$32 -> 106140 | E23: 1 | F23: ='Ut 1.1 p2'!$H$58*$D23 -> 102855.7519 | G23: Firm Sales | H23: 100081.4635 | I23: 2532.726217 | J23: 0 | K23: 0 | L23: 0 | M23: 241.5621393 | N23: 102855.7519 | O23: 0
A24: 10 | C24: ACA (FERC) | D24: =+'Ut 1.4 p1'!$L$41 -> 160942 | E24: 2 | F24: ='Ut 1.1 p2'!$H$61*$D24 -> 155904.6572 | G24: Firm Sales | H24: 151699.5012 | I24: 3839.00565 | J24: 0 | K24: 0 | L24: 0 | M24: 366.1502817 | N24: 155904.6572 | O24: 0
A25: 11 | C25: DEQPC Commodity | D25: =+'Ut 1.4 p1'!$L$43 -> 292506 | E25: 2 | F25: ='Ut 1.1 p2'!$H$61*$D25 -> 283350.8198 | G25: Firm Sales | H25: 275708.1079 | I25: 6977.247622 | J25: 0 | K25: 0 | L25: 0 | M25: 665.4642933 | N25: 283350.8198 | O25: 0
A26: 12 | C26: DEOTP Commodity | D26: =+'Ut 1.4 p1'!L45 -> 5207 | E26: 2 | F26: ='Ut 1.1 p2'!$H$61*$D26 -> 5044.025486 | G26: Firm Sales | H26: 4907.97494 | I26: 124.2043868 | J26: 0 | K26: 0 | L26: 0 | M26: 11.84615897 | N26: =SUM(H26:M26) -> 5044.025486 | O26: =N26-F26 -> 0
A27: 13 | C27: Kern River Commodity | D27: =+'Ut 1.4 p1'!$L$53 -> 94367 | E27: 2 | F27: ='Ut 1.1 p2'!$H$61*$D27 -> 91413.39602 | G27: Firm Sales | H27: 88947.73789 | I27: 2250.968959 | J27: 0 | K27: 0 | L27: 0 | M27: 214.6891652 | N27: 91413.39602 | O27: 0
A28: 14 | C28: Other Transportation Charges | D28: =+'Ut 1.4 p1'!$M$59 -> 2854069 | E28: 2 | F28: ='Ut 1.1 p2'!$H$61*$D28 -> 2764739.154 | G28: Firm Sales | H28: 2690166.916 | I28: 68079.10314 | J28: 0 | K28: 0 | L28: 0 | M28: 6493.135218 | N28: 2764739.154 | O28: 0
A29: 15 | C29: Total Transportation | D29: =SUM(D15:D28) -> 71650992 | F29: =SUM(F15:F28) -> 69432708.95 | H29: =SUM(H15:H28) -> 67559927.38 | I29: 1709715.199 | J29: 0 | K29: 0 | L29: 0 | M29: 163066.3664 | N29: =SUM(N15:N28) -> 69432708.95 | O29: 0
B31: Peak Hour
A32: 16 | C32: DEQPC Peak Hour Service | D32: =+'Ut 1.4 p1'!L66 -> 1648076 | E32: 1 | F32: ='Ut 1.1 p2'!$H$58*$D32 -> 1597080.235 | G32: Design Day | H32: =$D$61*$F32 -> 1280827.597 | I32: =$E$61*$F32 -> 18264.07559 | J32: =$F$61*$F32 -> 0 | K32: =$G$61*$F32 -> 232952.1973 | L32: =$H$61*$F32 -> 64229.07131 | M32: =$I$61*$F32 -> 807.2929825 | N32: =SUM(H32:M32) -> 1597080.235 | O32: =N32-F32 -> 0
A33: 17 | C33: Kern River Peak Hour Service | D33: =+'Ut 1.4 p1'!L65 -> 1557749 | E33: 1 | F33: ='Ut 1.1 p2'!$H$58*$D33 -> 1509548.187 | G33: Design Day | H33: =$D$61*$F33 -> 1210628.581 | I33: =$E$61*$F33 -> 17263.06644 | J33: =$F$61*$F33 -> 0 | K33: =$G$61*$F33 -> 220184.6592 | L33: =$H$61*$F33 -> 60708.83358 | M33: =$I$61*$F33 -> 763.0472358 | N33: =SUM(H33:M33) -> 1509548.187 | O33: =N33-F33 -> 0
A34: 18 | C34: Total Peak Hour | D34: =SUM(D32:D33) -> 3205825 | F34: =SUM(F32:F33) -> 3106628.422 | H34: =SUM(H32:H33) -> 2491456.178 | I34: 35527.14203 | J34: 0 | K34: 453136.8564 | L34: 124937.9049 | M34: 1570.340218 | N34: 3106628.422
B36: Storage
A37: 19 | C37: Aquifer Peaking Storage Demand | D37: =+'Ut 1.4 p2'!$J$16 -> 6366793 | E37: 1 | F37: ='Ut 1.1 p2'!$H$58*$D37 -> 6169787.836 | G37: Firm Sales | H37: =$D$62*$F37 -> 6003372.539 | I37: =$E$62*$F37 -> 151925.2266 | J37: =$F$62*$F37 -> 0 | K37: =$G$62*$F37 -> 0 | L37: =$H$62*$F37 -> 0 | M37: =$I$62*$F37 -> 14490.07102 | N37: =SUM(H37:M37) -> 6169787.836 | O37: =N37-F37 -> 0
A38: 20 | C38: Spire Storage Demand | D38: =+'Ut 1.4 p2'!$J$17 -> 0 | E38: 1 | F38: ='Ut 1.1 p2'!$H$58*$D38 -> 0 | G38: Firm Sales | H38: 0 | I38: 0 | J38: 0 | K38: 0 | L38: 0 | M38: 0 | N38: 0 | O38: 0
A39: 21 | C39: Clay Basin Storage Demand | D39: =+'Ut 1.4 p2'!$J$18 -> 3829019 | E39: 1 | F39: ='Ut 1.1 p2'!$H$58*$D39 -> 3710539.176 | G39: Firm Sales | H39: 3610456.24 | I39: 91368.53973 | J39: 0 | K39: 0 | L39: 0 | M39: 8714.39628 | N39: 3710539.176 | O39: 0
A40: 22 | C40: Clay Basin Storage Capacity | D40: =+'Ut 1.4 p2'!$J$19 -> 3829246 | E40: 1 | F40: ='Ut 1.1 p2'!$H$58*$D40 -> 3710759.152 | G40: Firm Sales | H40: 3610670.282 | I40: 91373.95643 | J40: 0 | K40: 0 | L40: 0 | M40: 8714.912906 | N40: 3710759.152 | O40: 0
A41: 23 | C41: Aquifer Peaking Injections Storage Commodity | D41: =+'Ut 1.4 p2'!$J$23 -> 52695 | E41: 2 | F41: ='Ut 1.1 p2'!$H$61*$D41 -> 51045.69291 | G41: Firm Sales | H41: 49668.85721 | I41: 1256.952211 | J41: 0 | K41: 0 | L41: 0 | M41: 119.8834928 | N41: 51045.69291 | O41: 0
A42: 24 | C42: Aquifer Peaking Withdrawals Storage Commodity | D42: =+'Ut 1.4 p2'!$J$24 -> 52695 | E42: 2 | F42: ='Ut 1.1 p2'!$H$61*$D42 -> 51045.69291 | G42: Firm Sales | H42: 49668.85721 | I42: 1256.952211 | J42: 0 | K42: 0 | L42: 0 | M42: 119.8834928 | N42: 51045.69291 | O42: 0
A43: 25 | C43: Spire Injections Storage Commodity | D43: =+'Ut 1.4 p2'!$J$25 -> 0 | E43: 2 | F43: ='Ut 1.1 p2'!$H$61*$D43 -> 0 | G43: Firm Sales | H43: 0 | I43: 0 | J43: 0 | K43: 0 | L43: 0 | M43: 0 | N43: 0 | O43: 0
A44: 26 | C44: Spire Withdrawals Storage Commodity | D44: =+'Ut 1.4 p2'!$J$26 -> 0 | E44: 2 | F44: ='Ut 1.1 p2'!$H$61*$D44 -> 0 | G44: Firm Sales | H44: 0 | I44: 0 | J44: 0 | K44: 0 | L44: 0 | M44: 0 | N44: 0 | O44: 0
A45: 27 | C45: Clay Basin Injections Storage Commodity | D45: =+'Ut 1.4 p2'!$J$27 -> 136370 | E45: 2 | F45: ='Ut 1.1 p2'!$H$61*$D45 -> 132101.7391 | G45: Firm Sales | H45: 128538.6101 | I45: 3252.881165 | J45: 0 | K45: 0 | L45: 0 | M45: 310.2478776 | N45: 132101.7391 | O45: 0
A46: 28 | C46: Clay Basin Withdrawals Storage Commodity | D46: =+'Ut 1.4 p2'!$J$28 -> 231530 | E46: 2 | F46: ='Ut 1.1 p2'!$H$61*$D46 -> 224283.3149 | G46: Firm Sales | H46: 218233.8079 | I46: 5522.76583 | J46: 0 | K46: 0 | L46: 0 | M46: 526.7411534 | N46: 224283.3149 | O46: 0
A47: 29 | C47: Total Storage | D47: =SUM(D37:D46) -> 14498348 | F47: =SUM(F37:F46) -> 14049562.6 | H47: =SUM(H37:H46) -> 13670609.19 | I47: 345957.2742 | J47: 0 | K47: 0 | L47: 0 | M47: 32996.13622 | N47: 14049562.6 | O47: 0
A49: =+A47+1 -> 30 | B49: LNG Electricity | D49: =+'Ut 1.4 p2'!K34 -> 2025096 | E49: UT | F49: =+'Ut 1.1 p2'!H45 -> 2025096 | G49: GS, FS | H49: =$D$65*$F49 -> 1975112.526 | I49: =$E$65*$F49 -> 49983.47446 | J49: 0 | K49: 0 | L49: 0 | M49: 0 | N49: =SUM(H49:M49) -> 2025096 | O49: =N49-F49 -> 0
A52: =+A49+1 -> 31 | C52: Supplier Non-Gas Costs | D52: =+D29+D34+D47+D49 -> 91380261 | F52: =+F29+F34+F47+F49 -> 88613995.97 | H52: =+H29+H34+H47+H49 -> 85697105.28 | I52: 2141183.09 | J52: 0 | K52: 453136.8564 | L52: 124937.9049 | M52: 197632.8428 | N52: 88613995.97 | O52: =N52-F52 -> 0
H54: =H52/$F$52 -> 0.9670831829 | I54: =I52/$F$52 -> 0.02416303504 | J54: 0 | K54: 0.005113603686 | L54: 0.001409911646 | M54: 0.002230266682 | N54: 1
B58: 1/ | C58: Allocations Factors, DEU Exhibit 1.1 page 2, footnote
B60: 2/ | C60: Cost-of-Service Allocation Factor Docket No. 19-057-02 | D60: GS | E60: FS | F60: IS | G60: TS | H60: TBF | I60: NGV | J60: Total
C61: 210 Design Day | D61: =+'Other Inputs'!C309 -> 0.8019807457 | E61: =+'Other Inputs'!D309 -> 0.01143591611 | F61: =+'Other Inputs'!E309 -> 0 | G61: =+'Other Inputs'!F309 -> 0.1458612988 | H61: =+'Other Inputs'!G309 -> 0.04021655889 | I61: =+'Other Inputs'!H309 -> 0.000505480542 | J61: =SUM(D61:I61) -> 1
C62: 240 Firm Sales | D62: =+'Other Inputs'!C310 -> 0.9730273873 | E62: =+'Other Inputs'!D310 -> 0.02462406012 | F62: =+'Other Inputs'!E310 -> 0 | G62: =+'Other Inputs'!F310 -> 0 | H62: =+'Other Inputs'!G310 -> 0 | I62: =+'Other Inputs'!H310 -> 0.00234855256 | J62: =SUM(D62:I62) -> 1
D64: GS | E64: FS | F64: Total
B65: 3/ | C65: GS & FS Only | D65: =D62/($D$62+$E$62) -> 0.9753179728 | E65: =E62/($D$62+$E$62) -> 0.02468202715 | F65: =SUM(D65:E65) -> 1

Sheet Ut 1.4 p4
I1: ='Control Panel'!$F$32 -> Dominion Energy Utah
I2: ='Control Panel'!$F$33 -> Docket No. 22-057-08
I3: DEU Exhibit 1.4
I4: Page 4 of 4
C6: SUPPLIER NON-GAS COST SUMMARY
A9: SNG | C9: (A) | D9: (B) | E9: (C) | F9: (D) | G9: (E) | H9: (F) | I9: (G)
B10: Description | C10: GS | D10: FS | E10: IS | F10: TS | G10: TBF | H10: NGV | I10: Total
A13: 1 | B13: Transportation - Demand | C13: =SUM('Ut 1.4 p3'!H15:H23) -> 64348497.15 | D13: =SUM('Ut 1.4 p3'!I15:I23) -> 1628444.669 | E13: =SUM('Ut 1.4 p3'!J15:J23) -> 0 | F13: =SUM('Ut 1.4 p3'!K15:K23) -> 0 | G13: =SUM('Ut 1.4 p3'!L15:L23) -> 0 | H13: =SUM('Ut 1.4 p3'!M15:M23) -> 155315.0812 | I13: =SUM(C13:H13) -> 66132256.9
A14: =+A13+1 -> 2 | B14: Transportation - Commodity | C14: =SUM('Ut 1.4 p3'!H24:H27) -> 521263.322 | D14: =SUM('Ut 1.4 p3'!I24:I27) -> 13191.42662 | E14: =SUM('Ut 1.4 p3'!J24:J27) -> 0 | F14: =SUM('Ut 1.4 p3'!K24:K27) -> 0 | G14: =SUM('Ut 1.4 p3'!L24:L27) -> 0 | H14: =SUM('Ut 1.4 p3'!M24:M27) -> 1258.149899 | I14: =SUM(C14:H14) -> 535712.8985
A16: =+A14+1 -> 3 | B16: Other Transportation | C16: =+'Ut 1.4 p3'!H28 -> 2690166.916 | D16: =+'Ut 1.4 p3'!I28 -> 68079.10314 | E16: =+'Ut 1.4 p3'!J28 -> 0 | F16: =+'Ut 1.4 p3'!K28 -> 0 | G16: =+'Ut 1.4 p3'!L28 -> 0 | H16: =+'Ut 1.4 p3'!M28 -> 6493.135218 | I16: =SUM(C16:H16) -> 2764739.154
A18: =+A16+1 -> 4 | B18: Peak Hour Service | C18: =SUM('Ut 1.4 p3'!H32:H33) -> 2491456.178 | D18: =SUM('Ut 1.4 p3'!I32:I33) -> 35527.14203 | E18: =SUM('Ut 1.4 p3'!J32:J33) -> 0 | F18: =SUM('Ut 1.4 p3'!K32:K33) -> 453136.8564 | G18: =SUM('Ut 1.4 p3'!L32:L33) -> 124937.9049 | H18: =SUM('Ut 1.4 p3'!M32:M33) -> 1570.340218 | I18: =SUM(C18:H19) -> 3106628.422
A19: 5 | B19: TBF Adjustment 1/ | C19: =+C18/($C$18+$D$18+$F$18+$H$18)*-$G$19 -> 52198.12608 | D19: =+D18/($C$18+$D$18+$F$18+$H$18)*-$G$19 -> 744.3238435 | E19: =+E18/($C$18+$D$18+$F$18+$H$18)*$G$18 -> 0 | F19: =+F18/($C$18+$D$18+$F$18+$H$18)*-$G$19 -> 9493.602564 | G19: =+-G18*0.5 -> -62468.95245 | H19: =+H18/($C$18+$D$18+$F$18+$H$18)*-$G$19 -> 32.89996325 | I19: =SUM(C19:H19) -> -2.081890216e-12
A20: 6 | B20: Total Peak Hour Service | C20: =SUM(C18:C19) -> 2543654.304 | D20: 36271.46587 | E20: 0 | F20: 462630.459 | G20: 62468.95245 | H20: 1603.240182 | I20: 3106628.422
A22: 7 | B22: Storage - Demand | C22: =SUM('Ut 1.4 p3'!H37:H40) -> 13224499.06 | D22: =SUM('Ut 1.4 p3'!I37:I40) -> 334667.7227 | E22: =SUM('Ut 1.4 p3'!J37:J40) -> 0 | F22: =SUM('Ut 1.4 p3'!K37:K40) -> 0 | G22: =SUM('Ut 1.4 p3'!L37:L40) -> 0 | H22: =SUM('Ut 1.4 p3'!M37:M40) -> 31919.3802 | I22: =SUM(C22:H22) -> 13591086.16
A23: 8 | B23: Storage - Commodity | C23: =SUM('Ut 1.4 p3'!H41:H46) -> 446110.1324 | D23: =SUM('Ut 1.4 p3'!I41:I46) -> 11289.55142 | E23: =SUM('Ut 1.4 p3'!J41:J46) -> 0 | F23: =SUM('Ut 1.4 p3'!K41:K46) -> 0 | G23: =SUM('Ut 1.4 p3'!L41:L46) -> 0 | H23: =SUM('Ut 1.4 p3'!M41:M46) -> 1076.756017 | I23: =SUM(C23:H23) -> 458476.4399
A24: 9 | B24: LNG Electricity | C24: =+'Ut 1.4 p3'!H49 -> 1975112.526 | D24: =+'Ut 1.4 p3'!I49 -> 49983.47446 | E24: =+'Ut 1.4 p3'!J49 -> 0 | F24: =+'Ut 1.4 p3'!K49 -> 0 | G24: =+'Ut 1.4 p3'!L49 -> 0 | H24: =+'Ut 1.4 p3'!M49 -> 0 | I24: =SUM(C24:H24) -> 2025096
A27: 10 | B27: Total SNG | C27: =SUM(C13:C14,C16,C20,C22:C24) -> 85749303.41 | D27: 2141927.414 | E27: 0 | F27: 462630.459 | G27: 62468.95245 | H27: 197665.7428 | I27: =SUM(C27:H27) -> 88613995.97
A30: =+A27+1 -> 11 | B30: Percent Allocated to Rate Classes | C30: =C27/$I$27 -> 0.9676722335 | D30: 0.02417143466 | E30: 0 | F30: 0.005220738032 | G30: 0.0007049558228 | H30: 0.002230637955 | I30: =SUM(C30:H30) -> 1
A35: 1/ | B35: Represents a 50% subsidy of costs to the TBF class, which is allocated to all other classes using the design day factor.

Sheet Ut 1.5 p1
J1: ='Control Panel'!$F$32 -> Dominion Energy Utah
J2: ='Control Panel'!$F$33 -> Docket No. 22-057-08
J3: DEU Exhibit 1.5
J4: Page 1 of 6
B8: TEST-YEAR GAS COST CHANGE
B10: COMMODITY
B11: (A) | C11: (B) | D11: (C) | F11: (D) | H11: (E) | J11: (F)
F12: Average Rate | H12: x Dth | I12: = | J12: Total
A13: 1 | B13: Commodity Portion of Test-Year Gas Cost 1/ | J13: ='Ut 1.1 p2'!H32-J14 -> 624880706.9
A14: =A13+1 -> 2 | B14: LNG Costs | J14: =+'Ut 1.1 p2'!H23+'Ut 1.1 p2'!H26+'Ut 1.1 p2'!H29 -> 1275175.583
A15: =A14+1 -> 3 | B15: 191 Account Balance for Commodity Costs 2/ | J15: =D60-D67 -> 60582571.46
A16: =A15+1 -> 4 | B16: Total | J16: =J13+J15 -> 685463278.4
H18: Total
B19: Test-Year Sales: | D19: Firm | F19: + Interruptible | H19: = Sales Dth
A21: =A16+1 -> 5 | B21: Utah | D21: =Calculations!P13 -> 114917519 | F21: =Calculations!P17 -> 271004 | H21: =D21+F21 -> 115188523
A22: =A21+1 -> 6 | B22: Wyoming | D22: =Calculations!P32 -> 3577538 | F22: =Calculations!P36 -> 144250 | H22: =D22+F22 -> 3721788
A23: =A22+1 -> 7 | B23: Total Dth | H23: =SUM(H21:H22) -> 118910311
F27: Current Case | H27: Prior Case
B28: COMMODITY RATES (GS, FS) | F28: ='Control Panel'!F5 -> 22-057-08 | H28: ='Control Panel'!F9 -> 21-057-28 | J28: Difference
A30: =A23+1 -> 8 | B30: Gas Cost (line 1/Total Sales Dth, line 4 + line 2/Total GS & FS Dths 3/) | F30: =ROUND((J13)/H21,5)+ROUND(J14/D65,5) -> 5.43597 | H30: ='Other Inputs'!F119 -> 4.6196 | J30: =F30-H30 -> 0.81637
A31: =A30+1 -> 9 | B31: 191 Account Amortization (Commodity Portion) | F31: =H31 -> 0.5702 | H31: ='Other Inputs'!F120 -> 0.5702 | J31: =F31-H31 -> 0
A32: =A31+1 -> 10 | B32: Total Sales Unit Commodity Cost (Lines 8 + 9) | F32: =F30+F31 -> 6.00617 | H32: =H30+H31 -> 5.1898 | J32: =J30+J31 -> 0.81637
F34: Current Case | H34: Prior Case
B35: COMMODITY RATES (IS) | F35: ='Control Panel'!F5 -> 22-057-08 | H35: ='Control Panel'!F9 -> 21-057-28 | J35: Difference
A37: =A32+1 -> 11 | B37: Gas Cost (line 1/Total Sales Dth, line 4) | F37: =ROUND((J13)/H21,5) -> 5.42485 | H37: ='Other Inputs'!F119 -> 4.6196 | J37: =F37-H37 -> 0.80525
A38: =A37+1 -> 12 | B38: 191 Account Amortization (Commodity Portion) | F38: =H38 -> 0.5702 | H38: ='Other Inputs'!F120 -> 0.5702 | J38: =F38-H38 -> 0
A39: =A38+1 -> 13 | B39: Total Sales Unit Commodity Cost (Lines 11 + 12) | F39: =F37+F38 -> 5.99505 | H39: =H37+H38 -> 5.1898 | J39: =J37+J38 -> 0.80525
F41: Current Case | H41: Prior Case
B42: COMMODITY RATES (NGV) | F42: ='Control Panel'!F5 -> 22-057-08 | H42: ='Control Panel'!F9 -> 21-057-28 | J42: Difference
A44: =A39+1 -> 14 | B44: Gas Cost (line 1/Total Sales Dth, line 4) | F44: =ROUND((J13)/H21,5) -> 5.42485 | H44: ='Other Inputs'!F119 -> 4.6196 | J44: =F44-H44 -> 0.80525
A45: =A44+1 -> 15 | B45: 191 Account Amortization (Commodity Portion) | F45: =H45 -> 0.5702 | H45: ='Other Inputs'!F120 -> 0.5702 | J45: =F45-H45 -> 0
A46: =A45+1 -> 16 | B46: RIN Credit 4/ | F46: =H72 -> -0.33195 | H46: ='Other Inputs'!F129 -> -0.37839 | J46: =F46-H46 -> 0.04644
A47: =A46+1 -> 17 | B47: Total Sales Unit Commodity Cost (Lines 14 + 15 + 16) | F47: =F44+F45+F46 -> 5.6631 | G47: =G44+G45+G46 -> 0 | H47: =H44+H45+H46 -> 4.81141 | I47: =I44+I45+I46 -> 0 | J47: =J44+J45+J46 -> 0.85169
A52: 1/ | B52: DEU Exhibit 1.1, page 2, line 12, column E
A54: 2/ | B54: Amortization from Docket No. 21-057-28
B55: Commodity amortization will be adjusted in the 2022 fall pass-through.
A56: 2/ | B56: 191 Account (April 2022) actual | D56: ='Other Inputs'!E136 -> 51471288
B57: Less: Supplier Non-Gas balance actual | D57: ='Other Inputs'!E137 -> -8938524
B58: 191 Account Commodity Portion | D58: =D56-D57 -> 60409812
B59: RIN Proceed 4/ | D59: =D72 -> -96190.37088
B60: 191 Account Commodity Amortization | D60: =(D58-D59) -> 60506002.37 | F60: =H21 -> 115188523 | H60: =ROUND(D60/F60,5) -> 0.52528
B61: See Application, paragraph 17.
A63: 3/ | B63: GS Dths | C63: ='RevRun Fcst'!T21 -> 112038555
B64: FS Dths | C64: ='RevRun Fcst'!T48 -> 2589192
B65: Total GS & FS Dths | D65: =C63+C64 -> 114627747
A67: 4/ | B67: Prior RIN Proceeds, Docket No. 21-057-28 | D67: ='SDR#5'!G10 -> -76569.08944
B68: Expected amortized Balance | D68: ='SDR#5'!G20-'SDR#5'!G30 -> 49105.27855
B69: Amount remaining to be amortized | D69: =SUM(D67:D68) -> -27463.81088
B71: New RIN Proceeds | D71: =-'SDR#5'!G47 -> -68726.56
B72: Total RIN Proceeds | D72: =SUM(D69:D71) -> -96190.37088 | F72: =Calculations!$P$12 -> 289772 | H72: =ROUND(D72/F72,5) -> -0.33195

Sheet Ut 1.5 p2
G1: ='Control Panel'!$F$32 -> Dominion Energy Utah
G2: ='Control Panel'!$F$33 -> Docket No. 22-057-08
G3: DEU Exhibit 1.5
G4: Page 2 of 6
C8: TEST-YEAR SUPPLIER NON-GAS COST CHANGE
B10: SNG
C11: (A) | D11: (B) | E11: (C) | F11: (D)
D12: Dth | E12: Average Rate | F12: Total
B15: 1 | C15: Supplier Non-Gas (SNG) Costs 1/ | F15: ='Ut 1.1 p2'!H48 -> 88613995.97
B16: =B15+1 -> 2 | C16: 191 Account Balance for SNG Costs 2/ | F16: =E44 -> 3222746
B17: =1+B16 -> 3 | C17: SNG Total Costs Recovered for Test-Year 3/ | F17: =SUM(F15:F16) -> 91836741.97
B20: 4 | C20: Supplier Non-Gas Base Cost at Current Rates | F20: =F22-F21 -> 86272472.65
B21: 5 | C21: Amortization | F21: ='Other Inputs'!F141 -> 5372883
B22: 6 | C22: SNG Total Costs Recovered at Current Rates 3/ | F22: ='Other Inputs'!E247-(D30*('Other Inputs'!G96-'Other Inputs'!F248)) -> 91645355.65
B25: =1+B22 -> 7 | C25: SNG Costs Adjustment to Current Rates (Line 3 - Line 6) | F25: =F17-F22 -> 191386.3209
C29: Adjustment for SNG contributions from:
B30: 8 | C30: IS SNG current rate | D30: ='RevRun Fcst'!T102+'RevRun Fcst'!T93 -> 271004 | E30: ='Other Inputs'!E48 -> 0.17652 | F30: =D30*E30 -> 47837.62608
B31: 9 | C31: IS SNG new rate | D31: ='RevRun Fcst'!T102+'RevRun Fcst'!T93 -> 271004 | E31: ='Other Inputs'!F48 -> 0.17652 | F31: =D31*E31 -> 47837.62608
B35: 10 | C35: Percent Change to Amortization | F35: =((F16-F21)/F21)*100 -> -40.01831047 | G35: %
C36: (ln 2-ln 5)/ln 5
B40: 1/ | C40: DEU Exhibit 1.1, page 2, line 20, column E.
B42: 2/ | C42: Actual March 2022 SNG Balance | E42: ='Other Inputs'!D140 -> -10777254
C43: Expected March 2022 SNG Balance | E43: ='Other Inputs'!E140 -> -14000000
E44: ='Other Inputs'!F140 -> 3222746
B45: 2/ | C45: Spring Pass Through SNG Ammortization From Docket No. 21-057-11 | E45: ='Other Inputs'!F140 -> 3222746
C46: Amortization will be adjusted in the 2022 Spring Pass Through
B48: 3/ | C48: ="Output of Revrun.Exe computer program dated "&'RevRun Fcst'!D4 -> Output of Revrun.Exe computer program dated 05/02/22

Sheet Ut 1.5 p3
I1: ='Control Panel'!$F$32 -> Dominion Energy Utah
I2: ='Control Panel'!$F$33 -> Docket No. 22-057-08
I3: DEU Exhibit 1.5
I4: Page 3 of 6
B7: SUPPLIER NON-GAS RATE CALCULATION
B9: SNG | C9: (A) | D9: (B) | E9: (C) | F9: (D) | G9: (E) | H9: (F) | I9: (G)
C10: GS | D10: FS | E10: IS 1/ | F10: TSF | G10: TBF | H10: NGV | I10: Total
A11: 1 | B11: Allocated SNG Costs | C11: =+'Ut 1.4 p4'!C27 -> 85749303.41 | D11: =+'Ut 1.4 p4'!D27 -> 2141927.414 | E11: =+'Ut 1.4 p4'!E27 -> 0 | F11: =+'Ut 1.4 p4'!F27 -> 462630.459 | G11: =+'Ut 1.4 p4'!G27 -> 62468.95245 | H11: =+'Ut 1.4 p4'!H27 -> 197665.7428 | I11: =SUM(C11:H11) -> 88613995.97
A12: =+A11+1 -> 2 | B12: IS SNG Revenue | C12: =-$E$12*'Ut 1.4 p4'!C30 -> -46954.61738 | D12: =-$E$12*'Ut 1.4 p4'!D30 -> -1172.876958 | E12: =$E$17*E23 -> 48523.2662 | F12: =-$E$12*'Ut 1.4 p4'!F30 -> -253.3272613 | G12: =-$E$12*'Ut 1.4 p4'!G30 -> -34.20675905 | H12: =-$E$12*'Ut 1.4 p4'!H30 -> -108.2378393 | I12: =SUM(C12:H12) -> -5.456968211e-12
A13: 3 | B13: SNG Costs to Recover | C13: =+C11+C12 -> 85702348.79 | D13: 2140754.537 | E13: 48523.2662 | F13: 462377.1317 | G13: 62434.74569 | H13: 197557.5049 | I13: =SUM(C13:H13) -> 88613995.97
A14: 4 | B14: Summer/Winter Differential | C14: ='Ut 1.5 p4'!C41 -> 0.53004 | D14: ='Ut 1.5 p5'!C42 -> 0.149 | E14: 0 | F14: 0 | G14: 0 | H14: 0
A15: 5 | B15: Summer Forecast Throughput 2022-23 | C15: =SUM('RevRun Fcst'!$H$21:$J$21)+SUM('RevRun Fcst'!$P$21:$S$21) -> 31228294 | D15: =SUM('RevRun Fcst'!$H$48:$J$48)+SUM('RevRun Fcst'!$P$48:$S$48) -> 1308506 | E15: =SUM('RevRun Fcst'!$H$102:$J$102)+SUM('RevRun Fcst'!$P$102:$S$102) -> 113370 | F15: =SUM('RevRun Fcst'!$H$165:$J$165)+SUM('RevRun Fcst'!$P$165:$S$165) -> 28317859 | G15: =SUM('RevRun Fcst'!$H$129:$J$129)+SUM('RevRun Fcst'!$P$129:$S$129) -> 2410776 | H15: =SUM('RevRun Fcst'!$H$66:$J$66)+SUM('RevRun Fcst'!$P$66:$S$66) -> 165561
A16: 6 | B16: Winter Forecast Throughput 2022-23 | C16: =SUM('RevRun Fcst'!$K$21:$O$21) -> 80810261 | D16: =SUM('RevRun Fcst'!$K$48:$O$48) -> 1280686 | E16: =SUM('RevRun Fcst'!$K$102:$O$102) -> 157634 | F16: =SUM('RevRun Fcst'!$K$165:$O$165) -> 26267167 | G16: =SUM('RevRun Fcst'!$K$129:$O$129) -> 695829 | H16: =SUM('RevRun Fcst'!$K$66:$O$66) -> 124211
A17: 7 | B17: Total Forecast Throughput 2022-23 | C17: =SUM(C15:C16) -> 112038555 | D17: 2589192 | E17: 271004 | F17: 54585026 | G17: 3106605 | H17: 289772
A18: 8 | B18: Forecast Demand Dth | C18: 0 | D18: 0 | F18: =+'Other Inputs'!D312 -> 222022 | G18: =+'Other Inputs'!D313 -> 45000 | H18: 0
A20: =A18+1 -> 9 | B20: Summer Base Rate | C20: =ROUND(C21-C14,5) -> 0.38263 | D20: =ROUND(D21-D14,5) -> 0.7531 | E20: 0 | F20: 0 | G20: 0 | H20: 0
A21: =A20+1 -> 10 | B21: Winter Base Rate | C21: =ROUND((C13+C14*C15)/C17,5) -> 0.91267 | D21: =ROUND((D13+D14*D15)/D17,5) -> 0.9021 | E21: 0 | F21: 0 | G21: 0 | H21: 0
A23: =A21+1 -> 11 | B23: Year Round Base Rates | C23: 0 | D23: 0 | E23: =ROUND(C54,5) -> 0.17905 | F23: 0 | G23: 0 | H23: =ROUND(H13/H17,5) -> 0.68177
A25: =A23+1 -> 12 | B25: Annual Demand Rate | C25: 0 | D25: 0 | E25: 0 | F25: =ROUND(F13/F18,5) -> 2.08257 | G25: =ROUND(G13/G18,5) -> 1.38744 | H25: 0
A26: =A25+1 -> 13 | B26: Monthly Demand Rate | C26: 0 | D26: 0 | E26: 0 | F26: =ROUND(F25/12,5) -> 0.17355 | G26: =ROUND(G25/12,5) -> 0.11562 | H26: 0
A28: =A26+1 -> 14 | B28: Revenue Collected With Rate | C28: =C20*C15+C16*C21 -> 85701983.04 | D28: =D20*D15+D16*D21 -> 2140742.709 | E28: =+E17*E23 -> 48523.2662 | F28: =F25*F18 -> 462376.3565 | G28: =G25*G18 -> 62434.8 | H28: =H23*H17 -> 197557.8564 | I28: =SUM(C28:H28) -> 88613618.03
A30: =+A28+1 -> 15 | B30: Amortization of Balance | C30: =+'Ut 1.5 p2'!$F$16*'Ut 1.4 p4'!C30 -> 3118561.82 | D30: =+'Ut 1.5 p2'!$F$16*'Ut 1.4 p4'!D30 -> 77898.39437 | E30: =+'Ut 1.5 p2'!$F$16*'Ut 1.4 p4'!E30 -> 0 | F30: =+'Ut 1.5 p2'!$F$16*'Ut 1.4 p4'!F30 -> 16825.11261 | G30: =+'Ut 1.5 p2'!$F$16*'Ut 1.4 p4'!G30 -> 2271.893558 | H30: =+'Ut 1.5 p2'!$F$16*'Ut 1.4 p4'!H30 -> 7188.779546
A31: =+A30+1 -> 16 | B31: Summer/Winter Differential | C31: =+'Ut 1.5 p4'!C47 -> 0.01929 | D31: =+'Ut 1.5 p5'!C48 -> 0.00542 | E31: 0 | F31: 0 | G31: 0 | H31: 0
A33: =+A31+1 -> 17 | B33: Summer Amortization Rate | C33: =+C34-C31 -> 0.01392138523 | D33: =+D34-D31 -> 0.02740510408 | E33: 0 | F33: 0 | G33: 0 | H33: 0
A34: =+A33+1 -> 18 | B34: Winter Amortization Rate | C34: =(C30+C31*C15)/C17 -> 0.03321138523 | D34: =(D30+D31*D15)/D17 -> 0.03282510408 | E34: 0 | F34: 0 | G34: 0 | H34: 0
A35: =+A34+1 -> 19 | B35: Annual Amortization Rate | C35: 0 | D35: 0 | E35: 0 | F35: =+F30/F18 -> 0.07578128569 | G35: =+G30/G18 -> 0.05048652351 | H35: =+H30/H17 -> 0.02480839952
A37: =+A35+1 -> 20 | B37: Amortization Collected With Rate | C37: =+C15*C33+C16*C34 -> 3118561.82 | D37: =+D15*D33+D16*D34 -> 77898.39437 | E37: 0 | F37: =+F35*F18 -> 16825.11261 | G37: =+G35*G18 -> 2271.893558 | H37: =+H35*H17 -> 7188.779546 | I37: =SUM(C37:H37) -> 3222746
A39: =+A37+1 -> 21 | B39: Summer Total Rate | C39: =+C20+C33 -> 0.3965513852 | D39: =+D20+D33 -> 0.7805051041 | E39: 0 | F39: 0 | G39: 0 | H39: 0
A40: =+A39+1 -> 22 | B40: Winter Total Rate | C40: =+C21+C34 -> 0.9458813852 | D40: =+D21+D34 -> 0.9349251041 | E40: 0 | F40: 0 | G40: 0 | H40: 0
A41: =+A40+1 -> 23 | B41: Annual Total Rate | C41: 0 | D41: 0 | E41: =+E23 -> 0.17905 | F41: =+F25+F35 -> 2.158351286 | G41: =+G25+G35 -> 1.437926524 | H41: =+H23+H35 -> 0.7065783995
A42: =+A41+1 -> 24 | B42: Monthly Total Rate | C42: 0 | D42: 0 | E42: 0 | F42: =ROUND(F41/12,5) -> 0.17986 | G42: =ROUND(G41/12,5) -> 0.11983 | H42: 0
A44: =+A42+1 -> 25 | B44: Summer Total Collected | C44: =+C15*C39 -> 12383623.24 | D44: =+D15*D39 -> 1021295.612 | E44: 0 | F44: 0 | G44: 0 | H44: 0
A45: =+A44+1 -> 26 | B45: Winter Total Collected | C45: =+C16*C40 -> 76436921.62 | D45: =+D16*D40 -> 1197345.492 | E45: 0 | F45: 0 | G45: 0 | H45: 0
A46: =+A45+1 -> 27 | B46: Annual Total Collected | C46: 0 | D46: 0 | E46: =+E41*E17 -> 48523.2662 | F46: =+F41*F18 -> 479201.4692 | G46: =+G41*G18 -> 64706.69356 | H46: =+H41*H17 -> 204746.636
C47: =SUM(C44:C46) -> 88820544.86 | D47: 2218641.104 | E47: 48523.2662 | F47: 479201.4692 | G47: 64706.69356 | H47: 204746.636 | I47: =SUM(C47:H47) -> 91836364.03
A51: 1/ | B51: ="Calculated by adding QPC T-2 and ACA rates, then adjusting for distr. loss of "&TEXT('Other Inputs'!E272,"0.000%") -> Calculated by adding QPC T-2 and ACA rates, then adjusting for distr. loss of 0.542%
B52: ="= ("&TEXT('Other Inputs'!$F$48,"$0.00000")&" + "&TEXT('Other Inputs'!$F$49,"$0.00000")&") / ( 1 - "&TEXT('Other Inputs'!$E$272,"0.00000")&" ) = "&TEXT(('Other Inputs'!F48+'Other Inputs'!F49)/(1-('Other Inputs'!$E$272)),("$0.00000")) -> = ($0.17652 + $0.00120) / ( 1 - 0.00542 ) = $0.17869
B53: ="IS Tariff rate has an adjustment for bad debt of "&TEXT('Other Inputs'!$E$283,"0.00%") -> IS Tariff rate has an adjustment for bad debt of 0.20%
B54: =" = "&TEXT((('Other Inputs'!$F$48+'Other Inputs'!$F$49)/(1-'Other Inputs'!$E$272)),"$0.00000")&" / ( 1 - "&TEXT('Other Inputs'!$E$283,"0.00000")&" ) = " -> = $0.17869 / ( 1 - 0.00200 ) = | C54: =+(('Other Inputs'!$F$48+'Other Inputs'!$F$49)/(1-'Other Inputs'!$E$272))/(1-('Other Inputs'!$E$283)) -> 0.1790465848
A56: 2/ | B56: Spring Pass Through SNG Amortization From Docket No. 20-057-07 (Lines 15-19)
B57: Amortization will be adjusted in the 2021 Spring Pass Through

Sheet Ut 1.5 p4
E1: ='Control Panel'!$F$32 -> Dominion Energy Utah
E2: ='Control Panel'!$F$33 -> Docket No. 22-057-08
E3: DEU Exhibit 1.5
E4: Page 4 of 6
A6: GENERAL SERVICE SUMMER / WINTER DIFFERENTIAL
A8: SNG | B8: (A) | C8: (B) | D8: (C) | E8: (D)
B9: Contract | C9: Allocated GS Costs | D9: Winter Allocation | E9: Summer Allocation
A10: 1 | B10: DEQPC T-1 Transportation: Yearly | C10: =+'Ut 1.4 p3'!H15 -> 56298255.01 | D10: =C10*D50 -> 40606349.14 | E10: =C10*$D$49 -> 15691905.87
A11: =A10+1 -> 2 | B11: DEQPC T-1 Transportation: November - March | C11: =+'Ut 1.4 p3'!H16 -> 2407580.581 | D11: =C11 -> 2407580.581 | E11: 0
A12: =A11+1 -> 3 | B12: DEQPC No-Notice Transportation | C12: =+'Ut 1.4 p3'!H17 -> 1997994.316 | D12: =C12*D50 -> 1441097.149 | E12: =C12*$D$49 -> 556897.1673
A13: 4 | B13: Capacity Release Credits | C13: =+'Ut 1.4 p3'!H18 -> -1177520.556 | D13: =C13*$D$50 -> -849312.4844 | E13: =C13*$D$49 -> -328208.072
A14: 5 | B14: DEOTP Transportation: Yearly | C14: =+'Ut 1.4 p3'!H19 -> 156577.4214 | D14: =C14*$D$50 -> 112934.8936 | E14: =C14*$D$49 -> 43642.52777
A15: 6 | B15: Kern River Transportation: Yearly | C15: =+'Ut 1.4 p3'!H20 -> 1301796.388 | D15: =C15*$D$50 -> 938949.1494 | E15: =C15*$D$49 -> 362847.239
A16: 7 | B16: Kern River Transportation: November - March | C16: =+'Ut 1.4 p3'!H21 -> 1862796.649 | D16: =C16 -> 1862796.649 | E16: 0
A17: 8 | B17: Kern River Transportation: December - February | C17: =+'Ut 1.4 p3'!H22 -> 1400935.875 | D17: =C17 -> 1400935.875 | E17: 0
A18: 9 | B18: Kern River Transportation: November & March | C18: =+'Ut 1.4 p3'!H23 -> 100081.4635 | D18: =C18 -> 100081.4635 | E18: 0
A19: 10 | B19: ACA (FERC) | C19: =+'Ut 1.4 p3'!H24 -> 151699.5012 | D19: =C19*$D$50 -> 109416.5869 | E19: =C19*$D$49 -> 42282.91434
A20: 11 | B20: QPC Commodity | C20: =+'Ut 1.4 p3'!H25 -> 275708.1079 | D20: =C20*$D$50 -> 198860.5098 | E20: =C20*$D$49 -> 76847.59815
A21: 12 | B21: DEOTP Commodity | C21: =+'Ut 1.4 p3'!H26 -> 4907.97494 | D21: =C21*$D$50 -> 3539.984391 | E21: =C21*$D$49 -> 1367.990549
A22: 13 | B22: Kern River Commodity | C22: =+'Ut 1.4 p3'!H27 -> 88947.73789 | D22: =C22*$D$50 -> 64155.50356 | E22: =C22*$D$49 -> 24792.23433
A23: 14 | B23: Other Transportation Charges | C23: =+'Ut 1.4 p3'!H28 -> 2690166.916 | D23: =C23*$D$50 -> 1940341.792 | E23: =C23*$D$49 -> 749825.1236
A24: 15 | B24: DEQPC Peak Hour Service | C24: =+'Ut 1.4 p3'!H32 -> 1280827.597 | D24: =C24 -> 1280827.597 | E24: 0
A25: 16 | B25: Kern River Peak Hour Service | C25: =+'Ut 1.4 p3'!H33 -> 1210628.581 | D25: =C25 -> 1210628.581 | E25: 0
A26: 17 | B26: Aquifer Peaking Storage Demand | C26: =+'Ut 1.4 p3'!H37 -> 6003372.539 | D26: =C26*$D$50 -> 4330063.894 | E26: =C26*$D$49 -> 1673308.645
A27: 18 | B27: Spire Storage Demand | C27: =+'Ut 1.4 p3'!H38 -> 0 | D27: 0 | E27: 0
A28: 19 | B28: Clay Basin Storage Demand | C28: =+'Ut 1.4 p3'!H39 -> 3610456.24 | D28: 2604120.618 | E28: 1006335.622
A29: 20 | B29: Clay Basin Storage Capacity | C29: =+'Ut 1.4 p3'!H40 -> 3610670.282 | D29: 2604275.001 | E29: 1006395.282
A30: 21 | B30: Aquifer Peaking Injections Storage Commodity | C30: =+'Ut 1.4 p3'!H41 -> 49668.85721 | D30: 35824.75082 | E30: 13844.10639
A31: 22 | B31: Aquifer Peaking Withdrawals Storage Commodity | C31: =+'Ut 1.4 p3'!H42 -> 49668.85721 | D31: 35824.75082 | E31: 13844.10639
A32: 23 | B32: Spire Injections Storage Commodity | C32: =+'Ut 1.4 p3'!H43 -> 0 | D32: 0 | E32: 0
A33: 24 | B33: Spire Withdrawals Storage Commodity | C33: =+'Ut 1.4 p3'!H44 -> 0 | D33: 0 | E33: 0
A34: 25 | B34: Clay Basin Injections Storage Commodity | C34: =+'Ut 1.4 p3'!H45 -> 128538.6101 | D34: 92711.28701 | E34: 35827.32306
A35: =A34+1 -> 26 | B35: Clay Basin Withdrawals Storage Commodity | C35: =+'Ut 1.4 p3'!H46 -> 218233.8079 | D35: 157405.9124 | E35: 60827.8955
A36: 27 | B36: LNG Electricity | C36: =+'Ut 1.4 p3'!H49 -> 1975112.526 | D36: =+(SUM(Expenses!J24:N24)*'Ut 1.4 p3'!D65) -> 1575427.035 | E36: =+SUM(Expenses!H24,Expenses!I24,Expenses!O24)*'Ut 1.4 p3'!D65 -> 399685.4906
A37: =+A36+1 -> 28 | B37: Utah SNG Costs | C37: =SUM(C10:C36) -> 85697105.28 | D37: =SUM(D10:D36) -> 64264836.22 | E37: 21432269.07
A39: =A37+1 -> 29 | B39: Winter SNG - Summer SNG | C39: =D37-E37 -> 42832567.15
A40: =A39+1 -> 30 | B40: Winter Dth | C40: =C50 -> 80810261
A41: =A40+1 -> 31 | B41: Seasonal Cost Differential | C41: =ROUND(C39/C40,5) -> 0.53004
A43: =+A41+1 -> 32 | B43: SNG Amortization | C43: =+'Ut 1.5 p3'!C30 -> 3118561.82 | D43: =+C43*D37/C37 -> 2338630.505 | E43: =+C43*E37/C37 -> 779931.3151
A45: =+A43+1 -> 33 | B45: Winter SNG - Summer SNG Amortization | C45: =+D43-E43 -> 1558699.19
A46: =+A45+1 -> 34 | B46: Winter Dth | C46: =+C50 -> 80810261
A47: =+A46+1 -> 35 | B47: Seasonal Cost Differential | C47: =ROUND(C45/C46,5) -> 0.01929
A49: =+A47+1 -> 36 | B49: 2022-23 Forecast GS Summer Usage | C49: =+'Ut 1.5 p3'!C15 -> 31228294 | D49: =C49/(C49+C50) -> 0.2787281039
A50: =A49+1 -> 37 | B50: 2022-23 Forecast GS Winter Usage | C50: =+'Ut 1.5 p3'!C16 -> 80810261 | D50: =C50/(C50+C49) -> 0.7212718961

Sheet Ut 1.5 p5
E1: ='Control Panel'!$F$32 -> Dominion Energy Utah
E2: ='Control Panel'!$F$33 -> Docket No. 22-057-08
E3: DEU Exhibit 1.5
E4: Page 5 of 6
A7: FIRM SALES SUMMER / WINTER DIFFERENTIAL
A9: SNG | B9: (A) | C9: (B) | D9: (C) | E9: (D)
B10: Contract | C10: Allocated FS Costs | D10: Winter Allocation | E10: Summer Allocation
A11: 1 | B11: DEQPC T-1 Transportation: Yearly | C11: =+'Ut 1.4 p3'!I15 -> 1424720.038 | D11: =C11*D52 -> 704705.9492 | E11: =C11*$D$51 -> 720014.0883
A12: =A11+1 -> 2 | B12: DEQPC T-1 Transportation: November - March | C12: =+'Ut 1.4 p3'!I16 -> 60927.79066 | D12: =C12 -> 60927.79066 | E12: 0
A13: =A12+1 -> 3 | B13: DEQPC No-Notice Transportation | C13: =+'Ut 1.4 p3'!I17 -> 50562.53584 | D13: =C13*D52 -> 25009.62917 | E13: =C13*$D$51 -> 25552.90667
A14: 4 | B14: Capacity Release Credits | C14: =+'Ut 1.4 p3'!I18 -> -29799.09646 | D14: =C14*$D$52 -> -14739.45758 | E14: =C14*$D$51 -> -15059.63888
A15: 5 | B15: DEOTP Transportation: Yearly | C15: =+'Ut 1.4 p3'!I19 -> 3962.449451 | D15: =C15*$D$52 -> 1959.93713 | E15: =C15*$D$51 -> 2002.512321
A16: 6 | B16: Kern River Transportation: Yearly | C16: =+'Ut 1.4 p3'!I20 -> 32944.10101 | D16: =C16*$D$52 -> 16295.06384 | E16: =C16*$D$51 -> 16649.03716
A17: 7 | B17: Kern River Transportation: November - March | C17: =+'Ut 1.4 p3'!I21 -> 47141.13627 | D17: =C17 -> 47141.13627 | E17: 0
A18: 8 | B18: Kern River Transportation: December - February | C18: =+'Ut 1.4 p3'!I22 -> 35452.98896 | D18: =C18 -> 35452.98896 | E18: 0
A19: 9 | B19: Kern River Transportation: November & March | C19: =+'Ut 1.4 p3'!I23 -> 2532.726217 | D19: =C19 -> 2532.726217 | E19: 0
A20: 10 | B20: ACA (FERC) | C20: =+'Ut 1.4 p3'!I24 -> 3839.00565 | D20: =C20*$D$52 -> 1898.878411 | E20: =C20*$D$51 -> 1940.127239
A21: 11 | B21: QPC Commodity | C21: =+'Ut 1.4 p3'!I25 -> 6977.247622 | D21: 3451.139718 | E21: 3526.107904
A22: 12 | B22: DEOTP Commodity | C22: =+'Ut 1.4 p3'!I26 -> 124.2043868 | D22: =C22*$D$52 -> 61.43492615 | E22: =C22*$D$51 -> 62.76946065
A23: 13 | B23: Kern River Commodity | C23: =+'Ut 1.4 p3'!I27 -> 2250.968959 | D23: 1113.391526 | E23: 1137.577433
A24: 14 | B24: Other Transportation Charges | C24: =+'Ut 1.4 p3'!I28 -> 68079.10314 | D24: 33673.808 | E24: 34405.29514
A25: 15 | B25: DEQPC Peak Hour Service | C25: =+'Ut 1.4 p3'!I32 -> 18264.07559 | D25: =C25 -> 18264.07559 | E25: 0
A26: 16 | B26: Kern River Peak Hour Service | C26: =+'Ut 1.4 p3'!I33 -> 17263.06644 | D26: =C26 -> 17263.06644 | E26: 0
A27: 17 | B27: Aquifer Peaking Storage Demand | C27: =+'Ut 1.4 p3'!I37 -> 151925.2266 | D27: 75146.42048 | E27: 76778.8061
A28: 18 | B28: Spire Storage Demand | C28: =+'Ut 1.4 p3'!I38 -> 0 | D28: 0 | E28: 0
A29: 19 | B29: Clay Basin Storage Demand | C29: =+'Ut 1.4 p3'!I39 -> 91368.53973 | D29: 45193.4077 | E29: 46175.13203
A30: 20 | B30: Clay Basin Storage Capacity | C30: =+'Ut 1.4 p3'!I40 -> 91373.95643 | D30: 45196.08695 | E30: 46177.86948
A31: 21 | B31: Aquifer Peaking Injections Storage Commodity | C31: =+'Ut 1.4 p3'!I41 -> 1256.952211 | D31: 621.7233404 | E31: 635.2288705
A32: 22 | B32: Aquifer Peaking Withdrawals Storage Commodity | C32: =+'Ut 1.4 p3'!I42 -> 1256.952211 | D32: 621.7233404 | E32: 635.2288705
A33: 23 | B33: Spire Injections Storage Commodity | C33: =+'Ut 1.4 p3'!I43 -> 0 | D33: 0 | E33: 0
A34: 24 | B34: Spire Withdrawals Storage Commodity | C34: =+'Ut 1.4 p3'!I44 -> 0 | D34: 0 | E34: 0
A35: 25 | B35: Clay Basin Injections Storage Commodity | C35: =+'Ut 1.4 p3'!I45 -> 3252.881165 | D35: 1608.965024 | E35: 1643.916141
A36: 26 | B36: Clay Basin Withdrawals Storage Commodity | C36: =+'Ut 1.4 p3'!I46 -> 5522.76583 | D36: 2731.712781 | E36: 2791.053049
A37: =+A36+1 -> 27 | B37: LNG Electricity | C37: =+'Ut 1.4 p3'!I49 -> 49983.47446 | D37: =+(SUM(Expenses!J24:N24)*'Ut 1.4 p3'!E65) -> 39868.77505 | E37: =+SUM(Expenses!H24,Expenses!I24,Expenses!O24)*'Ut 1.4 p3'!E65 -> 10114.69942
A38: =+A37+1 -> 28 | B38: Utah SNG Costs | C38: =SUM(C11:C37) -> 2141183.09 | D38: =SUM(D11:D37) -> 1166000.373 | E38: 975182.7167
A40: =A38+1 -> 29 | B40: Winter SNG - Summer SNG | C40: =D38-E38 -> 190817.6564
A41: =A40+1 -> 30 | B41: Winter Dth | C41: =C52 -> 1280686
A42: =A41+1 -> 31 | B42: Seasonal Cost Differential | C42: =ROUND(C40/C41,5) -> 0.149
A44: =+A42+1 -> 32 | B44: SNG Amortization | C44: =+'Ut 1.5 p3'!D30 -> 77898.39437 | D44: =+C44*D38/C38 -> 42420.26631 | E44: =+C44*E38/C38 -> 35478.12805
A46: =+A44+1 -> 33 | B46: Winter SNG - Summer SNG Amortization | C46: =+D44-E44 -> 6942.138259
A47: =+A46+1 -> 34 | B47: Winter Dth | C47: =+C52 -> 1280686
A48: =+A47+1 -> 35 | B48: Seasonal Cost Differential | C48: =ROUND(C46/C47,5) -> 0.00542
A51: =+A48+1 -> 36 | B51: 2022-2023 Forecast FS Summer Usage | C51: =+'Ut 1.5 p3'!D15 -> 1308506 | D51: =C51/(C51+C52) -> 0.5053723324
A52: =+A51+1 -> 37 | B52: 2022-2023 Forecast FS Winter Usage | C52: =+'Ut 1.5 p3'!D16 -> 1280686 | D52: =C52/(C52+C51) -> 0.4946276676

Sheet Ut 1.5 p6
H1: ='Control Panel'!$F$32 -> Dominion Energy Utah
H2: ='Control Panel'!$F$33 -> Docket No. 22-057-08
H3: DEU Exhibit 1.5
H4: Page 6 of 6
C7: SUMMARY OF RATES
B9: COMMODITY | D9: (A) | E9: (B)
B10: Class | C10: Description | D10: Current | E10: Proposed
B11: GS, FS
A12: 1 | C12: Base Gas Cost | D12: =+'Other Inputs'!F119 -> 4.6196 | E12: =+'Ut 1.5 p1'!F30 -> 5.43597
A13: 2 | C13: 191 Amortization | D13: =+'Other Inputs'!F120 -> 0.5702 | E13: =+'Ut 1.5 p1'!F31 -> 0.5702
A14: 3 | C14: Commodity Rate | D14: =+D12+D13 -> 5.1898 | E14: =+E12+E13 -> 6.00617
B16: IS
A17: =+A14+1 -> 4 | C17: Base Gas Cost | D17: =+'Other Inputs'!F119 -> 4.6196 | E17: =+'Ut 1.5 p1'!F37 -> 5.42485
A18: =+A17+1 -> 5 | C18: 191 Amortization | D18: =+'Other Inputs'!F120 -> 0.5702 | E18: =+'Ut 1.5 p1'!F38 -> 0.5702
A19: =+A18+1 -> 6 | C19: Commodity Rate | D19: =+D17+D18 -> 5.1898 | E19: =+E17+E18 -> 5.99505
B21: NGV
A22: =+A19+1 -> 7 | C22: Base Gas Cost | D22: =+'Other Inputs'!F119 -> 4.6196 | E22: =+'Ut 1.5 p1'!F37 -> 5.42485
A23: =+A22+1 -> 8 | C23: 191 Amortization | D23: =+'Other Inputs'!F120 -> 0.5702 | E23: =+'Ut 1.5 p1'!F31 -> 0.5702
A24: =+A23+1 -> 9 | C24: RIN Credit | D24: =+'Other Inputs'!F129 -> -0.37839 | E24: ='Ut 1.5 p1'!H72 -> -0.33195
A25: 10 | C25: Commodity Rate | D25: =+D22+D23+D24 -> 4.81141 | E25: =+E22+E23+E24 -> 5.6631
B28: SNG
B29: Class | C29: Description | D29: Current | E29: Proposed
A30: =+A25+1 -> 11 | B30: GS | C30: Base SNG Summer | D30: =+'Other Inputs'!E89 -> 0.37469 | E30: =ROUND('Ut 1.5 p3'!C20,5) -> 0.38263
A31: =+A30+1 -> 12 | C31: SNG Amortization | D31: =+'Other Inputs'!F89 -> 0.02356 | E31: =ROUND('Ut 1.5 p3'!C33,5) -> 0.01392
A32: =+A31+1 -> 13 | C32: SNG Summer Rate | D32: =+D30+D31 -> 0.39825 | E32: =+E30+E31 -> 0.39655
A34: =+A32+1 -> 14 | C34: Base SNG Winter | D34: =+'Other Inputs'!E88 -> 0.89084 | E34: =ROUND('Ut 1.5 p3'!C21,5) -> 0.91267
A35: =+A34+1 -> 15 | C35: SNG Amortization | D35: =+'Other Inputs'!F88 -> 0.05618 | E35: =ROUND('Ut 1.5 p3'!C34,5) -> 0.03321
A36: =+A35+1 -> 16 | C36: SNG Winter Rate | D36: =+D34+D35 -> 0.94702 | E36: =+E34+E35 -> 0.94588
A38: =+A36+1 -> 17 | B38: FS | C38: Base SNG Summer | D38: =+'Other Inputs'!E92 -> 0.78021 | E38: =ROUND('Ut 1.5 p3'!D20,5) -> 0.7531
A39: =+A38+1 -> 18 | C39: SNG Amortization | D39: =+'Other Inputs'!F92 -> 0.04298 | E39: =ROUND('Ut 1.5 p3'!D33,5) -> 0.02741
A40: =+A39+1 -> 19 | C40: SNG Summer Rate | D40: =+D38+D39 -> 0.82319 | E40: =+E38+E39 -> 0.78051
A42: =+A40+1 -> 20 | C42: Base SNG Winter | D42: =+'Other Inputs'!E91 -> 0.80291 | E42: =ROUND('Ut 1.5 p3'!D21,5) -> 0.9021
A43: =+A42+1 -> 21 | C43: SNG Amortization | D43: =+'Other Inputs'!F91 -> 0.05319 | E43: =ROUND('Ut 1.5 p3'!D34,5) -> 0.03283
A44: =+A43+1 -> 22 | C44: SNG Winter Rate | D44: =+D42+D43 -> 0.8561 | E44: =+E42+E43 -> 0.93493
A46: =+A44+1 -> 23 | B46: IS | C46: SNG Rate | D46: =+'Other Inputs'!E96 -> 0.17905 | E46: =ROUND('Ut 1.5 p3'!E23,5) -> 0.17905
A48: =+A46+1 -> 24 | B48: TSF | C48: Base SNG Annual Demand | D48: =+'Other Inputs'!G316 -> 2.09768 | E48: =ROUND('Ut 1.5 p3'!F25,5) -> 2.08257
A49: =+A48+1 -> 25 | C49: SNG Amortization | D49: =+'Other Inputs'!G317 -> 0.11838 | E49: =ROUND('Ut 1.5 p3'!F35,5) -> 0.07578
A50: =+A49+1 -> 26 | C50: SNG Adder Annual | D50: =+D48+D49 -> 2.21606 | E50: =+E48+E49 -> 2.15835
A51: =+A50+1 -> 27 | C51: SNG Adder Monthly | D51: =+ROUND(D50/12,5) -> 0.18467 | E51: =+ROUND(E50/12,5) -> 0.17986
A53: =+A51+1 -> 28 | B53: TBF | C53: Base SNG Annual Demand | D53: ='Other Inputs'!G321 -> 1.31352 | E53: =ROUND('Ut 1.5 p3'!G25,5) -> 1.38744
A54: =+A53+1 -> 29 | C54: SNG Amortization | D54: ='Other Inputs'!G322 -> 0.07376 | E54: =ROUND('Ut 1.5 p3'!G35,5) -> 0.05049
A55: =+A54+1 -> 30 | C55: SNG Adder Annual | D55: =+D53+D54 -> 1.38728 | E55: =+E53+E54 -> 1.43793
A56: =+A55+1 -> 31 | C56: SNG Adder Monthly | D56: =+ROUND(D55/12,5) -> 0.11561 | E56: =+ROUND(E55/12,5) -> 0.11983
A58: =+A56+1 -> 32 | B58: NGV | C58: Base SNG | D58: =+'Other Inputs'!E94 -> 0.97444 | E58: =ROUND('Ut 1.5 p3'!H23,5) -> 0.68177
A59: =+A58+1 -> 33 | C59: SNG Amortization | D59: =+'Other Inputs'!F94 -> 0.0621 | E59: =ROUND('Ut 1.5 p3'!H35,5) -> 0.02481
A60: =+A59+1 -> 34 | C60: SNG Rate | D60: =+D58+D59 -> 1.03654 | E60: =+E58+E59 -> 0.70658

Sheet Ut 1.6 p1
L1: ='Control Panel'!$F$32 -> Dominion Energy Utah
L2: ='Control Panel'!$F$33 -> Docket No. 22-057-08
L3: DEU Exhibit 1.6
L4: Page 1 of 2
C7: EFFECT ON GS TYPICAL CUSTOMER
C8: 70 DTHS - ANNUAL CONSUMPTION
C11: (A) | D11: (B) | E11: (C) | F11: (D) | H11: (E) | J11: (F)
F12: Billed at Current | H12: Billed at
C13: Rate | E13: Usage | F13: Rates Effective | H13: Proposed Rates
C14: Schedule | D14: Month | E14: In Dth | F14: ='Other Inputs'!J100 -> 2022-06-01 | H14: ='Control Panel'!F5 -> 22-057-08 | J14: Change
B16: 1 | C16: GS | D16: Jan | E16: ='Monthly Inputs'!K128 -> 13 | F16: =ROUND((+E16*'Other Inputs'!$G$102)+'Other Inputs'!$G$104,2) -> 126.96 | H16: =ROUND((+E16*'Ut 1.6 Source'!$F$16)+'Ut 1.6 Source'!$C$18,2) -> 137.56 | J16: =H16-F16 -> 10.6
B17: =B16+1 -> 2 | D17: Feb | E17: ='Monthly Inputs'!K129 -> 10.9 | F17: =ROUND((+E17*'Other Inputs'!$G$102)+'Other Inputs'!$G$104,2) -> 107.54 | H17: =ROUND((+E17*'Ut 1.6 Source'!$F$16)+'Ut 1.6 Source'!$C$18,2) -> 116.43 | J17: 8.89
B18: =B17+1 -> 3 | D18: Mar | E18: ='Monthly Inputs'!K130 -> 8.8 | F18: =ROUND((+E18*'Other Inputs'!$G$102)+'Other Inputs'!$G$104,2) -> 88.13 | H18: =ROUND((+E18*'Ut 1.6 Source'!$F$16)+'Ut 1.6 Source'!$C$18,2) -> 95.3 | J18: 7.17
B19: 4 | D19: Apr | E19: ='Monthly Inputs'!K131 -> 7.3 | F19: =ROUND((+E19*'Other Inputs'!$G$100)+'Other Inputs'!$G$104,2) -> 64.79 | H19: =ROUND((+E19*'Ut 1.6 Source'!$C$16)+'Ut 1.6 Source'!$C$18,2) -> 70.74 | J19: 5.95
B20: 5 | D20: May | E20: ='Monthly Inputs'!K132 -> 3.8 | F20: =ROUND((+E20*'Other Inputs'!$G$100)+'Other Inputs'!$G$104,2) -> 36.96 | H20: =ROUND((+E20*'Ut 1.6 Source'!$C$16)+'Ut 1.6 Source'!$C$18,2) -> 40.06 | J20: 3.1
B21: 6 | D21: Jun | E21: ='Monthly Inputs'!K133 -> 2.7 | F21: =ROUND((+E21*'Other Inputs'!$G$100)+'Other Inputs'!$G$104,2) -> 28.22 | H21: =ROUND((+E21*'Ut 1.6 Source'!$C$16)+'Ut 1.6 Source'!$C$18,2) -> 30.42 | J21: 2.2
B22: 7 | D22: Jul | E22: ='Monthly Inputs'!K134 -> 1.8 | F22: =ROUND((+E22*'Other Inputs'!$G$100)+'Other Inputs'!$G$104,2) -> 21.06 | H22: =ROUND((+E22*'Ut 1.6 Source'!$C$16)+'Ut 1.6 Source'!$C$18,2) -> 22.53 | J22: 1.47
B23: 8 | D23: Aug | E23: ='Monthly Inputs'!K135 -> 1.6 | F23: =ROUND((+E23*'Other Inputs'!$G$100)+'Other Inputs'!$G$104,2) -> 19.47 | H23: =ROUND((+E23*'Ut 1.6 Source'!$C$16)+'Ut 1.6 Source'!$C$18,2) -> 20.78 | J23: 1.31
B24: 9 | D24: Sep | E24: ='Monthly Inputs'!K136 -> 1.8 | F24: =ROUND((+E24*'Other Inputs'!$G$100)+'Other Inputs'!$G$104,2) -> 21.06 | H24: =ROUND((+E24*'Ut 1.6 Source'!$C$16)+'Ut 1.6 Source'!$C$18,2) -> 22.53 | J24: 1.47
B25: 10 | D25: Oct | E25: ='Monthly Inputs'!K137 -> 2.7 | F25: =ROUND((+E25*'Other Inputs'!$G$100)+'Other Inputs'!$G$104,2) -> 28.22 | H25: =ROUND((+E25*'Ut 1.6 Source'!$C$16)+'Ut 1.6 Source'!$C$18,2) -> 30.42 | J25: 2.2
B26: 11 | D26: Nov | E26: ='Monthly Inputs'!K138 -> 5.5 | F26: =ROUND((+E26*'Other Inputs'!$G$102)+'Other Inputs'!$G$104,2) -> 57.61 | H26: =ROUND((+E26*'Ut 1.6 Source'!$F$16)+'Ut 1.6 Source'!$C$18,2) -> 62.09 | J26: 4.48
B27: 12 | D27: Dec | E27: ='Monthly Inputs'!K139 -> 10.1 | F27: =ROUND((+E27*'Other Inputs'!$G$102)+'Other Inputs'!$G$104,2) -> 100.15 | H27: =ROUND((+E27*'Ut 1.6 Source'!$F$16)+'Ut 1.6 Source'!$C$18,2) -> 108.38 | J27: 8.23
B30: =B27+1 -> 13 | D30: Total | E30: =SUM(E16:E27) -> 70 | F30: =SUM(F16:F27) -> 700.17 | H30: =SUM(H16:H27) -> 757.24 | J30: =H30-F30 -> 57.07
B32: =B30+1 -> 14 | H32: Percent Change: | J32: =ROUND(J30/F30,4)*100 -> 8.15 | K32: %

Sheet Ut 1.6 p2
L1: ='Control Panel'!$F$32 -> Dominion Energy Utah
L2: ='Control Panel'!$F$33 -> Docket No. 22-057-08
L3: DEU Exhibit 1.6
L4: Page 2 of 2
C7: EFFECT ON GS TYPICAL CUSTOMER
C8: 80 DTHS - ANNUAL CONSUMPTION
C11: (A) | D11: (B) | E11: (C) | F11: (D) | H11: (E) | J11: (F)
F12: Billed at Current | H12: Billed at
C13: Rate | E13: Usage | F13: Rates Effective | H13: Proposed Rates
C14: Schedule | D14: Month | E14: In Dth | F14: ='Other Inputs'!J100 -> 2022-06-01 | H14: ='Control Panel'!F5 -> 22-057-08 | J14: Change
B16: 1 | C16: GS | D16: Jan | E16: ='Monthly Inputs'!G128 -> 14.9 | F16: =ROUND((+E16*'Other Inputs'!$G$102)+'Other Inputs'!$G$104,2) -> 144.53 | H16: =ROUND((+E16*'Ut 1.6 Source'!$F$16)+'Ut 1.6 Source'!$C$18,2) -> 156.68 | J16: =H16-F16 -> 12.15
B17: =B16+1 -> 2 | D17: Feb | E17: ='Monthly Inputs'!G129 -> 12.5 | F17: =ROUND((+E17*'Other Inputs'!$G$102)+'Other Inputs'!$G$104,2) -> 122.34 | H17: =ROUND((+E17*'Ut 1.6 Source'!$F$16)+'Ut 1.6 Source'!$C$18,2) -> 132.53 | J17: 10.19
B18: =B17+1 -> 3 | D18: Mar | E18: ='Monthly Inputs'!G130 -> 10.1 | F18: =ROUND((+E18*'Other Inputs'!$G$102)+'Other Inputs'!$G$104,2) -> 100.15 | H18: =ROUND((+E18*'Ut 1.6 Source'!$F$16)+'Ut 1.6 Source'!$C$18,2) -> 108.38 | J18: 8.23
B19: 4 | D19: Apr | E19: ='Monthly Inputs'!G131 -> 8.3 | F19: =ROUND((+E19*'Other Inputs'!$G$100)+'Other Inputs'!$G$104,2) -> 72.74 | H19: =ROUND((+E19*'Ut 1.6 Source'!$C$16)+'Ut 1.6 Source'!$C$18,2) -> 79.51 | J19: 6.77
B20: 5 | D20: May | E20: ='Monthly Inputs'!G132 -> 4.4 | F20: =ROUND((+E20*'Other Inputs'!$G$100)+'Other Inputs'!$G$104,2) -> 41.74 | H20: =ROUND((+E20*'Ut 1.6 Source'!$C$16)+'Ut 1.6 Source'!$C$18,2) -> 45.32 | J20: 3.58
B21: 6 | D21: Jun | E21: ='Monthly Inputs'!G133 -> 3.1 | F21: =ROUND((+E21*'Other Inputs'!$G$100)+'Other Inputs'!$G$104,2) -> 31.4 | H21: =ROUND((+E21*'Ut 1.6 Source'!$C$16)+'Ut 1.6 Source'!$C$18,2) -> 33.92 | J21: 2.52
B22: 7 | D22: Jul | E22: ='Monthly Inputs'!G134 -> 2 | F22: =ROUND((+E22*'Other Inputs'!$G$100)+'Other Inputs'!$G$104,2) -> 22.65 | H22: =ROUND((+E22*'Ut 1.6 Source'!$C$16)+'Ut 1.6 Source'!$C$18,2) -> 24.28 | J22: 1.63
B23: 8 | D23: Aug | E23: ='Monthly Inputs'!G135 -> 1.8 | F23: =ROUND((+E23*'Other Inputs'!$G$100)+'Other Inputs'!$G$104,2) -> 21.06 | H23: =ROUND((+E23*'Ut 1.6 Source'!$C$16)+'Ut 1.6 Source'!$C$18,2) -> 22.53 | J23: 1.47
B24: 9 | D24: Sep | E24: ='Monthly Inputs'!G136 -> 2 | F24: =ROUND((+E24*'Other Inputs'!$G$100)+'Other Inputs'!$G$104,2) -> 22.65 | H24: =ROUND((+E24*'Ut 1.6 Source'!$C$16)+'Ut 1.6 Source'!$C$18,2) -> 24.28 | J24: 1.63
B25: 10 | D25: Oct | E25: ='Monthly Inputs'!G137 -> 3.1 | F25: =ROUND((+E25*'Other Inputs'!$G$100)+'Other Inputs'!$G$104,2) -> 31.4 | H25: =ROUND((+E25*'Ut 1.6 Source'!$C$16)+'Ut 1.6 Source'!$C$18,2) -> 33.92 | J25: 2.52
B26: 11 | D26: Nov | E26: ='Monthly Inputs'!G138 -> 6.3 | F26: =ROUND((+E26*'Other Inputs'!$G$102)+'Other Inputs'!$G$104,2) -> 65.01 | H26: =ROUND((+E26*'Ut 1.6 Source'!$F$16)+'Ut 1.6 Source'!$C$18,2) -> 70.14 | J26: 5.13
B27: 12 | D27: Dec | E27: ='Monthly Inputs'!G139 -> 11.5 | F27: =ROUND((+E27*'Other Inputs'!$G$102)+'Other Inputs'!$G$104,2) -> 113.09 | H27: =ROUND((+E27*'Ut 1.6 Source'!$F$16)+'Ut 1.6 Source'!$C$18,2) -> 122.47 | J27: 9.38
B30: =B27+1 -> 13 | D30: Total | E30: =SUM(E16:E27) -> 80 | F30: =SUM(F16:F27) -> 788.76 | H30: =SUM(H16:H27) -> 853.96 | J30: =H30-F30 -> 65.2
B32: =B30+1 -> 14 | H32: Percent Change: | J32: =ROUND(J30/F30,4)*100 -> 8.27 | K32: %

Sheet Ut 1.7 Tot (hidden)
L1: ='Control Panel'!$F$32 -> Dominion Energy Utah
L2: Docket Nos. 08-057-15, 08-057-16 & 08-057-17
L3: Hearing Exhibit 2
A5: NOT USED
C7: EFFECT ON GS-1 TYPICAL CUSTOMER
B8: OF PROPOSED COMMODITY AND SNG RATES AND CET AND DSM AMORTIZATIONS
C9: 80 DTHS - ANNUAL CONSUMPTION
C12: (A) | D12: (B) | E12: (C) | F12: (D) | H12: (E) | J12: (F)
F13: Billed at Current | H13: Billed at
C14: Rate | E14: Usage | F14: Rates Effective | H14: Proposed
C15: Schedule | D15: Month | E15: In Dth | F15: ='Other Inputs'!J100 -> 2022-06-01 | H15: Rates | J15: Change
B17: 1 | C17: GS | D17: Jan | E17: ='Monthly Inputs'!G128 -> 14.9 | F17: =ROUND((+E17*'Other Inputs'!$G$102)+'Other Inputs'!$G$104,2) -> 144.53 | H17: ='CET & DSM'!D107 ->  | J17: =H17-F17 -> 
B18: =B17+1 -> 2 | D18: Feb | E18: ='Monthly Inputs'!G129 -> 12.5 | F18: =ROUND((+E18*'Other Inputs'!$G$102)+'Other Inputs'!$G$104,2) -> 122.34 | H18: ='CET & DSM'!D108 -> 
B19: 3 | D19: Mar | E19: ='Monthly Inputs'!G130 -> 10.1 | F19: =ROUND((+E19*'Other Inputs'!$G$102)+'Other Inputs'!$G$104,2) -> 100.15 | H19: ='CET & DSM'!D109 -> 
B20: 4 | D20: Apr | E20: ='Monthly Inputs'!G131 -> 8.3 | F20: =ROUND((+E20*'Other Inputs'!$G$100)+'Other Inputs'!$G$104,2) -> 72.74 | H20: ='CET & DSM'!D110 -> 
B21: 5 | D21: May | E21: ='Monthly Inputs'!G132 -> 4.4 | F21: =ROUND((+E21*'Other Inputs'!$G$100)+'Other Inputs'!$G$104,2) -> 41.74 | H21: ='CET & DSM'!D111 -> 
B22: 6 | D22: Jun | E22: ='Monthly Inputs'!G133 -> 3.1 | F22: =ROUND((+E22*'Other Inputs'!$G$100)+'Other Inputs'!$G$104,2) -> 31.4 | H22: ='CET & DSM'!D112 -> 
B23: 7 | D23: Jul | E23: ='Monthly Inputs'!G134 -> 2 | F23: =ROUND((+E23*'Other Inputs'!$G$100)+'Other Inputs'!$G$104,2) -> 22.65 | H23: ='CET & DSM'!D113 -> 
B24: 8 | D24: Aug | E24: ='Monthly Inputs'!G135 -> 1.8 | F24: =ROUND((+E24*'Other Inputs'!$G$100)+'Other Inputs'!$G$104,2) -> 21.06 | H24: ='CET & DSM'!D114 -> 
B25: 9 | D25: Sep | E25: ='Monthly Inputs'!G136 -> 2 | F25: =ROUND((+E25*'Other Inputs'!$G$100)+'Other Inputs'!$G$104,2) -> 22.65 | H25: ='CET & DSM'!D115 -> 
B26: 10 | D26: Oct | E26: ='Monthly Inputs'!G137 -> 3.1 | F26: =ROUND((+E26*'Other Inputs'!$G$100)+'Other Inputs'!$G$104,2) -> 31.4 | H26: ='CET & DSM'!D116 -> 
B27: 11 | D27: Nov | E27: ='Monthly Inputs'!G138 -> 6.3 | F27: =ROUND((+E27*'Other Inputs'!$G$102)+'Other Inputs'!$G$104,2) -> 65.01 | H27: ='CET & DSM'!D117 -> 
B28: 12 | D28: Dec | E28: ='Monthly Inputs'!G139 -> 11.5 | F28: =ROUND((+E28*'Other Inputs'!$G$102)+'Other Inputs'!$G$104,2) -> 113.09 | H28: ='CET & DSM'!D118 -> 
B31: =B28+1 -> 13 | D31: Total | E31: =SUM(E17:E28) -> 80 | F31: =SUM(F17:F28) -> 788.76 | H31: =SUM(H17:H28) ->  | J31: =H31-F31 -> 
H33: Percent Change: | J33: =ROUND(J31/F31,4)*100 ->  | K33: %

Sheet Ut 1.7 p1
F1: ='Control Panel'!F32 -> Dominion Energy Utah
F2: ='Control Panel'!F33 -> Docket No. 22-057-08
F3: DEU Exhibit 1.7
F4: Page 1 of 17
A15: DOMINION ENERGY UTAH
A16: 333 South State Street
A17: P.O. Box 45433
A18: Salt Lake City, Utah 84145-0433
A29: LEGISLATIVE/PROPOSED RATE SCHEDULES
A31: P.S.C. Utah No. 500
A32: Affecting GS, FS, NGV, IS, TBF, and TSF Rate Schedules
A33: and Classes of Service In
A34: Dominion Energy
A35: Utah Service Area
A37: Tariff Section 2.02, 2.03, 2.04, 4.02, 5,02, and 5.04
A39: Date Issued: June 1, 2022
A40: To Become Effective August 1, 2022

Sheet LEG - PR
A2: LEGISLATIVE TARIFF
A3: SHEETS
A6: PROPOSED TARIFF
A7: SHEETS

Sheet Ut 1.6 Source
A1: SUMMARY OF PROPOSED RATES
G2: Current Rates Effective | H2: 2022-06-01
A3: UTAH RATE CLASSES | C3: Rates per Dth Used Each Month
C4: All Season Rates or Summer Rates: Apr. 1 - Oct. 31 | F4: Winter Rates: Nov. 1 - Mar. 31
A5: UT GS | C5: First 45 Dth | D5: All Over 45 Dth | F5: First 45 Dth | G5: All Over 45 Dth
B6: Distribution Non-Gas Cost | C6: 1.94617 | D6: 0.74377 | F6: 2.64801 | G6: 1.44561
B7: CET Amortization | C7: 0.02274 | D7: 0.00888 | F7: 0.03083 | G7: 0.01697
B8: DSM Amortization | C8: 0.27767 | D8: 0.27767 | F8: 0.27767 | G8: 0.27767
B9: Energy Assistance | C9: 0.01308 | D9: 0.01308 | F9: 0.01308 | G9: 0.01308
B10: Infrastructure Rate Adjustment | C10: 0.08309 | D10: 0.03175 | F10: 0.11305 | G10: 0.06172
B11: Rural Expansion Rate Adjustment | C11: 0.01691 | D11: 0.00646 | F11: 0.02301 | G11: 0.01256
B12: STEP Surcharge | C12: 0.00346 | D12: 0.00132 | F12: 0.00471 | G12: 0.00257
B13: Supplier Non-Gas Cost | C13: =+'Ut 1.5 p6'!E32 -> 0.39655 | D13: =C13 -> 0.39655 | F13: =+'Ut 1.5 p6'!E36 -> 0.94588 | G13: =F13 -> 0.94588
B14: Commodity Cost | C14: =('Ut 1.5 p1'!$F$32) -> 6.00617 | D14: =C14 -> 6.00617 | F14: =D14 -> 6.00617 | G14: =F14 -> 6.00617
B16: Total Rate | C16: =SUM(C6:C15) -> 8.76584 | D16: =SUM(D6:D15) -> 7.48565 | F16: =SUM(F6:F15) -> 10.06241 | G16: =SUM(G6:G15) -> 8.78223
B18: BSF Category 1 | C18: 6.75
B19: BSF Category 2 | C19: 18.25
B20: BSF Category 3 | C20: 63.5
B21: BSF Category 4 | C21: 420.25
C22: =2.3704-0.00728 -> 2.36312
A24: UT FS | C24: First 200 Dth | D24: Next 1,800 Dth | E24: All Over 2,000 Dth | F24: First 200 Dth | G24: Next 1,800 Dth | H24: All Over 2,000 Dth
B25: Distribution Non-Gas Cost | C25: 1.03811 | D25: 0.54067 | E25: 0.01703 | F25: 1.56992 | G25: 1.07247 | H25: 0.54883
B26: Energy Assistance | C26: 0.01084 | D26: 0.01084 | E26: 0.01084 | F26: 0.01084 | G26: 0.01084 | H26: 0.01084
B27: Infrastructure Rate Adjustment | C27: 0.03924 | D27: 0.02044 | E27: 0.00064 | F27: 0.05935 | G27: 0.04054 | H27: 0.02075
B28: Rural Expansion Rate Adjustment | C28: 0.00814 | D28: 0.00424 | E28: 0.00013 | F28: 0.01231 | G28: 0.00841 | H28: 0.0043
B29: STEP Surcharge | C29: 0.00162 | D29: 0.00085 | E29: 3e-05 | F29: 0.00246 | G29: 0.00168 | H29: 0.00086
B30: Supplier Non-Gas Cost | C30: =+'Ut 1.5 p6'!E40 -> 0.78051 | D30: =C30 -> 0.78051 | E30: =D30 -> 0.78051 | F30: =+'Ut 1.5 p6'!E44 -> 0.93493 | G30: =F30 -> 0.93493 | H30: =G30 -> 0.93493
B31: Commodity Cost | C31: =('Ut 1.5 p1'!$F$32) -> 6.00617 | D31: =C31 -> 6.00617 | E31: =D31 -> 6.00617 | F31: =E31 -> 6.00617 | G31: =F31 -> 6.00617 | H31: =G31 -> 6.00617
B33: Total Rate | C33: =SUM(C25:C32) -> 7.88463 | D33: =SUM(D25:D32) -> 7.36372 | E33: =SUM(E25:E32) -> 6.81535 | F33: 8.59598 | G33: 8.07504 | H33: 7.52668
B35: Minimum Monthly DNG Charge: | C35: 182 | F35: 275
B37: BSF Category 1 | C37: =C18 -> 6.75
B38: BSF Category 2 | C38: =C19 -> 18.25
B39: BSF Category 3 | C39: =C20 -> 63.5
B40: BSF Category 4 | C40: =C21 -> 420.25
A43: UT Future Rate Class
C44: First 10,000 Dth | D44: All Over 10,000 Dth
B45: Distribution Non-Gas Cost
B46: Supplier Non-Gas Cost
B47: Commodity Cost
B49: Total Rate | C49: =SUM(C45:C48) -> 0 | D49: =SUM(D45:D48) -> 0
B51: Minimum Yearly Distribution Non-Gas Charge | D51: =ROUND(((10000*C45))*12,-2) -> 0
B54: BSF Category 1 | C54: =C18 -> 6.75
B55: BSF Category 2 | C55: =C19 -> 18.25
B56: BSF Category 3 | C56: =C20 -> 63.5
B57: BSF Category 4 | C57: =C21 -> 420.25
A61: UT NGV
B62: Distribution Non-Gas Cost | C62: 8.11914
B63: Energy Assistance | C63: 0.02113
B64: Infrastructure Rate Adjustment | C64: 0.41445
B65: Rural Expansion Rate Adjustment | C65: 0.06758
B66: STEP Surcharge | C66: 0.01374
B67: Supplier Non-Gas Cost | C67: =+'Ut 1.5 p6'!E60 -> 0.70658
B68: Commodity Cost | C68: ='Ut 1.5 p6'!E25 -> 5.6631
B70: Total Rate | C70: =SUM(C62:C69) -> 15.00572 | D70: =C70/8+0.35 -> 2.225715
A73: UT IS | C73: First 2,000 Dth | D73: Next 18,000 Dth | E73: All Over 20,000
B74: Distribution Non-Gas Cost | C74: 0.91912 | D74: 0.13879 | E74: 0.08169
B75: Energy Assistance | C75: 0.00939 | D75: 0.00939 | E75: 0.00939
B76: Infrastructure Rate Adjustment | C76: 0.02877 | D76: 0.00434 | E76: 0.00256
B77: Rural Expansion Rate Adjustment | C77: 0.00589 | D77: 0.00089 | E77: 0.00052
B78: STEP Surcharge | C78: 0.0012 | D78: 0.00018 | E78: 0.00011
B79: Supplier Non-Gas Cost | C79: =+'Ut 1.5 p6'!E46 -> 0.17905 | D79: =C79 -> 0.17905 | E79: =D79 -> 0.17905
B80: Commodity Cost | C80: =+'Ut 1.5 p6'!E19 -> 5.99505 | D80: =+'Ut 1.5 p6'!E19 -> 5.99505 | E80: =+'Ut 1.5 p6'!E19 -> 5.99505
B82: Total Rate | C82: =SUM(C74:C80) -> 7.13847 | D82: =SUM(D74:D80) -> 6.32769 | E82: =SUM(E74:E80) -> 6.26837
B84: BSF Category 1 | C84: =C18 -> 6.75
B85: BSF Category 2 | C85: =C19 -> 18.25
B86: BSF Category 3 | C86: =C20 -> 63.5
B87: BSF Category 4 | C87: =C21 -> 420.25

Sheet Ut 1.11 (hidden)
F1: ='Control Panel'!F36 -> 0
F2: ='Control Panel'!F33 -> Docket No. 22-057-08
F3: Exhibit 1.11
F4: Page 1 of 7
A17: DOMINION ENERGY UTAH
A18: 333 South State Street
A19: P.O. Box 45433
A20: Salt Lake City, Utah 84145-0433
A31: LEGISLATIVE/PROPOSED RATE SCHEDULES
A32: P.S.C. Utah Tariff

Sheet Ut 1.8 p1
F1: ='Control Panel'!F32 -> Dominion Energy Utah
F2: ='Control Panel'!F33 -> Docket No. 22-057-08
F3: DEU Exhibit 1.8
F4: Page 1 of 17
A15: DOMINION ENERGY UTAH
A16: 333 South State Street
A17: P.O. Box 45433
A18: Salt Lake City, Utah 84145-0433
A29: LEGISLATIVE/PROPOSED COMBINED RATE SCHEDULES
A31: P.S.C. Utah No. 500
A32: Affecting GS, FS, NGV, IS, TBF, and TSF Rate Schedules
A33: and Classes of Service In
A34: Dominion Energy
A35: Utah Service Area
A37: Tariff Section 2.02, 2.03, 2.04, 4.02, 5,02, and 5.04
A39: Date Issued: June 1, 2022
A40: To Become Effective August 1, 2022

Sheet Ut Storage
A1: Storage Injection / Withdrawal adjustment
C3: (A) | D3: (B) | E3: (C) | F3: (D) | G3: (E) | H3: (F) | I3: (G) | K3: (H) | L3: (I) | M3: (J)
G4: Injections | I4: (J) / (C)
E5: Storage | G5: ------------------------------------------------------------- | I5: Storage | M5: Storage
C6: Injection Dth | D6: Withdrawal Dth | E6: Inventory Dth | F6: % that is | G6: Co. Prod. | H6: Purchased | I6: Inventory | M6: Inventory
A7: Line | B7: Month | C7: Per IRPs | D7: Per IRPs | E7: Balance | F7: Co. Prod. (1) | G7: $/Dth (2) | H7: $/Dth (3) | I7: Average $/Dth | K7: Injection (4) | L7: Withdrawal (5) | M7: Balance
B8: =+Expenses!P3 -> 2022-04-30 | E8: =-1*'Other Inputs'!D252 -> 1184924 | I8: =M8/E8 -> 3.891838219 | M8: ='Other Inputs'!E252 -> 4611532.51
B9: ='Monthly Inputs'!E3 -> Jun22 | C9: ='Monthly Inputs'!E30 -> 2166181 | D9: =-'Monthly Inputs'!E39 -> 0 | E9: =E8+C9+D9 -> 3351105 | F9: =F21 -> 0.8243762734 | G9: ='Other Inputs'!F116 -> 4.17788 | H9: ='Monthly Inputs'!E88 -> 5.77 | I9: =M9/E9 -> 4.257482658 | K9: =(+F9*C9*G9)+((1-F9)*C9*H9) -> 9655738.913 | L9: =D9*I8 -> 0 | M9: =M8+L9+K9 -> 14267271.42
B10: ='Monthly Inputs'!F3 -> Jul22 | C10: ='Monthly Inputs'!F30 -> 1976476 | D10: =-'Monthly Inputs'!F39 -> 0 | E10: =E9+C10+D10 -> 5327581 | F10: =F22 -> 0.9567716592 | G10: =G9 -> 4.17788 | H10: ='Monthly Inputs'!F88 -> 6.05 | I10: 4.257974584 | K10: =(+F10*C10*G10)+((1-F10)*C10*H10) -> 8417433.068 | L10: =D10*I9 -> 0 | M10: =M9+L10+K10 -> 22684704.49
A11: 1. | B11: ='Monthly Inputs'!G3 -> Aug22 | C11: ='Monthly Inputs'!G30 -> 2051859 | D11: =-'Monthly Inputs'!G39 -> 0 | E11: =E10+C11+D11 -> 7379440 | F11: =Calculations!D187 -> 0.9361194459 | G11: ='Ut 1.2 p3'!$G$50 -> 3.97042599 | H11: =Calculations!D210 -> 6.18874 | I11: 4.217423252 | K11: 8437517.348 | L11: =D11*I10 -> 0 | M11: =M10+L11+K11 -> 31122221.84
A12: 2. | B12: ='Monthly Inputs'!H3 -> Sep22 | C12: ='Monthly Inputs'!H30 -> 1995132 | D12: =-'Monthly Inputs'!H39 -> 0 | E12: =E11+C12+D12 -> 9374572 | F12: =Calculations!E187 -> 0.8241366716 | G12: ='Ut 1.2 p3'!$G$50 -> 3.97042599 | H12: =Calculations!E210 -> 6.02 | I12: 4.24156761 | K12: 8640659.115 | L12: =D12*I11 -> 0 | M12: =M11+L12+K12 -> 39762880.95
A13: 3. | B13: ='Monthly Inputs'!I3 -> Oct22 | C13: ='Monthly Inputs'!I30 -> 2037654 | D13: =-'Monthly Inputs'!I39 -> 0 | E13: =E12+C13+D13 -> 11412226 | F13: =Calculations!F187 -> 0.4533789994 | G13: ='Ut 1.2 p3'!$G$50 -> 3.97042599 | H13: =Calculations!F210 -> 5.27282 | I13: 4.320267901 | K13: 9540992.716 | L13: =D13*I12 -> 0 | M13: 49303873.67
A14: 4. | B14: ='Monthly Inputs'!J3 -> Nov22 | C14: ='Monthly Inputs'!J30 -> 10996 | D14: =-'Monthly Inputs'!J39 -> -3837659 | E14: 7585563 | F14: =Calculations!G187 -> 0.5371830061 | G14: ='Ut 1.2 p3'!$G$50 -> 3.97042599 | H14: =Calculations!G210 -> 6.54793 | I14: =M14/E14 -> 4.321490013 | K14: 56776.07177 | L14: =D14*I13 -> -16579714.99 | M14: 32780934.75
A15: 5. | B15: ='Monthly Inputs'!K3 -> Dec22 | C15: ='Monthly Inputs'!K30 -> 399441 | D15: =-'Monthly Inputs'!K39 -> -2672247 | E15: 5312757 | F15: =Calculations!H187 -> 0.2838724936 | G15: ='Ut 1.2 p3'!$G$50 -> 3.97042599 | H15: =Calculations!H210 -> 7.50867 | I15: 4.485602124 | K15: 2598068.059 | L15: -11548088.72 | M15: 23830914.08
A16: 6. | B16: ='Monthly Inputs'!L3 -> Jan23 | C16: ='Monthly Inputs'!L30 -> 0 | D16: =-'Monthly Inputs'!L39 -> -4756546 | E16: =E15+C16+D16 -> 556211 | F16: =Calculations!I187 -> 0.302056541 | G16: ='Ut 1.2 p3'!$G$50 -> 3.97042599 | H16: =Calculations!I210 -> 8.73667 | I16: =M16/E16 -> 4.485602124 | K16: 0 | L16: -21335972.84 | M16: 2494941.243
A17: 7. | B17: ='Monthly Inputs'!M3 -> Feb23 | C17: ='Monthly Inputs'!M30 -> 0 | D17: =-'Monthly Inputs'!M39 -> -3094472 | E17: -2538261 | F17: =Calculations!J187 -> 0.3032144082 | G17: ='Ut 1.2 p3'!$G$50 -> 3.97042599 | H17: =Calculations!J210 -> 6.82746 | I17: =M17/E17 -> 4.485602124 | K17: 0 | L17: -13880570.18 | M17: -11385628.93
A18: 8. | B18: ='Monthly Inputs'!N3 -> Mar23 | C18: ='Monthly Inputs'!N30 -> 360186 | D18: =-'Monthly Inputs'!N39 -> 0 | E18: -2178075 | F18: =Calculations!K187 -> 0.3277508167 | G18: ='Ut 1.2 p3'!$G$50 -> 3.97042599 | H18: =Calculations!K210 -> 4.89078 | I18: 4.468481294 | K18: 1652941.539 | L18: =D18*I17 -> 0 | M18: -9732687.395
A19: 9. | B19: ='Monthly Inputs'!O3 -> Apr23 | C19: ='Monthly Inputs'!O30 -> 945000 | D19: =-'Monthly Inputs'!O39 -> 0 | E19: -1233075 | F19: =Calculations!L187 -> 0.4289954973 | G19: ='Ut 1.2 p3'!$G$50 -> 3.97042599 | H19: =Calculations!L210 -> 3.79084 | I19: 4.928766945 | K19: 3655148.094 | L19: 0 | M19: =M18+L19+K19 -> -6077539.3
A20: 10. | B20: ='Monthly Inputs'!P3 -> May23 | C20: ='Monthly Inputs'!P30 -> 2418001 | D20: =-'Monthly Inputs'!P39 -> 0 | E20: 1184926 | F20: =Calculations!M187 -> 0.5550264663 | G20: ='Ut 1.2 p3'!$G$50 -> 3.97042599 | H20: =Calculations!M210 -> 3.49178 | I20: 2.538519081 | K20: 9085496.561 | L20: 0 | M20: =M19+L20+K20 -> 3007957.26
A21: 11. | B21: ='Monthly Inputs'!Q3 -> Jun23 | C21: ='Monthly Inputs'!Q30 -> 2166181 | D21: =-'Monthly Inputs'!Q39 -> 0 | E21: 3351107 | F21: =Calculations!N187 -> 0.8243762734 | G21: ='Ut 1.2 p3'!$G$50 -> 3.97042599 | H21: =Calculations!N210 -> 3.51552 | I21: 3.412471596 | K21: 8427600.191 | L21: 0 | M21: =M20+L21+K21 -> 11435557.45
A22: 12. | B22: ='Monthly Inputs'!R3 -> Jul23 | C22: ='Monthly Inputs'!R30 -> 1976476 | D22: =-'Monthly Inputs'!R39 -> 0 | E22: 5327583 | F22: =Calculations!O187 -> 0.9567716592 | G22: ='Ut 1.2 p3'!$G$50 -> 3.97042599 | H22: =Calculations!O210 -> 3.61 | I22: 3.613686434 | K22: 7816656.962 | L22: 0 | M22: =M21+L22+K22 -> 19252214.41
M25: Inj./With. Adj.
A26: 14. | B26: Total | C26: =SUM(C11:C22) -> 14360926 | D26: =SUM(D11:D22) -> -14360924 | K26: =SUM(K11:K22) -> 59911856.66 | L26: =SUM(L11:L22) -> -63344346.73 | M26: =L26+K26 -> -3432490.078
A27: 15. | B27: Average $ /Dth | K27: =K26/C26 -> 4.171865843 | L27: =L26/D26 -> 4.410882387
A31: ___________________________________________________________________

Sheet LNG Storage
A1: Storage Injection / Withdrawal LNG adjustment
C3: (A) | D3: (B) | E3: (C) | F3: (D) | G3: (E) | H3: (F) | I3: (G) | K3: (H) | L3: (I) | M3: (J)
G4: Injections | I4: (J) / (C)
E5: Storage | G5: ------------------------------------------------------------- | I5: Storage | M5: Storage
C6: Injection Dth | D6: Withdrawal Dth | E6: Inventory Dth | F6: % that is | G6: Co. Prod. | H6: Purchased | I6: Inventory | M6: Inventory
A7: Line | B7: Month | C7: Per IRPs | D7: Per IRPs | E7: Balance | F7: Co. Prod. (1) | G7: $/Dth (2) | H7: $/Dth (3) | I7: Average $/Dth | K7: Injection (4) | L7: Withdrawal (5) | M7: Balance
B8: =+Expenses!P3 -> 2022-04-30 | E8: 0 | I8: =IFERROR(M8/E8,0) -> 0 | M8: 0
B9: ='Monthly Inputs'!E3 -> Jun22 | C9: =+'Monthly Inputs'!E42 -> 0 | D9: =+'Monthly Inputs'!E43 -> 0 | E9: 0 | F9: =F21 -> 0.8243762734 | G9: ='Other Inputs'!F116 -> 4.17788 | H9: ='Monthly Inputs'!E88 -> 5.77 | I9: =IFERROR(M9/E9,0) -> 0 | K9: =(+F9*C9*G9)+((1-F9)*C9*H9) -> 0 | L9: =D9*I8 -> 0 | M9: 0
B10: ='Monthly Inputs'!F3 -> Jul22 | C10: =+'Monthly Inputs'!F42 -> 0 | D10: =+'Monthly Inputs'!F43 -> 0 | E10: =E9+C10+D10 -> 0 | F10: =F22 -> 0.9567716592 | G10: =G9 -> 4.17788 | H10: ='Monthly Inputs'!F88 -> 6.05 | I10: =IFERROR(M10/E10,0) -> 0 | K10: =(+F10*C10*G10)+((1-F10)*C10*H10) -> 0 | L10: =D10*I9 -> 0 | M10: =M9+L10+K10 -> 0
A11: 1. | B11: ='Monthly Inputs'!G3 -> Aug22 | C11: =+'Monthly Inputs'!G42 -> 0 | D11: =+'Monthly Inputs'!G43 -> 0 | E11: =E10+C11+D11 -> 0 | F11: =Calculations!D187 -> 0.9361194459 | G11: ='Ut 1.2 p3'!$G$50 -> 3.97042599 | H11: =Calculations!D210 -> 6.18874 | I11: 0 | K11: 0 | L11: =D11*I10 -> 0 | M11: =M10+L11+K11 -> 0
A12: 2. | B12: ='Monthly Inputs'!H3 -> Sep22 | C12: =+'Monthly Inputs'!H42 -> 270000 | D12: =+'Monthly Inputs'!H43 -> 0 | E12: =E11+C12+D12 -> 270000 | F12: =Calculations!E187 -> 0.8241366716 | G12: ='Ut 1.2 p3'!$G$50 -> 3.97042599 | H12: =Calculations!E210 -> 6.02 | I12: 4.330870897 | K12: 1169335.142 | L12: =D12*I11 -> 0 | M12: =M11+L12+K12 -> 1169335.142
A13: 3. | B13: ='Monthly Inputs'!I3 -> Oct22 | C13: =+'Monthly Inputs'!I42 -> 279000 | D13: =+'Monthly Inputs'!I43 -> 0 | E13: =E12+C13+D13 -> 549000 | F13: =Calculations!F187 -> 0.4533789994 | G13: ='Ut 1.2 p3'!$G$50 -> 3.97042599 | H13: =Calculations!F210 -> 5.27282 | I13: 4.509487312 | K13: =(+F13*C13*G13)+((1-F13)*C13*H13) -> 1306373.392 | L13: =D13*I12 -> 0 | M13: =M12+L13+K13 -> 2475708.534
A14: 4. | B14: ='Monthly Inputs'!J3 -> Nov22 | C14: =+'Monthly Inputs'!J42 -> 270000 | D14: =+'Monthly Inputs'!J43 -> 0 | E14: 819000 | F14: =Calculations!G187 -> 0.5371830061 | G14: ='Ut 1.2 p3'!$G$50 -> 3.97042599 | H14: =Calculations!G210 -> 6.54793 | I14: 4.725042697 | K14: 1394101.435 | L14: =D14*I13 -> 0 | M14: 3869809.969
A15: 5. | B15: ='Monthly Inputs'!K3 -> Dec22 | C15: =+'Monthly Inputs'!K42 -> 279000 | D15: =+'Monthly Inputs'!K43 -> 0 | E15: 1098000 | F15: =Calculations!H187 -> 0.2838724936 | G15: ='Ut 1.2 p3'!$G$50 -> 3.97042599 | H15: =Calculations!H210 -> 7.50867 | I15: 5.177138859 | K15: 1814688.498 | L15: 0 | M15: 5684498.467
A16: 6. | B16: ='Monthly Inputs'!L3 -> Jan23 | C16: =+'Monthly Inputs'!L42 -> 135000 | D16: =+'Monthly Inputs'!L43 -> 0 | E16: =E15+C16+D16 -> 1233000 | F16: =Calculations!I187 -> 0.302056541 | G16: ='Ut 1.2 p3'!$G$50 -> 3.97042599 | H16: =Calculations!I210 -> 8.73667 | I16: 5.409239877 | K16: 985094.3008 | L16: 0 | M16: 6669592.768
A17: 7. | B17: ='Monthly Inputs'!M3 -> Feb23 | C17: =+'Monthly Inputs'!M42 -> 0 | D17: =+'Monthly Inputs'!M43 -> 0 | E17: 1233000 | F17: =Calculations!J187 -> 0.3032144082 | G17: ='Ut 1.2 p3'!$G$50 -> 3.97042599 | H17: =Calculations!J210 -> 6.82746 | I17: 5.409239877 | K17: 0 | L17: =D17*I16 -> 0 | M17: 6669592.768
A18: 8. | B18: ='Monthly Inputs'!N3 -> Mar23 | C18: =+'Monthly Inputs'!N42 -> 0 | D18: =+'Monthly Inputs'!N43 -> 0 | E18: 1233000 | F18: =Calculations!K187 -> 0.3277508167 | G18: ='Ut 1.2 p3'!$G$50 -> 3.97042599 | H18: =Calculations!K210 -> 4.89078 | I18: 5.409239877 | K18: 0 | L18: =D18*I17 -> 0 | M18: 6669592.768
A19: 9. | B19: ='Monthly Inputs'!O3 -> Apr23 | C19: =+'Monthly Inputs'!O42 -> 0 | D19: =+'Monthly Inputs'!O43 -> 184950 | E19: 1417950 | F19: =Calculations!L187 -> 0.4289954973 | G19: ='Ut 1.2 p3'!$G$50 -> 3.97042599 | H19: =Calculations!L210 -> 3.79084 | I19: 5.409239877 | K19: 0 | L19: 1000438.915 | M19: =M18+L19+K19 -> 7670031.683
A20: 10. | B20: ='Monthly Inputs'!P3 -> May23 | C20: =+'Monthly Inputs'!P42 -> 0 | D20: =+'Monthly Inputs'!P43 -> 0 | E20: 1417950 | F20: =Calculations!M187 -> 0.5550264663 | G20: ='Ut 1.2 p3'!$G$50 -> 3.97042599 | H20: =Calculations!M210 -> 3.49178 | I20: 5.409239877 | K20: 0 | L20: 0 | M20: =M19+L20+K20 -> 7670031.683
A21: 11. | B21: ='Monthly Inputs'!Q3 -> Jun23 | C21: =+'Monthly Inputs'!Q42 -> 0 | D21: =+'Monthly Inputs'!Q43 -> 0 | E21: 1417950 | F21: =Calculations!N187 -> 0.8243762734 | G21: ='Ut 1.2 p3'!$G$50 -> 3.97042599 | H21: =Calculations!N210 -> 3.51552 | I21: 5.409239877 | K21: 0 | L21: 0 | M21: =M20+L21+K21 -> 7670031.683
A22: 12. | B22: ='Monthly Inputs'!R3 -> Jul23 | C22: =+'Monthly Inputs'!R42 -> 0 | D22: =+'Monthly Inputs'!R43 -> 0 | E22: 1417950 | F22: =Calculations!O187 -> 0.9567716592 | G22: ='Ut 1.2 p3'!$G$50 -> 3.97042599 | H22: =Calculations!O210 -> 3.61 | I22: 5.409239877 | K22: 0 | L22: 0 | M22: =M21+L22+K22 -> 7670031.683
M25: Inj./With. Adj.
A26: 14. | B26: Total | C26: =SUM(C11:C22) -> 1233000 | D26: =SUM(D11:D22) -> 184950 | K26: =SUM(K11:K22) -> 6669592.768 | L26: =SUM(L11:L22) -> 1000438.915 | M26: =L26+K26 -> 7670031.683
A27: 15. | B27: Average $ /Dth | K27: =K26/C26 -> 5.409239877 | L27: =IFERROR(L26/D26,0) -> 5.409239877
A31: ___________________________________________________________________

Sheet Ex 1.1 Data
A1: MLPX Gathered | B1: 7311824 | C1: Adjusted test year-> | D1: 0.02086928212 | E1: 7464416.518 | H1: MLPX Gathered | I1: 5579139 | J1: Adjusted test year-> | K1: 0.397515924 | L1: 7796935.595
A2: Birch Creek | B2: 1452946 | C2: Adjusted test year-> | D2: 0.02086928212 | E2: 1483267.94 | H2: Birch Creek | I2: 0
A3: Other | B3: 12940973 | H3: Other | I3: 4611153
A4: Wexpro | B4: 0 | H4: Wexpro | I4: 521699
A5: MLPX-Acquired | B5: 18546910 | H5: MLPX-Acquired | I5: 0
C7: WEXPRO I | J7: WEXPRO II
A8: Input Operator Service Fee > | C8: =+'Monthly Inputs'!S119 -> 160237976.4 | H8: Input Operator Service Fee > | J8: =+'Monthly Inputs'!S121 -> 46263000.92
A11: \/ | C11: 2022-04-30 | J11: 2022-04-30
A12: \/ | B12: Company | C12: Average Index | D12: Church Buttes | H12: \/ | I12: Company | J12: Average Index | K12: Church Buttes
A13: \/ | B13: Production | C13: Spot Prices | D13: & Canyon Cr | H13: \/ | I13: Production | J13: Spot Prices | K13: & Canyon Cr
A14: January | B14: 3704506.49 | C14: 7.15 | D14: =C14+0.1 -> 7.25 | E14: =B14*D14 -> 26857672.05 | H14: January | I14: 1380553 | J14: 7.15 | K14: =J14+0.1 -> 7.25 | L14: =I14*K14 -> 10009009.25
A15: February | B15: 3314161.19 | C15: 6.42 | D15: 6.52 | E15: 21608330.96 | H15: February | I15: 1218001 | J15: 6.42 | K15: 6.52 | L15: 7941366.52
A16: March | B16: 3469755.391 | C16: 4.91 | D16: 5.01 | E16: 17383474.51 | H16: March | I16: 1310142 | J16: 4.91 | K16: 5.01 | L16: 6563811.42
A17: April | B17: 3299018.986 | C17: 3.79 | D17: 3.89 | E17: 12833183.86 | H17: April | I17: 1234611 | J17: 3.79 | K17: 3.89 | L17: 4802636.79
A18: May | B18: 3354488.892 | C18: 3.49 | D18: 3.59 | E18: 12042615.12 | H18: May | I18: 1240629 | J18: 3.49 | K18: 3.59 | L18: 4453858.11
A19: June | B19: 3360101.986 | C19: 3.51 | D19: 3.61 | E19: 12129968.17 | H19: June | I19: 1210752 | J19: 3.51 | K19: 3.61 | L19: 4370814.72
A20: July | B20: 3424343.286 | C20: 3.59 | D20: 3.69 | E20: 12635826.73 | H20: July | I20: 1185490 | J20: 3.59 | K20: 3.69 | L20: 4374458.1
A21: August | B21: 3384602.392 | C21: 6.18 | D21: 6.28 | E21: 21255303.02 | H21: August | I21: 1160095 | J21: 6.18 | K21: 6.28 | L21: =I21*K21 -> 7285396.6
A22: September | B22: 3246630.992 | C22: 6.02 | D22: 6.12 | E22: 19869381.67 | H22: September | I22: 1097892 | J22: 6.02 | K22: 6.12 | L22: =I22*K22 -> 6719099.04
A23: October | B23: 3311505.589 | C23: 5.27 | D23: 5.37 | E23: 17782785.01 | H23: October | I23: 1110111 | J23: 5.27 | K23: 5.37 | L23: =I23*K23 -> 5961296.07
A24: November | B24: 3618915.987 | C24: 5.89 | D24: 5.99 | E24: 21677306.76 | H24: November | I24: 1401078 | J24: 5.89 | K24: =J24+0.1 -> 5.99 | L24: =I24*K24 -> 8392457.22
A25: December | B25: 3604665.791 | C25: 6.63 | D25: 6.73 | E25: 24259400.78 | H25: December | I25: 1420824 | J25: 6.63 | K25: =J25+0.1 -> 6.73 | L25: =I25*K25 -> 9562145.52
B27: =SUM(B14:B25) -> 41092696.97 | C27: CANYON CREEK | D27: =E27/B27 -> 5.361907708 | E27: =SUM(E14:E25) -> 220335248.6 | I27: =SUM(I14:I25) -> 14970178 | J27: CANYON CREEK | K27: =L27/I27 -> 5.373105741 | L27: =SUM(L14:L25) -> 80436349.36
C28: CHURCH BUTTES | J28: CHURCH BUTTES
C29: All Others -> | D29: =D27-0.2 -> 5.161907708 | J29: All Others -> | K29: =K27-0.2 -> 5.173105741

Sheet Expenses
P1: Historical
P2: 12 Months Ending
A3: FERC Acct | B3: Description | D3: 2021-05-31 | E3: 2021-06-30 | F3: 2021-07-31 | G3: 2021-08-31 | H3: 2021-09-30 | I3: 2021-10-31 | J3: 2021-11-30 | K3: 2021-12-31 | L3: 2022-01-31 | M3: 2022-02-28 | N3: 2022-03-31 | O3: 2022-04-30 | P3: =+O3 -> 2022-04-30
A5: OTHER UTILITY OPERATING EXPENSES
A7: Depreciation, Amortization, & Other Taxes
A8: 403 | B8: Depreciation Expense | C8: Production | D8: 0 | E8: 0 | F8: 0 | G8: 0 | H8: 0 | I8: 0 | J8: 0 | K8: 0 | L8: 0 | M8: 0 | N8: 0 | O8: 0 | P8: 814564
A10: 404 | B10: Amortization and Depletion | C10: Production | D10: 0 | E10: 0 | F10: 0 | G10: 0 | H10: 0 | I10: 0 | J10: 0 | K10: 0 | L10: 0 | M10: 0 | N10: 0 | O10: 0 | P10: 0
A13: 483 | B13: Sales for Resale | D13: 75365.96 | E13: 74786.67 | F13: 67778 | G13: 69108.57 | H13: 97129.99 | I13: 97138.4 | J13: 106128.66 | K13: 544755.05 | L13: 116873.49 | M13: 98906.89 | N13: 106860.96 | O13: 52524.95 | P13: =SUM(D13:O13) -> 1507357.59
A14: 490 | B14: Incidental Plant Prod Sales | D14: 682856.11 | E14: 634958.11 | F14: 1627073 | G14: 359.4 | H14: 902433.39 | I14: 2189382.93 | J14: 1288337.66 | K14: 155.94 | L14: 814587.34 | M14: 1062620.16 | N14: 1019900.86 | O14: 972357.06 | P14: =SUM(D14:O14) -> 11195021.96
A15: 492 | B15: Incidental Gasoline_Oil Sales | D15: 212549.49 | E15: 203206.68 | F15: 176274 | G15: 251590.28 | H15: 158052.51 | I15: 152048.32 | J15: 192977.82 | K15: 175220.78 | L15: 187201.33 | M15: 224977.55 | N15: 253213.06 | O15: 235424.09 | P15: 2422735.91
A16: 4951 | B16: Overriding Royalty Revenue from Celsius | D16: 358482.73 | E16: 551110.84 | F16: 937063 | G16: 150108.45 | H16: 147551.81 | I16: 1014606.72 | J16: 791533.65 | K16: 798933.79 | L16: 853244.84 | M16: 1377641.49 | N16: 961928.39 | O16: 1061501.46 | P16: =SUM(D16:O16) -> 9003707.17
A17: 4952 | B17: Oil Revenue Received from Wexpro | D17: 41794 | E17: 37568 | F17: 47511 | G17: 4721 | H17: 16848 | I17: 115027 | J17: 63363 | K17: 15550 | L17: 158907 | M17: 210181 | N17: 461376 | O17: 319049 | P17: 1491895
A18: 758001 | B18: Gas Well Royalities - Other | D18: 0 | E18: 0 | F18: 0 | G18: 0 | H18: 0 | I18: 0 | J18: 0 | K18: 0 | L18: 0 | M18: 0 | N18: 0 | O18: 0 | P18: 0
A21: Other Operating Revenues
A22: 491 | B22: Revenue fr Natural Gas Processed by Others | D22: 0 | E22: 0 | F22: 0 | G22: 0 | H22: 0 | I22: 0 | J22: 0 | K22: 0 | L22: 0 | M22: 0 | N22: 0 | O22: 0 | P22: 0
B24: LNG Electric Costs* | C24: =1937485*1.1 -> 2131233.5 | D24: 0 | E24: 0 | F24: 0 | G24: 0 | H24: 26534.37 | I24: 356731.45 | J24: 397190.36 | K24: 397190.36 | L24: 397190.36 | M24: 397190.36 | N24: 26534.37 | O24: 26534.37 | P24: =SUM(D24:O24) -> 2025096
A28: * | B28: Estimated monthly balance and dths. When history established, balance updated for actuals.

Sheet Rate Base
Q1: Historical
Q2: 13-Month Avg
Q3: Period Ended
A4: FERC Acct | B4: Description | D4: 2021-04-30 | E4: 2021-05-31 | F4: 2021-06-30 | G4: 2021-07-31 | H4: 2021-08-31 | I4: 2021-09-30 | J4: 2021-10-31 | K4: 2021-11-30 | L4: 2021-12-31 | M4: 2022-01-31 | N4: 2022-02-28 | O4: 2022-03-31 | P4: 2022-04-30 | Q4: =+P4 -> 2022-04-30
A5: 101 | B5: Gas Plant in Service | C5: Production | D5: 79968136 | E5: 79968136 | F5: 79968136 | G5: 79968136 | H5: 79968136 | I5: 79968136 | J5: 79968136 | K5: 79968136 | L5: 79968136 | M5: 79968136 | N5: 79968136 | O5: 79968136 | P5: 79968136 | Q5: =((D5/2)+SUM(E5:O5)+(P5/2))/12 -> 79968136
A7: 108 | B7: Accum Prov for Depreciation of Gas Plant in Service | C7: Production | D7: -71443468 | E7: -71513383 | F7: -71572680 | G7: -71641946 | H7: -71711214 | I7: -71780483 | J7: -71849768 | K7: -71919083 | L7: -71988400 | M7: -71988400 | N7: -71988400 | O7: -72112568 | P7: -72112568 | Q7: =((D7/2)+SUM(E7:O7)+(P7/2))/12 -> -71820361.92
A9: 111 | B9: Accum Prov for Amortization of Gas Plant in Service | C9: Production | D9: -6150277 | E9: -6150277 | F9: -6150277 | G9: -6150277 | H9: -6150277 | I9: -6150277 | J9: -6150277 | K9: -6150277 | L9: -6150277 | M9: -6150277 | N9: -6150277 | O9: -6150277 | P9: -6150277 | Q9: =((D9/2)+SUM(E9:O9)+(P9/2))/12 -> -6150277
A11: 1641 | B11: Gas Stored Underground | C11: Production | D11: 11574315.84 | E11: 17495294.93 | F11: 23415459.21 | G11: 30738132.55 | H11: 35307557.59 | I11: 37462513.81 | J11: 49638760.36 | K11: 48688525.37 | L11: 44932895.7 | M11: 32520297.1 | N11: 24327140.39 | O11: 13377221.65 | P11: 4611532.51 | Q11: =((D11/2)+SUM(E11:O11)+(P11/2))/12 -> 30499726.9
A12: 1641 | B12: LNG Stored* | C12: Production | D12: 0 | E12: 0 | F12: 0 | G12: 0 | H12: 0 | I12: =+'LNG Storage'!M12 -> 1169335.142 | J12: =+'LNG Storage'!M13 -> 2475708.534 | K12: =+'LNG Storage'!M14 -> 3869809.969 | L12: =+'LNG Storage'!M15 -> 5684498.467 | M12: =+'LNG Storage'!M16 -> 6669592.768 | N12: =+'LNG Storage'!M17 -> 6669592.768 | O12: =+'LNG Storage'!M18 -> 6669592.768 | P12: =+'LNG Storage'!M19 -> 7670031.683 | Q12: =((D12/2)+SUM(E12:O12)+(P12/2))/12 -> 3086928.855
A14: 255 | B14: Deferred Investment Tax Credits | C14: Production | D14: 0 | E14: 0 | F14: 0 | G14: 0 | H14: 0 | I14: 0 | J14: 0 | K14: 0 | L14: 0 | M14: 0 | O14: 0 | P14: 0 | Q14: =((D14/2)+SUM(E14:O14)+(P14/2))/12 -> 0
A16: 282000 | B16: Accum Deferred Income Taxes - Federal | C16: Production | D16: -33963163 | E16: -31483079 | F16: -31080075 | G16: -24954142 | H16: -24655106 | I16: -25179711 | J16: -32181231 | K16: -32697505 | L16: -33930378 | M16: -33930378 | N16: -33930378 | O16: -35244000 | P16: -35244000 | Q16: =((D16/2)+SUM(E16:O16)+(P16/2))/12 -> -31155797.04
A18: 282100 | B18: Accum Deferred Income Taxes - State | C18: Production | D18: -700755 | E18: -700755 | F18: -700755 | G18: -700755 | H18: -700755 | I18: -700755 | J18: -700755 | K18: -700755 | L18: -700755 | M18: -700755 | N18: -700755 | O18: -700755 | P18: -700755 | Q18: =((D18/2)+SUM(E18:O18)+(P18/2))/12 -> -700755
A20: RATE BASE (W/O Working Cap. Cash) | C20: Production | D20: =+D5+D7+D9+D11+D14+D16+D18+D12 -> -20715211.16 | E20: -12384063.07 | F20: -6120191.79 | G20: 7259148.55 | H20: 12058341.59 | I20: 14788758.95 | J20: 21200573.89 | K20: 21058851.34 | L20: 17815720.17 | M20: 6388215.868 | N20: =+N5+N7+N9+N11+N14+N16+N18+N12 -> -1804940.842 | O20: =+O5+O7+O9+O11+O14+O16+O18+O12 -> -14192649.58 | P20: =+P5+P7+P9+P11+P14+P16+P18+P12 -> -21957899.81 | Q20: =((D20/2)+SUM(E20:O20)+(P20/2))/12 -> 3727600.8
A22: 1641 | B22: Gas Stored Underground (DTH) | C22: Total (DTH) | D22: -3428469 | E22: -4974193 | F22: -6540716 | G22: -8397653 | H22: -9532438 | I22: -10062789 | J22: -13372878 | K22: -13214272 | L22: -11422790 | M22: -8131966 | N22: -6056782 | O22: -3332283 | P22: -1184924 | Q22: =((D22/2)+SUM(E22:O22)+(P22/2))/12 -> -8112121.375
A23: 1641 | B23: LNG Stored (DTH)* | C23: Total (DTH) | D23: 0 | E23: 0 | F23: 0 | G23: 0 | H23: 0 | I23: =-'LNG Storage'!E12 -> -270000 | J23: =-'LNG Storage'!E13 -> -549000 | K23: =+-'LNG Storage'!E14 -> -819000 | L23: =+-'LNG Storage'!E15 -> -1098000 | M23: =+-'LNG Storage'!E16 -> -1233000 | N23: =+-'LNG Storage'!E17 -> -1233000 | O23: =+-'LNG Storage'!E18 -> -1233000 | P23: =-'LNG Storage'!E19 -> -1417950 | Q23: =((D23/2)+SUM(E23:O23)+(P23/2))/12 -> -595331.25
B27: * | C27: Estimated monthly balance and dths. When history established, balance updated for actuals.

Sheet RevRun Fcst
D3: TEMPERATURE ADJUSTED INPUT DATA FROM REVRUN SYSTEM
D4: 05/02/22
T7: 12-Month
B8: Rate Class | D8: Description | H8: Aug22 | I8: Sep22 | J8: Oct22 | K8: Nov22 | L8: Dec22 | M8: Jan23 | N8: Feb23 | O8: Mar23 | P8: Apr23 | Q8: May23 | R8: Jun23 | S8: Jul23 | T8: 2023-07-31
B10: UTILITY OPERATING REVENUE
B11: TARIFF DTH SALES AND REVENUE
A13: 13 | B13: Utah | G13: 1 | H13: 8 | I13: 9 | J13: 10 | K13: 11 | L13: 12 | M13: 1 | N13: 2 | O13: 3 | P13: 4 | Q13: 5 | R13: 6 | S13: 7
A14: 14 | C14: GS | D14: Distribution Non-Gas Rev | G14: 2 | H14: 12609280.07 | I14: 13389759.89 | J14: 20838286.82 | K14: 38829672.2 | L14: 54163135.48 | M14: 58302925.08 | N14: 50392860.43 | O14: 41591810.43 | P14: 24427531.38 | Q14: 18003573.53 | R14: 13785066.59 | S14: 12941246.14 | T14: 359275148
A15: 15 | G15: 3
A16: 16 | D16: Supplier Non-Gas Revenue | G16: 4 | H16: 925756.02 | I16: 1088497.697 | J16: 2719118.383 | K16: 11401000.48 | L16: 17410969.33 | M16: 19059538.9 | N16: 15890900.9 | O16: 12430897.04 | P16: 3489814.969 | Q16: 2059547.087 | R16: 1137781.931 | S16: 954761.7623 | T16: 88568584.49
A17: 17 | G17: 5
